Workbook

Sheet Início
B2: SIMULADOR PÚBLICO | O2: Organização Geral do Simulador | T2: Código de Cores
O3: Aba | Q3: Descrição | T3: Cor | U3: Descrição
B4: ASPECTOS ECONÔMICOS DA PRODUÇÃO E VENDA DE TORAS DE EUCALIPTO PARA FINS ENERGÉTICO OU INDUSTRIAIS DE PROCESSO | T4: Azul | U4: Premissa a ser definida pelo usuário
T5: Laranja | U5: Sugerido pelas bibliotecas, porém pode ser modificado
T6: Vermelho | U6: Fixado, não deve ser modificado
T7: Preto | U7: Resultado de um cálculo
T10: Glosário
T11: Sigla | U11: Significado
T12: ANA | U12: Agência Nacional das Águas
D13: Version | F13: Final | T13: ANP | U13: Agência Nacional do Petróleo
D14: Data | F14: 2017-11-13 | T14: BD | U14: Banco de Dados
T17: Código de símbolos
B18: Descrição e Explicações: | T18: Símbolo | U18: Significado
U20: Hyperlink de acesso a informações adicionais
U22: Ponto de atenção - o usuário deve
U23: ler cuidadosamente o comentário

Sheet Premissas
B2: PREMISSAS
B4: 1. Escolha de Premissas | CK4: Descrição e Explicações:
B6: Quais premissas o usuário quer definir ? | E6: Somente características gerais e preço de venda | I6: O usuário deve escolher todas as premissas dos quadros 2 a 7. Ele pode decidir entre escolher também as premissas, ou escolher somente as características gerais e preço de venda e deixar o custeio escolher todas as outras premissas em função de bancos de dados. Esta segunda opção é recomendada para um usuário que descobre o modelo de custeio ou está numa fase muito preliminar de definição do seu projeto florestal. Caso o usuário for escolher todas as premissas, o valor que teria sido escolhido pelo modelo de custeio sempre aparece na coluna “sugestão”.
B9: 2. Características gerais do projeto
B11: Item | E11: Valor | H11: Unidade | I11: Comentário
E12: Sugestão | F12: Escolha usuário | G12: Efetivo
B13: Meso-região | E13: N/D | F13: Mato Grosso do Sul | G13: =F13 -> Mato Grosso do Sul | I13: As áreas de plantio potencial foram divididas em 11 mesorregiões que apresentam homogeneidade em função do bioma, da existência ou não de polo de florestas plantadas, condições e custos de silvicultura, preços e disponibilidade de terras. A escolha de uma mesorregião define as sugestões dadas ao usuário para: - as características econômicas regionais - as produtividades das florestas
B14: Localização | E14: N/D | I14: O usuário pode deixar vazio, ou informar aqui, um Estado e/ou uma região e/ou um município. Esta informação não é usada posteriormente no cálculo.
B15: Isenção de impostos de renda | E15: Não | F15: Não | G15: =F15 -> Não | I15: O usuário pode testar o impacto de isenção de impostos de renda no cálculo | K15: Sim | L15: Não
B16: Tipo de estrutura gerencial | E16: Empresa ou fundo florestal | F16: Empresa ou fundo florestal | G16: =F16 -> Empresa ou fundo florestal | I16: O projeto florestal com estrutura gerencial reduzida (tipicamente plantio por pessoa física até 1.000 ha) tem custos indiretos menores, mas também tem, geralmente, uma perda de produtividade.
B17: Prazo esperado de produção | E17: 25 | F17: 25 | G17: 25 | H17: anos | I17: O prazo esperado de produção, ou seja, o tempo entre a primeira e a última colheita, precisa ser um número inteiro de anos. O mínimo é 1 e o máximo é 50 menos o prazo de uma rotação, ou seja, o custeio faz o planejamento de produção e os cálculos financeiros para 50 anos a partir do primeiro ano do projeto. Este prazo máximo foi definido porque: - A visibilidade máxima de produção em termos de vida útil de consumidor ou prazo de contrato de suprimento é 25 anos, o que corresponde ao contrato de venda de eletricidade por uma termelétrica a biomassa vencedora de um leilão regulado organizado pela ANEEL. - Considerando as taxas de retorno típicas esperadas por investidores financeiros para projetos florestais (8 a 10% em termos reais), a diferença de custo de produção ou preço alvo de venda entre um projeto de vida de 45 – 50 anos e perpétua não é material.
B18: Tipo de projeto florestal | E18: Comercial com manejo de rebrota | F18: Recomposição de RL - 50% eucalipto | G18: Recomposição de RL - 50% eucalipto | I18: Quatro opções estão disponíveis: - todas as áreas plantáveis fora as reservas ambientais são plantadas com 100% de eucalipto e a rebrota -se tiver mais de uma rotação por ciclo - é manejada para manter a melhor produtividade possível - todas as áreas plantáveis fora as reservas ambientais são plantadas com 100% de eucalipto e a rebrota -se tiver mais de uma rotação por cíclo - nã é manejada, para reduzir os custos de investimento - recompositição de reserva legal onde na média, 50% da área é plantado por eucalipto (o resto da área sendo plantado com mudas de floresta nativa) - recompositição de reserva legal onde na média, 25% da área é plantado por eucalipto (o resto da área sendo plantado com mudas de floresta nativa) Nota-se que não é possível recompor as reservas legais da pampa gaucha com eucalipto porque a vegetação nativa é composta de gramíneas.
B19: Porte do projeto florestal | E19: N/D | F19: 10,000 | G19: =F19 -> 10,000 | H19: ha | I19: O valor autorizado vai de 1 hectare a 100 mil hectares para possibilitar simulações tanto para pequeno produtores quanto para os maiores empreendimentos. Com produtividades florestais normais, 100 mil hectares seriam mais do que suficientes para abastecer a maior termelétrica a madeira do mundo em operação hoje (de 240 MW, na Finlândia) e operando mais de 8.000 horas ao ano. O modelo de custeio incorpora economias de escala dos custos indiretos, custos de colheita e de transporte. Os outros custos são estritamente proporcionais à área considerada.
B20: Situação de referência para avaliação econômica | E20: Terra sem valorização | F20: Custo da terra a valor de mercado | G20: Custo da terra a valor de mercado | I20: Os custos que entram no modelo financeiro são a diferença de custos entre o projeto florestal e a situação de referência. A situação de referência corresponde a um uso ou manejo alternativo da mesma área. Na hora de escolher uma alternativa de uso/manejo, o dono de terras considera entre outros critérios as diferenças de custos e de rentabilidade. Por exemplo, se o desenvolvedor do projeto florestal considera plantios comerciais sobre terras também adequadas para criação de gado, o modelo financeiro do projeto florestal deve incluir um gasto igual ao custo de aluguel das terras como pastagem.
B21: Preço alvo de venda | E21: N/D | F21: 86 | G21: =Resultado!U32 -> 155.7 | H21: R$/m³ | I21: Preço de venda que permite obter exatamente a rentabilidade desejada pelo acionista do projeto. Ele é calculada automaticamente pelo custeio a partir da todas as premissas do projeto (fora o preço de mercado e o preço provável de venda).
B23: 3. Condições de venda da madeira
B25: Paramêtro | E25: Valor | H25: Unidade | I25: Comentário
E26: Sugestão | F26: Escolha usuário | G26: Efetivo
B27: Quantidade de venda | E27: Volume | F27: Volume | G27: =F27 -> Volume | I27: Opção de venda por volume, peso verde, ou conteúdo energético
B28: Modelo de entrega da madeira ao comprador | E28: Posto na industria | F28: Posto na indústria | G28: =F28 -> Posto na indústria | H28: - | I28: 4 opções, clicar para ver as definições
B29: Preço provável de venda da madeira | E29: N/D | F29: 239.9 | G29: =F29 -> 239.9 | H29: =IF(G27="Volume","R$/m³",IF(G27="Peso","R$/t","R$/MWh")) -> R$/m³ | I29: Preço incluindo PIS, COFINS, FUNRURAL e se existir, ICMS. O modelo não sugere nenhum valor, porque o usuário pode utilizar várias referências, tais quais: - preço atual de mercado (ver Tabela 4.a.) - preço projetado do mercado no horizonte de inicio de produção da madeira - valor que corresponde ao potencial de pagamento do ou dos consumidor(es) - preço alvo de venda, que permite atingir a rentabilidade desejada (ver Tabela 2) Se o usuário decidir usar o preço alvo de venda, ele deve tomar cuidado que qualquer mudança de premissa modifica este valor, necessitando uma atualização do preço provável escolhido.
B30: Preço provável de venda equivalente por volume | G30: =G29/IF(G27="Volume",1,IF(G27="Peso",G77,G78)) -> 239.9 | H30: R$/m³ | I30: Definido em função da linha anterior e da escolha da quantidade de venda
B32: 4.a. Características ecônomicas regionais
D33: =IF(E6="Todas premissas",1,0) -> 0
B34: Item | E34: Valor | H34: Unidade | I34: Comentário
E35: Sugestão | F35: Escolha usuário | G35: Efetivo
B36: Custo do diesel | E36: ='Biblioteca dados regionais'!H7 -> 3.22 | F36: 2.95 | G36: =IF($D$33=1,F36,E36) -> 3.22 | H36: R$/l | I36: Sugestão conforme dados da Agência Nacional do Petróleo. Usado para diferenciar custo de colheita e transporte em cada mesorregião
B37: Custo de gasolina | E37: ='Biblioteca dados regionais'!I7 -> 3.39 | F37: 3.30 | G37: 3.39 | H37: R$/l | X37: Todas premissas | Y37: Somente características gerais e preço de venda
B38: Índice salários | E38: ='Biblioteca dados regionais'!J7 -> 95 | F38: 100 | G38: 95 | H38: Base 100 em SP | I38: Usado para diferenciar custo de colheita e transporte em cada mesorregião
B39: Custo de uso de terra | E39: ='Biblioteca dados regionais'!K7*IF(G20="Custo da terra a valor de mercado",1,0) -> 351 | F39: 350 | G39: 351 | H39: R$/ha.ano | I39: Este valor é utilizado no cálculo somente para um plantio comercial e se a situação de referência for "Custo de terra a valor de mercado"
B40: Maturidade do mercado florestal | E40: ='Biblioteca dados regionais'!F7 -> Maduro | F40: Maduro | G40: Maduro | I40: Lista fechada de opções entre "Maduro", "Fronteira" e "Incipiente." | X40: AUXILIAR - ANÁLISE "WHAT IF" PARA AVALIAR O IMPACTO DA REGIÃO NOS CUSTOS E PREÇO ALVO | AN40: AUXILIAR - ANÁLISE "WHAT IF" PARA AVALIAR O IMPACTO DA REGIÃO NO CUSTO DE INVESTIMENTO POR HECTARE
B41: Preço da madeira do mercado | E41: 50 | F41: 50 | G41: 50 | H41: =H29 -> R$/m³ | I41: Este dado pode não estar disponível (em regiões de mercado florestal incipiente) ou estar desconhecido do usuário. Caso ele esteja informado, ele não é usado diretamente mas serve de apoio para o usuário: - ele pode embasar o preço provável de venda da madeira - ele é comparado ao preço alvo de venda e preço provável de venda nas abas "Resultado" e "Relatório".
B42: Taxa de retorno esperada deduzindo a taxa de inflação e após os impostos de renda | E42: ='Biblioteca dados regionais'!L7+'Biblioteca CAPM'!D14 -> 9.0% | F42: 8.0% | G42: 9.0% | I42: A sugestão corresponde ao padrão requerido por um investidor florestal para a mesorregião considerada. Ela resulta da aplicação do modelo CAPM com um fator de risco que reflete a maturidade do mercado regionale foi também validada por entrevistas com investidores florestais. | Y42: Custo cash | AB42: Custo com custo de capital | AE42: Preço alvo | AH42: Colheita | AK42: Transporte | AO42: Preparação do projeto | AR42: Silvicultura | AU42: Custos indiretos | AX42: Custos indiretos
Y43: =Resultado!Q27 -> 120 | AB43: =Resultado!Q28 -> 141 | AE43: =Resultado!Q32 -> 156 | AH43: =Resultado!Q25 -> 33 | AK43: =Resultado!Q26 -> 9 | AO43: =Resultado!K14 -> 420 | AR43: =Resultado!K15 -> 0 | AU43: =Resultado!K11 -> 1,595 | AX43: =Resultado!K12 -> 1,404
B44: 4.b. Características físicas regionais | X44: Mato Grosso do Sul | Y44: 120 | AA44: ='Biblioteca dados regionais'!B15 -> Mato Grosso do Sul | AB44: 141 | AD44: ='Biblioteca dados regionais'!B15 -> Mato Grosso do Sul | AE44: 156 | AG44: ='Biblioteca dados regionais'!B15 -> Mato Grosso do Sul | AH44: 33 | AJ44: ='Biblioteca dados regionais'!B15 -> Mato Grosso do Sul | AK44: 9 | AN44: Mato Grosso do Sul | AO44: 420 | AQ44: Mato Grosso do Sul | AR44: 0 | AT44: Mato Grosso do Sul | AU44: 1,595 | AW44: Mato Grosso do Sul | AX44: 1,404
X45: Pampa Gaúcho | AA45: ='Biblioteca dados regionais'!B16 -> Pampa Gaúcho | AD45: ='Biblioteca dados regionais'!B16 -> Pampa Gaúcho | AG45: ='Biblioteca dados regionais'!B16 -> Pampa Gaúcho | AH45: 0 | AJ45: ='Biblioteca dados regionais'!B16 -> Pampa Gaúcho | AK45: 0 | AN45: Pampa Gaúcho | AQ45: Pampa Gaúcho | AT45: Pampa Gaúcho | AU45: 1,595 | AW45: Pampa Gaúcho | AX45: 1,224
B46: Item | E46: Valor | H46: Unidade | I46: Comentário | X46: Serra Gaúcha | Y46: 278 | AA46: ='Biblioteca dados regionais'!B17 -> Serra Gaúcha | AB46: 364 | AD46: ='Biblioteca dados regionais'!B17 -> Serra Gaúcha | AE46: 402 | AG46: ='Biblioteca dados regionais'!B17 -> Serra Gaúcha | AH46: 75 | AJ46: ='Biblioteca dados regionais'!B17 -> Serra Gaúcha | AK46: 10 | AN46: Serra Gaúcha | AO46: 1,454 | AQ46: Serra Gaúcha | AR46: 419 | AT46: Serra Gaúcha | AU46: 1,595 | AW46: Serra Gaúcha | AX46: 1,640
E47: Sugestão | F47: Escolha usuário | G47: Efetivo | X47: Paraná e Santa Catarina | Y47: 230 | AA47: ='Biblioteca dados regionais'!B18 -> Paraná e Santa Catarina | AB47: 293 | AD47: ='Biblioteca dados regionais'!B18 -> Paraná e Santa Catarina | AE47: 324 | AG47: ='Biblioteca dados regionais'!B18 -> Paraná e Santa Catarina | AH47: 61 | AJ47: ='Biblioteca dados regionais'!B18 -> Paraná e Santa Catarina | AK47: 8 | AN47: Paraná e Santa Catarina | AO47: 1,454 | AQ47: Paraná e Santa Catarina | AR47: 419 | AT47: Paraná e Santa Catarina | AU47: 1,595 | AW47: Paraná e Santa Catarina | AX47: 1,760
B48: Isoietas | E48: ='Biblioteca dados regionais'!C7 -> 1,450 | F48: 1,400 | G48: =IF($D$33=1,F48,E48) -> 1,450 | H48: mm/ano | I48: Este dado é para informação somente, e não é utilizado diretamente no cálculo. | X48: São Paulo | Y48: 161 | AA48: ='Biblioteca dados regionais'!B19 -> São Paulo | AB48: 205 | AD48: ='Biblioteca dados regionais'!B19 -> São Paulo | AE48: 227 | AG48: ='Biblioteca dados regionais'!B19 -> São Paulo | AH48: 38 | AJ48: ='Biblioteca dados regionais'!B19 -> São Paulo | AK48: 9 | AN48: São Paulo | AO48: 1,454 | AQ48: São Paulo | AR48: 288 | AT48: São Paulo | AU48: 1,595 | AW48: São Paulo | AX48: 1,868
B49: Classe de relevo | E49: ='Biblioteca dados regionais'!D7 -> Plano | F49: Ondulado | G49: =IF($D$33=1,F49,E49) -> Plano | H49: - | I49: Este dado influencia o custo das operações de silvicultura e de colheita (o forte aclive reduz o rendimento e pode até impedir a mecanização das operações). | X49: Leste de Minas Gerais | Y49: 182 | AA49: ='Biblioteca dados regionais'!B20 -> Leste de Minas Gerais | AB49: 230 | AD49: ='Biblioteca dados regionais'!B20 -> Leste de Minas Gerais | AE49: 255 | AG49: ='Biblioteca dados regionais'!B20 -> Leste de Minas Gerais | AH49: 47 | AJ49: ='Biblioteca dados regionais'!B20 -> Leste de Minas Gerais | AK49: 11 | AN49: Leste de Minas Gerais | AO49: 1,454 | AQ49: Leste de Minas Gerais | AR49: 288 | AT49: Leste de Minas Gerais | AU49: 1,595 | AW49: Leste de Minas Gerais | AX49: 1,600
X50: Oeste de Minas Gerais | Y50: 151 | AA50: ='Biblioteca dados regionais'!B21 -> Oeste de Minas Gerais | AB50: 184 | AD50: ='Biblioteca dados regionais'!B21 -> Oeste de Minas Gerais | AE50: 204 | AG50: ='Biblioteca dados regionais'!B21 -> Oeste de Minas Gerais | AH50: 45 | AJ50: ='Biblioteca dados regionais'!B21 -> Oeste de Minas Gerais | AK50: 10 | AN50: Oeste de Minas Gerais | AO50: 435 | AQ50: Oeste de Minas Gerais | AR50: 288 | AT50: Oeste de Minas Gerais | AU50: 1,595 | AW50: Oeste de Minas Gerais | AX50: 1,560
X51: Norte ES e Sul BA | Y51: 147 | AA51: ='Biblioteca dados regionais'!B22 -> Norte ES e Sul BA | AB51: 184 | AD51: ='Biblioteca dados regionais'!B22 -> Norte ES e Sul BA | AE51: 204 | AG51: ='Biblioteca dados regionais'!B22 -> Norte ES e Sul BA | AH51: 43 | AJ51: ='Biblioteca dados regionais'!B22 -> Norte ES e Sul BA | AK51: 9 | AN51: Norte ES e Sul BA | AO51: 960 | AQ51: Norte ES e Sul BA | AR51: 419 | AT51: Norte ES e Sul BA | AU51: 1,595 | AW51: Norte ES e Sul BA | AX51: 1,696
X52: Cerrado | Y52: 157 | AA52: ='Biblioteca dados regionais'!B23 -> Cerrado | AB52: 193 | AD52: ='Biblioteca dados regionais'!B23 -> Cerrado | AE52: 213 | AG52: ='Biblioteca dados regionais'!B23 -> Cerrado | AH52: 37 | AJ52: ='Biblioteca dados regionais'!B23 -> Cerrado | AK52: 18 | AN52: Cerrado | AO52: 420 | AQ52: Cerrado | AR52: 0 | AT52: Cerrado | AU52: 2,393 | AW52: Cerrado | AX52: 1,560
X53: MAPITO | Y53: 143 | AA53: ='Biblioteca dados regionais'!B24 -> MAPITO | AB53: 172 | AD53: ='Biblioteca dados regionais'!B24 -> MAPITO | AE53: 190 | AG53: ='Biblioteca dados regionais'!B24 -> MAPITO | AH53: 38 | AJ53: ='Biblioteca dados regionais'!B24 -> MAPITO | AK53: 23 | AN53: MAPITO | AO53: 419 | AQ53: MAPITO | AR53: 0 | AT53: MAPITO | AU53: 1,914 | AW53: MAPITO | AX53: 1,160
X54: Amazônia | Y54: 174 | AA54: ='Biblioteca dados regionais'!B25 -> Amazônia | AB54: 218 | AD54: ='Biblioteca dados regionais'!B25 -> Amazônia | AE54: 241 | AG54: ='Biblioteca dados regionais'!B25 -> Amazônia | AH54: 41 | AJ54: ='Biblioteca dados regionais'!B25 -> Amazônia | AK54: 23 | AN54: Amazônia | AO54: 419 | AQ54: Amazônia | AR54: 0 | AT54: Amazônia | AU54: 2,393 | AW54: Amazônia | AX54: 1,216
B55: 5.a. Cronograma e manejo florestal
B57: Item | E57: Valor | H57: Unidade | I57: Comentário
E58: Sugestão | F58: Escolha usuário | G58: Efetivo
B59: Número de rotações sem replantio | E59: 2 | F59: 2 | G59: =IF($D$33=1,F59,E59) -> 2 | I59: Máximo 4 para o plantio comercial. 2 é geralmente considerado o melhor para maximizar a rentabilidade do projeto florestal. Para reserva legal, 3 é o máximo na prática.
B60: Prazo de cada rotação | E60: 7 | F60: 7 | G60: =IF($D$33=1,F60,E60) -> 7 | H60: anos | I60: De 5 a 10 anos. O ótimo de rentabilidade é geralmente para 6 ou 7 anos. Abaixo de 5 anos, a perda de rentabilidade é importante porque as florestas ainda não tiveram tempo de se desenvolver. Acima de 10 anos, a corte de madeira para fins de processo industrial ou de geração de energia fica difícil, e o incremento relativo de volume não compensa para o incremento de custos fixos.
B61: Prazo inicial de plantio | E61: =E60 -> 7 | F61: 7 | G61: =IF($D$33=1,F61,E61) -> 7 | H61: anos | I61: A planilha somente funciona se o prazo inicial de plantio for inferior ou igual ao alvo de prazo de produção, e também ao prazo de rotação, o que corresponde à pratica geral. Plantar em vários anos permite ter uma produção de madeira mais homogênea ao longo do tempo, e reduz os custos de investimento. | X61: AUXILIAR - ANÁLISE "WHAT IF" PARA AVALIAR O IMPACTO DA REGIÃO NOS CUSTOS E PREÇO ALVO
B62: Prazo de um ciclo | G62: =G59*G60 -> 14 | H62: anos | I62: Produto entre o número de rotações por cíclo e o prazo de uma rotação
B63: Prazo efetivo do projeto florestal desde inicio | G63: =IF(OR(G18="Comercial com manejo de rebrota",G18="Comercial sem manejo de rebrota"),G60+G17,MIN(G60+G17,G61-1+20,G61-1+G62)) -> 20 | H63: anos | I63: Se plantio comercial, prazo de 1 rotação + prazo esperado de produção; se plantio em RL, mínimo entre 20 anos (prazo legal), prazo de 1 cíclo, e prazo de 1 rotação + prazo esperado de produção | X63: Custo cash | AF63: Custo com custo de capital | AN63: Preço alvo | AV63: Colheita | BD63: Transporte
B64: Último ano de plantio / inicio de manejo de rebrota | G64: =G63-G60-1 -> 12 | I64: Igual ao prazo efetivo do projeto - prazo da cada rotação | X64: =Resultado!Q27 -> 120 | Y64: 10 | Z64: 100 | AA64: 1000 | AB64: 10000 | AC64: 100000 | AF64: =Resultado!Q28 -> 141 | AG64: 10 | AH64: 100 | AI64: 1000 | AJ64: 10000 | AK64: 100000 | AN64: =Resultado!Q32 -> 156 | AO64: 10 | AP64: 100 | AQ64: 1000 | AR64: 10000 | AS64: 100000 | AV64: =Resultado!Q25 -> 33.3 | AW64: 10 | AX64: 100 | AY64: 1000 | AZ64: 10000 | BA64: 100000 | BD64: =Resultado!Q26 -> 9.3 | BE64: 10 | BF64: 100 | BG64: 1000 | BH64: 10000 | BI64: 100000
B65: Densidade de plantios de eucalipto | E65: N/D | F65: N/D | G65: =IF(OR(G18="Comercial com manejo de rebrota",G18="Comercial sem manejo de rebrota"),'Biblioteca dados regionais'!M7,'Biblioteca dados regionais'!N7*IF(G18="Recomposição de RL - 50% eucalipto",50%,25%)) -> 572 | H65: árvores/ha | I65: Fixado a partir da mesorregião e do típo de projeto | X65: Reduzida | Y65: 284 | Z65: 133 | AA65: 118 | AB65: 114 | AC65: 114 | AF65: Reduzida | AG65: 470 | AH65: 167 | AI65: 137 | AJ65: 132 | AK65: 131 | AN65: Reduzida | AO65: 520 | AP65: 185 | AQ65: 152 | AR65: 146 | AS65: 145 | AV65: Reduzida | AW65: 52.4 | AX65: 36.9 | AY65: 35.5 | AZ65: 35.4 | BA65: 35.4 | BD65: Reduzida | BE65: 11.3 | BF65: 11.3 | BG65: 11.3 | BH65: 7.8 | BI65: 7.7
X66: Empresa ou fundo florestal | Y66: 1544 | Z66: 262 | AA66: 134 | AB66: 120 | AC66: 117 | AF66: Empresa ou fundo florestal | AG66: 2234 | AH66: 349 | AI66: 161 | AJ66: 141 | AK66: 138 | AN66: Empresa ou fundo florestal | AO66: 2470 | AP66: 386 | AQ66: 178 | AR66: 156 | AS66: 152 | AV66: Empresa ou fundo florestal | AW66: 48.5 | AX66: 34.6 | AY66: 33.3 | AZ66: 33.3 | BA66: 33.3 | BD66: Empresa ou fundo florestal | BE66: 11.3 | BF66: 11.3 | BG66: 11.3 | BH66: 9.3 | BI66: 7.7
B68: 5.b. Caracteristicas físicas da madeira do projeto
B70: Item | E70: Valor | H70: Unidade | I70: Comentário
E71: Sugestão | F71: Escolha usuário | G71: Efetivo
B72: Espécies | E72: E. urograndis | X72: =Resultado!U32 -> 155.6514465 | Y72: 1 | Z72: 2 | AA72: 3 | AB72: 4
B73: Densidade seca 7 anos | E73: 0.45 | H73: t/m³ | X73: 5 | Y73: 175.822714 | Z73: 247.0951155 | AA73: 283.6608964 | AB73: 322.1221274
B74: Teor energético | E74: 18.0 | H74: GJ / toneleda seca | X74: 6 | Y74: 138.1334568 | Z74: 184.3306587 | AA74: 207.5356416 | AB74: 217.7799695
B75: Umidade média | E75: 45% | F75: 45% | G75: =IF($D$33=1,F75,E75) -> 45% | I75: De 45 a 55% para venda em pé ou carregada no caminhão; para outras modalidades de venda, se a cadeia logística inclui um prazo de armazenamento em pilha antes do transporte até o consumidor, a úmidade pode cair até 30 - 35%. | X75: 7 | Y75: 119.5133955 | Z75: 155.6514465 | AA75: 170.9538279 | AB75: 170.9538279
B76: Densidade seca | E76: =E73*(1+0.03*(E60-7)) -> 0.45 | F76: =E73*(1+0.03*(F60-7)) -> 0.45 | G76: =E73*(1+0.03*(G60-7)) -> 0.45 | H76: t/m³ | I76: Densidade seca 7 anos * (1 + 0,03 * (idade - 7)) | X76: 8 | Y76: 109.4996502 | Z76: 138.2605683 | AA76: 145.2097765 | AB76: 145.2097765
B77: Densidade verde | E77: =E76/(1-E75) -> 0.82 | F77: =F76/(1-F75) -> 0.82 | G77: =G76/(1-G75) -> 0.82 | H77: t/m³ | I77: Densidade seca / (1- umidade média) | X77: 9 | Y77: 105.8028115 | Z77: 128.6088521 | AA77: 130.6815388 | AB77: 130.6815388
B78: Teor enérgetico | E78: =(E74*(1-E75)-2.33*E75)*E77/3.6 -> 2.01 | F78: =(E74*(1-F75)-2.33*F75)*F77/3.6 -> 2.01 | G78: =(E74*(1-G75)-2.33*G75)*G77/3.6 -> 2.01 | H78: MWh/m³ | I78: Função de teor energético seco, densidade séco e umidade | X78: 10 | Y78: 102.434756 | Z78: 123.6781607 | AA78: 123.6781607 | AB78: 123.6781607
B81: 5.c. Produtividade das florestas
B83: Item | E83: Valor | H83: Unidade | I83: Comentário
E84: Sugestão | F84: Escolha usuário | G84: Efetivo
B85: Indice de sitio | E85: ='Biblioteca dados regionais'!O7 -> 38.0 | F85: 35.0 | G85: =IF($D$33=1,F85,E85) -> 38.0 | H85: - | I85: O IMA da 1ª rotação é imposto pelo índice de sitio, a densidade de plantio, e os desvios potenciais da silvicutura das melhores condições para um plantio copmercial. A escolher o indice de sitio, que descreve a produtividade do sitio, o usuário deve verificar que o IMA 7 anos é compátivel com dados regionais de plantios comerciais
B86: IMA 7 anos de plantio comercial | E86: N/D | F86: N/D | G86: =IF('Biblioteca dados regionais'!M7=1667,VLOOKUP(G85,'Modelos florestais'!AB6:BY30,47),IF('Biblioteca dados regionais'!M7=1143,VLOOKUP(G85,'Modelos florestais'!AB6:BY30,48),VLOOKUP(G85,'Modelos florestais'!AB6:BY30,49))) -> 35.4 | H86: m³/ha.ano
B87: Produtividade Rotação1 / Produtividade padrão | E87: =IF($G$18="Comercial com manejo de rebrota",'Biblioteca dados regionais'!S7,IF($G$18="Comercial sem manejo de rebrota",'Biblioteca dados regionais'!X7,IF($G$18="Recomposição RR 25% de eucalipto",'Biblioteca dados regionais'!$AC$7,'Biblioteca dados regionais'!$AG$7))) -> 80% | F87: 100% | G87: =IF($D$33=1,F87,E87) -> 80% | I87: Os fatores de correção sugeridos são independentes da mesorregião.
B88: Prod Rotação 2 / Prod Rotação 1 se existir | E88: =IF($G$18="Comercial com manejo de rebrota",'Biblioteca dados regionais'!T7,IF($G$18="Comercial sem manejo de rebrota",'Biblioteca dados regionais'!Y7,IF($G$18="Recomposição RR 25% de eucalipto",'Biblioteca dados regionais'!$AD$7,'Biblioteca dados regionais'!$AH$7))) -> 80% | F88: 70% | G88: =IF($D$33=1,F88,E88) -> 80% | I88: Os fatores de correção sugeridos são independentes da mesorregião.
B89: Prod Rotação 3 / Prod Rotação 2 se existir | E89: =IF($G$18="Comercial com manejo de rebrota",'Biblioteca dados regionais'!U7,IF($G$18="Comercial sem manejo de rebrota",'Biblioteca dados regionais'!Z7,IF($G$18="Recomposição RR 25% de eucalipto",'Biblioteca dados regionais'!$AE$7,'Biblioteca dados regionais'!$AI$7))) -> 80% | F89: 70% | G89: =IF($D$33=1,F89,E89) -> 80% | I89: Os fatores de correção sugeridos são independentes da mesorregião.
B90: Prod Rotação 4 / Prod Rotação 3 se existir | E90: =IF($G$18="Comercial com manejo de rebrota",'Biblioteca dados regionais'!V7,IF($G$18="Comercial sem manejo de rebrota",'Biblioteca dados regionais'!AA7,IF($G$18="Recomposição RR 25% de eucalipto",0,0))) -> 0% | F90: 70% | G90: =IF($D$33=1,F90,E90) -> 0% | I90: Os fatores de correção sugeridos são independentes da mesorregião.
B93: 6.a. Custos de preparação do projeto florestal e do terreno
B95: Este quadro não é utilizado no cálculo se o projeto florestal for de recomposição de RL com eucalipto e a situação de referência a recomposição de RL com o plantio de 100% de árvores nativas
B97: Tipo de custo | E97: Valor | H97: Unidade | I97: Comentário
E98: Sugestão | F98: Escolha usuário | G98: Efetivo
B99: Tipo de licenciamento | E99: =IF(E19>'Outras listas'!AD9,"Com RIMA","Sem RIMA") -> Com RIMA | F99: Com RIMA | G99: =IF($D$33=1,F99,E99) -> Com RIMA | H99: - | I99: RIMA obrigátorio por lei acima de 1.000 ha de plantio
B100: Custos de licenciamento (R$) | E100: =IF(G99="Sem RIMA",MAX('Outras listas'!AG8,'Outras listas'!AH8*G19),MAX('Outras listas'!AG9,'Outras listas'!AH9*G19)+'Biblioteca dados regionais'!AJ7*(SUM(G121:G133)*G19+(G112+G114*G19)*Premissas!G60)) -> 500,000 | F100: 300,000 | G100: =IF($D$33=1,F100,E100) -> 500,000 | H100: R$ | I100: O valor sugerido é conforme dados de projetos efetivos.
B101: Prop.s perímetro (R$/m) | E101: 10 | F101: 10 | G101: =IF($D$33=1,F101,E101) -> 10 | H101: R$/m | I101: Corresponde à instalação de cerca.
B102: Comprimento da cerca | E102: =4*(100*G19)/(100*MIN(G19,100)*IF(OR(G18='Modelos florestais'!G8,G18='Modelos florestais'!G9),1,0.25))^0.5 -> 80,000 | F102: 25,000 | G102: =IF($D$33=1,F102,E102) -> 80,000 | H102: m | I102: Sugestão de comprimento considerando áreas cercadas quadradas de até 100 ha para plantios comerciais e até 25 ha para áreas de reserva legal
B103: Proporcionais à área (R$/ha) | E103: =IF(OR(G18='Modelos florestais'!G8,G18='Modelos florestais'!G9),'Biblioteca dados regionais'!AL7,'Biblioteca dados regionais'!CZ7) -> 290 | F103: 2,129 | G103: =IF($D$33=1,F103,E103) -> 290 | H103: R$/ha | I103: Corresponde à preparação do solo
B106: 6.b. Custos indiretos de manejo do empreendimento florestal
B108: Se o projeto florestal for de recomposição de RL com eucalipto: - e se a situação de referência for a recomposição de RL com o plantio de 100% de árvores nativas, então este quadro não é utilizado no cálculo - e se a situação de referência for a regeneração natural com monitoramento, então os custos fixos e ambientais também não são considerados no cálculo
B110: Tipo de custo | E110: Valor | H110: Unidade | I110: Comentário
E111: Sugestão | F111: Escolha usuário | G111: Efetivo
B112: Fixos | E112: =HLOOKUP(G16,'Outras listas'!E7:F13,2,0)*(1+VLOOKUP(G40,'Outras listas'!T7:V9,3,0)) -> 100,000 | F112: 5,000 | G112: =IF($D$33=1,F112,E112) -> 100,000 | H112: R$/ano | I112: Os custos indiretos são aproximados plea soma de custos fixos e dois componentes variáveis à área total.
B113: Custos ambientais considerados proporcionais à área | E113: =IF(OR(G18='Modelos florestais'!G8,G18='Modelos florestais'!G9),HLOOKUP(G16,'Outras listas'!E7:F13,3,0),HLOOKUP(G16,'Outras listas'!E7:F13,4,0))*(1+VLOOKUP(G40,'Outras listas'!T7:V9,3,0)) -> 190 | F113: 10 | G113: =IF($D$33=1,F113,E113) -> 190 | H113: R$/ha.ano | I113: Os custos indiretos são aproximados plea soma de custos fixos e dois componentes variáveis à área total.
B114: Outros custos considerados proporcionais à área | E114: =IF(OR(G18='Modelos florestais'!G8,G18='Modelos florestais'!G9),HLOOKUP(G16,'Outras listas'!E7:F13,5,0),HLOOKUP(G16,'Outras listas'!E7:F13,6,0))*(1+VLOOKUP(G40,'Outras listas'!T7:V9,3,0)) -> 190 | F114: 50 | G114: =IF($D$33=1,F114,E114) -> 190 | H114: R$/ha.ano | I114: Os custos indiretos são aproximados plea soma de custos fixos e dois componentes variáveis à área total.
B117: 6.c. Custos de operações silviculturais - 1ª rotação
B119: Tipo de custo | E119: Valor | H119: Unidade | I119: Comentário
B120: Ano | C120: Operação | E120: Sugestão | F120: Escolha usuário | G120: Efetivo
B121: Plantio - ano 0 | C121: Plantio | E121: =IF(OR(G18='Modelos florestais'!G8,G18='Modelos florestais'!G9),'Biblioteca dados regionais'!AM7,IF(G18='Modelos florestais'!G10,'Biblioteca dados regionais'!DA7,'Biblioteca dados regionais'!EQ7)) -> 3,311 | F121: 1,996 | G121: =IF($D$33=1,F121,E121) -> 3,311 | H121: R$/ha
C122: Irrigação | E122: =IF(OR(G18='Modelos florestais'!G8,G18='Modelos florestais'!G9),'Biblioteca dados regionais'!AN7,IF(G18='Modelos florestais'!G10,'Biblioteca dados regionais'!DB7,'Biblioteca dados regionais'!ER7)) -> 954 | F122: 0 | G122: 954 | H122: R$/ha
C123: Fertilizante | E123: =IF(OR(G18='Modelos florestais'!G8,G18='Modelos florestais'!G9),'Biblioteca dados regionais'!AO7,IF(G18='Modelos florestais'!G10,'Biblioteca dados regionais'!DC7,'Biblioteca dados regionais'!ES7)) -> 760 | F123: 445 | G123: 760 | H123: R$/ha
C124: Controle de mato | E124: =IF(OR(G18='Modelos florestais'!G8,G18='Modelos florestais'!G9),'Biblioteca dados regionais'!AP7,IF(G18='Modelos florestais'!G10,'Biblioteca dados regionais'!DD7,'Biblioteca dados regionais'!ET7)) -> 1,147 | F124: 160 | G124: 1,147 | H124: R$/ha
C125: Controle de praga | E125: =IF(OR(G18='Modelos florestais'!G8,G18='Modelos florestais'!G9),'Biblioteca dados regionais'!AQ7,IF(G18='Modelos florestais'!G10,'Biblioteca dados regionais'!DE7,'Biblioteca dados regionais'!EU7)) -> 81 | F125: 270 | G125: 81 | H125: R$/ha
B126: Manutenção - ano 1 | C126: Fertilizante | E126: =IF(OR(G18='Modelos florestais'!G8,G18='Modelos florestais'!G9),'Biblioteca dados regionais'!AS7,IF(G18='Modelos florestais'!G10,'Biblioteca dados regionais'!DG7,'Biblioteca dados regionais'!EVF7)) -> 264 | F126: 949 | G126: 264 | H126: R$/ha
C127: Controle de mato | E127: =IF(OR(G18='Modelos florestais'!G8,G18='Modelos florestais'!G9),'Biblioteca dados regionais'!AT7,IF(G18='Modelos florestais'!G10,'Biblioteca dados regionais'!DH7,'Biblioteca dados regionais'!EX7)) -> 645 | F127: 728 | G127: 645 | H127: R$/ha
C128: Controle de praga | E128: =IF(OR(G18='Modelos florestais'!G8,G18='Modelos florestais'!G9),'Biblioteca dados regionais'!AU7,IF(G18='Modelos florestais'!G10,'Biblioteca dados regionais'!DI7,'Biblioteca dados regionais'!EY7)) -> 41 | F128: 93 | G128: 41 | H128: R$/ha
B129: Manutenção - ano 2 | C129: Fertilizante | E129: =IF(OR(G18='Modelos florestais'!G8,G18='Modelos florestais'!G9),'Biblioteca dados regionais'!AW7,IF(G18='Modelos florestais'!G10,'Biblioteca dados regionais'!DK7,'Biblioteca dados regionais'!FA7)) -> 264 | F129: 422 | G129: 264 | H129: R$/ha
C130: Controle de mato | E130: =IF(OR(G18='Modelos florestais'!G8,G18='Modelos florestais'!G9),'Biblioteca dados regionais'!AX7,IF(G18='Modelos florestais'!G10,'Biblioteca dados regionais'!DL7,'Biblioteca dados regionais'!FB7)) -> 645 | F130: 114 | G130: 645 | H130: R$/ha
C131: Controle de praga | E131: =IF(OR(G18='Modelos florestais'!G8,G18='Modelos florestais'!G9),'Biblioteca dados regionais'!AY7,IF(G18='Modelos florestais'!G10,'Biblioteca dados regionais'!DM7,'Biblioteca dados regionais'!FC7)) -> 41 | F131: 206 | G131: 41 | H131: R$/ha
B132: Manutenção - ano 3 | C132: Fertilizante | E132: =IF(OR(G18='Modelos florestais'!G8,G18='Modelos florestais'!G9),'Biblioteca dados regionais'!BA7,IF(G18='Modelos florestais'!G10,'Biblioteca dados regionais'!DO7,'Biblioteca dados regionais'!FE7)) -> 0 | F132: 81 | G132: 0 | H132: R$/ha
C133: Controle de praga | E133: =IF(OR(G18='Modelos florestais'!G8,G18='Modelos florestais'!G9),'Biblioteca dados regionais'!BB7,IF(G18='Modelos florestais'!G10,'Biblioteca dados regionais'!DP7,'Biblioteca dados regionais'!FF7)) -> 41 | F133: 56 | G133: 41 | H133: R$/ha
B134: Manutenção - anos 4 e 5 | C134: Fertilizante | E134: =IF(OR(G18='Modelos florestais'!G8,G18='Modelos florestais'!G9),'Biblioteca dados regionais'!BD7,IF(G18='Modelos florestais'!G10,'Biblioteca dados regionais'!DR7,'Biblioteca dados regionais'!FH7)) -> 0 | F134: 81 | G134: 0 | H134: R$/ha
C135: Controle de praga | E135: =IF(OR(G18='Modelos florestais'!G8,G18='Modelos florestais'!G9),'Biblioteca dados regionais'!BE7,IF(G18='Modelos florestais'!G10,'Biblioteca dados regionais'!DS7,'Biblioteca dados regionais'!FI7)) -> 81 | F135: 56 | G135: 81 | H135: R$/ha
B136: Manut. > ano 5 | C136: Controle de praga | E136: =IF(OR(G18='Modelos florestais'!G8,G18='Modelos florestais'!G9),'Biblioteca dados regionais'!BG7,IF(G18='Modelos florestais'!G10,'Biblioteca dados regionais'!DU7,FW38)) -> 81 | F136: 56 | G136: 81 | H136: R$/ha
B139: 6.d. Custos de operações silviculturais - rotações seguintes (se existir)
B141: Tipo de custo | E141: Valor | H141: Unidade | I141: Comentário
B142: Ano | C142: Operação | E142: Sugestão | F142: Escolha usuário | G142: Efetivo
B143: Plantio - ano 0 | C143: Plantio | E143: =IF(G18='Modelos florestais'!G8,'Biblioteca dados regionais'!BH7,IF(G18='Modelos florestais'!G9,'Biblioteca dados regionais'!CC7,IF(G18='Modelos florestais'!G10,'Biblioteca dados regionais'!DV7,'Biblioteca dados regionais'!FL7))) -> 313 | F143: 399 | G143: =IF($D$33=1,F143,E143) -> 313 | H143: R$/ha
C144: Irrigação | E144: =IF(G18='Modelos florestais'!G8,'Biblioteca dados regionais'!BI7,IF(G18='Modelos florestais'!G9,'Biblioteca dados regionais'!CD7,IF(G18='Modelos florestais'!G10,'Biblioteca dados regionais'!DW7,'Biblioteca dados regionais'!FM7))) -> 0 | F144: 0 | G144: 0 | H144: R$/ha
C145: Fertilizante | E145: =IF(G18='Modelos florestais'!G8,'Biblioteca dados regionais'!BJ7,IF(G18='Modelos florestais'!G9,'Biblioteca dados regionais'!CE7,IF(G18='Modelos florestais'!G10,'Biblioteca dados regionais'!DX7,'Biblioteca dados regionais'!FN7))) -> 760 | F145: 445 | G145: 760 | H145: R$/ha
C146: Controle de mato | E146: =IF(G18='Modelos florestais'!G8,'Biblioteca dados regionais'!BK7,IF(G18='Modelos florestais'!G9,'Biblioteca dados regionais'!CF7,IF(G18='Modelos florestais'!G10,'Biblioteca dados regionais'!DY7,'Biblioteca dados regionais'!FO7))) -> 1,147 | F146: 160 | G146: 1,147 | H146: R$/ha
C147: Controle de praga | E147: =IF(G18='Modelos florestais'!G8,'Biblioteca dados regionais'!BL7,IF(G18='Modelos florestais'!G9,'Biblioteca dados regionais'!CG7,IF(G18='Modelos florestais'!G10,'Biblioteca dados regionais'!DZ7,'Biblioteca dados regionais'!FP7))) -> 41 | F147: 270 | G147: 41 | H147: R$/ha
B148: Manutenção - ano 1 | C148: Fertilizante | E148: =IF(G17='Modelos florestais'!G7,'Biblioteca dados regionais'!BN6,IF(G17='Modelos florestais'!G8,'Biblioteca dados regionais'!CI6,IF(G17='Modelos florestais'!G9,'Biblioteca dados regionais'!EB6,'Biblioteca dados regionais'!FR6))) -> 173 | F148: 949 | G148: 173 | H148: R$/ha
C149: Controle de mato | E149: =IF(G17='Modelos florestais'!G7,'Biblioteca dados regionais'!BO6,IF(G17='Modelos florestais'!G8,'Biblioteca dados regionais'!CJ6,IF(G17='Modelos florestais'!G9,'Biblioteca dados regionais'!EC6,'Biblioteca dados regionais'!FS6))) -> 174 | F149: 728 | G149: 174 | H149: R$/ha
C150: Controle de praga | E150: =IF(G17='Modelos florestais'!G7,'Biblioteca dados regionais'!BP6,IF(G17='Modelos florestais'!G8,'Biblioteca dados regionais'!CK6,IF(G17='Modelos florestais'!G9,'Biblioteca dados regionais'!ED6,'Biblioteca dados regionais'!FT6))) -> 175 | F150: 93 | G150: 175 | H150: R$/ha
B151: Manutenção - ano 2 | C151: Fertilizante | E151: =IF(G28='Modelos florestais'!G6,'Biblioteca dados regionais'!BR5,IF(G28='Modelos florestais'!G7,'Biblioteca dados regionais'!CM5,IF(G28='Modelos florestais'!G8,'Biblioteca dados regionais'!EF5,'Biblioteca dados regionais'!FV5))) -> 0 | F151: 422 | G151: 0 | H151: R$/ha
C152: Controle de mato | E152: =IF(G28='Modelos florestais'!G6,'Biblioteca dados regionais'!BS5,IF(G28='Modelos florestais'!G7,'Biblioteca dados regionais'!CN5,IF(G28='Modelos florestais'!G8,'Biblioteca dados regionais'!EG5,'Biblioteca dados regionais'!FW5))) -> 0 | F152: 114 | G152: 0 | H152: R$/ha
C153: Controle de praga | E153: =IF(G28='Modelos florestais'!G6,'Biblioteca dados regionais'!BT5,IF(G28='Modelos florestais'!G7,'Biblioteca dados regionais'!CO5,IF(G28='Modelos florestais'!G8,'Biblioteca dados regionais'!EH5,'Biblioteca dados regionais'!FX5))) -> 0 | F153: 206 | G153: 0 | H153: R$/ha
B154: Manutenção - ano 3 | C154: Fertilizante | E154: =IF(G28='Modelos florestais'!G6,'Biblioteca dados regionais'!BV5,IF(G28='Modelos florestais'!G7,'Biblioteca dados regionais'!CQ5,IF(G28='Modelos florestais'!G8,'Biblioteca dados regionais'!EJ5,'Biblioteca dados regionais'!FZ5))) -> 0 | F154: 81 | G154: 0 | H154: R$/ha
C155: Controle de praga | E155: =IF(G18='Modelos florestais'!G8,'Biblioteca dados regionais'!BW7,IF(G18='Modelos florestais'!G9,'Biblioteca dados regionais'!CR7,IF(G18='Modelos florestais'!G10,'Biblioteca dados regionais'!EK7,'Biblioteca dados regionais'!GA7))) -> 41 | F155: 56 | G155: 41 | H155: R$/ha
B156: Manutenção - anos 4 e 5 | C156: Fertilizante | E156: =IF(G18='Modelos florestais'!G8,'Biblioteca dados regionais'!BY7,IF(G18='Modelos florestais'!G9,'Biblioteca dados regionais'!CT7,IF(G18='Modelos florestais'!G10,'Biblioteca dados regionais'!EM7,'Biblioteca dados regionais'!GC7))) -> 0 | F156: 81 | G156: 0 | H156: R$/ha
C157: Controle de praga | E157: =IF(G18='Modelos florestais'!G8,'Biblioteca dados regionais'!BZ7,IF(G18='Modelos florestais'!G9,'Biblioteca dados regionais'!CU7,IF(G18='Modelos florestais'!G10,'Biblioteca dados regionais'!EN7,'Biblioteca dados regionais'!GD7))) -> 81 | F157: 56 | G157: 81 | H157: R$/ha
B158: Manut. > ano 5 | C158: Controle de praga | E158: =IF(G18='Modelos florestais'!G8,'Biblioteca dados regionais'!CB7,IF(G18='Modelos florestais'!G9,'Biblioteca dados regionais'!CW7,IF(G18='Modelos florestais'!G10,'Biblioteca dados regionais'!EP7,'Biblioteca dados regionais'!GF7))) -> 81 | F158: 56 | G158: 81 | H158: R$/ha
B161: 6.e. Custos de operações silviculturais 1 cíclo - situação de referência
B163: Tipo de custo | E163: Valor | H163: Unidade | I163: Comentário
B164: Ano | C164: Operação | E164: Sugestão | F164: Escolha usuário | G164: Efetivo
B165: Plantio - ano 0 | C165: Plantio | E165: =IF(OR(G18='Modelos florestais'!G8,G18='Modelos florestais'!G9),0,IF(OR(G20='Outras listas'!L10,G20='Outras listas'!L11),0,'Biblioteca dados regionais'!GG7)) -> 2,967 | F165: =E165 -> 2,967 | G165: =IF($D$33=1,F165,E165) -> 2,967 | H165: R$/ha
C166: Irrigação | E166: =IF(OR(G18='Modelos florestais'!G8,G18='Modelos florestais'!G9),0,IF(OR(G20='Outras listas'!L10,G20='Outras listas'!L11),0,'Biblioteca dados regionais'!GH7)) -> 782 | F166: =E166 -> 782 | G166: 782 | H166: R$/ha
C167: Fertilizante | E167: =IF(OR(G18='Modelos florestais'!G8,G18='Modelos florestais'!G9),0,IF(OR(G20='Outras listas'!L10,G20='Outras listas'!L11),0,'Biblioteca dados regionais'!GI7)) -> 709 | F167: 709 | G167: 709 | H167: R$/ha
C168: Controle de mato | E168: =IF(OR(G18='Modelos florestais'!G8,G18='Modelos florestais'!G9),0,IF(OR(G20='Outras listas'!L10,G20='Outras listas'!L11),0,'Biblioteca dados regionais'!GJ7)) -> 2,214 | F168: 2,214 | G168: 2,214 | H168: R$/ha
C169: Controle de praga | E169: =IF(OR(G18='Modelos florestais'!G8,G18='Modelos florestais'!G9),0,IF(OR(G20='Outras listas'!L10,G20='Outras listas'!L11),0,'Biblioteca dados regionais'!GK7)) -> 112 | F169: 112 | G169: 112 | H169: R$/ha
B170: Manutenção - ano 1 | C170: Fertilizante | E170: =IF(OR(G18='Modelos florestais'!G8,G18='Modelos florestais'!G9),0,IF(OR(G20='Outras listas'!L10,G20='Outras listas'!L11),0,'Biblioteca dados regionais'!GM7)) -> 256 | F170: 256 | G170: 256 | H170: R$/ha
C171: Controle de mato | E171: =IF(OR(G18='Modelos florestais'!G8,G18='Modelos florestais'!G9),0,IF(OR(G20='Outras listas'!L10,G20='Outras listas'!L11),0,'Biblioteca dados regionais'!GN7)) -> 931 | F171: 931 | G171: 931 | H171: R$/ha
C172: Controle de praga | E172: =IF(OR(G18='Modelos florestais'!G8,G18='Modelos florestais'!G9),0,IF(OR(G20='Outras listas'!L10,G20='Outras listas'!L11),0,'Biblioteca dados regionais'!GO7)) -> 56 | F172: 56 | G172: 56 | H172: R$/ha
B173: Manutenção - ano 2 | C173: Fertilizante | E173: =IF(OR(G18='Modelos florestais'!G8,G18='Modelos florestais'!G9),0,IF(OR(G20='Outras listas'!L10,G20='Outras listas'!L11),0,'Biblioteca dados regionais'!GQ7)) -> 256 | F173: 256 | G173: 256 | H173: R$/ha
C174: Controle de mato | E174: =IF(OR(G18='Modelos florestais'!G8,G18='Modelos florestais'!G9),0,IF(OR(G20='Outras listas'!L10,G20='Outras listas'!L11),0,'Biblioteca dados regionais'!GR7)) -> 931 | F174: 931 | G174: 931 | H174: R$/ha
C175: Controle de praga | E175: =IF(OR(G18='Modelos florestais'!G8,G18='Modelos florestais'!G9),0,IF(OR(G20='Outras listas'!L10,G20='Outras listas'!L11),0,'Biblioteca dados regionais'!GS7)) -> 56 | F175: 56 | G175: 56 | H175: R$/ha
B176: Manutenção - ano 3 | C176: Fertilizante | E176: =IF(OR(G18='Modelos florestais'!G8,G18='Modelos florestais'!G9),0,IF(OR(G20='Outras listas'!L10,G20='Outras listas'!L11),0,'Biblioteca dados regionais'!GU7)) -> 0 | F176: 0 | G176: 0 | H176: R$/ha
C177: Controle de praga | E177: =IF(OR(G18='Modelos florestais'!G8,G18='Modelos florestais'!G9),0,IF(OR(G20='Outras listas'!L10,G20='Outras listas'!L11),0,'Biblioteca dados regionais'!GV7)) -> 56 | F177: 56 | G177: 56 | H177: R$/ha
B178: Manutenção - anos 4 e 5 | C178: Fertilizante | E178: =IF(OR(G18='Modelos florestais'!G8,G18='Modelos florestais'!G9),0,IF(OR(G20='Outras listas'!L10,G20='Outras listas'!L11),0,'Biblioteca dados regionais'!GX7)) -> 0 | F178: 0 | G178: 0 | H178: R$/ha
C179: Controle de praga | E179: =IF(OR(G18='Modelos florestais'!G8,G18='Modelos florestais'!G9),0,IF(OR(G20='Outras listas'!L10,G20='Outras listas'!L11),0,'Biblioteca dados regionais'!GY7)) -> 112 | F179: 112 | G179: 112 | H179: R$/ha
B180: Manut. > ano 5 | C180: Controle de praga | E180: =IF(OR(G18='Modelos florestais'!G8,G18='Modelos florestais'!G9),0,IF(OR(G20='Outras listas'!L10,G20='Outras listas'!L11),0,'Biblioteca dados regionais'!HA7)) -> 112 | F180: 112 | G180: 112 | H180: R$/ha
B183: 6.f. Custos de colheita
B185: Deixar este quadro vazio se a madeira for vendida em pé
B187: Dedução | E187: Aliquota | H187: Unidade | I187: Comentário
E188: Sugestão | F188: Escolha usuário | G188: Efetivo
B189: Custo de colheita já estimado | E189: Não definido | F189: Definido pelo modelo | G189: =IF($D$33=1,F189,E189) -> Não definido | H189: R$/m³ | I189: Se o usuário escolher um intervalo de valores, o custeio usa efetivamente o valor médio.
B190: Se o custo de colheita não for estimado, qual vai ser o modelo de colheita ? | E190: =IF(G28='Outras listas'!P7,"Sem colheita",IF(Premissas!G40="Maduro",Premissas!Z197,Premissas!Y197)) -> Opção de menor custo, conforme a maturidade do mercado florestal | F190: Opção de menor custo, conforme a maturidade do mercado florestal | G190: =IF($D$33=1,F190,E190) -> Opção de menor custo, conforme a maturidade do mercado florestal | I190: Para modalidades de venda diferente de "em pé" , o dono do projeto florestal pode escolher de internalizar ou terceirizar as operações de colheita, esta opção sendo disponível somente em mercados florestais maduros. Dentro do modelo escolhido pelo usuário, a planilha vai calcular o custo de colheita entre os sistemas disponíveis ("full tree", "cut to length", "manual" para plantios convencionais em região plano ou moderamente ondulada,"manual" em todos os outros casos. Se o projeto for de grande porte, a internalização se torna geralmente desejável. Numa região de mercado florestal incipiente, onde é difícil de encontrar prestadores de serviços externos, a internalzação se torne geralmente necessária.
B193: 6.g. Custos de transporte
B195: Deixar este quadro vazio se a madeira não for vendida posta na indústria
B197: Paramêtro | E197: Valor | H197: Unidade | I197: Comentário | W197: Sem colheita | X197: Operação internalizada | Y197: Operaçáo terceirizada, se o mercado florestal for maduro | Z197: Opção de menor custo, conforme a maturidade do mercado florestal
E198: Sugestão | F198: Escolha usuário | G198: Efetivo
B199: Custo de transporte já estimado | E199: Não definido | F199: Definido pelo modelo | G199: =IF($D$33=1,F199,E199) -> Não definido | H199: R$/t | I199: Se o usuário escolher um intervalo de valores, o custeio usa efetivamente o valor médio.
B200: Se o custo de transporte não for estimado, qual vai ser o modelo de colheita ? | E200: =IF(G28='Outras listas'!P10,IF(Premissas!G40="Maduro",Premissas!Z207,Premissas!Y207),"Sem transporte") -> Opção de menor custo | F200: Opção de menor custo | G200: Opção de menor custo | I200: Para a venda posto na indústria, o dono do projeto florestal pode escolher de internalizar ou externalizar as operações de transporte. Se o projeto for de grande porte e/ou numa região de mercado florestal incipiente, onde é difícil de encontrar prestadores de serviços externos, a internalzação se torne geralmente desejavel.
B201: Distância da floresta | E201: 50 | F201: 50 | G201: 50 | H201: km | I201: A principio, deve ser menor do que 100 km
B202: Sistema de transporte terrestre disponível o mais eficiente em função do terreno e das estradas | E202: ='Biblioteca dados regionais'!G7 -> Tri-trem | F202: Carreta | G202: Tri-trem | I202: Os três sistemas de transporte disponíveis, por ordem decrescente de capacidade, são o tri-trêm, bi-trêm e carreta. O custeio calcula o custo de transporte entre os sistems efetivamente disponíveis na região, em função das estradas.
B203: Velocidade média sem carga | E203: 50 | F203: 50 | G203: 50 | H203: km/h | I203: Número intero entre 0 e 60
B204: Velocidade média com carga | E204: 30 | F204: 30 | G204: 30 | H204: km/h | I204: Número intero entre 0 e 60
B207: 7. Deduções | W207: Sem transporte | X207: Internalizado | Y207: Terceirizado | Z207: Opção de menor custo
B209: Dedução | E209: Aliquota | H209: Base | I209: Comentário
E210: Sugestão | F210: Escolha usuário | G210: Efetivo
B211: FUNRURAL sobre vendas | E211: ='Biblioteca impostos'!I8/100 -> 2.85% | F211: 2.85% | G211: =IF($D$33=1,F211,E211) -> 2.85% | H211: Receita bruta | I211: A princípio, o pagamento do FUNRURAL é obrigatório para todas vendas de madeira
B212: ICMS sobre vendas | E212: 0.00% | F212: 0.00% | G212: =IF($D$33=1,F212,E212) -> 0.00% | H212: Receita bruta | I212: A princípio, o ICMS se aplica somente para vendas de madeira de um estado para o outro
B213: ICMS sobre compras | E213: 12.00% | F213: 12.00% | G213: =IF($D$33=1,F213,E213) -> 12.00% | H213: Compras | I213: Somente tem um impacto se as vendas de madeira são sujeitas ao ICMS.
BE223: =BD233=BH235 -> FALSE
W226: AUXILIAR - ANÁLISE "WHAT IF" PARA AVALIAR O IMPACTO DA TAXA DE DESCONTO NO CUSTO COM CUSTO DE CAPITAL E PREÇO ALVO DA MADEIRA
W229: Volume | X229: Peso | Y229: Energia
BG230: X1 | BH230: X2 | BI230: Y1 | BJ230: Y2 | BK230: X(Y=0) | BL230: Preço alvo
W232: Taxa | X232: custo levelized | Y232: NPV
Z233: 0% | AA233: 6% | AB233: =AA233+1% -> 7% | AC233: =AB233+1% -> 8% | AD233: 9% | AE233: 10% | AF233: 11% | AG233: 12% | AH233: 13% | AI233: 14% | AJ233: 15% | AK233: 16% | AL233: 17% | AM233: 18% | AN233: 19% | AO233: 20% | AP233: 21% | AQ233: =AP233+1% -> 22% | AR233: =AQ233+1% -> 23% | AS233: =AR233+1% -> 24% | AT233: =AS233+1% -> 25% | AU233: =AT233+1% -> 26% | AV233: =AU233+1% -> 27% | AW233: =AV233+1% -> 28% | AX233: =AW233+1% -> 29% | AY233: =AX233+1% -> 30% | AZ233: =AY233+1% -> 31% | BA233: =AZ233+1% -> 32% | BB233: =BA233+1% -> 33% | BC233: =BB233+1% -> 34% | BD233: =BC233+1% -> 35%
Z234: =$X235*(1+Z233) -> 119.99 | AA234: =$X235*(1+AA233) -> 127.19 | AB234: 128.39 | AC234: 129.59 | AD234: 130.79 | AE234: 131.99 | AF234: 133.19 | AG234: 134.39 | AH234: =$X235*(1+AH233) -> 135.59 | AI234: =$X235*(1+AI233) -> 136.79 | AJ234: =$X235*(1+AJ233) -> 137.99 | AK234: =$X235*(1+AK233) -> 139.19 | AL234: =$X235*(1+AL233) -> 140.39 | AM234: =$X235*(1+AM233) -> 141.59 | AN234: 142.79 | AO234: =$X235*(1+AO233) -> 143.99 | AP234: =$X235*(1+AP233) -> 145.19 | AQ234: =$X235*(1+AQ233) -> 146.39 | AR234: =$X235*(1+AR233) -> 147.59 | AS234: =$X235*(1+AS233) -> 148.79 | AT234: =$X235*(1+AT233) -> 149.99 | AU234: =$X235*(1+AU233) -> 151.19 | AV234: =$X235*(1+AV233) -> 152.39 | AW234: =$X235*(1+AW233) -> 153.59 | AX234: =$X235*(1+AX233) -> 154.79 | AY234: =$X235*(1+AY233) -> 155.99 | AZ234: =$X235*(1+AZ233) -> 157.19 | BA234: =$X235*(1+BA233) -> 158.39 | BB234: =$X235*(1+BB233) -> 159.59 | BC234: =$X235*(1+BC233) -> 160.79 | BD234: =$X235*(1+BD233) -> 161.99
W235: 0.00% | X235: =-NPV(W235,'Modelo financeiro'!$K$70:$BI$70)/NPV(W235,'Modelo financeiro'!$K$780:$BI$780) -> 119.99 | Y235: =NPV(W235,'Modelo financeiro'!$K$68:$BI$68) -> 144,704 | Z235: -17,133 | AA235: -7,417 | AB235: -5,797 | AC235: -4,178 | AD235: -2,558 | AE235: -939 | AF235: 681 | AG235: 2,300 | AH235: 3,920 | AI235: 5,539 | AJ235: 7,159 | AK235: 8,778 | AL235: 10,398 | AM235: 12,017 | AN235: 13,637 | AO235: 15,256 | AP235: 16,876 | AQ235: 18,495 | AR235: 20,115 | AS235: 21,734 | AT235: 23,354 | AU235: 24,973 | AV235: 26,592 | AW235: 28,212 | AX235: 29,831 | AY235: 31,451 | AZ235: 33,070 | BA235: 34,690 | BB235: 36,309 | BC235: 37,929 | BD235: 39,548 | BG235: 0% | BH235: =MIN(35%,Z236:BD236) -> 11% | BI235: =Z235 -> -17,133 | BJ235: =HLOOKUP(BH235,Z233:BD235,3,0) -> 681 | BK235: =(BG235*BJ235-BH235*BI235)/(BJ235-BI235) -> 10.58% | BL235: =X235*(1+BK235) -> 132.69
Y236: sup | Z236: =IF(Z235<0,99%,IF(Y235<0,Z233,Y236)) -> 99% | AA236: 99% | AB236: 99% | AC236: 99% | AD236: 99% | AE236: 99% | AF236: 11% | AG236: 11% | AH236: 11% | AI236: 11% | AJ236: 11% | AK236: 11% | AL236: 11% | AM236: 11% | AN236: 11% | AO236: 11% | AP236: 11% | AQ236: 11% | AR236: 11% | AS236: 11% | AT236: 11% | AU236: 11% | AV236: 11% | AW236: 11% | AX236: 11% | AY236: 11% | AZ236: 11% | BA236: 11% | BB236: 11% | BC236: 11% | BD236: 11%
Y237: inf | Z237: =Z236-0.01 -> 98% | AA237: =AA236-0.01 -> 98% | AB237: 98% | AC237: 98% | AD237: 98% | AE237: 98% | AF237: 10% | AG237: 10% | AH237: 10% | AI237: 10% | AJ237: 10% | AK237: 10% | AL237: 10% | AM237: 10% | AN237: 10% | AO237: 10% | AP237: 10% | AQ237: 10% | AR237: 10% | AS237: 10% | AT237: 10% | AU237: 10% | AV237: 10% | AW237: 10% | AX237: 10% | AY237: 10% | AZ237: 10% | BA237: 10% | BB237: 10% | BC237: 10% | BD237: 10%
Z239: 0% | AA239: 6% | AB239: =AA239+1% -> 7% | AC239: =AB239+1% -> 8% | AD239: =AC239+1% -> 9% | AE239: =AD239+1% -> 10% | AF239: =AE239+1% -> 11% | AG239: =AF239+1% -> 12% | AH239: =AG239+1% -> 13% | AI239: =AH239+1% -> 14% | AJ239: =AI239+1% -> 15% | AK239: =AJ239+1% -> 16% | AL239: =AK239+1% -> 17% | AM239: =AL239+1% -> 18% | AN239: =AM239+1% -> 19% | AO239: =AN239+1% -> 20% | AP239: =AO239+1% -> 21% | AQ239: =AP239+1% -> 22% | AR239: =AQ239+1% -> 23% | AS239: =AR239+1% -> 24% | AT239: =AS239+1% -> 25% | AU239: =AT239+1% -> 26% | AV239: =AU239+1% -> 27% | AW239: =AV239+1% -> 28% | AX239: =AW239+1% -> 29% | AY239: =AX239+1% -> 30% | AZ239: =AY239+1% -> 31% | BA239: =AZ239+1% -> 32% | BB239: =BA239+1% -> 33% | BC239: =BB239+1% -> 34% | BD239: =BC239+1% -> 35%
Z240: =$X241*(1+Z239) -> 122.08 | AA240: =$X241*(1+AA239) -> 129.40 | AB240: =$X241*(1+AB239) -> 130.62 | AC240: =$X241*(1+AC239) -> 131.85 | AD240: =$X241*(1+AD239) -> 133.07 | AE240: =$X241*(1+AE239) -> 134.29 | AF240: =$X241*(1+AF239) -> 135.51 | AG240: =$X241*(1+AG239) -> 136.73 | AH240: =$X241*(1+AH239) -> 137.95 | AI240: =$X241*(1+AI239) -> 139.17 | AJ240: =$X241*(1+AJ239) -> 140.39 | AK240: =$X241*(1+AK239) -> 141.61 | AL240: =$X241*(1+AL239) -> 142.83 | AM240: =$X241*(1+AM239) -> 144.05 | AN240: =$X241*(1+AN239) -> 145.27 | AO240: =$X241*(1+AO239) -> 146.49 | AP240: =$X241*(1+AP239) -> 147.72 | AQ240: =$X241*(1+AQ239) -> 148.94 | AR240: =$X241*(1+AR239) -> 150.16 | AS240: =$X241*(1+AS239) -> 151.38 | AT240: =$X241*(1+AT239) -> 152.60 | AU240: =$X241*(1+AU239) -> 153.82 | AV240: =$X241*(1+AV239) -> 155.04 | AW240: =$X241*(1+AW239) -> 156.26 | AX240: =$X241*(1+AX239) -> 157.48 | AY240: =$X241*(1+AY239) -> 158.70 | AZ240: =$X241*(1+AZ239) -> 159.92 | BA240: =$X241*(1+BA239) -> 161.14 | BB240: =$X241*(1+BB239) -> 162.36 | BC240: =$X241*(1+BC239) -> 163.59 | BD240: =$X241*(1+BD239) -> 164.81
W241: 1.00% | X241: =-NPV(W241,'Modelo financeiro'!$K$70:$BI$70)/NPV(W241,'Modelo financeiro'!$K$780:$BI$780) -> 122.08 | Y241: =NPV(W241,'Modelo financeiro'!$K$68:$BI$68) -> 123,697 | Z241: -15,229 | AA241: -6,593 | AB241: -5,153 | AC241: -3,714 | AD241: -2,274 | AE241: -835 | AF241: 605 | AG241: 2,044 | AH241: 3,484 | AI241: 4,923 | AJ241: 6,363 | AK241: 7,802 | AL241: 9,242 | AM241: 10,681 | AN241: 12,120 | AO241: 13,560 | AP241: 14,999 | AQ241: 16,439 | AR241: 17,878 | AS241: 19,318 | AT241: 20,757 | AU241: 22,197 | AV241: 23,636 | AW241: 25,076 | AX241: 26,515 | AY241: 27,955 | AZ241: 29,394 | BA241: 30,834 | BB241: 32,273 | BC241: 33,712 | BD241: 35,152 | BG241: 0% | BH241: =MIN(35%,Z242:BD242) -> 11% | BI241: =Z241 -> -15,229 | BJ241: =IF(BH241=35%,BD241,HLOOKUP(BH241,Z239:BD241,3,0)) -> 605 | BK241: =(BG241*BJ241-BH241*BI241)/(BJ241-BI241) -> 10.58% | BL241: =X241*(1+BK241) -> 134.99
Z242: =IF(Z241<0,99%,IF(Y241<0,Z239,Y242)) -> 99% | AA242: =IF(AA241<0,99%,IF(Z241<0,AA239,Z242)) -> 99% | AB242: =IF(AB241<0,99%,IF(AA241<0,AB239,AA242)) -> 99% | AC242: =IF(AC241<0,99%,IF(AB241<0,AC239,AB242)) -> 99% | AD242: =IF(AD241<0,99%,IF(AC241<0,AD239,AC242)) -> 99% | AE242: =IF(AE241<0,99%,IF(AD241<0,AE239,AD242)) -> 99% | AF242: =IF(AF241<0,99%,IF(AE241<0,AF239,AE242)) -> 11% | AG242: =IF(AG241<0,99%,IF(AF241<0,AG239,AF242)) -> 11% | AH242: =IF(AH241<0,99%,IF(AG241<0,AH239,AG242)) -> 11% | AI242: =IF(AI241<0,99%,IF(AH241<0,AI239,AH242)) -> 11% | AJ242: =IF(AJ241<0,99%,IF(AI241<0,AJ239,AI242)) -> 11% | AK242: =IF(AK241<0,99%,IF(AJ241<0,AK239,AJ242)) -> 11% | AL242: =IF(AL241<0,99%,IF(AK241<0,AL239,AK242)) -> 11% | AM242: =IF(AM241<0,99%,IF(AL241<0,AM239,AL242)) -> 11% | AN242: =IF(AN241<0,99%,IF(AM241<0,AN239,AM242)) -> 11% | AO242: =IF(AO241<0,99%,IF(AN241<0,AO239,AN242)) -> 11% | AP242: =IF(AP241<0,99%,IF(AO241<0,AP239,AO242)) -> 11% | AQ242: =IF(AQ241<0,99%,IF(AP241<0,AQ239,AP242)) -> 11% | AR242: =IF(AR241<0,99%,IF(AQ241<0,AR239,AQ242)) -> 11% | AS242: =IF(AS241<0,99%,IF(AR241<0,AS239,AR242)) -> 11% | AT242: =IF(AT241<0,99%,IF(AS241<0,AT239,AS242)) -> 11% | AU242: =IF(AU241<0,99%,IF(AT241<0,AU239,AT242)) -> 11% | AV242: =IF(AV241<0,99%,IF(AU241<0,AV239,AU242)) -> 11% | AW242: =IF(AW241<0,99%,IF(AV241<0,AW239,AV242)) -> 11% | AX242: =IF(AX241<0,99%,IF(AW241<0,AX239,AW242)) -> 11% | AY242: =IF(AY241<0,99%,IF(AX241<0,AY239,AX242)) -> 11% | AZ242: =IF(AZ241<0,99%,IF(AY241<0,AZ239,AY242)) -> 11% | BA242: =IF(BA241<0,99%,IF(AZ241<0,BA239,AZ242)) -> 11% | BB242: =IF(BB241<0,99%,IF(BA241<0,BB239,BA242)) -> 11% | BC242: =IF(BC241<0,99%,IF(BB241<0,BC239,BB242)) -> 11% | BD242: =IF(BD241<0,99%,IF(BC241<0,BD239,BC242)) -> 11%
Z245: 0% | AA245: 6% | AB245: =AA245+1% -> 7% | AC245: =AB245+1% -> 8% | AD245: =AC245+1% -> 9% | AE245: =AD245+1% -> 10% | AF245: =AE245+1% -> 11% | AG245: =AF245+1% -> 12% | AH245: =AG245+1% -> 13% | AI245: =AH245+1% -> 14% | AJ245: =AI245+1% -> 15% | AK245: =AJ245+1% -> 16% | AL245: =AK245+1% -> 17% | AM245: =AL245+1% -> 18% | AN245: =AM245+1% -> 19% | AO245: =AN245+1% -> 20% | AP245: =AO245+1% -> 21% | AQ245: =AP245+1% -> 22% | AR245: =AQ245+1% -> 23% | AS245: =AR245+1% -> 24% | AT245: =AS245+1% -> 25% | AU245: =AT245+1% -> 26% | AV245: =AU245+1% -> 27% | AW245: =AV245+1% -> 28% | AX245: =AW245+1% -> 29% | AY245: =AX245+1% -> 30% | AZ245: =AY245+1% -> 31% | BA245: =AZ245+1% -> 32% | BB245: =BA245+1% -> 33% | BC245: =BB245+1% -> 34% | BD245: =BC245+1% -> 35%
Z246: =$X247*(1+Z245) -> 124.22 | AA246: =$X247*(1+AA245) -> 131.67 | AB246: =$X247*(1+AB245) -> 132.91 | AC246: =$X247*(1+AC245) -> 134.15 | AD246: =$X247*(1+AD245) -> 135.39 | AE246: =$X247*(1+AE245) -> 136.64 | AF246: =$X247*(1+AF245) -> 137.88 | AG246: =$X247*(1+AG245) -> 139.12 | AH246: =$X247*(1+AH245) -> 140.36 | AI246: =$X247*(1+AI245) -> 141.61 | AJ246: =$X247*(1+AJ245) -> 142.85 | AK246: =$X247*(1+AK245) -> 144.09 | AL246: =$X247*(1+AL245) -> 145.33 | AM246: =$X247*(1+AM245) -> 146.57 | AN246: =$X247*(1+AN245) -> 147.82 | AO246: =$X247*(1+AO245) -> 149.06 | AP246: =$X247*(1+AP245) -> 150.30 | AQ246: =$X247*(1+AQ245) -> 151.54 | AR246: =$X247*(1+AR245) -> 152.78 | AS246: =$X247*(1+AS245) -> 154.03 | AT246: =$X247*(1+AT245) -> 155.27 | AU246: =$X247*(1+AU245) -> 156.51 | AV246: =$X247*(1+AV245) -> 157.75 | AW246: =$X247*(1+AW245) -> 159.00 | AX246: =$X247*(1+AX245) -> 160.24 | AY246: =$X247*(1+AY245) -> 161.48 | AZ246: =$X247*(1+AZ245) -> 162.72 | BA246: =$X247*(1+BA245) -> 163.96 | BB246: =$X247*(1+BB245) -> 165.21 | BC246: =$X247*(1+BC245) -> 166.45 | BD246: =$X247*(1+BD245) -> 167.69
W247: =W241+1% -> 2.00% | X247: =-NPV(W247,'Modelo financeiro'!$K$70:$BI$70)/NPV(W247,'Modelo financeiro'!$K$780:$BI$780) -> 124.22 | Y247: =NPV(W247,'Modelo financeiro'!$K$68:$BI$68) -> 105,915 | Z247: -13,574 | AA247: -5,876 | AB247: -4,593 | AC247: -3,310 | AD247: -2,027 | AE247: -744 | AF247: 539 | AG247: 1,822 | AH247: 3,105 | AI247: 4,388 | AJ247: 5,671 | AK247: 6,954 | AL247: 8,237 | AM247: 9,520 | AN247: 10,803 | AO247: 12,086 | AP247: 13,369 | AQ247: 14,652 | AR247: 15,935 | AS247: 17,218 | AT247: 18,501 | AU247: 19,784 | AV247: 21,067 | AW247: 22,350 | AX247: 23,633 | AY247: 24,916 | AZ247: 26,199 | BA247: 27,482 | BB247: 28,765 | BC247: 30,048 | BD247: 31,331 | BG247: 0% | BH247: =MIN(35%,Z248:BD248) -> 11% | BI247: =Z247 -> -13,574 | BJ247: =IF(BH247=35%,BD247,HLOOKUP(BH247,Z245:BD247,3,0)) -> 539 | BK247: =(BG247*BJ247-BH247*BI247)/(BJ247-BI247) -> 10.58% | BL247: =X247*(1+BK247) -> 137.36
Z248: =IF(Z247<0,99%,IF(Y247<0,Z245,Y248)) -> 99% | AA248: =IF(AA247<0,99%,IF(Z247<0,AA245,Z248)) -> 99% | AB248: =IF(AB247<0,99%,IF(AA247<0,AB245,AA248)) -> 99% | AC248: =IF(AC247<0,99%,IF(AB247<0,AC245,AB248)) -> 99% | AD248: =IF(AD247<0,99%,IF(AC247<0,AD245,AC248)) -> 99% | AE248: =IF(AE247<0,99%,IF(AD247<0,AE245,AD248)) -> 99% | AF248: =IF(AF247<0,99%,IF(AE247<0,AF245,AE248)) -> 11% | AG248: =IF(AG247<0,99%,IF(AF247<0,AG245,AF248)) -> 11% | AH248: =IF(AH247<0,99%,IF(AG247<0,AH245,AG248)) -> 11% | AI248: =IF(AI247<0,99%,IF(AH247<0,AI245,AH248)) -> 11% | AJ248: =IF(AJ247<0,99%,IF(AI247<0,AJ245,AI248)) -> 11% | AK248: =IF(AK247<0,99%,IF(AJ247<0,AK245,AJ248)) -> 11% | AL248: =IF(AL247<0,99%,IF(AK247<0,AL245,AK248)) -> 11% | AM248: =IF(AM247<0,99%,IF(AL247<0,AM245,AL248)) -> 11% | AN248: =IF(AN247<0,99%,IF(AM247<0,AN245,AM248)) -> 11% | AO248: =IF(AO247<0,99%,IF(AN247<0,AO245,AN248)) -> 11% | AP248: =IF(AP247<0,99%,IF(AO247<0,AP245,AO248)) -> 11% | AQ248: =IF(AQ247<0,99%,IF(AP247<0,AQ245,AP248)) -> 11% | AR248: =IF(AR247<0,99%,IF(AQ247<0,AR245,AQ248)) -> 11% | AS248: =IF(AS247<0,99%,IF(AR247<0,AS245,AR248)) -> 11% | AT248: =IF(AT247<0,99%,IF(AS247<0,AT245,AS248)) -> 11% | AU248: =IF(AU247<0,99%,IF(AT247<0,AU245,AT248)) -> 11% | AV248: =IF(AV247<0,99%,IF(AU247<0,AV245,AU248)) -> 11% | AW248: =IF(AW247<0,99%,IF(AV247<0,AW245,AV248)) -> 11% | AX248: =IF(AX247<0,99%,IF(AW247<0,AX245,AW248)) -> 11% | AY248: =IF(AY247<0,99%,IF(AX247<0,AY245,AX248)) -> 11% | AZ248: =IF(AZ247<0,99%,IF(AY247<0,AZ245,AY248)) -> 11% | BA248: =IF(BA247<0,99%,IF(AZ247<0,BA245,AZ248)) -> 11% | BB248: =IF(BB247<0,99%,IF(BA247<0,BB245,BA248)) -> 11% | BC248: =IF(BC247<0,99%,IF(BB247<0,BC245,BB248)) -> 11% | BD248: =IF(BD247<0,99%,IF(BC247<0,BD245,BC248)) -> 11%
Z251: 0% | AA251: 6% | AB251: =AA251+1% -> 7% | AC251: =AB251+1% -> 8% | AD251: =AC251+1% -> 9% | AE251: =AD251+1% -> 10% | AF251: =AE251+1% -> 11% | AG251: =AF251+1% -> 12% | AH251: =AG251+1% -> 13% | AI251: =AH251+1% -> 14% | AJ251: =AI251+1% -> 15% | AK251: =AJ251+1% -> 16% | AL251: =AK251+1% -> 17% | AM251: =AL251+1% -> 18% | AN251: =AM251+1% -> 19% | AO251: =AN251+1% -> 20% | AP251: =AO251+1% -> 21% | AQ251: =AP251+1% -> 22% | AR251: =AQ251+1% -> 23% | AS251: =AR251+1% -> 24% | AT251: =AS251+1% -> 25% | AU251: =AT251+1% -> 26% | AV251: =AU251+1% -> 27% | AW251: =AV251+1% -> 28% | AX251: =AW251+1% -> 29% | AY251: =AX251+1% -> 30% | AZ251: =AY251+1% -> 31% | BA251: =AZ251+1% -> 32% | BB251: =BA251+1% -> 33% | BC251: =BB251+1% -> 34% | BD251: =BC251+1% -> 35%
Z252: =$X253*(1+Z251) -> 126.40 | AA252: =$X253*(1+AA251) -> 133.99 | AB252: =$X253*(1+AB251) -> 135.25 | AC252: =$X253*(1+AC251) -> 136.52 | AD252: =$X253*(1+AD251) -> 137.78 | AE252: =$X253*(1+AE251) -> 139.04 | AF252: =$X253*(1+AF251) -> 140.31 | AG252: =$X253*(1+AG251) -> 141.57 | AH252: =$X253*(1+AH251) -> 142.84 | AI252: =$X253*(1+AI251) -> 144.10 | AJ252: =$X253*(1+AJ251) -> 145.36 | AK252: =$X253*(1+AK251) -> 146.63 | AL252: =$X253*(1+AL251) -> 147.89 | AM252: =$X253*(1+AM251) -> 149.16 | AN252: =$X253*(1+AN251) -> 150.42 | AO252: =$X253*(1+AO251) -> 151.68 | AP252: =$X253*(1+AP251) -> 152.95 | AQ252: =$X253*(1+AQ251) -> 154.21 | AR252: =$X253*(1+AR251) -> 155.48 | AS252: =$X253*(1+AS251) -> 156.74 | AT252: =$X253*(1+AT251) -> 158.00 | AU252: =$X253*(1+AU251) -> 159.27 | AV252: =$X253*(1+AV251) -> 160.53 | AW252: =$X253*(1+AW251) -> 161.80 | AX252: =$X253*(1+AX251) -> 163.06 | AY252: =$X253*(1+AY251) -> 164.32 | AZ252: =$X253*(1+AZ251) -> 165.59 | BA252: =$X253*(1+BA251) -> 166.85 | BB252: =$X253*(1+BB251) -> 168.12 | BC252: =$X253*(1+BC251) -> 169.38 | BD252: =$X253*(1+BD251) -> 170.64
W253: =W247+1% -> 3.00% | X253: =-NPV(W253,'Modelo financeiro'!$K$70:$BI$70)/NPV(W253,'Modelo financeiro'!$K$780:$BI$780) -> 126.40 | Y253: =NPV(W253,'Modelo financeiro'!$K$68:$BI$68) -> 90,824 | Z253: -12,132 | AA253: -5,252 | AB253: -4,106 | AC253: -2,959 | AD253: -1,812 | AE253: -666 | AF253: 481 | AG253: 1,628 | AH253: 2,774 | AI253: 3,921 | AJ253: 5,068 | AK253: 6,214 | AL253: 7,361 | AM253: 8,507 | AN253: 9,654 | AO253: 10,801 | AP253: 11,947 | AQ253: 13,094 | AR253: 14,241 | AS253: 15,387 | AT253: 16,534 | AU253: 17,681 | AV253: 18,827 | AW253: 19,974 | AX253: 21,120 | AY253: 22,267 | AZ253: 23,414 | BA253: 24,560 | BB253: 25,707 | BC253: 26,854 | BD253: 28,000 | BG253: 0% | BH253: =MIN(35%,Z254:BD254) -> 11% | BI253: =Z253 -> -12,132 | BJ253: =IF(BH253=35%,BD253,HLOOKUP(BH253,Z251:BD253,3,0)) -> 481 | BK253: =(BG253*BJ253-BH253*BI253)/(BJ253-BI253) -> 10.58% | BL253: =X253*(1+BK253) -> 139.78
Z254: =IF(Z253<0,99%,IF(Y253<0,Z251,Y254)) -> 99% | AA254: =IF(AA253<0,99%,IF(Z253<0,AA251,Z254)) -> 99% | AB254: =IF(AB253<0,99%,IF(AA253<0,AB251,AA254)) -> 99% | AC254: =IF(AC253<0,99%,IF(AB253<0,AC251,AB254)) -> 99% | AD254: =IF(AD253<0,99%,IF(AC253<0,AD251,AC254)) -> 99% | AE254: =IF(AE253<0,99%,IF(AD253<0,AE251,AD254)) -> 99% | AF254: =IF(AF253<0,99%,IF(AE253<0,AF251,AE254)) -> 11% | AG254: =IF(AG253<0,99%,IF(AF253<0,AG251,AF254)) -> 11% | AH254: =IF(AH253<0,99%,IF(AG253<0,AH251,AG254)) -> 11% | AI254: =IF(AI253<0,99%,IF(AH253<0,AI251,AH254)) -> 11% | AJ254: =IF(AJ253<0,99%,IF(AI253<0,AJ251,AI254)) -> 11% | AK254: =IF(AK253<0,99%,IF(AJ253<0,AK251,AJ254)) -> 11% | AL254: =IF(AL253<0,99%,IF(AK253<0,AL251,AK254)) -> 11% | AM254: =IF(AM253<0,99%,IF(AL253<0,AM251,AL254)) -> 11% | AN254: =IF(AN253<0,99%,IF(AM253<0,AN251,AM254)) -> 11% | AO254: =IF(AO253<0,99%,IF(AN253<0,AO251,AN254)) -> 11% | AP254: =IF(AP253<0,99%,IF(AO253<0,AP251,AO254)) -> 11% | AQ254: =IF(AQ253<0,99%,IF(AP253<0,AQ251,AP254)) -> 11% | AR254: =IF(AR253<0,99%,IF(AQ253<0,AR251,AQ254)) -> 11% | AS254: =IF(AS253<0,99%,IF(AR253<0,AS251,AR254)) -> 11% | AT254: =IF(AT253<0,99%,IF(AS253<0,AT251,AS254)) -> 11% | AU254: =IF(AU253<0,99%,IF(AT253<0,AU251,AT254)) -> 11% | AV254: =IF(AV253<0,99%,IF(AU253<0,AV251,AU254)) -> 11% | AW254: =IF(AW253<0,99%,IF(AV253<0,AW251,AV254)) -> 11% | AX254: =IF(AX253<0,99%,IF(AW253<0,AX251,AW254)) -> 11% | AY254: =IF(AY253<0,99%,IF(AX253<0,AY251,AX254)) -> 11% | AZ254: =IF(AZ253<0,99%,IF(AY253<0,AZ251,AY254)) -> 11% | BA254: =IF(BA253<0,99%,IF(AZ253<0,BA251,AZ254)) -> 11% | BB254: =IF(BB253<0,99%,IF(BA253<0,BB251,BA254)) -> 11% | BC254: =IF(BC253<0,99%,IF(BB253<0,BC251,BB254)) -> 11% | BD254: =IF(BD253<0,99%,IF(BC253<0,BD251,BC254)) -> 11%
Z257: 0% | AA257: 6% | AB257: =AA257+1% -> 7% | AC257: =AB257+1% -> 8% | AD257: =AC257+1% -> 9% | AE257: =AD257+1% -> 10% | AF257: =AE257+1% -> 11% | AG257: =AF257+1% -> 12% | AH257: =AG257+1% -> 13% | AI257: =AH257+1% -> 14% | AJ257: =AI257+1% -> 15% | AK257: =AJ257+1% -> 16% | AL257: =AK257+1% -> 17% | AM257: =AL257+1% -> 18% | AN257: =AM257+1% -> 19% | AO257: =AN257+1% -> 20% | AP257: =AO257+1% -> 21% | AQ257: =AP257+1% -> 22% | AR257: =AQ257+1% -> 23% | AS257: =AR257+1% -> 24% | AT257: =AS257+1% -> 25% | AU257: =AT257+1% -> 26% | AV257: =AU257+1% -> 27% | AW257: =AV257+1% -> 28% | AX257: =AW257+1% -> 29% | AY257: =AX257+1% -> 30% | AZ257: =AY257+1% -> 31% | BA257: =AZ257+1% -> 32% | BB257: =BA257+1% -> 33% | BC257: =BB257+1% -> 34% | BD257: =BC257+1% -> 35%
Z258: =$X259*(1+Z257) -> 128.64 | AA258: =$X259*(1+AA257) -> 136.36 | AB258: =$X259*(1+AB257) -> 137.65 | AC258: =$X259*(1+AC257) -> 138.94 | AD258: =$X259*(1+AD257) -> 140.22 | AE258: =$X259*(1+AE257) -> 141.51 | AF258: =$X259*(1+AF257) -> 142.80 | AG258: =$X259*(1+AG257) -> 144.08 | AH258: =$X259*(1+AH257) -> 145.37 | AI258: =$X259*(1+AI257) -> 146.65 | AJ258: =$X259*(1+AJ257) -> 147.94 | AK258: =$X259*(1+AK257) -> 149.23 | AL258: =$X259*(1+AL257) -> 150.51 | AM258: =$X259*(1+AM257) -> 151.80 | AN258: =$X259*(1+AN257) -> 153.09 | AO258: =$X259*(1+AO257) -> 154.37 | AP258: =$X259*(1+AP257) -> 155.66 | AQ258: =$X259*(1+AQ257) -> 156.95 | AR258: =$X259*(1+AR257) -> 158.23 | AS258: =$X259*(1+AS257) -> 159.52 | AT258: =$X259*(1+AT257) -> 160.81 | AU258: =$X259*(1+AU257) -> 162.09 | AV258: =$X259*(1+AV257) -> 163.38 | AW258: =$X259*(1+AW257) -> 164.66 | AX258: =$X259*(1+AX257) -> 165.95 | AY258: =$X259*(1+AY257) -> 167.24 | AZ258: =$X259*(1+AZ257) -> 168.52 | BA258: =$X259*(1+BA257) -> 169.81 | BB258: =$X259*(1+BB257) -> 171.10 | BC258: =$X259*(1+BC257) -> 172.38 | BD258: =$X259*(1+BD257) -> 173.67
W259: =W253+1% -> 4.00% | X259: =-NPV(W259,'Modelo financeiro'!$K$70:$BI$70)/NPV(W259,'Modelo financeiro'!$K$780:$BI$780) -> 128.64 | Y259: =NPV(W259,'Modelo financeiro'!$K$68:$BI$68) -> 77,987 | Z259: -10,871 | AA259: -4,707 | AB259: -3,679 | AC259: -2,652 | AD259: -1,624 | AE259: -597 | AF259: 431 | AG259: 1,458 | AH259: 2,486 | AI259: 3,513 | AJ259: 4,541 | AK259: 5,568 | AL259: 6,595 | AM259: 7,623 | AN259: 8,650 | AO259: 9,678 | AP259: 10,705 | AQ259: 11,733 | AR259: 12,760 | AS259: 13,788 | AT259: 14,815 | AU259: 15,843 | AV259: 16,870 | AW259: 17,898 | AX259: 18,925 | AY259: 19,953 | AZ259: 20,980 | BA259: 22,008 | BB259: 23,035 | BC259: 24,062 | BD259: 25,090 | BG259: 0% | BH259: =MIN(35%,Z260:BD260) -> 11% | BI259: =Z259 -> -10,871 | BJ259: =IF(BH259=35%,BD259,HLOOKUP(BH259,Z257:BD259,3,0)) -> 431 | BK259: =(BG259*BJ259-BH259*BI259)/(BJ259-BI259) -> 10.58% | BL259: =X259*(1+BK259) -> 142.26
Z260: =IF(Z259<0,99%,IF(Y259<0,Z257,Y260)) -> 99% | AA260: =IF(AA259<0,99%,IF(Z259<0,AA257,Z260)) -> 99% | AB260: =IF(AB259<0,99%,IF(AA259<0,AB257,AA260)) -> 99% | AC260: =IF(AC259<0,99%,IF(AB259<0,AC257,AB260)) -> 99% | AD260: =IF(AD259<0,99%,IF(AC259<0,AD257,AC260)) -> 99% | AE260: =IF(AE259<0,99%,IF(AD259<0,AE257,AD260)) -> 99% | AF260: =IF(AF259<0,99%,IF(AE259<0,AF257,AE260)) -> 11% | AG260: =IF(AG259<0,99%,IF(AF259<0,AG257,AF260)) -> 11% | AH260: =IF(AH259<0,99%,IF(AG259<0,AH257,AG260)) -> 11% | AI260: =IF(AI259<0,99%,IF(AH259<0,AI257,AH260)) -> 11% | AJ260: =IF(AJ259<0,99%,IF(AI259<0,AJ257,AI260)) -> 11% | AK260: =IF(AK259<0,99%,IF(AJ259<0,AK257,AJ260)) -> 11% | AL260: =IF(AL259<0,99%,IF(AK259<0,AL257,AK260)) -> 11% | AM260: =IF(AM259<0,99%,IF(AL259<0,AM257,AL260)) -> 11% | AN260: =IF(AN259<0,99%,IF(AM259<0,AN257,AM260)) -> 11% | AO260: =IF(AO259<0,99%,IF(AN259<0,AO257,AN260)) -> 11% | AP260: =IF(AP259<0,99%,IF(AO259<0,AP257,AO260)) -> 11% | AQ260: =IF(AQ259<0,99%,IF(AP259<0,AQ257,AP260)) -> 11% | AR260: =IF(AR259<0,99%,IF(AQ259<0,AR257,AQ260)) -> 11% | AS260: =IF(AS259<0,99%,IF(AR259<0,AS257,AR260)) -> 11% | AT260: =IF(AT259<0,99%,IF(AS259<0,AT257,AS260)) -> 11% | AU260: =IF(AU259<0,99%,IF(AT259<0,AU257,AT260)) -> 11% | AV260: =IF(AV259<0,99%,IF(AU259<0,AV257,AU260)) -> 11% | AW260: =IF(AW259<0,99%,IF(AV259<0,AW257,AV260)) -> 11% | AX260: =IF(AX259<0,99%,IF(AW259<0,AX257,AW260)) -> 11% | AY260: =IF(AY259<0,99%,IF(AX259<0,AY257,AX260)) -> 11% | AZ260: =IF(AZ259<0,99%,IF(AY259<0,AZ257,AY260)) -> 11% | BA260: =IF(BA259<0,99%,IF(AZ259<0,BA257,AZ260)) -> 11% | BB260: =IF(BB259<0,99%,IF(BA259<0,BB257,BA260)) -> 11% | BC260: =IF(BC259<0,99%,IF(BB259<0,BC257,BB260)) -> 11% | BD260: =IF(BD259<0,99%,IF(BC259<0,BD257,BC260)) -> 11%
Z263: 0% | AA263: 6% | AB263: =AA263+1% -> 7% | AC263: =AB263+1% -> 8% | AD263: =AC263+1% -> 9% | AE263: =AD263+1% -> 10% | AF263: =AE263+1% -> 11% | AG263: =AF263+1% -> 12% | AH263: =AG263+1% -> 13% | AI263: =AH263+1% -> 14% | AJ263: =AI263+1% -> 15% | AK263: =AJ263+1% -> 16% | AL263: =AK263+1% -> 17% | AM263: =AL263+1% -> 18% | AN263: =AM263+1% -> 19% | AO263: =AN263+1% -> 20% | AP263: =AO263+1% -> 21% | AQ263: =AP263+1% -> 22% | AR263: =AQ263+1% -> 23% | AS263: =AR263+1% -> 24% | AT263: =AS263+1% -> 25% | AU263: =AT263+1% -> 26% | AV263: =AU263+1% -> 27% | AW263: =AV263+1% -> 28% | AX263: =AW263+1% -> 29% | AY263: =AX263+1% -> 30% | AZ263: =AY263+1% -> 31% | BA263: =AZ263+1% -> 32% | BB263: =BA263+1% -> 33% | BC263: =BB263+1% -> 34% | BD263: =BC263+1% -> 35%
Z264: =$X265*(1+Z263) -> 130.94 | AA264: =$X265*(1+AA263) -> 138.80 | AB264: =$X265*(1+AB263) -> 140.11 | AC264: =$X265*(1+AC263) -> 141.42 | AD264: =$X265*(1+AD263) -> 142.73 | AE264: =$X265*(1+AE263) -> 144.04 | AF264: =$X265*(1+AF263) -> 145.35 | AG264: =$X265*(1+AG263) -> 146.66 | AH264: =$X265*(1+AH263) -> 147.96 | AI264: =$X265*(1+AI263) -> 149.27 | AJ264: =$X265*(1+AJ263) -> 150.58 | AK264: =$X265*(1+AK263) -> 151.89 | AL264: =$X265*(1+AL263) -> 153.20 | AM264: =$X265*(1+AM263) -> 154.51 | AN264: =$X265*(1+AN263) -> 155.82 | AO264: =$X265*(1+AO263) -> 157.13 | AP264: =$X265*(1+AP263) -> 158.44 | AQ264: =$X265*(1+AQ263) -> 159.75 | AR264: =$X265*(1+AR263) -> 161.06 | AS264: =$X265*(1+AS263) -> 162.37 | AT264: =$X265*(1+AT263) -> 163.68 | AU264: =$X265*(1+AU263) -> 164.99 | AV264: =$X265*(1+AV263) -> 166.30 | AW264: =$X265*(1+AW263) -> 167.61 | AX264: =$X265*(1+AX263) -> 168.92 | AY264: =$X265*(1+AY263) -> 170.22 | AZ264: =$X265*(1+AZ263) -> 171.53 | BA264: =$X265*(1+BA263) -> 172.84 | BB264: =$X265*(1+BB263) -> 174.15 | BC264: =$X265*(1+BC263) -> 175.46 | BD264: =$X265*(1+BD263) -> 176.77
W265: =W259+1% -> 5.00% | X265: =-NPV(W265,'Modelo financeiro'!$K$70:$BI$70)/NPV(W265,'Modelo financeiro'!$K$780:$BI$780) -> 130.94 | Y265: =NPV(W265,'Modelo financeiro'!$K$68:$BI$68) -> 67,041 | Z265: -9,767 | AA265: -4,229 | AB265: -3,306 | AC265: -2,382 | AD265: -1,459 | AE265: -536 | AF265: 387 | AG265: 1,310 | AH265: 2,233 | AI265: 3,156 | AJ265: 4,079 | AK265: 5,002 | AL265: 5,925 | AM265: 6,848 | AN265: 7,771 | AO265: 8,694 | AP265: 9,617 | AQ265: 10,540 | AR265: 11,463 | AS265: 12,386 | AT265: 13,309 | AU265: 14,232 | AV265: 15,155 | AW265: 16,079 | AX265: 17,002 | AY265: 17,925 | AZ265: 18,848 | BA265: 19,771 | BB265: 20,694 | BC265: 21,617 | BD265: 22,540 | BG265: 0% | BH265: =MIN(35%,Z266:BD266) -> 11% | BI265: =Z265 -> -9,767 | BJ265: =IF(BH265=35%,BD265,HLOOKUP(BH265,Z263:BD265,3,0)) -> 387 | BK265: =(BG265*BJ265-BH265*BI265)/(BJ265-BI265) -> 10.58% | BL265: =X265*(1+BK265) -> 144.80
Z266: =IF(Z265<0,99%,IF(Y265<0,Z263,Y266)) -> 99% | AA266: =IF(AA265<0,99%,IF(Z265<0,AA263,Z266)) -> 99% | AB266: =IF(AB265<0,99%,IF(AA265<0,AB263,AA266)) -> 99% | AC266: =IF(AC265<0,99%,IF(AB265<0,AC263,AB266)) -> 99% | AD266: =IF(AD265<0,99%,IF(AC265<0,AD263,AC266)) -> 99% | AE266: =IF(AE265<0,99%,IF(AD265<0,AE263,AD266)) -> 99% | AF266: =IF(AF265<0,99%,IF(AE265<0,AF263,AE266)) -> 11% | AG266: =IF(AG265<0,99%,IF(AF265<0,AG263,AF266)) -> 11% | AH266: =IF(AH265<0,99%,IF(AG265<0,AH263,AG266)) -> 11% | AI266: =IF(AI265<0,99%,IF(AH265<0,AI263,AH266)) -> 11% | AJ266: =IF(AJ265<0,99%,IF(AI265<0,AJ263,AI266)) -> 11% | AK266: =IF(AK265<0,99%,IF(AJ265<0,AK263,AJ266)) -> 11% | AL266: =IF(AL265<0,99%,IF(AK265<0,AL263,AK266)) -> 11% | AM266: =IF(AM265<0,99%,IF(AL265<0,AM263,AL266)) -> 11% | AN266: =IF(AN265<0,99%,IF(AM265<0,AN263,AM266)) -> 11% | AO266: =IF(AO265<0,99%,IF(AN265<0,AO263,AN266)) -> 11% | AP266: =IF(AP265<0,99%,IF(AO265<0,AP263,AO266)) -> 11% | AQ266: =IF(AQ265<0,99%,IF(AP265<0,AQ263,AP266)) -> 11% | AR266: =IF(AR265<0,99%,IF(AQ265<0,AR263,AQ266)) -> 11% | AS266: =IF(AS265<0,99%,IF(AR265<0,AS263,AR266)) -> 11% | AT266: =IF(AT265<0,99%,IF(AS265<0,AT263,AS266)) -> 11% | AU266: =IF(AU265<0,99%,IF(AT265<0,AU263,AT266)) -> 11% | AV266: =IF(AV265<0,99%,IF(AU265<0,AV263,AU266)) -> 11% | AW266: =IF(AW265<0,99%,IF(AV265<0,AW263,AV266)) -> 11% | AX266: =IF(AX265<0,99%,IF(AW265<0,AX263,AW266)) -> 11% | AY266: =IF(AY265<0,99%,IF(AX265<0,AY263,AX266)) -> 11% | AZ266: =IF(AZ265<0,99%,IF(AY265<0,AZ263,AY266)) -> 11% | BA266: =IF(BA265<0,99%,IF(AZ265<0,BA263,AZ266)) -> 11% | BB266: =IF(BB265<0,99%,IF(BA265<0,BB263,BA266)) -> 11% | BC266: =IF(BC265<0,99%,IF(BB265<0,BC263,BB266)) -> 11% | BD266: =IF(BD265<0,99%,IF(BC265<0,BD263,BC266)) -> 11%
... 40 more rows

Sheet Biblioteca dados regionais
B2: BIBLIOTECA DADOS REGIONAIS
B4: LEMBRANÇA - CARACTERISTICAS DA ESCOLHA DO USUÁRIO
B6: 1 | C6: =B6+1 -> 2 | D6: 3 | E6: 4 | F6: 5 | G6: 6 | H6: 7 | I6: 8 | J6: 9 | K6: 10 | L6: 11 | M6: 12 | N6: 13 | O6: 14 | P6: 15 | Q6: 16 | R6: =Q6+1 -> 17 | S6: =R6+1 -> 18 | T6: 19 | U6: 20 | V6: 21 | W6: 22 | X6: 23 | Y6: 24 | Z6: 25 | AA6: 26 | AB6: 27 | AC6: 28 | AD6: 29 | AE6: 30 | AF6: 31 | AG6: 32 | AH6: 33 | AI6: 34 | AJ6: 35 | AK6: 36 | AL6: 37 | AM6: 38 | AN6: 39 | AO6: 40 | AP6: 41 | AQ6: 42 | AR6: 43 | AS6: 44 | AT6: 45 | AU6: 46 | AV6: 47 | AW6: 48 | AX6: 49 | AY6: =AX6+1 -> 50 | AZ6: 51 | BA6: 52 | BB6: 53 | BC6: 54 | BD6: 55 | BE6: 56 | BF6: 57 | BG6: 58 | BH6: 59 | BI6: 60 | BJ6: 61 | BK6: 62 | BL6: 63 | BM6: 64 | BN6: 65 | BO6: 66 | BP6: 67 | BQ6: 68 | BR6: 69 | BS6: 70 | BT6: 71 | BU6: 72 | BV6: 73 | BW6: 74 | BX6: 75 | BY6: 76 | BZ6: 77 | CA6: 78 | CB6: 79 | CC6: 80 | CD6: 81 | CE6: =CD6+1 -> 82 | CF6: 83 | CG6: 84 | CH6: 85 | CI6: 86 | CJ6: 87 | CK6: 88 | CL6: 89 | CM6: 90 | CN6: 91 | CO6: 92 | CP6: 93 | CQ6: 94 | CR6: 95 | CS6: 96 | CT6: 97 | CU6: 98 | CV6: 99 | CW6: 100 | CX6: 101 | CY6: 102 | CZ6: 103 | DA6: 104 | DB6: 105 | DC6: 106 | DD6: 107 | DE6: 108 | DF6: 109 | DG6: 110 | DH6: 111 | DI6: 112 | DJ6: 113 | DK6: =DJ6+1 -> 114 | DL6: 115 | DM6: 116 | DN6: 117 | DO6: 118 | DP6: 119 | DQ6: 120 | DR6: 121 | DS6: 122 | DT6: 123 | DU6: 124 | DV6: 125 | DW6: 126 | DX6: 127 | DY6: 128 | DZ6: 129 | EA6: 130 | EB6: 131 | EC6: 132 | ED6: 133 | EE6: 134 | EF6: 135 | EG6: 136 | EH6: 137 | EI6: 138 | EJ6: 139 | EK6: 140 | EL6: 141 | EM6: 142 | EN6: 143 | EO6: 144 | EP6: 145 | EQ6: =EP6+1 -> 146 | ER6: 147 | ES6: 148 | ET6: 149 | EU6: 150 | EV6: 151 | EW6: 152 | EX6: 153 | EY6: 154 | EZ6: 155 | FA6: 156 | FB6: 157 | FC6: 158 | FD6: 159 | FE6: 160 | FF6: 161 | FG6: 162 | FH6: 163 | FI6: 164 | FJ6: 165 | FK6: 166 | FL6: 167 | FM6: 168 | FN6: 169 | FO6: 170 | FP6: 171 | FQ6: 172 | FR6: 173 | FS6: 174 | FT6: 175 | FU6: 176 | FV6: 177 | FW6: =FV6+1 -> 178 | FX6: 179 | FY6: 180 | FZ6: 181 | GA6: 182 | GB6: 183 | GC6: 184 | GD6: 185 | GE6: 186 | GF6: 187 | GG6: 188 | GH6: 189 | GI6: 190 | GJ6: 191 | GK6: 192 | GL6: 193 | GM6: 194 | GN6: 195 | GO6: 196 | GP6: 197 | GQ6: 198 | GR6: 199 | GS6: 200 | GT6: 201 | GU6: 202 | GV6: 203 | GW6: 204 | GX6: 205 | GY6: 206 | GZ6: 207 | HA6: 208 | HB6: =HA6+1 -> 209 | HC6: =HB6+1 -> 210 | HD6: =HC6+1 -> 211 | HE6: =HD6+1 -> 212 | HF6: =HE6+1 -> 213 | HG6: =HF6+1 -> 214 | HH6: =HG6+1 -> 215 | HI6: =HH6+1 -> 216 | HJ6: =HI6+1 -> 217 | HK6: =HJ6+1 -> 218 | HL6: =HK6+1 -> 219 | HM6: =HL6+1 -> 220 | HN6: =HM6+1 -> 221 | HO6: =HN6+1 -> 222 | HP6: =HO6+1 -> 223 | HQ6: =HP6+1 -> 224 | HR6: =HQ6+1 -> 225 | HS6: =HR6+1 -> 226 | HT6: =HS6+1 -> 227 | HU6: =HT6+1 -> 228 | HV6: =HU6+1 -> 229
B7: =Premissas!$G$13 -> Mato Grosso do Sul | C7: =VLOOKUP($B$7,$B15:C66,C6,0) -> 1450 | D7: =VLOOKUP($B$7,$B15:D66,D6,0) -> Plano | F7: =VLOOKUP($B$7,$B15:F66,F6,0) -> Maduro | G7: =VLOOKUP($B$7,$B15:G66,G6,0) -> Tri-trem | H7: =VLOOKUP($B$7,$B15:H66,H6,0) -> 3.224 | I7: =VLOOKUP($B$7,$B15:I66,I6,0) -> 3.391 | J7: =VLOOKUP($B$7,$B15:J66,J6,0) -> 95 | K7: =VLOOKUP($B$7,$B15:K66,K6,0) -> 351 | L7: =VLOOKUP($B$7,$B15:L66,L6,0) -> 0 | M7: =VLOOKUP($B$7,$B15:M66,M6,0) -> 1143 | N7: =VLOOKUP($B$7,$B15:N66,N6,0) -> 1143 | O7: =VLOOKUP($B$7,$B15:O66,O6,0) -> 38 | P7: =VLOOKUP($B$7,$B15:P66,P6,0) -> 35.42767717 | Q7: =VLOOKUP($B$7,$B15:Q66,Q6,0) -> 31.62430032 | R7: =VLOOKUP($B$7,$B15:R66,R6,0) -> 0 | S7: =VLOOKUP($B$7,$B15:S66,S6,0) -> 1 | T7: =VLOOKUP($B$7,$B15:T66,T6,0) -> 1 | U7: =VLOOKUP($B$7,$B15:U66,U6,0) -> 0.8 | V7: =VLOOKUP($B$7,$B15:V66,V6,0) -> 0.8 | W7: =VLOOKUP($B$7,$B15:W66,W6,0) -> 0 | X7: =VLOOKUP($B$7,$B15:X66,X6,0) -> 1 | Y7: =VLOOKUP($B$7,$B15:Y66,Y6,0) -> 0.7 | Z7: =VLOOKUP($B$7,$B15:Z66,Z6,0) -> 0.7 | AA7: =VLOOKUP($B$7,$B15:AA66,AA6,0) -> 0.7 | AB7: =VLOOKUP($B$7,$B15:AB66,AB6,0) -> 0 | AC7: =VLOOKUP($B$7,$B15:AC66,AC6,0) -> 0.8 | AD7: =VLOOKUP($B$7,$B15:AD66,AD6,0) -> 0.8 | AE7: =VLOOKUP($B$7,$B15:AE66,AE6,0) -> 0.8 | AF7: =VLOOKUP($B$7,$B15:AF66,AF6,0) -> 0 | AG7: =VLOOKUP($B$7,$B15:AG66,AG6,0) -> 0.8 | AH7: =VLOOKUP($B$7,$B15:AH66,AH6,0) -> 0.8 | AI7: =VLOOKUP($B$7,$B15:AI66,AI6,0) -> 0.8 | AJ7: =VLOOKUP($B$7,$B15:AJ66,AJ6,0) -> 0 | AK7: =VLOOKUP($B$7,$B15:AK66,AK6,0) -> 10 | AL7: =VLOOKUP($B$7,$B15:AL66,AL6,0) -> 679.7681387 | AM7: =VLOOKUP($B$7,$B15:AM66,AM6,0) -> 1032.075196 | AN7: =VLOOKUP($B$7,$B15:AN66,AN6,0) -> 879.836407 | AO7: =VLOOKUP($B$7,$B15:AO66,AO6,0) -> 1231.856823 | AP7: =VLOOKUP($B$7,$B15:AP66,AP6,0) -> 960.2742547 | AQ7: =VLOOKUP($B$7,$B15:AQ66,AQ6,0) -> 189.3537351 | AR7: =VLOOKUP($B$7,$B15:AR66,AR6,0) -> 0 | AS7: =VLOOKUP($B$7,$B15:AS66,AS6,0) -> 0 | AT7: =VLOOKUP($B$7,$B15:AT66,AT6,0) -> 297.5734824 | AU7: =VLOOKUP($B$7,$B15:AU66,AU6,0) -> 128.7260808 | AV7: =VLOOKUP($B$7,$B15:AV66,AV6,0) -> 0 | AW7: =VLOOKUP($B$7,$B15:AW66,AW6,0) -> 0 | AX7: =VLOOKUP($B$7,$B15:AX66,AX6,0) -> 105.5936516 | AY7: =VLOOKUP($B$7,$B15:AY66,AY6,0) -> 187.7272137 | AZ7: =VLOOKUP($B$7,$B15:AZ66,AZ6,0) -> 0 | BA7: =VLOOKUP($B$7,$B15:BA66,BA6,0) -> 0 | BB7: =VLOOKUP($B$7,$B15:BB66,BB6,0) -> 97.10601117 | BC7: =VLOOKUP($B$7,$B15:BC66,BC6,0) -> 0 | BD7: =VLOOKUP($B$7,$B15:BD66,BD6,0) -> 0 | BE7: =VLOOKUP($B$7,$B15:BE66,BE6,0) -> 175.773178 | BF7: =VLOOKUP($B$7,$B15:BF66,BF6,0) -> 0 | BG7: =VLOOKUP($B$7,$B15:BG66,BG6,0) -> 168.6087263 | BH7: =VLOOKUP($B$7,$B15:BH66,BH6,0) -> 395.5938307 | BI7: =VLOOKUP($B$7,$B15:BI66,BI6,0) -> 0 | BJ7: =VLOOKUP($B$7,$B15:BJ66,BJ6,0) -> 1104.081085 | BK7: =VLOOKUP($B$7,$B15:BK66,BK6,0) -> 1062.01195 | BL7: =VLOOKUP($B$7,$B15:BL66,BL6,0) -> 189.3537351 | BM7: =VLOOKUP($B$7,$B15:BM66,BM6,0) -> 0 | BN7: =VLOOKUP($B$7,$B15:BN66,BN6,0) -> 0 | BO7: =VLOOKUP($B$7,$B15:BO66,BO6,0) -> 297.5734824 | BP7: =VLOOKUP($B$7,$B15:BP66,BP6,0) -> 128.7260808 | BQ7: =VLOOKUP($B$7,$B15:BQ66,BQ6,0) -> 0 | BR7: =VLOOKUP($B$7,$B15:BR66,BR6,0) -> 0 | BS7: =VLOOKUP($B$7,$B15:BS66,BS6,0) -> 105.5936516 | BT7: =VLOOKUP($B$7,$B15:BT66,BT6,0) -> 187.7272137 | BU7: =VLOOKUP($B$7,$B15:BU66,BU6,0) -> 0 | BV7: =VLOOKUP($B$7,$B15:BV66,BV6,0) -> 0 | BW7: =VLOOKUP($B$7,$B15:BW66,BW6,0) -> 97.10601117 | BX7: =VLOOKUP($B$7,$B15:BX66,BX6,0) -> 0 | BY7: =VLOOKUP($B$7,$B15:BY66,BY6,0) -> 0 | BZ7: =VLOOKUP($B$7,$B15:BZ66,BZ6,0) -> 87.886589 | CA7: =VLOOKUP($B$7,$B15:CA66,CA6,0) -> 0 | CB7: =VLOOKUP($B$7,$B15:CB66,CB6,0) -> 56.20290875 | CC7: =VLOOKUP($B$7,$B15:CC66,CC6,0) -> 0 | CD7: =VLOOKUP($B$7,$B15:CD66,CD6,0) -> 0 | CE7: =VLOOKUP($B$7,$B15:CE66,CE6,0) -> 0 | CF7: =VLOOKUP($B$7,$B15:CF66,CF6,0) -> 0 | CG7: =VLOOKUP($B$7,$B15:CG66,CG6,0) -> 189.3537351 | CH7: =VLOOKUP($B$7,$B15:CH66,CH6,0) -> 0 | CI7: =VLOOKUP($B$7,$B15:CI66,CI6,0) -> 0 | CJ7: =VLOOKUP($B$7,$B15:CJ66,CJ6,0) -> 0 | CK7: =VLOOKUP($B$7,$B15:CK66,CK6,0) -> 128.7260808 | CL7: =VLOOKUP($B$7,$B15:CL66,CL6,0) -> 0 | CM7: =VLOOKUP($B$7,$B15:CM66,CM6,0) -> 0 | CN7: =VLOOKUP($B$7,$B15:CN66,CN6,0) -> 0 | CO7: =VLOOKUP($B$7,$B15:CO66,CO6,0) -> 188 | CP7: =VLOOKUP($B$7,$B15:CP66,CP6,0) -> 0 | CQ7: =VLOOKUP($B$7,$B15:CQ66,CQ6,0) -> 0 | CR7: =VLOOKUP($B$7,$B15:CR66,CR6,0) -> 97 | CS7: =VLOOKUP($B$7,$B15:CS66,CS6,0) -> 0 | CT7: =VLOOKUP($B$7,$B15:CT66,CT6,0) -> 0 | CU7: =VLOOKUP($B$7,$B15:CU66,CU6,0) -> 88 | CV7: =VLOOKUP($B$7,$B15:CV66,CV6,0) -> 0 | CW7: =VLOOKUP($B$7,$B15:CW66,CW6,0) -> 56 | CX7: =VLOOKUP($B$7,$B15:CX66,CX6,0) -> 0 | CY7: =VLOOKUP($B$7,$B15:CY66,CY6,0) -> 10 | CZ7: =VLOOKUP($B$7,$B15:CZ66,CZ6,0) -> 290 | DA7: =VLOOKUP($B$7,$B15:DA66,DA6,0) -> 3,311 | DB7: =VLOOKUP($B$7,$B15:DB66,DB6,0) -> 954 | DC7: =VLOOKUP($B$7,$B15:DC66,DC6,0) -> 760 | DD7: =VLOOKUP($B$7,$B15:DD66,DD6,0) -> 1,147 | DE7: =VLOOKUP($B$7,$B15:DE66,DE6,0) -> 81 | DF7: =VLOOKUP($B$7,$B15:DF66,DF6,0) -> 0 | DG7: =VLOOKUP($B$7,$B15:DG66,DG6,0) -> 264 | DH7: =VLOOKUP($B$7,$B15:DH66,DH6,0) -> 645 | DI7: =VLOOKUP($B$7,$B15:DI66,DI6,0) -> 41 | DJ7: =VLOOKUP($B$7,$B15:DJ66,DJ6,0) -> 0 | DK7: =VLOOKUP($B$7,$B15:DK66,DK6,0) -> 264 | DL7: =VLOOKUP($B$7,$B15:DL66,DL6,0) -> 645 | DM7: =VLOOKUP($B$7,$B15:DM66,DM6,0) -> 41 | DN7: =VLOOKUP($B$7,$B15:DN66,DN6,0) -> 0 | DO7: =VLOOKUP($B$7,$B15:DO66,DO6,0) -> 0 | DP7: =VLOOKUP($B$7,$B15:DP66,DP6,0) -> 41 | DQ7: =VLOOKUP($B$7,$B15:DQ66,DQ6,0) -> 0 | DR7: =VLOOKUP($B$7,$B15:DR66,DR6,0) -> 0 | DS7: =VLOOKUP($B$7,$B15:DS66,DS6,0) -> 81 | DT7: =VLOOKUP($B$7,$B15:DT66,DT6,0) -> 0 | DU7: =VLOOKUP($B$7,$B15:DU66,DU6,0) -> 81 | DV7: =VLOOKUP($B$7,$B15:DV66,DV6,0) -> 313 | DW7: =VLOOKUP($B$7,$B15:DW66,DW6,0) -> 0 | DX7: =VLOOKUP($B$7,$B15:DX66,DX6,0) -> 760 | DY7: =VLOOKUP($B$7,$B15:DY66,DY6,0) -> 1,147 | DZ7: =VLOOKUP($B$7,$B15:DZ66,DZ6,0) -> 41 | EA7: =VLOOKUP($B$7,$B15:EA66,EA6,0) -> 0 | EB7: =VLOOKUP($B$7,$B15:EB66,EB6,0) -> 264 | EC7: =VLOOKUP($B$7,$B15:EC66,EC6,0) -> 645 | ED7: =VLOOKUP($B$7,$B15:ED66,ED6,0) -> 41 | EE7: =VLOOKUP($B$7,$B15:EE66,EE6,0) -> 0 | EF7: =VLOOKUP($B$7,$B15:EF66,EF6,0) -> 264 | EG7: =VLOOKUP($B$7,$B15:EG66,EG6,0) -> 645 | EH7: =VLOOKUP($B$7,$B15:EH66,EH6,0) -> 41 | EI7: =VLOOKUP($B$7,$B15:EI66,EI6,0) -> 0 | EJ7: =VLOOKUP($B$7,$B15:EJ66,EJ6,0) -> 0 | EK7: =VLOOKUP($B$7,$B15:EK66,EK6,0) -> 41 | EL7: =VLOOKUP($B$7,$B15:EL66,EL6,0) -> 0 | EM7: =VLOOKUP($B$7,$B15:EM66,EM6,0) -> 0 | EN7: =VLOOKUP($B$7,$B15:EN66,EN6,0) -> 81 | EO7: =VLOOKUP($B$7,$B15:EO66,EO6,0) -> 0 | EP7: =VLOOKUP($B$7,$B15:EP66,EP6,0) -> 81 | EQ7: =VLOOKUP($B$7,$B15:EQ66,EQ6,0) -> 4,448 | ER7: =VLOOKUP($B$7,$B15:ER66,ER6,0) -> 868 | ES7: =VLOOKUP($B$7,$B15:ES66,ES6,0) -> 734 | ET7: =VLOOKUP($B$7,$B15:ET66,ET6,0) -> 1,680 | EU7: =VLOOKUP($B$7,$B15:EU66,EU6,0) -> 97 | EV7: =VLOOKUP($B$7,$B15:EV66,EV6,0) -> 0 | EW7: =VLOOKUP($B$7,$B15:EW66,EW6,0) -> 260 | EX7: =VLOOKUP($B$7,$B15:EX66,EX6,0) -> 788 | EY7: =VLOOKUP($B$7,$B15:EY66,EY6,0) -> 48 | EZ7: =VLOOKUP($B$7,$B15:EZ66,EZ6,0) -> 0 | FA7: =VLOOKUP($B$7,$B15:FA66,FA6,0) -> 260 | FB7: =VLOOKUP($B$7,$B15:FB66,FB6,0) -> 788 | FC7: =VLOOKUP($B$7,$B15:FC66,FC6,0) -> 48 | FD7: =VLOOKUP($B$7,$B15:FD66,FD6,0) -> 0 | FE7: =VLOOKUP($B$7,$B15:FE66,FE6,0) -> 0 | FF7: =VLOOKUP($B$7,$B15:FF66,FF6,0) -> 48 | FG7: =VLOOKUP($B$7,$B15:FG66,FG6,0) -> 0 | FH7: =VLOOKUP($B$7,$B15:FH66,FH6,0) -> 0 | FI7: =VLOOKUP($B$7,$B15:FI66,FI6,0) -> 97 | FJ7: =VLOOKUP($B$7,$B15:FJ66,FJ6,0) -> 0 | FK7: =VLOOKUP($B$7,$B15:FK66,FK6,0) -> 97 | FL7: =VLOOKUP($B$7,$B15:FL66,FL6,0) -> 156 | FM7: =VLOOKUP($B$7,$B15:FM66,FM6,0) -> 0 | FN7: =VLOOKUP($B$7,$B15:FN66,FN6,0) -> 380 | FO7: =VLOOKUP($B$7,$B15:FO66,FO6,0) -> 574 | FP7: =VLOOKUP($B$7,$B15:FP66,FP6,0) -> 20 | FQ7: =VLOOKUP($B$7,$B15:FQ66,FQ6,0) -> 0 | FR7: =VLOOKUP($B$7,$B15:FR66,FR6,0) -> 132 | FS7: =VLOOKUP($B$7,$B15:FS66,FS6,0) -> 322 | FT7: =VLOOKUP($B$7,$B15:FT66,FT6,0) -> 20 | FU7: =VLOOKUP($B$7,$B15:FU66,FU6,0) -> 0 | FV7: =VLOOKUP($B$7,$B15:FV66,FV6,0) -> 132 | FW7: =VLOOKUP($B$7,$B15:FW66,FW6,0) -> 322 | FX7: =VLOOKUP($B$7,$B15:FX66,FX6,0) -> 20 | FY7: =VLOOKUP($B$7,$B15:FY66,FY6,0) -> 0 | FZ7: =VLOOKUP($B$7,$B15:FZ66,FZ6,0) -> 0 | GA7: =VLOOKUP($B$7,$B15:GA66,GA6,0) -> 20 | GB7: =VLOOKUP($B$7,$B15:GB66,GB6,0) -> 0 | GC7: =VLOOKUP($B$7,$B15:GC66,GC6,0) -> 0 | GD7: =VLOOKUP($B$7,$B15:GD66,GD6,0) -> 41 | GE7: =VLOOKUP($B$7,$B15:GE66,GE6,0) -> 0 | GF7: =VLOOKUP($B$7,$B15:GF66,GF6,0) -> 41 | GG7: =VLOOKUP($B$7,$B15:GG66,GG6,0) -> 2,967 | GH7: =VLOOKUP($B$7,$B15:GH66,GH6,0) -> 782 | GI7: =VLOOKUP($B$7,$B15:GI66,GI6,0) -> 709 | GJ7: =VLOOKUP($B$7,$B15:GJ66,GJ6,0) -> 2,214 | GK7: =VLOOKUP($B$7,$B15:GK66,GK6,0) -> 112 | GL7: =VLOOKUP($B$7,$B15:GL66,GL6,0) -> 0 | GM7: =VLOOKUP($B$7,$B15:GM66,GM6,0) -> 256 | GN7: =VLOOKUP($B$7,$B15:GN66,GN6,0) -> 931 | GO7: =VLOOKUP($B$7,$B15:GO66,GO6,0) -> 56 | GP7: =VLOOKUP($B$7,$B15:GP66,GP6,0) -> 0 | GQ7: =VLOOKUP($B$7,$B15:GQ66,GQ6,0) -> 256 | GR7: =VLOOKUP($B$7,$B15:GR66,GR6,0) -> 931 | GS7: =VLOOKUP($B$7,$B15:GS66,GS6,0) -> 56 | GT7: =VLOOKUP($B$7,$B15:GT66,GT6,0) -> 0 | GU7: =VLOOKUP($B$7,$B15:GU66,GU6,0) -> 0 | GV7: =VLOOKUP($B$7,$B15:GV66,GV6,0) -> 56 | GW7: =VLOOKUP($B$7,$B15:GW66,GW6,0) -> 0 | GX7: =VLOOKUP($B$7,$B15:GX66,GX6,0) -> 0 | GY7: =VLOOKUP($B$7,$B15:GY66,GY6,0) -> 112 | GZ7: =VLOOKUP($B$7,$B15:GZ66,GZ6,0) -> 0 | HA7: =VLOOKUP($B$7,$B15:HA66,HA6,0) -> 112 | HB7: =VLOOKUP($B$7,$B15:HB66,HB6,0) -> 5,585 | HC7: =VLOOKUP($B$7,$B15:HC66,HC6,0) -> 782 | HD7: =VLOOKUP($B$7,$B15:HD66,HD6,0) -> 709 | HE7: =VLOOKUP($B$7,$B15:HE66,HE6,0) -> 2,214 | HF7: =VLOOKUP($B$7,$B15:HF66,HF6,0) -> 112 | HG7: =VLOOKUP($B$7,$B15:HG66,HG6,0) -> 0 | HH7: =VLOOKUP($B$7,$B15:HH66,HH6,0) -> 256 | HI7: =VLOOKUP($B$7,$B15:HI66,HI6,0) -> 931 | HJ7: =VLOOKUP($B$7,$B15:HJ66,HJ6,0) -> 56 | HK7: =VLOOKUP($B$7,$B15:HK66,HK6,0) -> 0 | HL7: =VLOOKUP($B$7,$B15:HL66,HL6,0) -> 256 | HM7: =VLOOKUP($B$7,$B15:HM66,HM6,0) -> 931 | HN7: =VLOOKUP($B$7,$B15:HN66,HN6,0) -> 56 | HO7: =VLOOKUP($B$7,$B15:HO66,HO6,0) -> 0 | HP7: =VLOOKUP($B$7,$B15:HP66,HP6,0) -> 0 | HQ7: =VLOOKUP($B$7,$B15:HQ66,HQ6,0) -> 56 | HR7: =VLOOKUP($B$7,$B15:HR66,HR6,0) -> 0 | HS7: =VLOOKUP($B$7,$B15:HS66,HS6,0) -> 0 | HT7: =VLOOKUP($B$7,$B15:HT66,HT6,0) -> 112 | HU7: =VLOOKUP($B$7,$B15:HU66,HU6,0) -> 0 | HV7: =VLOOKUP($B$7,$B15:HV66,HV6,0) -> 112
B11: Mesorregiões | C11: Características gerais | H11: Características econômicas regionais | M11: Densidade de plantios | O11: Indicadores de produtividade | S11: Variação de produtividade | AJ11: Preparação projeto e do terreno para um plantio convencional | AM11: Custos de operações para a rotação de implantação / reforma de um plantio convencional (R$/ha) | BH11: Custos de operações para a rebrota manejada de um plantio convencional (R$/ha) | CC11: Custos de operações para a rebrota não manejada de um plantio convencional (R$/ha) | CX11: Preparação projeto e do terreno para um plantio em Reserva Legal | DA11: Custos de operações para a implantação de recomposição de RL com 50% de eucalipto (R$/ha recomposto) | DV11: Custos de operações para a rebrota manejada de uma RL com 50% de eucalipto (R$/ha recomposto) | EQ11: Custos de operações para a implantação de recomposição de RL com 25% de eucalipto (R$/ha recomposto) | FL11: Custos de operações para a rebrota manejada de uma RL com 25% de eucalipto (R$/ha recomposto) | GG11: Custos de operações para a recomposição de RL com 100% de mudas nativas e uma densidade de plantio igual a 50% dos plantios comerciais (R$/ha recomposto) | HB11: Custos de operações para a recomposição de RL com 100% de mudas nativas e uma densidade de plantio igual a 100% dos plantios comerciais (R$/ha recomposto)
C12: Dados físicos | F12: Infraestrutura do mercado florestal | H12: Custos | L12: Prêmio de risco pedido por um investidor florestal | M12: (árv / ha plantado exclusivamente com eucalipto) | O12: Indice de sitio | P12: IMA 7 anos (m³/ha.ano) | S12: Plantio convencional com manejo de rebrota | X12: Plantio convencional sem manejo de rebrota | AC12: Recomposição RR 25% de eucalipto | AG12: Recomposição RR 50% de eucalipto | AJ12: Proporcional investimento | AK12: Prop. perímetro (R$/m) | AL12: Proporcionais área (R$/ha) | AM12: Plantio - ano 0 | AS12: Manutenção - ano 1 | AW12: Manutenção - ano 2 | BA12: Manutenção - ano 3 | BD12: Manutenção - anos 4 e 5 | BG12: Manut. > ano 5 | BH12: Plantio - ano 0 | BN12: Manutenção - ano 1 | BR12: Manutenção - ano 2 | BV12: Manutenção - ano 3 | BY12: Manutenção - anos 4 e 5 | CB12: Manut. > ano 5 | CC12: Plantio - ano 0 | CI12: Manutençaõ - ano 1 | CM12: Manutenção - ano 2 | CQ12: Manutenção - ano 3 | CT12: Manutenção - anos 4 e 5 | CW12: Manut. > ano 5 | CX12: Proporcional investimento | CY12: Prop.s perimêtro (R$/m) | CZ12: Proporcionais área (R$/ha) | DA12: Plantio - ano 0 | DG12: Manutenção - ano 1 | DK12: Manutenção - ano 2 | DO12: Manutenção - ano 3 | DR12: Manutenção - anos 4 e 5 | DU12: Manut. > ano 5 | DV12: Plantio - ano 0 | EB12: Manutenção - ano 1 | EF12: Manutenção - ano 2 | EJ12: Manutenção - ano 3 | EM12: Manutenção - anos 4 e 5 | EP12: Manut. > ano 5 | EQ12: Plantio - ano 0 | EW12: Manutenção - ano 1 | FA12: Manutenção - ano 2 | FE12: Manutenção - ano 3 | FH12: Manutenção - anos 4 e 5 | FK12: Manut. > ano 5 | FL12: Plantio - ano 0 | FR12: Manutenção - ano 1 | FV12: Manutenção - ano 2 | FZ12: Manutenção - ano 3 | GC12: Manutenção - anos 4 e 5 | GF12: Manut. > ano 5 | GG12: Plantio - ano 0 | GM12: Manutenção - ano 1 | GQ12: Manutenção - ano 2 | GU12: Manutenção - ano 3 | GX12: Manutenção - anos 4 e 5 | HA12: Manut. > ano 5 | HB12: Plantio - ano 0 | HH12: Manutenção - ano 1 | HL12: Manutenção - ano 2 | HP12: Manutenção - ano 3 | HS12: Manutenção - anos 4 e 5 | HV12: Manut. > ano 5
C13: Isoietas (mm) | D13: Relevo | F13: Maturidade | G13: Transporte | H13: Diesel (R$/l) | I13: Gasolina (R$/l) | J13: Salário (índice - SP = 100) | K13: Arrendamento terra (R$/ha.ano) | M13: Comercial Convencional | N13: Reserva legal | P13: Plantio comercial | Q13: Plantio com 800 árv / há | S13: Rot 1 / Rot 1 comercial padrão | T13: Rot 2 / Rot 1 | U13: Rot 3 / Rot 2 | V13: Rot 4 / Rot 3 | X13: Rot 1 / Rot 1 comercial padrão | Y13: Rot 2 / Rot 1 | Z13: Rot 3 / Rot 2 | AA13: Rot 4 / Rot 3 | AC13: Rot 1 / Rot 1 comercial padrão | AD13: Rot 2 / Rot 1 | AE13: Rot 3 / Rot 2 | AG13: Rot 1 / Rot 1 comercial padrão | AH13: Rot 2 / Rot 1 | AI13: Rot 3 / Rot 2 | AJ13: Licenciamento se necessário | AK13: Instalação cerca | AL13: Preparação do solo | AM13: Plantio | AN13: Irrigação | AO13: Fertilizante | AP13: Controle de mato | AQ13: Controle de praga | AS13: Fertilizante | AT13: Controle de mato | AU13: Controle de praga | AW13: Fertilizante | AX13: Controle de mato | AY13: Controle de praga | BA13: Fertilizante | BB13: Controle de praga | BD13: Fertilizante | BE13: Controle de praga | BG13: Controle de praga | BH13: Condução do broto | BI13: Irrigação | BJ13: Fertilizante | BK13: Controle de mato | BL13: Controle de praga | BN13: Fertilizante | BO13: Controle de mato | BP13: Controle de praga | BR13: Fertilizante | BS13: Controle de mato | BT13: Controle de praga | BV13: Fertilizante | BW13: Controle de praga | BY13: Fertilizante | BZ13: Controle de praga | CB13: Controle de praga | CC13: Condução | CD13: Irrigação | CE13: Fertilizante | CF13: Controle de mato | CG13: Controle de praga | CI13: Fertilizante | CJ13: Controle de mato | CK13: Controle de praga | CM13: Fertilizante | CN13: Controle de mato | CO13: Controle de praga | CQ13: Fertilizante | CR13: Controle de praga | CT13: Fertilizante | CU13: Controle de praga | CW13: Controle de praga | CX13: Licenciamento se necessário | CY13: Instalação cerca | CZ13: Preparação do solo | DA13: Plantio | DB13: Irrigação | DC13: Fertilizante | DD13: Controle de mato | DE13: Controle de praga | DG13: Fertilizante | DH13: Controle de mato | DI13: Controle de praga | DK13: Fertilizante | DL13: Controle de mato | DM13: Controle de praga | DO13: Fertilizante | DP13: Controle de praga | DR13: Fertilizante | DS13: Controle de praga | DU13: Controle de praga | DV13: Condução do broto | DW13: Irrigação | DX13: Fertilizante | DY13: Controle de mato | DZ13: Controle de praga | EB13: Fertilizante | EC13: Controle de mato | ED13: Controle de praga | EF13: Fertilizante | EG13: Controle de mato | EH13: Controle de praga | EJ13: Fertilizante | EK13: Controle de praga | EM13: Fertilizante | EN13: Controle de praga | EP13: Controle de praga | EQ13: Plantio | ER13: Irrigação | ES13: Fertilizante | ET13: Controle de mato | EU13: Controle de praga | EW13: Fertilizante | EX13: Controle de mato | EY13: Controle de praga | FA13: Fertilizante | FB13: Controle de mato | FC13: Controle de praga | FE13: Fertilizante | FF13: Controle de praga | FH13: Fertilizante | FI13: Controle de praga | FK13: Controle de praga | FL13: Condução do broto | FM13: Irrigação | FN13: Fertilizante | FO13: Controle de mato | FP13: Controle de praga | FR13: Fertilizante | FS13: Controle de mato | FT13: Controle de praga | FV13: Fertilizante | FW13: Controle de mato | FX13: Controle de praga | FZ13: Fertilizante | GA13: Controle de praga | GC13: Fertilizante | GD13: Controle de praga | GF13: Controle de praga | GG13: Plantio | GH13: Irrigação | GI13: Fertilizante | GJ13: Controle de mato | GK13: Controle de praga | GM13: Fertilizante | GN13: Controle de mato | GO13: Controle de praga | GQ13: Fertilizante | GR13: Controle de mato | GS13: Controle de praga | GU13: Fertilizante | GV13: Controle de praga | GX13: Fertilizante | GY13: Controle de praga | HA13: Controle de praga | HB13: Plantio | HC13: Irrigação | HD13: Fertilizante | HE13: Controle de mato | HF13: Controle de praga | HH13: Fertilizante | HI13: Controle de mato | HJ13: Controle de praga | HL13: Fertilizante | HM13: Controle de mato | HN13: Controle de praga | HP13: Fertilizante | HQ13: Controle de praga | HS13: Fertilizante | HT13: Controle de praga | HV13: Controle de praga
B14: Fontes da dados | F14: Consultoria florestal, conforme os seus bancos de dados | H14: Agência Nacional do Petróleo | K14: Relatório Agrianual | L14: Consultoria Florestal | M14: Consultoria Florestal, conforme os seus bancos de dados para regiões maduras e de fronteira e semelhança de condições edafoclimáticas com regiões florestais existentes para mercdos incipientes | O14: Consultoria Florestal, conforme os seus bancos de dados para regiões maduras e de fronteira e semelhança de condições edafoclimáticas com regiões florestais existentes para mercdos incipientes | Q14: Cálculo a partir do programa Syseucalyptus usando o índice de sítio e a densidade de plantio | S14: Na ausência de dados precisos, usou-se na primeira versão da planilha os mesmos dados para todas as regiões, como foi definido na aba "Modelos florestais" (ver esta aba para mais comentários)
A15: 1 | B15: Mato Grosso do Sul | C15: =(1300+1600)/2 -> 1,450 | D15: Plano | F15: Maduro | G15: Tri-trem | H15: 3.2 | I15: 3.4 | J15: 95 | K15: 351 | L15: 0% | M15: 1,143 | N15: 1,143 | O15: 38.0 | P15: =IF(M15=1667,VLOOKUP(O15,'Modelos florestais'!AB9:BY31,47),IF(M15=1143,VLOOKUP(O15,'Modelos florestais'!AB9:BY31,48),VLOOKUP(O15,'Modelos florestais'!AB9:BY31,49))) -> 35.4 | Q15: =VLOOKUP(O15,'Modelos florestais'!AB9:BY31,50) -> 31.6 | S15: ='Modelos florestais'!S$8 -> 100% | T15: ='Modelos florestais'!T$8 -> 100% | U15: ='Modelos florestais'!U$8 -> 80% | V15: ='Modelos florestais'!V$8 -> 80% | X15: ='Modelos florestais'!S$9 -> 100% | Y15: ='Modelos florestais'!T$9 -> 70% | Z15: ='Modelos florestais'!U$9 -> 70% | AA15: ='Modelos florestais'!V$9 -> 70% | AC15: ='Modelos florestais'!S$10 -> 80% | AD15: ='Modelos florestais'!T$10 -> 80% | AE15: ='Modelos florestais'!U$10 -> 80% | AG15: ='Modelos florestais'!S$11 -> 80% | AH15: ='Modelos florestais'!T$11 -> 80% | AI15: ='Modelos florestais'!U$11 -> 80% | AJ15: 0 | AK15: 10 | AL15: 680 | AM15: 1,032 | AN15: 880 | AO15: 1,232 | AP15: 960 | AQ15: 189 | AS15: 0 | AT15: 298 | AU15: 129 | AW15: 0 | AX15: 106 | AY15: 188 | BA15: 0 | BB15: 97 | BD15: 0 | BE15: 176 | BG15: 169 | BH15: 396 | BI15: 0 | BJ15: 1,104 | BK15: 1,062 | BL15: 189 | BN15: 0 | BO15: 298 | BP15: 129 | BR15: 0 | BS15: 106 | BT15: 188 | BV15: 0 | BW15: 97 | BZ15: 88 | CB15: 56 | CC15: 0 | CD15: 0 | CE15: 0 | CF15: 0 | CG15: =BL15 -> 189 | CI15: 0 | CJ15: 0 | CK15: =BP15 -> 129 | CM15: 0 | CN15: 0 | CO15: =BT15 -> 188 | CQ15: 0 | CR15: =BW15 -> 97 | CT15: 0 | CU15: =BZ15 -> 88 | CW15: =CB15 -> 56 | CX15: 0 | CY15: 10 | CZ15: 290 | DA15: 3,311 | DB15: 954 | DC15: 760 | DD15: 1,147 | DE15: 81 | DG15: 264 | DH15: 645 | DI15: 41 | DK15: 264 | DL15: 645 | DM15: 41 | DO15: 0 | DP15: 41 | DR15: 0 | DS15: 81 | DU15: 81 | DV15: 313 | DW15: 0 | DX15: 760 | DY15: 1,147 | DZ15: 41 | EB15: 264 | EC15: 645 | ED15: 41 | EF15: 264 | EG15: 645 | EH15: 41 | EJ15: 0 | EK15: 41 | EM15: 0 | EN15: 81 | EP15: 81 | EQ15: =(DA15+HB15)/2 -> 4,448 | ER15: =(DB15+HC15)/2 -> 868 | ES15: =(DC15+HD15)/2 -> 734 | ET15: =(DD15+HE15)/2 -> 1,680 | EU15: =(DE15+HF15)/2 -> 97 | EW15: =(DG15+HH15)/2 -> 260 | EX15: =(DH15+HI15)/2 -> 788 | EY15: =(DI15+HJ15)/2 -> 48 | FA15: =(DK15+HL15)/2 -> 260 | FB15: =(DL15+HM15)/2 -> 788 | FC15: =(DM15+HN15)/2 -> 48 | FE15: =(DO15+HP15)/2 -> 0 | FF15: =(DP15+HQ15)/2 -> 48 | FH15: =(DR15+HS15)/2 -> 0 | FI15: =(DS15+HT15)/2 -> 97 | FK15: =(DU15+HV15)/2 -> 97 | FL15: =DV15/2 -> 156 | FM15: =DW15/2 -> 0 | FN15: =DX15/2 -> 380 | FO15: =DY15/2 -> 574 | FP15: =DZ15/2 -> 20 | FR15: =EB15/2 -> 132 | FS15: =EC15/2 -> 322 | FT15: =ED15/2 -> 20 | FV15: =EF15/2 -> 132 | FW15: =EG15/2 -> 322 | FX15: =EH15/2 -> 20 | FZ15: =EJ15/2 -> 0 | GA15: =EK15/2 -> 20 | GC15: =EM15/2 -> 0 | GD15: =EN15/2 -> 41 | GF15: =EP15/2 -> 41 | GG15: 2,967 | GH15: 782 | GI15: 709 | GJ15: 2,214 | GK15: 112 | GM15: 256 | GN15: 931 | GO15: 56 | GQ15: 256 | GR15: 931 | GS15: 56 | GU15: 0 | GV15: 56 | GX15: 0 | GY15: 112 | HA15: 112 | HB15: 5,584.7 | HC15: 782.5 | HD15: 708.9 | HE15: 2,213.5 | HF15: 112.4 | HH15: 256 | HI15: 931 | HJ15: 56 | HL15: 256 | HM15: 931 | HN15: 56 | HP15: 0 | HQ15: 56 | HS15: 0 | HT15: 112 | HV15: 112
A16: =1+A15 -> 2 | B16: Pampa Gaúcho | C16: =(1300+1900)/2 -> 1,600 | D16: Plano | F16: Maduro | G16: Tri-trem | H16: 2.8 | I16: 3.6 | J16: 95 | K16: 306 | L16: 1% | M16: 1,667 | N16: 1,667 | O16: 31.5 | P16: =IF(M16=1667,VLOOKUP(O16,'Modelos florestais'!AB10:BY32,47),IF(M16=1143,VLOOKUP(O16,'Modelos florestais'!AB10:BY32,48),VLOOKUP(O16,'Modelos florestais'!AB10:BY32,49))) -> 30.5 | Q16: =VLOOKUP(O16,'Modelos florestais'!AB10:BY32,50) -> 19.4 | S16: ='Modelos florestais'!S$8 -> 100% | T16: ='Modelos florestais'!T$8 -> 100% | U16: ='Modelos florestais'!U$8 -> 80% | V16: ='Modelos florestais'!V$8 -> 80% | X16: ='Modelos florestais'!S$9 -> 100% | Y16: ='Modelos florestais'!T$9 -> 70% | Z16: ='Modelos florestais'!U$9 -> 70% | AA16: ='Modelos florestais'!V$9 -> 70% | AC16: ='Modelos florestais'!S$10 -> 80% | AD16: ='Modelos florestais'!T$10 -> 80% | AE16: ='Modelos florestais'!U$10 -> 80% | AG16: ='Modelos florestais'!S$11 -> 80% | AH16: ='Modelos florestais'!T$11 -> 80% | AI16: ='Modelos florestais'!U$11 -> 80% | AJ16: 0 | AK16: 10 | AL16: 671 | AM16: 1,190 | AN16: 650 | AO16: 1,232 | AP16: 592 | AQ16: 148 | AS16: 0 | AT16: 161 | AU16: 64 | AW16: 0 | AX16: 103 | AY16: 101 | BA16: 0 | BB16: 129 | BD16: 0 | BE16: 200 | BG16: 198 | BH16: 436 | BI16: 0 | BJ16: 1,104 | BK16: 531 | BL16: 148 | BN16: 0 | BO16: 161 | BP16: 64 | BR16: 0 | BS16: 103 | BT16: 101 | BV16: 0 | BW16: 129 | BZ16: 100 | CB16: 66 | CC16: 0 | CD16: 0 | CE16: 0 | CF16: 0 | CG16: =BL16 -> 148 | CI16: 0 | CJ16: 0 | CK16: =BP16 -> 64 | CM16: 0 | CN16: 0 | CO16: =BT16 -> 101 | CQ16: 0 | CR16: =BW16 -> 129 | CT16: 0 | CU16: =BZ16 -> 100 | CW16: =CB16 -> 66 | CX16: N/D | CY16: N/D | CZ16: N/D | DA16: N/D | DB16: N/D | DC16: N/D | DD16: N/D | DE16: N/D | DG16: N/D | DH16: N/D | DI16: N/D | DK16: N/D | DL16: N/D | DM16: N/D | DO16: N/D | DP16: N/D | DR16: N/D | DS16: N/D | DU16: N/D | DV16: N/D | DW16: N/D | DX16: N/D | DY16: N/D | DZ16: N/D | EB16: N/D | EC16: N/D | ED16: N/D | EF16: N/D | EG16: N/D | EH16: N/D | EJ16: N/D | EK16: N/D | EM16: N/D | EN16: N/D | EP16: N/D | EQ16: N/D | ER16: N/D | ES16: N/D | ET16: N/D | EU16: N/D | EW16: N/D | EX16: N/D | EY16: N/D | FA16: N/D | FB16: N/D | FC16: N/D | FE16: N/D | FF16: N/D | FH16: N/D | FI16: N/D | FK16: N/D | FL16: N/D | FM16: N/D | FN16: N/D | FO16: N/D | FP16: N/D | FR16: N/D | FS16: N/D | FT16: N/D | FV16: N/D | FW16: N/D | FX16: N/D | FZ16: N/D | GA16: N/D | GC16: N/D | GD16: N/D | GF16: N/D | GG16: N/D | GH16: N/D | GI16: N/D | GJ16: N/D | GK16: N/D | GM16: N/D | GN16: N/D | GO16: N/D | GQ16: N/D | GR16: N/D | GS16: N/D | GU16: N/D | GV16: N/D | GX16: N/D | GY16: N/D | HA16: N/D | HB16: N/D | HC16: N/D | HD16: N/D | HE16: N/D | HF16: N/D | HH16: N/D | HI16: N/D | HJ16: N/D | HL16: N/D | HM16: N/D | HN16: N/D | HP16: N/D | HQ16: N/D | HS16: N/D | HT16: N/D | HV16: N/D
A17: =1+A16 -> 3 | B17: Serra Gaúcha | C17: =(1500+1900)/2 -> 1,700 | D17: Suave Ondulado | F17: Maduro | G17: Bi-trem | H17: 2.8 | I17: 3.6 | J17: 95 | K17: 410 | L17: 1% | M17: 1,667 | N17: 1,667 | O17: 31.5 | P17: =IF(M17=1667,VLOOKUP(O17,'Modelos florestais'!AB11:BY33,47),IF(M17=1143,VLOOKUP(O17,'Modelos florestais'!AB11:BY33,48),VLOOKUP(O17,'Modelos florestais'!AB11:BY33,49))) -> 30.5 | Q17: =VLOOKUP(O17,'Modelos florestais'!AB11:BY33,50) -> 19.4 | S17: ='Modelos florestais'!S$8 -> 100% | T17: ='Modelos florestais'!T$8 -> 100% | U17: ='Modelos florestais'!U$8 -> 80% | V17: ='Modelos florestais'!V$8 -> 80% | X17: ='Modelos florestais'!S$9 -> 100% | Y17: ='Modelos florestais'!T$9 -> 70% | Z17: ='Modelos florestais'!U$9 -> 70% | AA17: ='Modelos florestais'!V$9 -> 70% | AC17: ='Modelos florestais'!S$10 -> 80% | AD17: ='Modelos florestais'!T$10 -> 80% | AE17: ='Modelos florestais'!U$10 -> 80% | AG17: ='Modelos florestais'!S$11 -> 80% | AH17: ='Modelos florestais'!T$11 -> 80% | AI17: ='Modelos florestais'!U$11 -> 80% | AJ17: 0 | AK17: 10 | AL17: 738 | AM17: 1,234 | AN17: 575 | AO17: 1,243 | AP17: 633 | AQ17: 160 | AS17: 0 | AT17: 171 | AU17: 69 | AW17: 0 | AX17: 110 | AY17: 106 | BA17: 0 | BB17: 138 | BD17: 0 | BE17: 217 | BG17: 214 | BH17: 479 | BI17: 0 | BJ17: 1,130 | BK17: 573 | BL17: 160 | BN17: 0 | BO17: 171 | BP17: 69 | BR17: 0 | BS17: 110 | BT17: 106 | BV17: 0 | BW17: 138 | BY17: 0 | BZ17: 108 | CB17: 71 | CC17: 0 | CD17: 0 | CE17: 0 | CF17: 0 | CG17: 160 | CI17: 0 | CJ17: 0 | CK17: 69 | CM17: 0 | CN17: 0 | CO17: 106 | CQ17: 0 | CR17: 138 | CT17: 0 | CU17: 108 | CW17: 71 | CX17: 0% | CY17: 10 | CZ17: 1,324 | DA17: 3,148 | DB17: 1,324 | DC17: 882 | DD17: 3,584 | DE17: 145 | DG17: 343 | DH17: 1,494 | DI17: 72 | DK17: 343 | DL17: 1,494 | DM17: 72 | DO17: 0 | DP17: 72 | DR17: 0 | DS17: 145 | DU17: 145 | DV17: 1,059 | DW17: 0 | DX17: 882 | DY17: 2,922 | DZ17: 72 | EB17: 343 | EC17: 1,494 | ED17: 72 | EF17: 343 | EG17: 1,494 | EH17: 72 | EJ17: 0 | EK17: 72 | EM17: 0 | EN17: 145 | EP17: 145 | EQ17: =(DA17+HB17)/2 -> 4,010 | ER17: =(DB17+HC17)/2 -> 1,324 | ES17: =(DC17+HD17)/2 -> 882 | ET17: =(DD17+HE17)/2 -> 3,584 | EU17: =(DE17+HF17)/2 -> 145 | EW17: =(DG17+HH17)/2 -> 343 | EX17: =(DH17+HI17)/2 -> 1,494 | EY17: =(DI17+HJ17)/2 -> 72 | FA17: =(DK17+HL17)/2 -> 343 | FB17: =(DL17+HM17)/2 -> 1,494 | FC17: =(DM17+HN17)/2 -> 72 | FE17: =(DO17+HP17)/2 -> 0 | FF17: =(DP17+HQ17)/2 -> 72 | FH17: =(DR17+HS17)/2 -> 0 | FI17: =(DS17+HT17)/2 -> 145 | FK17: =(DU17+HV17)/2 -> 145 | FL17: =DV17/2 -> 530 | FM17: =DW17/2 -> 0 | FN17: =DX17/2 -> 441 | FO17: =DY17/2 -> 1,461 | FP17: =DZ17/2 -> 36 | FR17: =EB17/2 -> 171 | FS17: =EC17/2 -> 747 | FT17: =ED17/2 -> 36 | FV17: =EF17/2 -> 171 | FW17: =EG17/2 -> 747 | FX17: =EH17/2 -> 36 | FZ17: =EJ17/2 -> 0 | GA17: =EK17/2 -> 36 | GC17: =EM17/2 -> 0 | GD17: =EN17/2 -> 72 | GF17: =EP17/2 -> 72 | GG17: 2,729 | GH17: 1,324 | GI17: 882 | GJ17: 3,584 | GK17: 145 | GM17: 343 | GN17: 1,494 | GO17: 72 | GQ17: 343 | GR17: 1,494 | GS17: 72 | GU17: 0 | GV17: 72 | GX17: 0 | GY17: 145 | HA17: 145 | HB17: 4,871.9 | HC17: 1,324.0 | HD17: 882.2 | HE17: 3,583.6 | HF17: 144.9 | HH17: 343 | HI17: 1,494 | HJ17: 72 | HL17: 343 | HM17: 1,494 | HN17: 72 | HP17: 0 | HQ17: 72 | HS17: 0 | HT17: 145 | HV17: 145
A18: 4 | B18: Paraná e Santa Catarina | C18: =(1300+2000)/2 -> 1,650 | D18: Suave Ondulado | F18: Maduro | G18: Tri-trem | H18: 2.8 | I18: 3.3 | J18: 95 | K18: 440 | L18: 0% | M18: 1,667 | N18: 1,667 | O18: 34.0 | P18: =IF(M18=1667,VLOOKUP(O18,'Modelos florestais'!AB12:BY34,47),IF(M18=1143,VLOOKUP(O18,'Modelos florestais'!AB12:BY34,48),VLOOKUP(O18,'Modelos florestais'!AB12:BY34,49))) -> 36.6 | Q18: =VLOOKUP(O18,'Modelos florestais'!AB12:BY34,50) -> 23.8 | S18: ='Modelos florestais'!S$8 -> 100% | T18: ='Modelos florestais'!T$8 -> 100% | U18: ='Modelos florestais'!U$8 -> 80% | V18: ='Modelos florestais'!V$8 -> 80% | X18: ='Modelos florestais'!S$9 -> 100% | Y18: ='Modelos florestais'!T$9 -> 70% | Z18: ='Modelos florestais'!U$9 -> 70% | AA18: ='Modelos florestais'!V$9 -> 70% | AC18: ='Modelos florestais'!S$10 -> 80% | AD18: ='Modelos florestais'!T$10 -> 80% | AE18: ='Modelos florestais'!U$10 -> 80% | AG18: ='Modelos florestais'!S$11 -> 80% | AH18: ='Modelos florestais'!T$11 -> 80% | AI18: ='Modelos florestais'!U$11 -> 80% | AJ18: 0 | AK18: 10 | AL18: 723 | AM18: 1,234 | AN18: 483 | AO18: 1,243 | AP18: 633 | AQ18: 160 | AS18: 0 | AT18: 157 | AU18: 69 | AW18: 0 | AX18: 101 | AY18: 106 | BA18: 0 | BB18: 132 | BD18: 0 | BE18: 204 | BG18: 201 | BH18: 479 | BI18: 0 | BJ18: 1,130 | BK18: 573 | BL18: 160 | BN18: 0 | BO18: 157 | BP18: 69 | BR18: 0 | BS18: 101 | BT18: 106 | BV18: 0 | BW18: 132 | BZ18: 102 | CB18: 67 | CC18: 0 | CD18: 0 | CE18: 0 | CF18: 0 | CG18: 160 | CI18: 0 | CJ18: 0 | CK18: 69 | CM18: 0 | CN18: 0 | CO18: 106 | CQ18: 0 | CR18: 132 | CT18: 0 | CU18: 102 | CW18: 67 | CY18: 10 | CZ18: 1,324 | DA18: 3,148 | DB18: 1,324 | DC18: 882 | DD18: 3,584 | DE18: 145 | DG18: 343 | DH18: 1,494 | DI18: 72 | DK18: 343 | DL18: 1,494 | DM18: 72 | DO18: 0 | DP18: 72 | DR18: 0 | DS18: 145 | DU18: 145 | DV18: 1,059 | DW18: 0 | DX18: 882 | DY18: 2,922 | DZ18: 72 | EB18: 343 | EC18: 1,494 | ED18: 72 | EF18: 343 | EG18: 1,494 | EH18: 72 | EJ18: 0 | EK18: 72 | EM18: 0 | EN18: 145 | EP18: 145 | EQ18: =(DA18+HB18)/2 -> 4,010 | ER18: 1,324 | ES18: 882 | ET18: 3,584 | EU18: 145 | EW18: 343 | EX18: 1,494 | EY18: 72 | FA18: 343 | FB18: 1,494 | FC18: 72 | FE18: 0 | FF18: 72 | FH18: 0 | FI18: 145 | FK18: 145 | FL18: =DV18/2 -> 530 | FM18: 0 | FN18: 441 | FO18: 1,461 | FP18: 36 | FR18: 171 | FS18: 747 | FT18: 36 | FV18: 171 | FW18: 747 | FX18: 36 | FZ18: 0 | GA18: 36 | GC18: 0 | GD18: 72 | GF18: 72 | GG18: 2,729 | GH18: 1,324 | GI18: 882 | GJ18: 3,584 | GK18: 145 | GM18: 343 | GN18: 1,494 | GO18: 72 | GQ18: 343 | GR18: 1,494 | GS18: 72 | GU18: 0 | GV18: 72 | GX18: 0 | GY18: 145 | HA18: 145 | HB18: 4,871.9 | HC18: 1,324.0 | HD18: 882.2 | HE18: 3,583.6 | HF18: 144.9 | HH18: 343 | HI18: 1,494 | HJ18: 72 | HL18: 343 | HM18: 1,494 | HN18: 72 | HP18: 0 | HQ18: 72 | HS18: 0 | HT18: 145 | HV18: 145
A19: 5 | B19: São Paulo | C19: =(1300+1700)/2 -> 1,500 | D19: Suave Ondulado | F19: Maduro | G19: Tri-trem | H19: 2.9 | I19: 3.3 | J19: 100 | K19: 467 | L19: 0% | M19: 1,143 | N19: 1,143 | O19: 39.0 | P19: =IF(M19=1667,VLOOKUP(O19,'Modelos florestais'!AB13:BY35,47),IF(M19=1143,VLOOKUP(O19,'Modelos florestais'!AB13:BY35,48),VLOOKUP(O19,'Modelos florestais'!AB13:BY35,49))) -> 37.8 | Q19: =VLOOKUP(O19,'Modelos florestais'!AB13:BY35,50) -> 33.8 | S19: ='Modelos florestais'!S$8 -> 100% | T19: ='Modelos florestais'!T$8 -> 100% | U19: ='Modelos florestais'!U$8 -> 80% | V19: ='Modelos florestais'!V$8 -> 80% | X19: ='Modelos florestais'!S$9 -> 100% | Y19: ='Modelos florestais'!T$9 -> 70% | Z19: ='Modelos florestais'!U$9 -> 70% | AA19: ='Modelos florestais'!V$9 -> 70% | AC19: ='Modelos florestais'!S$10 -> 80% | AD19: ='Modelos florestais'!T$10 -> 80% | AE19: ='Modelos florestais'!U$10 -> 80% | AG19: ='Modelos florestais'!S$11 -> 80% | AH19: ='Modelos florestais'!T$11 -> 80% | AI19: ='Modelos florestais'!U$11 -> 80% | AJ19: 0 | AK19: 10 | AL19: 899 | AM19: 1,156 | AN19: 896 | AO19: 1,383 | AP19: 1,224 | AQ19: 195 | AS19: 0 | AT19: 180 | AU19: 79 | AW19: 0 | AX19: 117 | AY19: 121 | BA19: 0 | BB19: 152 | BD19: 0 | BE19: 237 | BG19: 235 | BH19: 463 | BI19: 0 | BJ19: 1,149 | BK19: 1,204 | BL19: 218 | BN19: 0 | BO19: 163 | BP19: 72 | BR19: 0 | BS19: 106 | BT19: 110 | BV19: 0 | BW19: 138 | BZ19: 119 | CB19: 78 | CC19: 0 | CD19: 0 | CE19: 0 | CF19: 0 | CG19: 218 | CI19: 0 | CJ19: 0 | CK19: 72 | CM19: 0 | CN19: 0 | CO19: 110 | CQ19: 0 | CR19: 138 | CT19: 0 | CU19: 119 | CW19: 78 | CY19: 10 | CZ19: 1,324 | DA19: 2,074 | DB19: 1,324 | DC19: 882 | DD19: 3,584 | DE19: 145 | DG19: 343 | DH19: 1,494 | DI19: 72 | DK19: 343 | DL19: 1,494 | DM19: 72 | DO19: 0 | DP19: 72 | DR19: 0 | DS19: 145 | DU19: 145 | DV19: 1,059 | DW19: 0 | DX19: 882 | DY19: 2,922 | DZ19: 72 | EB19: 343 | EC19: 1,494 | ED19: 72 | EF19: 343 | EG19: 1,494 | EH19: 72 | EJ19: 0 | EK19: 72 | EM19: 0 | EN19: 145 | EP19: 145 | EQ19: 2,532 | ER19: 1,324 | ES19: 882 | ET19: 3,584 | EU19: 145 | EW19: 343 | EX19: 1,494 | EY19: 72 | FA19: 343 | FB19: 1,494 | FC19: 72 | FE19: 0 | FF19: 72 | FH19: 0 | FI19: 145 | FK19: 145 | FL19: 530 | FM19: 0 | FN19: 441 | FO19: 1,461 | FP19: 36 | FR19: 171 | FS19: 747 | FT19: 36 | FV19: 171 | FW19: 747 | FX19: 36 | FZ19: 0 | GA19: 36 | GC19: 0 | GD19: 72 | GF19: 72 | GG19: 1,787 | GH19: 1,324 | GI19: 882 | GJ19: 3,584 | GK19: 145 | GM19: 343 | GN19: 1,494 | GO19: 72 | GQ19: 343 | GR19: 1,494 | GS19: 72 | GU19: 0 | GV19: 72 | GX19: 0 | GY19: 145 | HA19: 145 | HB19: 2,988.9 | HC19: 1,324.0 | HD19: 882.2 | HE19: 3,583.6 | HF19: 144.9 | HH19: 343 | HI19: 1,494 | HJ19: 72 | HL19: 343 | HM19: 1,494 | HN19: 72 | HP19: 0 | HQ19: 72 | HS19: 0 | HT19: 145 | HV19: 145
A20: 6 | B20: Leste de Minas Gerais | C20: =(800+1600)/2 -> 1,200 | D20: Ondulado | F20: Maduro | G20: Bi-trem | H20: 2.9 | I20: 3.6 | J20: 95 | K20: 400 | L20: 0% | M20: 1,143 | N20: 1,143 | O20: 37.0 | P20: =IF(M20=1667,VLOOKUP(O20,'Modelos florestais'!AB14:BY36,47),IF(M20=1143,VLOOKUP(O20,'Modelos florestais'!AB14:BY36,48),VLOOKUP(O20,'Modelos florestais'!AB14:BY36,49))) -> 33.2 | Q20: =VLOOKUP(O20,'Modelos florestais'!AB14:BY36,50) -> 29.6 | S20: ='Modelos florestais'!S$8 -> 100% | T20: ='Modelos florestais'!T$8 -> 100% | U20: ='Modelos florestais'!U$8 -> 80% | V20: ='Modelos florestais'!V$8 -> 80% | X20: ='Modelos florestais'!S$9 -> 100% | Y20: ='Modelos florestais'!T$9 -> 70% | Z20: ='Modelos florestais'!U$9 -> 70% | AA20: ='Modelos florestais'!V$9 -> 70% | AC20: ='Modelos florestais'!S$10 -> 80% | AD20: ='Modelos florestais'!T$10 -> 80% | AE20: ='Modelos florestais'!U$10 -> 80% | AG20: ='Modelos florestais'!S$11 -> 80% | AH20: ='Modelos florestais'!T$11 -> 80% | AI20: ='Modelos florestais'!U$11 -> 80% | AJ20: 0 | AK20: 10 | AL20: 775 | AM20: 1,040 | AN20: 1,024 | AO20: 1,247 | AP20: 1,104 | AQ20: 272 | AS20: 0 | AT20: 321 | AU20: 143 | AW20: 0 | AX20: 112 | AY20: 203 | BA20: 0 | BB20: 178 | BD20: 0 | BE20: 273 | BG20: 265 | BH20: 407 | BI20: 0 | BJ20: 1,137 | BK20: 1,169 | BL20: 216 | BN20: 0 | BO20: 321 | BP20: 143 | BR20: 0 | BS20: 112 | BT20: 203 | BV20: 0 | BW20: 107 | BZ20: 137 | CB20: 88 | CC20: 0 | CD20: 0 | CE20: 0 | CF20: 0 | CG20: 216 | CI20: 0 | CJ20: 0 | CK20: 143 | CM20: 0 | CN20: 0 | CO20: 203 | CQ20: 0 | CR20: 107 | CT20: 0 | CU20: 137 | CW20: 88 | CY20: 10 | CZ20: 1,324 | DA20: 2,074 | DB20: 1,324 | DC20: 882 | DD20: 3,584 | DE20: 145 | DG20: 343 | DH20: 1,494 | DI20: 72 | DK20: 343 | DL20: 1,494 | DM20: 72 | DO20: 0 | DP20: 72 | DR20: 0 | DS20: 145 | DU20: 145 | DV20: 1,059 | DW20: 0 | DX20: 882 | DY20: 2,922 | DZ20: 72 | EB20: 343 | EC20: 1,494 | ED20: 72 | EF20: 343 | EG20: 1,494 | EH20: 72 | EJ20: 0 | EK20: 72 | EM20: 0 | EN20: 145 | EP20: 145 | EQ20: 2,532 | ER20: 1,324 | ES20: 882 | ET20: 3,584 | EU20: 145 | EW20: 343 | EX20: 1,494 | EY20: 72 | FA20: 343 | FB20: 1,494 | FC20: 72 | FE20: 0 | FF20: 72 | FH20: 0 | FI20: 145 | FK20: 145 | FL20: 530 | FM20: 0 | FN20: 441 | FO20: 1,461 | FP20: 36 | FR20: 171 | FS20: 747 | FT20: 36 | FV20: 171 | FW20: 747 | FX20: 36 | FZ20: 0 | GA20: 36 | GC20: 0 | GD20: 72 | GF20: 72 | GG20: 1,787 | GH20: 1,324 | GI20: 882 | GJ20: 3,584 | GK20: 145 | GM20: 343 | GN20: 1,494 | GO20: 72 | GQ20: 343 | GR20: 1,494 | GS20: 72 | GU20: 0 | GV20: 72 | GX20: 0 | GY20: 145 | HA20: 145 | HB20: 2,988.9 | HC20: 1,324.0 | HD20: 882.2 | HE20: 3,583.6 | HF20: 144.9 | HH20: 343 | HI20: 1,494 | HJ20: 72 | HL20: 343 | HM20: 1,494 | HN20: 72 | HP20: 0 | HQ20: 72 | HS20: 0 | HT20: 145 | HV20: 145
A21: 7 | B21: Oeste de Minas Gerais | C21: =(800+1600)/2 -> 1,200 | D21: Ondulado | F21: Maduro | G21: Bi-trem | H21: 2.9 | I21: 3.6 | J21: 95 | K21: 390 | L21: 0% | M21: 1,143 | N21: 1,143 | O21: 38.0 | P21: =IF(M21=1667,VLOOKUP(O21,'Modelos florestais'!AB15:BY37,47),IF(M21=1143,VLOOKUP(O21,'Modelos florestais'!AB15:BY37,48),VLOOKUP(O21,'Modelos florestais'!AB15:BY37,49))) -> 35.4 | Q21: =VLOOKUP(O21,'Modelos florestais'!AB15:BY37,50) -> 31.6 | S21: ='Modelos florestais'!S$8 -> 100% | T21: ='Modelos florestais'!T$8 -> 100% | U21: ='Modelos florestais'!U$8 -> 80% | V21: ='Modelos florestais'!V$8 -> 80% | X21: ='Modelos florestais'!S$9 -> 100% | Y21: ='Modelos florestais'!T$9 -> 70% | Z21: ='Modelos florestais'!U$9 -> 70% | AA21: ='Modelos florestais'!V$9 -> 70% | AC21: ='Modelos florestais'!S$10 -> 80% | AD21: ='Modelos florestais'!T$10 -> 80% | AE21: ='Modelos florestais'!U$10 -> 80% | AG21: ='Modelos florestais'!S$11 -> 80% | AH21: ='Modelos florestais'!T$11 -> 80% | AI21: ='Modelos florestais'!U$11 -> 80% | AJ21: 0 | AK21: 10 | AL21: 697 | AM21: 1,011 | AN21: 915 | AO21: 1,234 | AP21: 1,020 | AQ21: 243 | AS21: 0 | AT21: 302 | AU21: 134 | AW21: 0 | AX21: 107 | AY21: 193 | BA21: 0 | BB21: 167 | BD21: 0 | BE21: 252 | BG21: 244 | BH21: 370 | BI21: 0 | BJ21: 1,111 | BK21: 1,083 | BL21: 199 | BN21: 0 | BO21: 302 | BP21: 134 | BR21: 0 | BS21: 107 | BT21: 193 | BV21: 0 | BW21: 100 | BZ21: 126 | CB21: 81 | CC21: 0 | CD21: 0 | CE21: 0 | CF21: 0 | CG21: 199 | CI21: 0 | CJ21: 0 | CK21: 134 | CM21: 0 | CN21: 0 | CO21: 193 | CQ21: 0 | CR21: 100 | CT21: 0 | CU21: 126 | CW21: 81 | CY21: 10 | CZ21: 305 | DA21: 2,028 | DB21: 1,051 | DC21: 859 | DD21: 1,448 | DE21: 92 | DG21: 312 | DH21: 923 | DI21: 46 | DK21: 312 | DL21: 923 | DM21: 46 | DO21: 0 | DP21: 46 | DR21: 0 | DS21: 92 | DU21: 92 | DV21: 530 | DW21: 0 | DX21: 859 | DY21: 1,448 | DZ21: 46 | EB21: 312 | EC21: 923 | ED21: 46 | EF21: 312 | EG21: 923 | EH21: 46 | EJ21: 0 | EK21: 46 | EM21: 0 | EN21: 92 | EP21: 92 | EQ21: 2,486 | ER21: 1,051 | ES21: 859 | ET21: 1,448 | EU21: 92 | EW21: 312 | EX21: 923 | EY21: 46 | FA21: 312 | FB21: 923 | FC21: 46 | FE21: 0 | FF21: 46 | FH21: 0 | FI21: 92 | FK21: 92 | FL21: 265 | FM21: 0 | FN21: 429 | FO21: 724 | FP21: 23 | FR21: 156 | FS21: 462 | FT21: 23 | FV21: 156 | FW21: 462 | FX21: 23 | FZ21: 0 | GA21: 23 | GC21: 0 | GD21: 46 | GF21: 46 | GG21: 1,741 | GH21: 1,051 | GI21: 859 | GJ21: 1,448 | GK21: 92 | GM21: 312 | GN21: 923 | GO21: 46 | GQ21: 312 | GR21: 923 | GS21: 46 | GU21: 0 | GV21: 46 | GX21: 0 | GY21: 92 | HA21: 92 | HB21: 2,942.9 | HC21: 1,051.5 | HD21: 859.0 | HE21: 1,448.5 | HF21: 92.0 | HH21: 312 | HI21: 923 | HJ21: 46 | HL21: 312 | HM21: 923 | HN21: 46 | HP21: 0 | HQ21: 46 | HS21: 0 | HT21: 92 | HV21: 92
A22: 8 | B22: Norte ES e Sul BA | C22: =(600+2100)/2 -> 1,350 | D22: Ondulado | F22: Maduro | G22: Tri-trem | H22: 3.0 | I22: 3.7 | J22: 95 | K22: 424 | L22: 0% | M22: 1,143 | N22: 1,143 | O22: 39.5 | P22: =IF(M22=1667,VLOOKUP(O22,'Modelos florestais'!AB16:BY38,47),IF(M22=1143,VLOOKUP(O22,'Modelos florestais'!AB16:BY38,48),VLOOKUP(O22,'Modelos florestais'!AB16:BY38,49))) -> 38.9 | Q22: =VLOOKUP(O22,'Modelos florestais'!AB16:BY38,50) -> 34.9 | S22: ='Modelos florestais'!S$8 -> 100% | T22: ='Modelos florestais'!T$8 -> 100% | U22: ='Modelos florestais'!U$8 -> 80% | V22: ='Modelos florestais'!V$8 -> 80% | X22: ='Modelos florestais'!S$9 -> 100% | Y22: ='Modelos florestais'!T$9 -> 70% | Z22: ='Modelos florestais'!U$9 -> 70% | AA22: ='Modelos florestais'!V$9 -> 70% | AC22: ='Modelos florestais'!S$10 -> 80% | AD22: ='Modelos florestais'!T$10 -> 80% | AE22: ='Modelos florestais'!U$10 -> 80% | AG22: ='Modelos florestais'!S$11 -> 80% | AH22: ='Modelos florestais'!T$11 -> 80% | AI22: ='Modelos florestais'!U$11 -> 80% | AJ22: 0 | AK22: 10 | AL22: 766 | AM22: 1,024 | AN22: 527 | AO22: 1,246 | AP22: 1,095 | AQ22: 169 | AS22: 0 | AT22: 321 | AU22: 143 | AW22: 0 | AX22: 112 | AY22: 203 | BA22: 0 | BB22: 178 | BD22: 0 | BE22: 273 | BG22: 265 | BH22: 460 | BI22: 0 | BJ22: 1,137 | BK22: 875 | BL22: 169 | BN22: 0 | BO22: 321 | BP22: 143 | BR22: 0 | BS22: 112 | BT22: 203 | BV22: 0 | BW22: 178 | BZ22: 137 | CB22: 88 | CC22: 0 | CD22: 0 | CE22: 0 | CF22: 0 | CG22: 169 | CI22: 0 | CJ22: 0 | CK22: 143 | CM22: 0 | CN22: 0 | CO22: 203 | CQ22: 0 | CR22: 178 | CT22: 0 | CU22: 137 | CW22: 88 | CY22: 10 | CZ22: 830 | DA22: 3,214 | DB22: 830 | DC22: 724 | DD22: 2,335 | DE22: 115 | DG22: 264 | DH22: 981 | DI22: 58 | DK22: 264 | DL22: 981 | DM22: 58 | DO22: 0 | DP22: 58 | DR22: 0 | DS22: 115 | DU22: 115 | DV22: 664 | DW22: 0 | DX22: 724 | DY22: 1,920 | DZ22: 58 | EB22: 264 | EC22: 981 | ED22: 58 | EF22: 264 | EG22: 981 | EH22: 58 | EJ22: 0 | EK22: 58 | EM22: 0 | EN22: 115 | EP22: 115 | EQ22: 4,217 | ER22: 830 | ES22: 724 | ET22: 2,335 | EU22: 115 | EW22: 264 | EX22: 981 | EY22: 58 | FA22: 264 | FB22: 981 | FC22: 58 | FE22: 0 | FF22: 58 | FH22: 0 | FI22: 115 | FK22: 115 | FL22: 332 | FM22: 0 | FN22: 362 | FO22: 960 | FP22: 29 | FR22: 132 | FS22: 490 | FT22: 29 | FV22: 132 | FW22: 490 | FX22: 29 | FZ22: 0 | GA22: 29 | GC22: 0 | GD22: 58 | GF22: 58 | GG22: 2,794 | GH22: 830 | GI22: 724 | GJ22: 2,335 | GK22: 115 | GM22: 264 | GN22: 981 | GO22: 58 | GQ22: 264 | GR22: 981 | GS22: 58 | GU22: 0 | GV22: 58 | GX22: 0 | GY22: 115 | HA22: 115 | HB22: 5,220.2 | HC22: 830.4 | HD22: 724.2 | HE22: 2,334.9 | HF22: 115.3 | HH22: 264 | HI22: 981 | HJ22: 58 | HL22: 264 | HM22: 981 | HN22: 58 | HP22: 0 | HQ22: 58 | HS22: 0 | HT22: 115 | HV22: 115
A23: 9 | B23: Cerrado | C23: =(1100+1800)/2 -> 1,450 | D23: Plano | F23: Incipiente | G23: Tri-trem | H23: 3.1 | I23: 3.6 | J23: 95 | K23: 390 | L23: 2% | M23: 1,000 | N23: 1,000 | O23: 37.5 | P23: =IF(M23=1667,VLOOKUP(O23,'Modelos florestais'!AB17:BY39,47),IF(M23=1143,VLOOKUP(O23,'Modelos florestais'!AB17:BY39,48),VLOOKUP(O23,'Modelos florestais'!AB17:BY39,49))) -> 32.5 | Q23: =VLOOKUP(O23,'Modelos florestais'!AB17:BY39,50) -> 30.6 | S23: ='Modelos florestais'!S$8 -> 100% | T23: ='Modelos florestais'!T$8 -> 100% | U23: ='Modelos florestais'!U$8 -> 80% | V23: ='Modelos florestais'!V$8 -> 80% | X23: ='Modelos florestais'!S$9 -> 100% | Y23: ='Modelos florestais'!T$9 -> 70% | Z23: ='Modelos florestais'!U$9 -> 70% | AA23: ='Modelos florestais'!V$9 -> 70% | AC23: ='Modelos florestais'!S$10 -> 80% | AD23: ='Modelos florestais'!T$10 -> 80% | AE23: ='Modelos florestais'!U$10 -> 80% | AG23: ='Modelos florestais'!S$11 -> 80% | AH23: ='Modelos florestais'!T$11 -> 80% | AI23: ='Modelos florestais'!U$11 -> 80% | AJ23: 0 | AK23: 10 | AL23: 723 | AM23: 947 | AN23: 1,327 | AO23: 1,295 | AP23: 1,159 | AQ23: 248 | AS23: 0 | AT23: 413 | AU23: 138 | AW23: 0 | AX23: 201 | AY23: 200 | BA23: 0 | BB23: 253 | BD23: 0 | BE23: 347 | BG23: 335 | BH23: 406 | BI23: 0 | BJ23: 1,107 | BK23: 1,073 | BL23: 237 | BN23: 0 | BO23: 393 | BP23: 132 | BR23: 0 | BS23: 191 | BT23: 191 | BV23: 0 | BW23: 241 | BZ23: 173 | CB23: 112 | CC23: 0 | CD23: 0 | CE23: 0 | CF23: 0 | CG23: 237 | CI23: 0 | CJ23: 0 | CK23: 132 | CM23: 0 | CN23: 0 | CO23: 191 | CQ23: 0 | CR23: 241 | CT23: 0 | CU23: 173 | CW23: 112 | CY23: 10 | CZ23: 290 | DA23: 3,311 | DB23: 954 | DC23: 760 | DD23: 1,147 | DE23: 81 | DG23: 264 | DH23: 645 | DI23: 41 | DK23: 264 | DL23: 645 | DM23: 41 | DO23: 0 | DP23: 41 | DR23: 0 | DS23: 81 | DU23: 81 | DV23: 313 | DW23: 0 | DX23: 760 | DY23: 1,147 | DZ23: 41 | EB23: 264 | EC23: 645 | ED23: 41 | EF23: 264 | EG23: 645 | EH23: 41 | EJ23: 0 | EK23: 41 | EM23: 0 | EN23: 81 | EP23: 81 | EQ23: 4,448 | ER23: 868 | ES23: 734 | ET23: 1,680 | EU23: 97 | EW23: 260 | EX23: 788 | EY23: 48 | FA23: 260 | FB23: 788 | FC23: 48 | FE23: 0 | FF23: 48 | FH23: 0 | FI23: 97 | FK23: 97 | FL23: 156 | FM23: 0 | FN23: 380 | FO23: 574 | FP23: 20 | FR23: 132 | FS23: 322 | FT23: 20 | FV23: 132 | FW23: 322 | FX23: 20 | FZ23: 0 | GA23: 20 | GC23: 0 | GD23: 41 | GF23: 41 | GG23: 2,967 | GH23: 782 | GI23: 709 | GJ23: 2,214 | GK23: 112 | GM23: 256 | GN23: 931 | GO23: 56 | GQ23: 256 | GR23: 931 | GS23: 56 | GU23: 0 | GV23: 56 | GX23: 0 | GY23: 112 | HA23: 112 | HB23: 5,584.7 | HC23: 782.5 | HD23: 708.9 | HE23: 2,213.5 | HF23: 112.4 | HH23: 256 | HI23: 931 | HJ23: 56 | HL23: 256 | HM23: 931 | HN23: 56 | HP23: 0 | HQ23: 56 | HS23: 0 | HT23: 112 | HV23: 112
A24: 10 | B24: MAPITO | C24: =(500+1800)/2 -> 1,150 | D24: Plano | F24: Fronteira | G24: Bi-trem | H24: 2.9 | I24: 3.4 | J24: 95 | K24: 290 | L24: 3% | M24: 1,000 | N24: 1,000 | O24: 37.0 | P24: =IF(M24=1667,VLOOKUP(O24,'Modelos florestais'!AB18:BY40,47),IF(M24=1143,VLOOKUP(O24,'Modelos florestais'!AB18:BY40,48),VLOOKUP(O24,'Modelos florestais'!AB18:BY40,49))) -> 31.4 | Q24: =VLOOKUP(O24,'Modelos florestais'!AB18:BY40,50) -> 29.6 | S24: ='Modelos florestais'!S$8 -> 100% | T24: ='Modelos florestais'!T$8 -> 100% | U24: ='Modelos florestais'!U$8 -> 80% | V24: ='Modelos florestais'!V$8 -> 80% | X24: ='Modelos florestais'!S$9 -> 100% | Y24: ='Modelos florestais'!T$9 -> 70% | Z24: ='Modelos florestais'!U$9 -> 70% | AA24: ='Modelos florestais'!V$9 -> 70% | AC24: ='Modelos florestais'!S$10 -> 80% | AD24: ='Modelos florestais'!T$10 -> 80% | AE24: ='Modelos florestais'!U$10 -> 80% | AG24: ='Modelos florestais'!S$11 -> 80% | AH24: ='Modelos florestais'!T$11 -> 80% | AI24: ='Modelos florestais'!U$11 -> 80% | AJ24: 0 | AK24: 10 | AL24: 723 | AM24: 947 | AN24: 1,327 | AO24: 1,295 | AP24: 1,018 | AQ24: 204 | AS24: 0 | AT24: 467 | AU24: 138 | AW24: 0 | AX24: 169 | AY24: 200 | BA24: 0 | BB24: 215 | BD24: 0 | BE24: 275 | BG24: 266 | BH24: 406 | BI24: 0 | BJ24: 1,107 | BK24: 1,011 | BL24: 237 | BN24: 0 | BO24: 475 | BP24: 132 | BR24: 0 | BS24: 191 | BT24: 191 | BV24: 0 | BW24: 241 | BZ24: 137 | CB24: 89 | CC24: 0 | CD24: 0 | CE24: 0 | CF24: 0 | CG24: 237 | CI24: 0 | CJ24: 0 | CK24: 132 | CM24: 0 | CN24: 0 | CO24: 191 | CQ24: 0 | CR24: 241 | CT24: 0 | CU24: 137 | CW24: 89 | CY24: 10 | CZ24: 289 | DA24: 1,966 | DB24: 954 | DC24: 767 | DD24: 1,169 | DE24: 82 | DG24: 268 | DH24: 669 | DI24: 41 | DK24: 268 | DL24: 669 | DM24: 41 | DO24: 0 | DP24: 41 | DR24: 0 | DS24: 82 | DU24: 82 | DV24: 332 | DW24: 0 | DX24: 767 | DY24: 1,169 | DZ24: 41 | EB24: 268 | EC24: 669 | ED24: 41 | EF24: 268 | EG24: 669 | EH24: 41 | EJ24: 0 | EK24: 41 | EM24: 0 | EN24: 82 | EP24: 82 | EQ24: 2,470 | ER24: 892 | ES24: 745 | ET24: 1,752 | EU24: 99 | EW24: 266 | EX24: 825 | EY24: 49 | FA24: 266 | FB24: 825 | FC24: 49 | FE24: 0 | FF24: 49 | FH24: 0 | FI24: 99 | FK24: 99 | FL24: 166 | FM24: 0 | FN24: 383 | FO24: 585 | FP24: 21 | FR24: 134 | FS24: 334 | FT24: 21 | FV24: 134 | FW24: 334 | FX24: 21 | FZ24: 0 | GA24: 21 | GC24: 0 | GD24: 41 | GF24: 41 | GG24: 1,669 | GH24: 830 | GI24: 724 | GJ24: 2,335 | GK24: 115 | GM24: 264 | GN24: 981 | GO24: 58 | GQ24: 264 | GR24: 981 | GS24: 58 | GU24: 0 | GV24: 58 | GX24: 0 | GY24: 115 | HA24: 115 | HB24: 2,973.6 | HC24: 830.4 | HD24: 724.2 | HE24: 2,334.9 | HF24: 115.3 | HH24: 264 | HI24: 981 | HJ24: 58 | HL24: 264 | HM24: 981 | HN24: 58 | HP24: 0 | HQ24: 58 | HS24: 0 | HT24: 115 | HV24: 115
A25: 11 | B25: Amazônia | C25: =(1400+2400)/2 -> 1,900 | D25: Plano | F25: Incipiente | G25: Bi-trem | H25: 3.2 | I25: 3.6 | J25: 95 | K25: 304 | L25: 4% | M25: 1,000 | N25: 1,000 | O25: 35.0 | P25: =IF(M25=1667,VLOOKUP(O25,'Modelos florestais'!AB19:BY41,47),IF(M25=1143,VLOOKUP(O25,'Modelos florestais'!AB19:BY41,48),VLOOKUP(O25,'Modelos florestais'!AB19:BY41,49))) -> 27.1 | Q25: =VLOOKUP(O25,'Modelos florestais'!AB19:BY41,50) -> 25.6 | S25: ='Modelos florestais'!S$8 -> 100% | T25: ='Modelos florestais'!T$8 -> 100% | U25: ='Modelos florestais'!U$8 -> 80% | V25: ='Modelos florestais'!V$8 -> 80% | X25: ='Modelos florestais'!S$9 -> 100% | Y25: ='Modelos florestais'!T$9 -> 70% | Z25: ='Modelos florestais'!U$9 -> 70% | AA25: ='Modelos florestais'!V$9 -> 70% | AC25: ='Modelos florestais'!S$10 -> 80% | AD25: ='Modelos florestais'!T$10 -> 80% | AE25: ='Modelos florestais'!U$10 -> 80% | AG25: ='Modelos florestais'!S$11 -> 80% | AH25: ='Modelos florestais'!T$11 -> 80% | AI25: ='Modelos florestais'!U$11 -> 80% | AJ25: 0 | AK25: 10 | AL25: 757 | AM25: 992 | AN25: 449 | AO25: 1,356 | AP25: 1,066 | AQ25: 214 | AS25: 0 | AT25: 490 | AU25: 145 | AW25: 0 | AX25: 177 | AY25: 210 | BA25: 0 | BB25: 225 | BD25: 0 | BE25: 288 | BG25: 279 | BH25: 422 | BI25: 0 | BJ25: 1,218 | BK25: 817 | BL25: 260 | BN25: 0 | BO25: 490 | BP25: 145 | BR25: 0 | BS25: 177 | BT25: 210 | BV25: 0 | BW25: 225 | BZ25: 144 | CB25: 93 | CC25: 0 | CD25: 0 | CE25: 0 | CF25: 0 | CG25: 260 | CI25: 0 | CJ25: 0 | CK25: 145 | CM25: 0 | CN25: 0 | CO25: 210 | CQ25: 0 | CR25: 225 | CT25: 0 | CU25: 144 | CW25: 93 | CY25: 10 | CZ25: 289 | DA25: 1,966 | DB25: 954 | DC25: 767 | DD25: 1,169 | DE25: 82 | DG25: 268 | DH25: 669 | DI25: 41 | DK25: 268 | DL25: 669 | DM25: 41 | DO25: 0 | DP25: 41 | DR25: 0 | DS25: 82 | DU25: 82 | DV25: 332 | DW25: 0 | DX25: 767 | DY25: 1,169 | DZ25: 41 | EB25: 268 | EC25: 669 | ED25: 41 | EF25: 268 | EG25: 669 | EH25: 41 | EJ25: 0 | EK25: 41 | EM25: 0 | EN25: 82 | EP25: 82 | EQ25: 2,470 | ER25: 892 | ES25: 745 | ET25: 1,752 | EU25: 99 | EW25: 266 | EX25: 825 | EY25: 49 | FA25: 266 | FB25: 825 | FC25: 49 | FE25: 0 | FF25: 49 | FH25: 0 | FI25: 99 | FK25: 99 | FL25: 166 | FM25: 0 | FN25: 383 | FO25: 585 | FP25: 21 | FR25: 134 | FS25: 334 | FT25: 21 | FV25: 134 | FW25: 334 | FX25: 21 | FZ25: 0 | GA25: 21 | GC25: 0 | GD25: 41 | GF25: 41 | GG25: 1,669 | GH25: 830 | GI25: 724 | GJ25: 2,335 | GK25: 115 | GM25: 264 | GN25: 981 | GO25: 58 | GQ25: 264 | GR25: 981 | GS25: 58 | GU25: 0 | GV25: 58 | GX25: 0 | GY25: 115 | HA25: 115 | HB25: 2,973.6 | HC25: 830.4 | HD25: 724.2 | HE25: 2,334.9 | HF25: 115.3 | HH25: 264 | HI25: 981 | HJ25: 58 | HL25: 264 | HM25: 981 | HN25: 58 | HP25: 0 | HQ25: 58 | HS25: 0 | HT25: 115 | HV25: 115
B27: Fonte | C27: ANA | D27: - | F27: - | G27: - | H27: ANP | I27: ANP | J27: BD | K27: Agrianual | L27: BD | M27: BD | N27: BD | O27: FlorExcel | AJ27: - | AK27: BD | AL27: BD | AM27: BD | AN27: BD | AO27: BD | AP27: BD | AQ27: BD | AS27: BD | AT27: BD | AU27: BD | AW27: BD | AX27: BD | AY27: BD | BA27: BD | BB27: BD | BD27: BD | BE27: BD | BG27: BD | BH27: BD | BI27: - | BJ27: BD | BK27: BD | BL27: BD | BN27: - | BO27: BD | BP27: BD | BR27: - | BS27: BD | BT27: BD | BV27: - | BW27: BD | BY27: - | BZ27: BD | CB27: BD | CC27: - | CD27: - | CE27: - | CF27: - | CG27: BD | CI27: - | CJ27: - | CK27: BD | CM27: - | CN27: - | CO27: BD | CQ27: - | CR27: BD | CT27: - | CU27: BD | CW27: BD | CX27: - | CY27: BD | CZ27: BD | DA27: BD | DB27: BD | DC27: BD | DD27: BD | DE27: BD | DG27: BD | DH27: BD | DI27: BD | DK27: BD | DL27: BD | DM27: BD | DO27: - | DP27: BD | DR27: - | DS27: BD | DU27: BD | DV27: BD | DW27: - | DX27: BD | DY27: BD | DZ27: BD | EB27: BD | EC27: BD | ED27: BD | EF27: BD | EG27: BD | EH27: BD | EJ27: - | EK27: BD | EM27: - | EN27: BD | EP27: BD
B28: Atualizado em: | C28: 2016 | D28: - | F28: - | G28: - | H28: 2017-08-01 | I28: 2017-08-01 | J28: 2017 | K28: 2016 | L28: 2017 | M28: 2017 | N28: 2017 | O28: 2017 | AJ28: - | AK28: 2017 | AL28: 2017 | AM28: 2017 | AN28: 2017 | AO28: 2017 | AP28: 2017 | AQ28: 2017 | AS28: 2017 | AT28: 2017 | AU28: 2017 | AW28: 2017 | AX28: 2017 | AY28: 2017 | BA28: 2017 | BB28: 2017 | BD28: 2017 | BE28: 2017 | BG28: 2017 | BH28: 2017 | BI28: - | BJ28: 2017 | BK28: 2017 | BL28: 2017 | BN28: - | BO28: 2017 | BP28: 2017 | BR28: - | BS28: 2017 | BT28: 2017 | BV28: - | BW28: 2017 | BY28: - | BZ28: 2017 | CB28: 2017 | CC28: - | CD28: - | CE28: - | CF28: - | CG28: 2017 | CI28: - | CJ28: - | CK28: 2017 | CM28: - | CN28: - | CO28: 2017 | CQ28: - | CR28: 2017 | CT28: - | CU28: 2017 | CW28: 2017 | CX28: - | CY28: 2017 | CZ28: 2017 | DA28: 2017 | DB28: 2017 | DC28: 2017 | DD28: 2017 | DE28: 2017 | DG28: 2017 | DH28: 2017 | DI28: 2017 | DK28: 2017 | DL28: 2017 | DM28: 2017 | DO28: - | DP28: 2017 | DR28: - | DS28: 2017 | DU28: 2017 | DV28: 2017 | DW28: - | DX28: 2017 | DY28: 2017 | DZ28: 2017 | EB28: 2017 | EC28: 2017 | ED28: 2017 | EF28: 2017 | EG28: 2017 | EH28: 2017 | EJ28: - | EK28: 2017 | EM28: - | EN28: 2017 | EP28: 2017
B29: Descrição e Explicações:

Sheet Biblioteca CAPM
B2: BIBLIOTECA CAPM
B4: Resultado do Modelo CAPM
B5: Categoria | C5: Item | D5: Valor | E5: Atualizado em: | F5: Fonte
B6: Taxa de juros reais sem risco para um prazo de 15 anos | C6: Média Tesouro direto líquido de taxas e impostos desde 2012 | D6: 4.22% | E6: 2017
B7: Premio de risco do mercado brasileiro de ações | C7: Conforme Damodaran | D7: 9.64% | E7: 2017 | F7: Country Default Spreads and Risk Premiuns - NYU Stern
C8: Conforme Pablo Fernandez e al. | D8: 9.60% | E8: 2017 | F8: Discount Rate (Risk-Free Rate and Market Risk Premium) used for 41 countries in 2017: a survey - Pablo Fernandez
C9: Média | D9: =AVERAGE(D7:D8) -> 9.62%
B10: Beta setorial sem alavancagem e corrigido por caixa, conforme Damodaran | C10: Papel e produtos florestas | D10: 0.57 | E10: 2017 | F10: Beta, Unlevered beta and other risk measures - NYU Stern
C11: REIT | D11: 0.47 | E11: 2017 | F11: Beta, Unlevered beta and other risk measures - NYU Stern
C12: Média | D12: =(D10+D11)/2 -> 0.52
B13: Taxa de retorno de uma empresa florestal hipotética listada na bolsa | C13: Calculado pelo CAPM | D13: =D6+D9*D12 -> 9.22%
C14: Usado no modelo | D14: =ROUND(100*(D6+D9*D12),0)/100 -> 9.00%
B16: Descrição e Explicações:

Sheet Modelos florestais
B2: MODELOS FLORESTAIS
B4: Descrição dos diferentes tipos de projeto florestal simulados pelo custeio | G4: Tipo de projeto florestal | X4: Características permitidas de densidades de plantios e de rotações | AB4: Curvas de produtividade
AB5: 1 | AC5: =1+AB5 -> 2 | AD5: =1+AC5 -> 3 | AE5: 4 | AF5: 5 | AG5: 6 | AH5: 7 | AI5: 8 | AJ5: 9 | AK5: 10 | AL5: 11 | AM5: 12 | AN5: 13 | AO5: 14 | AP5: 15 | AQ5: 16 | AR5: 17 | AS5: 18 | AT5: 19 | AU5: 20 | AV5: 21 | AW5: 22 | AX5: 23 | AY5: 24 | AZ5: 25 | BA5: 26 | BB5: 27 | BC5: 28 | BD5: 29 | BE5: 30 | BF5: 31 | BG5: 32 | BH5: 33 | BI5: 34 | BJ5: 35 | BK5: 36 | BL5: 37 | BM5: 38 | BN5: 39 | BO5: 40 | BP5: 41 | BQ5: 42 | BR5: 43 | BS5: 44 | BT5: 45 | BU5: 46 | BV5: 47 | BW5: 48 | BX5: 49 | BY5: 50
B6: Modalidade | C6: Definição | D6: Manejo Potencial | E6: Número de mudas por hectare plantado | G6: Nome | I6: Proporção de área plantada disponível para colheita | N6: Sobrevivência fim da rotação | S6: Fatores de correção de produtividade | X6: Densidades possíveis de plantio | Y6: Número possível de rotações sem replantio | Z6: Número possível de anos por rotação | AB6: Indice de sitio | AD6: Volume função de idade para 1667 árvores / hectare (m³) | AO6: Volume função de idade para 1143 árvores / hectare (m³) | AZ6: Volume função de idade para 1000 árvores / hectare (m³) | BK6: Volume função de idade para 833 árvores / hectare (m³) | BV6: IMA 7 anos função da densidade de plantios (m³/ha.ano)
B7: Plantio comercial com manejo de rebrota | C7: Todas as áreas plantáveis, fora as reservas ambientais, são plantadas com 100% de eucalipto e a rebrota - se tiver mais de uma rotação por ciclo - é manejada para manter a melhor produtividade possível. | D7: 1 a 10 ciclos | E7: 100% de mudas de eucalipto em mercados florestais maduros e de fronteira, conforme as melhores práticas silviculturais atualmente em uso para a produção de madeira de eucalipto de processo. Em regiões incipientes de Cerrado e Amazônia, estimativa por analogia com o MAPITO. | I7: Rotação 1 | J7: Rotação 2 | K7: Rotação 3 | L7: Rotação 4 | N7: Rotação 1 / Plantio | O7: Rotação 2 / Rotação 1 | P7: Rotação 3 / Rotação 2 | Q7: Rotação 4 / Rotação 3 | S7: Rotação 1 / Rotação 1 padrão | T7: Rotação 2 / Rotação 1 | U7: Rotação 3 / Rotação 2 | V7: Rotação 4 / Rotação 3 | AD7: 1 | AE7: 2 | AF7: 3 | AG7: 4 | AH7: 5 | AI7: 6 | AJ7: 7 | AK7: 8 | AL7: 9 | AM7: 10 | AO7: 1 | AP7: 2 | AQ7: 3 | AR7: 4 | AS7: 5 | AT7: 6 | AU7: 7 | AV7: 8 | AW7: 9 | AX7: 10 | AZ7: 1 | BA7: 2 | BB7: 3 | BC7: 4 | BD7: 5 | BE7: 6 | BF7: 7 | BG7: 8 | BH7: 9 | BI7: 10 | BK7: 1 | BL7: 2 | BM7: 3 | BN7: 4 | BO7: 5 | BP7: 6 | BQ7: 7 | BR7: 8 | BS7: 9 | BT7: 10 | BV7: 1667 | BW7: 1143 | BX7: 1000 | BY7: 833
D8: 1 a 4 rotações por ciclo | G8: Comercial com manejo de rebrota | I8: 100% | J8: 100% | K8: 100% | L8: =K8*0.95 -> 95% | N8: 95% | O8: 100% | P8: 100% | Q8: =P8*0.95 -> 95% | S8: 100% | T8: 100% | U8: 80% | V8: 80% | X8: 1,667 | Y8: 1 | Z8: 5 | AB8: 28.5 | AD8: 0 | AE8: 1.0 | AF8: 15.6 | AG8: 32.7 | AH8: 73.4 | AI8: 116.6 | AJ8: 167.0 | AK8: 220.1 | AL8: 274.1 | AM8: 327.4 | AO8: 0 | AP8: 0.6 | AQ8: 9.3 | AR8: 22.5 | AS8: 49.0 | AT8: 80.8 | AU8: 117.7 | AV8: 158.3 | AW8: 200.6 | AX8: 243.4 | AZ8: 0 | BA8: 0.7 | BB8: 8.4 | BC8: 18.9 | BD8: 44.4 | BE8: 72.6 | BF8: 106.3 | BG8: 142.8 | BH8: 181.0 | BI8: 219.7 | BK8: 0 | BL8: 0.5 | BM8: 7.6 | BN8: 19.4 | BO8: 42.2 | BP8: 70.4 | BQ8: 103.1 | BR8: 138.7 | BS8: 175.8 | BT8: 213.3 | BV8: =AJ8/7 -> 23.9 | BW8: =AU8/7 -> 16.8 | BX8: =BF8/7 -> 15.2 | BY8: =BQ8/7 -> 14.7
D9: Sem desbaste antes do corte raso | G9: Comercial sem manejo de rebrota | I9: 100% | J9: 100% | K9: 100% | L9: 100% | N9: 95% | O9: 80% | P9: 80% | Q9: 80% | S9: 100% | T9: 70% | U9: 70% | V9: 70% | X9: 1,143 | Y9: 2 | Z9: 6 | AB9: 29.0 | AD9: 0 | AE9: 1.0 | AF9: 16.3 | AG9: 35.0 | AH9: 76.9 | AI9: 122.2 | AJ9: 174.5 | AK9: 229.4 | AL9: 285.2 | AM9: 340.1 | AO9: 0 | AP9: 0.6 | AQ9: 9.7 | AR9: 24.1 | AS9: 51.5 | AT9: 84.9 | AU9: 123.4 | AV9: 166.2 | AW9: 210.3 | AX9: 254.8 | AZ9: 0 | BA9: 0.7 | BB9: 9.1 | BC9: 20.2 | BD9: 46.9 | BE9: 76.5 | BF9: 111.9 | BG9: 150.0 | BH9: 189.8 | BI9: 230.0 | BK9: 0 | BL9: 0.5 | BM9: 8.0 | BN9: 20.8 | BO9: 44.4 | BP9: 74.0 | BQ9: 108.2 | BR9: 145.3 | BS9: 183.8 | BT9: 222.6 | BV9: =AJ9/7 -> 24.9 | BW9: =AU9/7 -> 17.6 | BX9: =BF9/7 -> 16.0 | BY9: =BQ9/7 -> 15.5
D10: Todas as rotações com prazo idêntico, podendo ser de 5, 6, 7, 8, 9 ou 10 anos. | G10: Recomposição de RL - 50% eucalipto | I10: 50% | J10: 50% | K10: 0% | L10: 0% | N10: 95% | O10: 80% | P10: 80% | Q10: 80% | S10: 80% | T10: 80% | U10: 80% | X10: 1,000 | Y10: 3 | Z10: 7 | AB10: 29.5 | AD10: 0 | AE10: 1.0 | AF10: 16.9 | AG10: 37.5 | AH10: 80.4 | AI10: 127.9 | AJ10: 182.1 | AK10: 238.8 | AL10: 296.5 | AM10: 353.0 | AO10: 0 | AP10: 0.6 | AQ10: 10.0 | AR10: 25.8 | AS10: 54.1 | AT10: 89.1 | AU10: 129.2 | AV10: 174.3 | AW10: 220.2 | AX10: 266.5 | AZ10: 0 | BA10: 0.7 | BB10: 9.7 | BC10: 21.7 | BD10: 49.5 | BE10: 80.7 | BF10: 117.6 | BG10: 157.3 | BH10: 198.7 | BI10: 240.4 | BK10: 0 | BL10: 0.5 | BM10: 8.3 | BN10: 22.2 | BO10: 46.7 | BP10: 77.8 | BQ10: 113.4 | BR10: 152.0 | BS10: 192.0 | BT10: 232.6 | BV10: 26.0 | BW10: 18.5 | BX10: 16.8 | BY10: 16.2
G11: Recomposição de RL - 25% eucalipto | I11: 25% | J11: 25% | N11: 95% | O11: 80% | S11: 80% | T11: 80% | U11: 80% | X11: 833 | Y11: 4 | Z11: 8 | AB11: 30.0 | AD11: 0 | AE11: 1.0 | AF11: 17.4 | AG11: 40.0 | AH11: 84.0 | AI11: 133.6 | AJ11: 189.9 | AK11: 248.7 | AL11: 308.0 | AM11: 366.0 | AO11: 0 | AP11: 0.6 | AQ11: 10.3 | AR11: 27.5 | AS11: 56.8 | AT11: 93.4 | AU11: 135.1 | AV11: 182.6 | AW11: 230.4 | AX11: 278.3 | AZ11: 0 | BA11: 0.7 | BB11: 10.2 | BC11: 23.3 | BD11: 52.1 | BE11: 84.9 | BF11: 123.5 | BG11: 164.8 | BH11: 207.9 | BI11: 251.1 | BK11: 0 | BL11: 0.5 | BM11: 8.6 | BN11: 23.7 | BO11: 49.1 | BP11: 81.6 | BQ11: 118.7 | BR11: 158.9 | BS11: 200.4 | BT11: 242.4 | BV11: 27.1 | BW11: 19.3 | BX11: 17.6 | BY11: 17.0
Z12: 9 | AB12: 30.5 | AD12: 0 | AE12: 1.0 | AF12: 17.9 | AG12: 42.7 | AH12: 87.7 | AI12: 139.5 | AJ12: 197.7 | AK12: 258.5 | AL12: 319.5 | AM12: 379.0 | AO12: 0 | AP12: 0.6 | AQ12: 10.7 | AR12: 29.2 | AS12: 59.6 | AT12: 97.9 | AU12: 141.1 | AV12: 191.4 | AW12: 240.7 | AX12: 290.3 | AZ12: 0 | BA12: 0.7 | BB12: 10.7 | BC12: 25.0 | BD12: 54.7 | BE12: 89.3 | BF12: 129.5 | BG12: 172.7 | BH12: 217.2 | BI12: 261.9 | BK12: 0 | BL12: 0.5 | BM12: 8.8 | BN12: 25.1 | BO12: 51.6 | BP12: 85.6 | BQ12: 124.3 | BR12: 166.0 | BS12: 208.9 | BT12: 252.5 | BV12: 28.2 | BW12: 20.2 | BX12: 18.5 | BY12: 17.8
B13: Plantio comercial sem manejo de rebrota | C13: Todas as áreas plantáveis fora as reservas ambientais são plantadas com 100% de eucalipto e a rebrota - se tiver mais de uma rotação por ciclo - não é manejada, para reduzir os custos de investimento. | D13: 1 a 10 ciclos | E13: Idêntico ao regime de plantio comercial com manejo de rebrota. | Z13: 10 | AB13: 31.0 | AD13: 0 | AE13: 1.0 | AF13: 18.3 | AG13: 45.3 | AH13: 91.6 | AI13: 145.5 | AJ13: 205.7 | AK13: 268.4 | AL13: 331.2 | AM13: 392.2 | AO13: 0 | AP13: 0.6 | AQ13: 11.0 | AR13: 31.0 | AS13: 62.4 | AT13: 102.4 | AU13: 147.5 | AV13: 200.1 | AW13: 251.2 | AX13: 302.5 | AZ13: 0 | BA13: 0.7 | BB13: 11.1 | BC13: 26.8 | BD13: 57.4 | BE13: 93.7 | BF13: 135.7 | BG13: 180.5 | BH13: 226.7 | BI13: 272.9 | BK13: 0 | BL13: 0.5 | BM13: 9.1 | BN13: 26.6 | BO13: 54.1 | BP13: 89.6 | BQ13: 130.0 | BR13: 173.1 | BS13: 217.5 | BT13: 262.7 | BV13: 29.4 | BW13: 21.1 | BX13: 19.4 | BY13: 18.6
D14: 1 a 4 rotações por ciclo | AB14: 31.5 | AD14: 0 | AE14: 1.0 | AF14: 18.8 | AG14: 48.0 | AH14: 95.5 | AI14: 151.6 | AJ14: 213.8 | AK14: 278.5 | AL14: 343.0 | AM14: 405.5 | AO14: 0 | AP14: 0.6 | AQ14: 11.3 | AR14: 32.7 | AS14: 65.4 | AT14: 107.0 | AU14: 153.9 | AV14: 208.9 | AW14: 261.9 | AX14: 314.8 | AZ14: 0 | BA14: 0.7 | BB14: 11.5 | BC14: 28.7 | BD14: 60.2 | BE14: 98.3 | BF14: 141.9 | BG14: 188.5 | BH14: 236.4 | BI14: 284.1 | BK14: 0 | BL14: 0.5 | BM14: 9.4 | BN14: 28.1 | BO14: 56.8 | BP14: 93.8 | BQ14: 135.7 | BR14: 180.5 | BS14: 226.2 | BT14: 273.0 | BV14: 30.5 | BW14: 22.0 | BX14: 20.3 | BY14: 19.4
D15: Sem desbaste antes do corte raso | AB15: 32.0 | AD15: 0 | AE15: 1.0 | AF15: 19.2 | AG15: 50.8 | AH15: 99.5 | AI15: 157.8 | AJ15: 222.1 | AK15: 288.7 | AL15: 354.9 | AM15: 418.8 | AO15: 0 | AP15: 0.6 | AQ15: 11.6 | AR15: 34.5 | AS15: 68.4 | AT15: 111.8 | AU15: 160.4 | AV15: 218.0 | AW15: 272.8 | AX15: 327.3 | AZ15: 0 | BA15: 0.7 | BB15: 11.9 | BC15: 30.6 | BD15: 63.1 | BE15: 103.0 | BF15: 148.4 | BG15: 196.7 | BH15: 246.2 | BI15: 295.3 | BK15: 0 | BL15: 0.5 | BM15: 9.6 | BN15: 29.6 | BO15: 59.6 | BP15: 98.1 | BQ15: 141.6 | BR15: 187.9 | BS15: 235.6 | BT15: 283.6 | BV15: 31.7 | BW15: 22.9 | BX15: 21.2 | BY15: 20.2
D16: Todas as rotações com prazo idêntico, podendo ser de 5, 6, 7, 8, 9 ou 10 anos. | AB16: 32.5 | AD16: 0 | AE16: 1.0 | AF16: 19.6 | AG16: 53.6 | AH16: 103.6 | AI16: 164.1 | AJ16: 230.4 | AK16: 299.0 | AL16: 366.9 | AM16: 432.3 | AO16: 0 | AP16: 0.6 | AQ16: 11.9 | AR16: 36.3 | AS16: 71.7 | AT16: 116.6 | AU16: 167.0 | AV16: 227.2 | AW16: 283.9 | AX16: 339.9 | AZ16: 0 | BA16: 0.7 | BB16: 12.3 | BC16: 32.5 | BD16: 66.1 | BE16: 107.8 | BF16: 154.9 | BG16: 205.0 | BH16: 256.1 | BI16: 306.7 | BK16: 0 | BL16: 0.5 | BM16: 9.9 | BN16: 31.1 | BO16: 62.4 | BP16: 102.4 | BQ16: 147.5 | BR16: 195.5 | BS16: 244.8 | BT16: 294.3 | BV16: 32.9 | BW16: 23.9 | BX16: 22.1 | BY16: 21.1
AB17: 33.0 | AD17: 0 | AE17: 1.0 | AF17: 19.9 | AG17: 56.3 | AH17: 107.8 | AI17: 170.6 | AJ17: 238.8 | AK17: 309.4 | AL17: 379.1 | AM17: 445.7 | AO17: 0 | AP17: 0.6 | AQ17: 12.2 | AR17: 38.0 | AS17: 74.9 | AT17: 121.6 | AU17: 173.7 | AV17: 236.6 | AW17: 295.1 | AX17: 353.2 | AZ17: 0 | BA17: 0.7 | BB17: 12.6 | BC17: 34.5 | BD17: 69.3 | BE17: 112.7 | BF17: 161.5 | BG17: 213.5 | BH17: 266.2 | BI17: 318.7 | BK17: 0 | BL17: 0.6 | BM17: 10.2 | BN17: 32.6 | BO17: 65.3 | BP17: 106.8 | BQ17: 153.7 | BR17: 203.2 | BS17: 254.2 | BT17: 305.2 | BV17: 34.1 | BW17: 24.8 | BX17: 23.1 | BY17: 22.0
AB18: 33.5 | AD18: 0 | AE18: 1.0 | AF18: 20.3 | AG18: 59.0 | AH18: 112.2 | AI18: 177.1 | AJ18: 247.6 | AK18: 320.0 | AL18: 391.3 | AM18: 459.3 | AO18: 0 | AP18: 0.7 | AQ18: 12.5 | AR18: 39.8 | AS18: 78.2 | AT18: 126.6 | AU18: 180.6 | AV18: 246.1 | AW18: 306.4 | AX18: 366.3 | AZ18: 0 | BA18: 0.7 | BB18: 12.9 | BC18: 36.5 | BD18: 72.5 | BE18: 117.8 | BF18: 168.5 | BG18: 222.1 | BH18: 276.5 | BI18: 330.5 | BK18: 0 | BL18: 0.6 | BM18: 10.6 | BN18: 34.2 | BO18: 68.3 | BP18: 111.4 | BQ18: 159.9 | BR18: 211.1 | BS18: 263.7 | BT18: 316.3 | BV18: 35.4 | BW18: 25.8 | BX18: 24.1 | BY18: 22.8
B19: Recomposição de RL – 50% de eucalipto | C19: A reserva legal é totalmente plantada com 50% de mudas de eucalipto e 50% de mudas de árvores nativas e usa-se o maior grau possível de mecanização. | D19: Somente 1 ciclo com 1 a 4 rotações | E19: Número total de mudas (de nativas e eucalipto) por hectare idêntico ao regime de plantio comercial com o uso do manejo de rebrota. Isto permite maximizar a produção de madeira de eucalipto. | AB19: 34.0 | AD19: 0 | AE19: 1.0 | AF19: 20.8 | AG19: 61.8 | AH19: 116.6 | AI19: 183.7 | AJ19: 256.3 | AK19: 330.6 | AL19: 403.6 | AM19: 473.5 | AO19: 0 | AP19: 0.7 | AQ19: 12.9 | AR19: 41.6 | AS19: 81.7 | AT19: 131.8 | AU19: 187.6 | AV19: 255.8 | AW19: 317.9 | AX19: 379.6 | AZ19: 0 | BA19: 0.7 | BB19: 13.2 | BC19: 38.5 | BD19: 75.8 | BE19: 122.9 | BF19: 175.5 | BG19: 230.9 | BH19: 286.9 | BI19: 342.5 | BK19: 0 | BL19: 0.6 | BM19: 10.9 | BN19: 35.8 | BO19: 71.3 | BP19: 116.0 | BQ19: 166.3 | BR19: 219.0 | BS19: 273.4 | BT19: 327.6 | BV19: 36.6 | BW19: 26.8 | BX19: 25.1 | BY19: 23.8
D20: Sem desbaste antes do corte raso | AB20: 34.5 | AD20: 0 | AE20: 1.1 | AF20: 21.2 | AG20: 64.5 | AH20: 121.2 | AI20: 190.4 | AJ20: 265.1 | AK20: 341.4 | AL20: 416.0 | AM20: 487.3 | AO20: 0 | AP20: 0.7 | AQ20: 13.4 | AR20: 43.5 | AS20: 85.1 | AT20: 137.0 | AU20: 194.7 | AV20: 265.7 | AW20: 329.6 | AX20: 393.1 | AZ20: 0 | BA20: 0.7 | BB20: 13.5 | BC20: 40.5 | BD20: 79.1 | BE20: 128.1 | BF20: 182.6 | BG20: 239.7 | BH20: 297.4 | BI20: 354.7 | BK20: 0 | BL20: 0.6 | BM20: 11.4 | BN20: 37.4 | BO20: 74.5 | BP20: 120.9 | BQ20: 172.7 | BR20: 227.1 | BS20: 283.3 | BT20: 338.9 | BV20: 37.9 | BW20: 27.8 | BX20: 26.1 | BY20: 24.7
D21: Todas as rotações com prazo idêntico, podendo ser de 5, 6, 7, 8, 9 ou 10 anos. | AB21: 35.0 | AD21: 0 | AE21: 1.1 | AF21: 21.8 | AG21: 67.2 | AH21: 125.9 | AI21: 197.2 | AJ21: 274.1 | AK21: 352.2 | AL21: 428.4 | AM21: 501.3 | AO21: 0 | AP21: 0.7 | AQ21: 13.9 | AR21: 45.3 | AS21: 88.7 | AT21: 142.3 | AU21: 202.0 | AV21: 275.7 | AW21: 341.4 | AX21: 406.7 | AZ21: 0 | BA21: 0.7 | BB21: 13.9 | BC21: 42.4 | BD21: 82.7 | BE21: 133.5 | BF21: 189.8 | BG21: 248.8 | BH21: 308.0 | BI21: 367.0 | BK21: 0 | BL21: 0.6 | BM21: 11.8 | BN21: 39.0 | BO21: 77.6 | BP21: 125.7 | BQ21: 179.3 | BR21: 235.8 | BS21: 293.3 | BT21: 350.5 | BV21: 39.2 | BW21: 28.9 | BX21: 27.1 | BY21: 25.6
AB22: 35.5 | AD22: 0 | AE22: 1.1 | AF22: 22.4 | AG22: 69.9 | AH22: 130.6 | AI22: 204.1 | AJ22: 283.1 | AK22: 363.2 | AL22: 440.9 | AM22: 515.3 | AO22: 0 | AP22: 0.8 | AQ22: 14.4 | AR22: 47.2 | AS22: 92.4 | AT22: 148.0 | AU22: 209.3 | AV22: 285.9 | AW22: 353.8 | AX22: 420.5 | AZ22: 0 | BA22: 0.7 | BB22: 14.2 | BC22: 44.4 | BD22: 86.3 | BE22: 138.9 | BF22: 197.1 | BG22: 257.9 | BH22: 319.2 | BI22: 379.5 | BK22: 0 | BL22: 0.7 | BM22: 12.3 | BN22: 40.7 | BO22: 80.9 | BP22: 130.7 | BQ22: 186.1 | BR22: 244.3 | BS22: 303.5 | BT22: 362.3 | BV22: 40.4 | BW22: 29.9 | BX22: 28.2 | BY22: 26.6
AB23: 36.0 | AD23: 0 | AE23: 1.2 | AF23: 23.0 | AG23: 72.6 | AH23: 135.5 | AI23: 211.1 | AJ23: 292.3 | AK23: 374.2 | AL23: 453.5 | AM23: 529.4 | AO23: 0 | AP23: 0.8 | AQ23: 15.0 | AR23: 49.2 | AS23: 96.1 | AT23: 153.6 | AU23: 216.8 | AV23: 296.2 | AW23: 366.0 | AX23: 434.5 | AZ23: 0 | BA23: 0.8 | BB23: 14.6 | BC23: 46.4 | BD23: 90.0 | BE23: 144.5 | BF23: 204.6 | BG23: 267.2 | BH23: 330.2 | BI23: 392.1 | BK23: 0 | BL23: 0.7 | BM23: 12.9 | BN23: 42.4 | BO23: 84.2 | BP23: 135.8 | BQ23: 192.9 | BR23: 252.9 | BS23: 313.8 | BT23: 374.2 | BV23: 41.8 | BW23: 31.0 | BX23: 29.2 | BY23: 27.6
B24: Recomposição de RL – 25% de eucalipto | C24: A reserva legal é totalmente plantada com 25% de mudas de eucalipto e 75% de mudas de árvores nativas e usa-se o maior grau possível de mecanização | D24: Somente 1 ciclo com 1 a 4 rotações | E24: Número total de mudas (de nativas e eucalipto) por hectare idêntico ao regime de plantio comercial com o uso do manejo de rebrota. | AB24: 36.5 | AD24: 0 | AE24: 1.3 | AF24: 23.8 | AG24: 75.3 | AH24: 140.4 | AI24: 218.2 | AJ24: 301.5 | AK24: 385.4 | AL24: 466.7 | AM24: 543.6 | AO24: 0 | AP24: 0.9 | AQ24: 15.7 | AR24: 51.1 | AS24: 99.9 | AT24: 159.3 | AU24: 224.4 | AV24: 306.6 | AW24: 378.4 | AX24: 448.7 | AZ24: 0 | BA24: 0.8 | BB24: 15.1 | BC24: 48.5 | BD24: 93.8 | BE24: 150.1 | BF24: 212.2 | BG24: 276.7 | BH24: 341.4 | BI24: 404.9 | BK24: 0 | BL24: 0.8 | BM24: 13.5 | BN24: 44.2 | BO24: 87.7 | BP24: 140.9 | BQ24: 199.9 | BR24: 261.7 | BS24: 324.3 | BT24: 386.2 | BV24: 43.1 | BW24: 32.1 | BX24: 30.3 | BY24: 28.6
D25: Sem desbaste antes do corte raso | AB25: 37.0 | AD25: 0 | AE25: 1.4 | AF25: 24.6 | AG25: 78.1 | AH25: 145.4 | AI25: 225.4 | AJ25: 310.9 | AK25: 396.6 | AL25: 479.6 | AM25: 557.9 | AO25: 0 | AP25: 1.0 | AQ25: 16.5 | AR25: 53.2 | AS25: 103.8 | AT25: 165.1 | AU25: 232.2 | AV25: 317.2 | AW25: 390.9 | AX25: 463.0 | AZ25: 0 | BA25: 0.8 | BB25: 15.6 | BC25: 50.5 | BD25: 97.7 | BE25: 155.9 | BF25: 219.9 | BG25: 286.2 | BH25: 352.7 | BI25: 417.8 | BK25: 0 | BL25: 0.9 | BM25: 14.2 | BN25: 46.0 | BO25: 91.1 | BP25: 146.2 | BQ25: 206.9 | BR25: 270.6 | BS25: 334.9 | BT25: 398.4 | BV25: 44.4 | BW25: 33.2 | BX25: 31.4 | BY25: 29.6
D26: Todas as rotações de prazo idêntico, podendo ser de 5, 6, 7, 8, 9 ou 10 anos. | AB26: 37.5 | AD26: 0 | AE26: 1.5 | AF26: 25.6 | AG26: 80.8 | AH26: 150.4 | AI26: 232.7 | AJ26: 320.3 | AK26: 407.9 | AL26: 492.5 | AM26: 572.3 | AO26: 0 | AP26: 1.1 | AQ26: 17.3 | AR26: 55.3 | AS26: 107.7 | AT26: 171.0 | AU26: 240.0 | AV26: 327.9 | AW26: 403.6 | AX26: 477.6 | AZ26: 0 | BA26: 0.9 | BB26: 16.2 | BC26: 52.6 | BD26: 101.6 | BE26: 161.7 | BF26: 227.8 | BG26: 295.9 | BH26: 364.2 | BI26: 430.9 | BK26: 0 | BL26: 1.0 | BM26: 15.0 | BN26: 47.9 | BO26: 94.7 | BP26: 151.6 | BQ26: 214.1 | BR26: 279.7 | BS26: 345.8 | BT26: 410.7 | BV26: 45.8 | BW26: 34.3 | BX26: 32.5 | BY26: 30.6
AB27: 38.0 | AD27: 0 | AE27: 1.7 | AF27: 26.6 | AG27: 83.7 | AH27: 155.6 | AI27: 240.0 | AJ27: 329.9 | AK27: 419.3 | AL27: 505.6 | AM27: 586.8 | AO27: 0 | AP27: 1.3 | AQ27: 18.2 | AR27: 57.5 | AS27: 111.8 | AT27: 177.0 | AU27: 248.0 | AV27: 338.7 | AW27: 416.5 | AX27: 492.3 | AZ27: 0 | BA27: 0.9 | BB27: 16.8 | BC27: 54.7 | BD27: 105.6 | BE27: 167.6 | BF27: 235.8 | BG27: 305.7 | BH27: 375.8 | BI27: 444.2 | BK27: 0 | BL27: 1.2 | BM27: 15.8 | BN27: 49.9 | BO27: 98.3 | BP27: 157.1 | BQ27: 221.4 | BR27: 288.9 | BS27: 356.7 | BT27: 423.1 | BV27: 47.1 | BW27: 35.4 | BX27: 33.7 | BY27: 31.6
AB28: 38.5 | AD28: 0 | AE28: 1.9 | AF28: 27.8 | AG28: 86.6 | AH28: 160.8 | AI28: 247.7 | AJ28: 339.6 | AK28: 430.8 | AL28: 518.7 | AM28: 601.4 | AO28: 0 | AP28: 1.5 | AQ28: 19.2 | AR28: 59.7 | AS28: 115.9 | AT28: 183.1 | AU28: 256.1 | AV28: 349.7 | AW28: 429.5 | AX28: 507.2 | AZ28: 0 | BA28: 1.0 | BB28: 17.5 | BC28: 56.9 | BD28: 109.7 | BE28: 173.9 | BF28: 243.9 | BG28: 315.5 | BH28: 387.6 | BI28: 457.6 | BK28: 0 | BL28: 1.3 | BM28: 16.6 | BN28: 51.9 | BO28: 102.0 | BP28: 162.6 | BQ28: 228.7 | BR28: 298.2 | BS28: 367.8 | BT28: 436.5 | BV28: 48.5 | BW28: 36.6 | BX28: 34.8 | BY28: 32.7
AB29: 39.0 | AD29: 0 | AE29: 2.2 | AF29: 29.1 | AG29: 89.5 | AH29: 166.1 | AI29: 255.3 | AJ29: 349.3 | AK29: 442.4 | AL29: 532.0 | AM29: 616.2 | AO29: 0 | AP29: 1.7 | AQ29: 20.2 | AR29: 62.0 | AS29: 120.1 | AT29: 189.4 | AU29: 264.3 | AV29: 361.3 | AW29: 442.7 | AX29: 522.2 | AZ29: 0 | BA29: 1.1 | BB29: 18.3 | BC29: 59.1 | BD29: 113.9 | BE29: 180.1 | BF29: 252.1 | BG29: 326.0 | BH29: 399.5 | BI29: 471.2 | BK29: 0 | BL29: 1.5 | BM29: 17.5 | BN29: 53.9 | BO29: 105.8 | BP29: 168.3 | BQ29: 236.7 | BR29: 307.7 | BS29: 379.1 | BT29: 449.3 | BV29: 49.9 | BW29: 37.8 | BX29: 36.0 | BY29: 33.8
B30: Descrição e Explicações: | AB30: 39.5 | AD30: 0 | AE30: 2.6 | AF30: 30.4 | AG30: 92.5 | AH30: 171.5 | AI30: 263.0 | AJ30: 359.2 | AK30: 454.0 | AL30: 545.3 | AM30: 631.0 | AO30: 0 | AP30: 1.9 | AQ30: 21.2 | AR30: 64.3 | AS30: 124.3 | AT30: 195.7 | AU30: 272.5 | AV30: 372.7 | AW30: 456.1 | AX30: 537.4 | AZ30: 0 | BA30: 1.2 | BB30: 19.2 | BC30: 61.3 | BD30: 118.2 | BE30: 186.4 | BF30: 260.4 | BG30: 336.3 | BH30: 411.6 | BI30: 484.9 | BK30: 0 | BL30: 1.7 | BM30: 18.4 | BN30: 56.0 | BO30: 109.7 | BP30: 174.1 | BQ30: 244.4 | BR30: 317.4 | BS30: 390.5 | BT30: 462.3 | BV30: 51.3 | BW30: 38.9 | BX30: 37.2 | BY30: 34.9

Sheet Modelo trabalhadores
B2: MODELO TRABALHADORES
B4: Tempo útil máximo | F4: Custo funcionários base SP
B6: Item | C6: Valor | D6: Unidade | F6: Tipo de funcionário | G6: Salário (R$/mês) | H6: Custo global (R$/ano)
B7: Trabalho por semana | C7: 44 | D7: horas
B8: Semanas por ano | C8: 46 | D8: semanas/ano | F8: Motorista | G8: 1,700 | H8: =(G8*1.95+500)*12 -> 45,780
B9: Proporção útil máxima | C9: 75% | F9: Operador motoserra | G9: 2,200 | H9: =(G9*1.95+500)*12 -> 57,480
B10: Tempo útil máximo | C10: =C7*C8*C9 -> 1,518 | D10: horas/ano | F10: Operador máquina de colheita | G10: 2,700 | H10: =(G10*1.95+500)*12 -> 69,180
B12: Descrição e Explicações:

Sheet Modelos de colheita
B2: MODELOS DE COLHEITA
B4: Custos padrão | E4: Definição dos sistemas de colheita | I4: Premissas de organização | M4: Principais premissas ligadas aos sistemas de colheita
B6: Tipo | C6: Valor (R$/m³) | E6: Sistema de colheita | F6: Descrição | G6: Ilustração | I6: Item | J6: Valor | K6: Unidade | M6: Sistema de colheita | O6: Produtividade VMI = 0,2 m³/arv | U6: Disponibilidade efetiva em operação | Z6: Capex, amortização e custo de capital | AE6: Custos de operação
B7: Definido pelo modelo | C7: ND | E7: Full tree | F7: Praticada com o conjunto de equipamentos feller buncher + skidder + garra traçadora: | I7: Tempo por turno | J7: 8.8 | K7: horas | O7: Produtividade padrão (m³/hora) | P7: P0 | Q7: P1 | R7: Perda de produtividade 1% aclive | S7: Tempo útil por ano (horas) | U7: Tempo mobilização e desmobilização (dias) | V7: Disponibilidade mecânica | W7: Eficiência operacional | X7: Taxa de utilização potencial | Z7: Investimento (R$) | AA7: Vida útil é o máximo entre | AC7: Custo de capital | AE7: Número de funcionários (por equipe) | AF7: Consumo diesel (l/hora) | AG7: Consumo gasolina (l/hora) | AH7: Custos variáveis outros que combustível (R$/R$ de investimento / hora)
B8: 8 - 10 | C8: 9 | F8: - O sistema é caracterizado pelo corte da madeira, remoção do talhão e processamento em local previamente definido, geralmente, laterais das estradas ou pátios temporários. | I8: Número de turnos máximo por dia | J8: 2 | K8: turnos/dia | AA8: horas de operação | AB8: anos desde compra
B9: 10 - 15 | C9: 13 | I9: Número de dias por semana | J9: 6 | K9: dias/semana | M9: Full tree | O9: 122 | P9: 2.15 | Q9: 0.71 | R9: 4% | S9: =($J$11-$J$7*$J$8*U9)*X9 -> 3,566 | U9: 2 | V9: 80% | W9: 85% | X9: =V9*W9 -> 68% | Z9: =2172332+1403244+949793 -> 4,525,369 | AA9: 20,000 | AB9: 10 | AC9: =Premissas!G42 -> 9% | AE9: 3 | AF9: =38+27+20 -> 85 | AG9: 0.0 | AH9: 9.00E-05
B10: 15 - 20 | C10: 18 | F10: - Ele exige elevado índice de mecanização, alcança grandes produtividades, e é aplicado para colheita de grande porte. | I10: Número de semanas ao ano | J10: 50 | K10: semanas/ano | M10: Cut to length | O10: 33 | P10: 2.15 | Q10: 0.71 | R10: 4% | S10: =($J$11-$J$7*$J$8*U10)*X10 -> 3,566 | U10: 2 | V10: 80% | W10: 85% | X10: =V10*W10 -> 68% | Z10: =2660000+1589554 -> 4,249,554 | AA10: 20,000 | AB10: 10 | AC10: =AC9 -> 9% | AE10: 2 | AF10: 41 | AG10: 0.0 | AH10: 9.00E-05
B11: 20 - 25 | C11: 23 | F11: - O feller buncher corta, acumula e derruba várias árvores ao mesmo tempo. | I11: Tempo de produção máximo por ano | J11: =J7*J8*J9*J10 -> 5,280 | K11: horas | M11: Manual - plantio comercial | O11: 4 | P11: 2.15 | Q11: 0.71 | R11: 1% | S11: =($J$11-$J$7*$J$8*U11)*X11 -> 3,368 | U11: 1 | V11: 80% | W11: 80% | X11: 64% | Z11: 5,000 | AA11: 10,000 | AB11: 4 | AC11: =AC9 -> 9% | AE11: 2 | AF11: 0 | AG11: =0.2*O11 -> 0.8 | AH11: 9.00E-05
B12: 25-30 | C12: 28 | F12: - O skidder é um trator florestal articulado responsável por retirar árvores cortadas pelo feller buncher do interior do talhão até a beira da estrada; ele pode realizar o arraste de árvores individuais ou em feixes por meio de duas ferramentas: pinça hidráulica ou cabo. | I12: Número máximo de equipes por equipamento | J12: =ROUNDUP(J11/'Modelo trabalhadores'!$C$10,0) -> 4 | K12: - | M12: Manual em RL | O12: =O11/2 -> 2 | P12: 2.15 | Q12: 0.71 | R12: 4% | S12: =($J$11-$J$7*$J$8*U12)*X12 -> 3,368 | U12: 1 | V12: 80% | W12: 80% | X12: =V12*W12 -> 64% | Z12: 5,000 | AA12: 10,000 | AB12: 4 | AC12: =AC9 -> 9% | AE12: 2 | AF12: 0 | AG12: =0.2*O12 -> 0.4 | AH12: 9.00E-05
B13: 30-40 | C13: 25
B14: 40-50 | C14: 45 | F14: - A garra traçadora realiza a toragem da madeira e o empilhamento, deixando as toras prontas para o carregamento . | M14: Fórmula utilizada: | O14: Prod = Prod Padrão (VMI = 0,20) * (P0 + P1 * ln(VMI)) / exp(aclive / tau)
B15: 50-60 | C15: 55 | E15: Cut to length | F15: Praticada com o conjunto de equipamentos harvester + forwarder:
B16: 60-70 | C16: 65 | F16: - O sistema é caracterizado pelo processamento da árvore no local de corte e derrubada, sendo realizada ali a operação de processamento, que é composta pelo desgalhamento e descascamento (quando houver necessidade) e ainda o corte das árvores em toras com comprimento que pode variar de 1 a 7 metros.
B17: 70-80 | C17: 75
B18: 80-100 | C18: 90 | F18: - Este sistema exige menor grau de mecanização, facilita o deslocamento a pequenas distâncias, diminui a agressão ao meio ambiente, e tem produtividade intermediária.
F20: - O harvester, composto, em sua essência, por uma máquina base automotriz adaptada sobre pneus ou esteiras, uma lança ou braço mecânico/hidráulico e um implemento (cabeçote) em sua extremidade, pode executar, sequencialmente, as operações de corte da árvore, derrubada, desgalhamento, descascamento, traçamento e formação de pilhas de toras.
F22: - O forwarder é responsável pela remoção das toras e desloca-se sobre a camada de resíduos (galhos, cascas e folhas) deixados pelo harvester, durante a operação de processamento.
E24: Corte Manual | F24: Com motosserra e trator
B34: Descrição e Explicações:

Sheet Modelos de transporte
B2: MODELOS DE TRANSPORTE
B4: Custos padrão | E4: Definição dos sistemas de transporte | I4: Premissas gerais | M4: Premissas que dependem da organização da operação | S4: Premissas que dependem do sistem de transporte | AA4: Síntese dos modelos de transporte
B6: Tipo | C6: Valor (R$/m³) | E6: Sistema de transporte | F6: Descrição | G6: Ilustração | I6: Item | J6: Valor | K6: Unidade | M6: Item | N6: Taxa de utilização potencial | O6: Custo administrativo por carga | P6: Taxa administrativa | Q6: Margem de lucro | S6: Tipo de transporte | T6: Carga líquida (t) | U6: Tempo carregamento + descarregamento (hora/carga) | V6: Tempo de espera efetivo (hora/carga) | W6: Investimento (R$) | X6: Consumo (l/km ida) | Y6: Custos variáveis outros que diesel (R$ de investimento / km ida) | AA6: Modelo | AC6: Carga líquida (t) | AE6: Tempo carregamento + descarregamento (hora/carga) | AF6: Taxa de utilização potencial | AG6: Tempo útil por ano (horas) | AH6: Investimento (R$) | AI6: Custo de equipamento (R$/ano) | AJ6: Consumo (l/km ida) | AK6: Taxa administrativa | AL6: Margem de lucro
B7: Definido pelo modelo | C7: ND | E7: Tri-trem | F7: - formado por três semi-reboques interligados
B8: 8 - 10 | C8: 9.0 | F8: - tem a maior carga líquida entre os sistemas de transporte de madeira (50t) | I8: Tempo por turno | J8: 8.8 | K8: horas | M8: Internalizado | N8: 75% | O8: 250 | P8: 25% | Q8: 0% | S8: Tri-trem | T8: 50 | U8: 0.50 | V8: 1.50 | W8: 750,000 | X8: 0.66 | Y8: 1.00E-06 | AA8: Tri-trem internalizado | AC8: =T8 -> 50 | AE8: =U8 -> 0.50 | AF8: =N8 -> 75% | AG8: =$J$12*AF8 -> 3,960 | AH8: =W8 -> 750,000 | AI8: =AH8*$J$17/(1-1/(1+$J$17)^$J$16) -> 116,865 | AJ8: =X8 -> 0.66 | AK8: =P8 -> 25% | AL8: 0%
B9: 10 - 15 | C9: 12.5 | F9: - utilizado quando as estradas são largas e em relevo relativamente plano | I9: Número de turnos máximo por dia | J9: 2 | K9: turno/dia | M9: Terceirizado em mercado florestal maduro | N9: 70% | P9: 25% | Q9: 30% | S9: Bi-trem | T9: 38 | U9: 0.40 | W9: 710,000 | X9: 0.48 | AA9: Tri-trem terceirizado maduro | AC9: =T8 -> 50 | AE9: =U8 -> 0.50 | AF9: =N9 -> 70% | AG9: 3,696 | AH9: =W8 -> 750,000 | AI9: 116,865 | AJ9: =X8 -> 0.66 | AK9: =P9 -> 25% | AL9: 30%
B10: 15 - 20 | C10: 17.5 | F10: - hoje o sistema o mais usado pelas grandes empresas de celulose | I10: Número de dias por semana | J10: 6 | K10: dias/semana | M10: Terceirizado em mercado florestal não maduro | N10: 60% | P10: 30% | Q10: 50% | S10: Carreta | T10: 26 | U10: 0.30 | W10: 670,000 | X10: 0.40 | AA10: Tri-trem terceirizado não maduro | AC10: =T8 -> 50 | AE10: =U8 -> 0.50 | AF10: =N10 -> 60% | AG10: 3,168 | AH10: =W8 -> 750,000 | AI10: 116,865 | AJ10: =X8 -> 0.66 | AK10: =P10 -> 30% | AL10: 50%
B11: 20 - 25 | C11: 22.5 | E11: Bi-trem | F11: - formado por dois semi-reboques interligados | I11: Número de semanas ao ano | J11: 50 | K11: semanas/ano | AA11: Bi-trem internalizado | AC11: =T9 -> 38 | AE11: =U9 -> 0.40 | AF11: =N8 -> 75% | AG11: 3,960 | AH11: =W9 -> 710,000 | AI11: 110,632 | AJ11: =X9 -> 0.48 | AK11: =P8 -> 25% | AL11: 0%
B12: 25-30 | C12: 27.5 | F12: - a carga líquida é intermediaria (38 t) | I12: Tempo de trabalho por ano | J12: =J8*J9*J10*J11 -> 5,280 | K12: horas | AA12: Bi-trem terceirizado maduro | AC12: =T9 -> 38 | AE12: =U9 -> 0.40 | AF12: =N9 -> 70% | AG12: 3,696 | AH12: =W9 -> 710,000 | AI12: 110,632 | AJ12: =X9 -> 0.48 | AK12: =P9 -> 25% | AL12: 30%
B13: 30-40 | C13: 25.0 | I13: Número máximo de equipes por veículo | J13: =ROUNDUP(J12/'Modelo trabalhadores'!$C$10,0) -> 4 | AA13: Bi-trem terceirizado não maduro | AC13: =T9 -> 38 | AE13: =U9 -> 0.40 | AF13: =N10 -> 60% | AG13: 3,168 | AH13: =W9 -> 710,000 | AI13: 110,632 | AJ13: =X9 -> 0.48 | AK13: =P10 -> 30% | AL13: 50%
B14: 40-50 | C14: 45.0 | I14: Número de motoristas por equipe | J14: 1 | K14: motoristas/equipe | AA14: Carreta internalizado | AC14: =T10 -> 26 | AE14: =U10 -> 0.30 | AF14: =N8 -> 75% | AG14: 3,960 | AH14: =W10 -> 670,000 | AI14: 104,399 | AJ14: =X10 -> 0.4 | AK14: =P8 -> 25% | AL14: 0%
B15: 50-60 | C15: 55.0 | E15: Carreta | F15: - composto de um semi-reboque | I15: Número de motoristas por veículo | J15: =J13*J14 -> 4 | K15: motoristas/veículo | AA15: Carreta terceirizado maduro | AC15: =T10 -> 26 | AE15: =U10 -> 0.30 | AF15: =N9 -> 70% | AG15: 3,696 | AH15: =W10 -> 670,000 | AI15: 104,399 | AJ15: =X10 -> 0.4 | AK15: =P9 -> 25% | AL15: 30%
B16: 60-70 | C16: 65.0 | F16: - com a menor carga líquida (26t) | I16: Vida útil do veículo | J16: 10 | K16: anos | AA16: Carreta terceirizado não maduro | AC16: =T10 -> 26 | AE16: =U10 -> 0.30 | AF16: =N10 -> 60% | AG16: 3,168 | AH16: =W10 -> 670,000 | AI16: 104,399 | AJ16: =X10 -> 0.4 | AK16: 30% | AL16: 50%
B17: 70-80 | C17: 75.0 | F17: - hoje reservada para regiões de baixa acessibilidade, porque as estradas são muito estreitas ou tem relevo acentuado | I17: Taxa de desconto veículo | J17: =Premissas!G42 -> 9% | K17: -
B18: 80-100 | C18: 90.0
B20: Descrição e Explicações:

Sheet Biblioteca impostos
B2: BIBLIOTECA IMPOSTOS
B4: Deduções PIS e COFINS | H4: FUNRURAL | K4: ICMS - Aliquota sobre a receita bruta (%) | AO4: Impostos na Renda
B6: Regime de Incidência | C6: Base do Cálculo | E6: Aliquota sobre a base (%) | H6: Base do Cálculo | I6: Aliquota | L6: DESTINO | AO6: Regime de Lucro | AP6: Taxa | AQ6: Base do Cálculo | AS6: Aliquota sobre a base (%)
E7: PIS | F7: COFINS | AS7: CSLL | AT7: IRPJ
B8: Cumulativa | C8: Receita Bruta | E8: 0.65 | F8: 3.00 | H8: Receita Bruta | I8: 2.85 | K8: ORIGEM | M8: AC | N8: AL | O8: AM | P8: AP | Q8: BA | R8: CE | S8: DF | T8: ES | U8: GO | V8: MA | W8: MT | X8: MS | Y8: MG | Z8: PA | AA8: PB | AB8: PR | AC8: PE | AD8: PI | AE8: RN | AF8: RJ | AG8: RO | AH8: RR | AI8: RS | AJ8: SC | AK8: SP | AL8: SE | AM8: TO | AO8: Presumido | AP8: Nominal | AQ8: Receita Bruta | AS8: 1.08 | AT8: 1.20
L9: AC | M9: 0 | N9: 12 | O9: 12 | P9: 12 | Q9: 12 | R9: 12 | S9: 12 | T9: 12 | U9: 12 | V9: 12 | W9: 12 | X9: 12 | Y9: 12 | Z9: 12 | AA9: 12 | AB9: 12 | AC9: 12 | AD9: 12 | AE9: 12 | AF9: 12 | AG9: 12 | AH9: 12 | AI9: 12 | AJ9: 12 | AK9: 12 | AL9: 12 | AM9: 12 | AP9: Adicional | AQ9: Max(Receita Bruta - 240 mil ; 0) | AS9: 0.00 | AT9: 0.80
B10: Não-cumulativa | C10: Receita bruta - despesas deductíveis | E10: 1.65 | F10: 7.60 | L10: AL | M10: 12 | N10: 0 | O10: 12 | P10: 12 | Q10: 12 | R10: 12 | S10: 12 | T10: 12 | U10: 12 | V10: 12 | W10: 12 | X10: 12 | Y10: 12 | Z10: 12 | AA10: 12 | AB10: 12 | AC10: 12 | AD10: 12 | AE10: 12 | AF10: 12 | AG10: 12 | AH10: 12 | AI10: 12 | AJ10: 12 | AK10: 12 | AL10: 12 | AM10: 12 | AO10: Real | AP10: Nominal | AQ10: EBT | AS10: 9.00 | AT10: 15.00
L11: AM | M11: 12 | N11: 12 | O11: 0 | P11: 12 | Q11: 12 | R11: 12 | S11: 12 | T11: 12 | U11: 12 | V11: 12 | W11: 12 | X11: 12 | Y11: 12 | Z11: 12 | AA11: 12 | AB11: 12 | AC11: 12 | AD11: 12 | AE11: 12 | AF11: 12 | AG11: 12 | AH11: 12 | AI11: 12 | AJ11: 12 | AK11: 12 | AL11: 12 | AM11: 12 | AP11: Adicional | AQ11: Max(EBT - 240 mil ; 0) | AS11: 0.00 | AT11: 10.00
L12: AP | M12: 12 | N12: 12 | O12: 12 | P12: 0 | Q12: 12 | R12: 12 | S12: 12 | T12: 12 | U12: 12 | V12: 12 | W12: 12 | X12: 12 | Y12: 12 | Z12: 12 | AA12: 12 | AB12: 12 | AC12: 12 | AD12: 12 | AE12: 12 | AF12: 12 | AG12: 12 | AH12: 12 | AI12: 12 | AJ12: 12 | AK12: 12 | AL12: 12 | AM12: 12
B13: Descrição e Explicações: | L13: BA | M13: 12 | N13: 12 | O13: 12 | P13: 12 | Q13: 0 | R13: 12 | S13: 12 | T13: 12 | U13: 12 | V13: 12 | W13: 12 | X13: 12 | Y13: 12 | Z13: 12 | AA13: 12 | AB13: 12 | AC13: 12 | AD13: 12 | AE13: 12 | AF13: 12 | AG13: 12 | AH13: 12 | AI13: 12 | AJ13: 12 | AK13: 12 | AL13: 12 | AM13: 12
L14: CE | M14: 12 | N14: 12 | O14: 12 | P14: 12 | Q14: 12 | R14: 0 | S14: 12 | T14: 12 | U14: 12 | V14: 12 | W14: 12 | X14: 12 | Y14: 12 | Z14: 12 | AA14: 12 | AB14: 12 | AC14: 12 | AD14: 12 | AE14: 12 | AF14: 12 | AG14: 12 | AH14: 12 | AI14: 12 | AJ14: 12 | AK14: 12 | AL14: 12 | AM14: 12
L15: DF | M15: 12 | N15: 12 | O15: 12 | P15: 12 | Q15: 12 | R15: 12 | S15: 0 | T15: 12 | U15: 12 | V15: 12 | W15: 12 | X15: 12 | Y15: 12 | Z15: 12 | AA15: 12 | AB15: 12 | AC15: 12 | AD15: 12 | AE15: 12 | AF15: 12 | AG15: 12 | AH15: 12 | AI15: 12 | AJ15: 12 | AK15: 12 | AL15: 12 | AM15: 12
L16: ES | M16: 12 | N16: 12 | O16: 12 | P16: 12 | Q16: 12 | R16: 12 | S16: 12 | T16: 0 | U16: 12 | V16: 12 | W16: 12 | X16: 12 | Y16: 12 | Z16: 12 | AA16: 12 | AB16: 12 | AC16: 12 | AD16: 12 | AE16: 12 | AF16: 12 | AG16: 12 | AH16: 12 | AI16: 12 | AJ16: 12 | AK16: 12 | AL16: 12 | AM16: 12
L17: GO | M17: 12 | N17: 12 | O17: 12 | P17: 12 | Q17: 12 | R17: 12 | S17: 12 | T17: 12 | U17: 0 | V17: 12 | W17: 12 | X17: 12 | Y17: 12 | Z17: 12 | AA17: 12 | AB17: 12 | AC17: 12 | AD17: 12 | AE17: 12 | AF17: 12 | AG17: 12 | AH17: 12 | AI17: 12 | AJ17: 12 | AK17: 12 | AL17: 12 | AM17: 12
L18: MA | M18: 12 | N18: 12 | O18: 12 | P18: 12 | Q18: 12 | R18: 12 | S18: 12 | T18: 12 | U18: 12 | V18: 0 | W18: 12 | X18: 12 | Y18: 12 | Z18: 12 | AA18: 12 | AB18: 12 | AC18: 12 | AD18: 12 | AE18: 12 | AF18: 12 | AG18: 12 | AH18: 12 | AI18: 12 | AJ18: 12 | AK18: 12 | AL18: 12 | AM18: 12
L19: MT | M19: 12 | N19: 12 | O19: 12 | P19: 12 | Q19: 12 | R19: 12 | S19: 12 | T19: 12 | U19: 12 | V19: 12 | W19: 0 | X19: 12 | Y19: 12 | Z19: 12 | AA19: 12 | AB19: 12 | AC19: 12 | AD19: 12 | AE19: 12 | AF19: 12 | AG19: 12 | AH19: 12 | AI19: 12 | AJ19: 12 | AK19: 12 | AL19: 12 | AM19: 12
L20: MS | M20: 12 | N20: 12 | O20: 12 | P20: 12 | Q20: 12 | R20: 12 | S20: 12 | T20: 12 | U20: 12 | V20: 12 | W20: 12 | X20: 0 | Y20: 12 | Z20: 12 | AA20: 12 | AB20: 12 | AC20: 12 | AD20: 12 | AE20: 12 | AF20: 12 | AG20: 12 | AH20: 12 | AI20: 12 | AJ20: 12 | AK20: 12 | AL20: 12 | AM20: 12
L21: MG | M21: 7 | N21: 7 | O21: 7 | P21: 7 | Q21: 7 | R21: 7 | S21: 7 | T21: 7 | U21: 7 | V21: 7 | W21: 7 | X21: 7 | Y21: 0 | Z21: 7 | AA21: 7 | AB21: 12 | AC21: 7 | AD21: 7 | AE21: 7 | AF21: 12 | AG21: 7 | AH21: 7 | AI21: 12 | AJ21: 12 | AK21: 12 | AL21: 7 | AM21: 7
L22: PA | M22: 12 | N22: 12 | O22: 12 | P22: 12 | Q22: 12 | R22: 12 | S22: 12 | T22: 12 | U22: 12 | V22: 12 | W22: 12 | X22: 12 | Y22: 12 | Z22: 0 | AA22: 12 | AB22: 12 | AC22: 12 | AD22: 12 | AE22: 12 | AF22: 12 | AG22: 12 | AH22: 12 | AI22: 12 | AJ22: 12 | AK22: 12 | AL22: 12 | AM22: 12
L23: PB | M23: 12 | N23: 12 | O23: 12 | P23: 12 | Q23: 12 | R23: 12 | S23: 12 | T23: 12 | U23: 12 | V23: 12 | W23: 12 | X23: 12 | Y23: 12 | Z23: 12 | AA23: 0 | AB23: 12 | AC23: 12 | AD23: 12 | AE23: 12 | AF23: 12 | AG23: 12 | AH23: 12 | AI23: 12 | AJ23: 12 | AK23: 12 | AL23: 12 | AM23: 12
L24: PR | M24: 7 | N24: 7 | O24: 7 | P24: 7 | Q24: 7 | R24: 7 | S24: 7 | T24: 7 | U24: 7 | V24: 7 | W24: 7 | X24: 7 | Y24: 12 | Z24: 7 | AA24: 7 | AB24: 0 | AC24: 7 | AD24: 7 | AE24: 7 | AF24: 12 | AG24: 7 | AH24: 7 | AI24: 12 | AJ24: 12 | AK24: 12 | AL24: 7 | AM24: 7
L25: PE | M25: 12 | N25: 12 | O25: 12 | P25: 12 | Q25: 12 | R25: 12 | S25: 12 | T25: 12 | U25: 12 | V25: 12 | W25: 12 | X25: 12 | Y25: 12 | Z25: 12 | AA25: 12 | AB25: 12 | AC25: 0 | AD25: 12 | AE25: 12 | AF25: 12 | AG25: 12 | AH25: 12 | AI25: 12 | AJ25: 12 | AK25: 12 | AL25: 12 | AM25: 12
L26: PI | M26: 12 | N26: 12 | O26: 12 | P26: 12 | Q26: 12 | R26: 12 | S26: 12 | T26: 12 | U26: 12 | V26: 12 | W26: 12 | X26: 12 | Y26: 12 | Z26: 12 | AA26: 12 | AB26: 12 | AC26: 12 | AD26: 0 | AE26: 12 | AF26: 12 | AG26: 12 | AH26: 12 | AI26: 12 | AJ26: 12 | AK26: 12 | AL26: 12 | AM26: 12
L27: RN | M27: 12 | N27: 12 | O27: 12 | P27: 12 | Q27: 12 | R27: 12 | S27: 12 | T27: 12 | U27: 12 | V27: 12 | W27: 12 | X27: 12 | Y27: 12 | Z27: 12 | AA27: 12 | AB27: 12 | AC27: 12 | AD27: 12 | AE27: 0 | AF27: 12 | AG27: 12 | AH27: 12 | AI27: 12 | AJ27: 12 | AK27: 12 | AL27: 12 | AM27: 12
L28: RJ | M28: 7 | N28: 7 | O28: 7 | P28: 7 | Q28: 7 | R28: 7 | S28: 7 | T28: 7 | U28: 7 | V28: 7 | W28: 7 | X28: 7 | Y28: 12 | Z28: 7 | AA28: 7 | AB28: 12 | AC28: 7 | AD28: 7 | AE28: 7 | AF28: 0 | AG28: 7 | AH28: 7 | AI28: 12 | AJ28: 12 | AK28: 12 | AL28: 7 | AM28: 7
L29: RO | M29: 12 | N29: 12 | O29: 12 | P29: 12 | Q29: 12 | R29: 12 | S29: 12 | T29: 12 | U29: 12 | V29: 12 | W29: 12 | X29: 12 | Y29: 12 | Z29: 12 | AA29: 12 | AB29: 12 | AC29: 12 | AD29: 12 | AE29: 12 | AF29: 12 | AG29: 0 | AH29: 12 | AI29: 12 | AJ29: 12 | AK29: 12 | AL29: 12 | AM29: 12
L30: RR | M30: 12 | N30: 12 | O30: 12 | P30: 12 | Q30: 12 | R30: 12 | S30: 12 | T30: 12 | U30: 12 | V30: 12 | W30: 12 | X30: 12 | Y30: 12 | Z30: 12 | AA30: 12 | AB30: 12 | AC30: 12 | AD30: 12 | AE30: 12 | AF30: 12 | AG30: 12 | AH30: 0 | AI30: 12 | AJ30: 12 | AK30: 12 | AL30: 12 | AM30: 12
L31: RS | M31: 7 | N31: 7 | O31: 7 | P31: 7 | Q31: 7 | R31: 7 | S31: 7 | T31: 7 | U31: 7 | V31: 7 | W31: 7 | X31: 7 | Y31: 12 | Z31: 7 | AA31: 7 | AB31: 12 | AC31: 7 | AD31: 7 | AE31: 7 | AF31: 12 | AG31: 7 | AH31: 7 | AI31: 0 | AJ31: 12 | AK31: 12 | AL31: 7 | AM31: 7
L32: SC | M32: 7 | N32: 7 | O32: 7 | P32: 7 | Q32: 7 | R32: 7 | S32: 7 | T32: 7 | U32: 7 | V32: 7 | W32: 7 | X32: 7 | Y32: 12 | Z32: 7 | AA32: 7 | AB32: 12 | AC32: 7 | AD32: 7 | AE32: 7 | AF32: 12 | AG32: 7 | AH32: 7 | AI32: 12 | AJ32: 0 | AK32: 12 | AL32: 7 | AM32: 7
L33: SP | M33: 7 | N33: 7 | O33: 7 | P33: 7 | Q33: 7 | R33: 7 | S33: 7 | T33: 7 | U33: 7 | V33: 7 | W33: 7 | X33: 7 | Y33: 12 | Z33: 7 | AA33: 7 | AB33: 12 | AC33: 7 | AD33: 7 | AE33: 7 | AF33: 12 | AG33: 7 | AH33: 7 | AI33: 12 | AJ33: 12 | AK33: 0 | AL33: 7 | AM33: 7
L34: SE | M34: 12 | N34: 12 | O34: 12 | P34: 12 | Q34: 12 | R34: 12 | S34: 12 | T34: 12 | U34: 12 | V34: 12 | W34: 12 | X34: 12 | Y34: 12 | Z34: 12 | AA34: 12 | AB34: 12 | AC34: 12 | AD34: 12 | AE34: 12 | AF34: 12 | AG34: 12 | AH34: 12 | AI34: 12 | AJ34: 12 | AK34: 12 | AL34: 0 | AM34: 12
L35: TO | M35: 12 | N35: 12 | O35: 12 | P35: 12 | Q35: 12 | R35: 12 | S35: 12 | T35: 12 | U35: 12 | V35: 12 | W35: 12 | X35: 12 | Y35: 12 | Z35: 12 | AA35: 12 | AB35: 12 | AC35: 12 | AD35: 12 | AE35: 12 | AF35: 12 | AG35: 12 | AH35: 12 | AI35: 12 | AJ35: 12 | AK35: 12 | AL35: 12 | AM35: 0

Sheet Outras listas
B2: OUTRAS LISTAS
B4: Abrangência das mesorregiões | D4: Impacto do típo de estrutura de gestão | K4: Situações de referência para cada projeto florestal, por fim de comparação e avaliação econômica | P4: Modalidades de entrega da madeira ao comprador | T4: Classes de maturidade do mercado florestal regional | X4: Classes de relevo | AB4: Condições e custos de licenciamento
D6: Item | E6: Tipo de manejo | H6: Unidade | I6: Casos onde estes custos não entram no cálculo | K6: Projeto florestal | L6: Situação de referência | M6: Fluxos de caixa da situação de referência | N6: No modelo financeiro: saidas de caixa da diferência entre o projeto florestal e a situação de referência | P6: Modalidade | Q6: Responsabilidade do vendedor | R6: Responsabilidade do comprador | T6: Nome | U6: Definição | V6: Incrementos indiretos | X6: Nome | Y6: Intervalo de aclive - declive | Z6: Valor usada nos cálculos | AB6: Licenciamento | AD6: Área para licenciamento (ha) | AG6: Custo
E7: Reduzida | F7: Empresa ou fundo florestal | P7: Em pé | Q7: Garantir acessibilidade das florestas para as equipes de colheita organizadas pelo comprador | R7: Colheita e transporte até o sitio de consumo | T7: Maduro | U7: As práticas de silvicultura são consolidadas, e existe um mercado ativo de produtores, compradores e prestadores de serviços | V7: 0% | AD7: Min | AE7: Max | AG7: Mínimo (R$) | AH7: Prop área (R$ 50/ha)
D8: Custos indiretos fixos do projeto florestal | E8: 5,000 | F8: 100,000 | H8: R$/ano | I8: Quando o projeto florestal é uma recomposição de reserva legal e a situação de referência é uma regeneração natural com monitoramento ou uma recomposição com plantio de árvores nativas | K8: Plantio comercial | L8: Terra sem valorização | M8: Sem nenhum fluxo de caixa | N8: Não tem nenhum fluxo associado ao uso da terra | P8: Carregado no caminhão | Q8: Colheita e armazenamento das toras em pilha na beira da estrada | R8: Carregamento nos caminhões das toras armezenadas em pilhas e transporte até o sitio de consumo | T8: Fronteira | U8: Têm menos de 10 anos de silvicultura na região, e xistem poucos produtores , compradores, prestadores de serviços | V8: 20% | X8: Plano | Y8: 0 - 3 % | Z8: 0.0% | AB8: Sem RIMA | AD8: 0 | AE8: 1,000 | AG8: 5,000 | AH8: 0
D9: Custos variáveis de monitoramento ambiental de plantio comercial | E9: 5 | F9: 10 | H9: R$/ha plantado / ano | I9: Não existe | L9: Custo da terra a valor de mercado | M9: Receita de arrendamento (efetivo ou virtual) da terra | N9: Arrendamento anual (efetivo ou virtual) da terra | P9: Carregado no caminhão | Q9: Colheita e na sequencia, carregamento dos caminhões afretados pelo consumidor | R9: Transporte até o centro de cousumo | T9: Incipiente | U9: Não tem ainda plantios florestais | V9: 50% | X9: Suave ondulado | Y9: 3 - 6% | Z9: 3.0% | AB9: Com RIMA | AD9: =AE8 -> 1,000 | AG9: 100,000 | AH9: 50
D10: Custos variáveis de monitoramento ambiental de reserva legal em fase de recomposição | E10: 190 | F10: 190 | H10: R$/ha reserva legal recomposta / ano | I10: Quando o projeto florestal é uma recomposição de reserva legal e a situação de referência é uma regeneração natural com monitoramento ou uma recomposição com plantio de árvores nativas | K10: Recomposição de reserva legal com eucalipto + árvores nativas | L10: Área sem acompanhamento | M10: Sem nenhum fluxo de caixa | N10: Todos os custos silviculturais e indiretos do projeto florestal Sem fluxo associado à terra | P10: Posto na indústria | Q10: Colheita e transporte da madeira até o sitio de consumo | R10: - | X10: Ondulado | Y10: 6 - 12% | Z10: 7.5%
D11: Custos indiretos variáveis de um plantio comercial e não ligados ao monitoramento ambiental | E11: 45 | F11: 190 | H11: R$/ha plantado / ano | I11: Não existe | L11: Regeneração natural com monitoramento | M11: Custos ambientais equivalentes aos do projeto florestal | N11: Todos os custos silviculturais e indiretos do projeto florestal, com a excecão dos custos ambientais Sem fluxo associado à terra | X11: Forte ondulado | Y11: 12 - 20% | Z11: 14.5%
D12: Custos indiretos variáveis em região de reserva legal ativamente recomposta e não ligados ao monitoramento ambiental | E12: 45 | F12: 190 | H12: R$/ha reserva legal recomposta / ano | I12: Quando o projeto florestal é uma recomposição de reserva legal e a situação de referência é uma recomposição com plantio de árvores nativas | L12: Área recuperada com 100% de plantios nativos, com uma densidade de plantio igual a 50% da densidade do projeto florestal, para limitar custos | M12: Custos ambientais equivalentes aos do projeto florestal Custos silviculturais | N12: Diferência entre os custos silviculturais do projeto florestal e da situação de referência Sem fluxo associado à terra | X12: Forte ondulado mais montanhoso | Y12: 20 - 40% | Z12: 28.5%
D13: Produtividade florestal em relação à referência | E13: 90% | F13: 100% | H13: - | I13: Considera-se que donos de projetos com estrutura de gestão reduzida tem dificuldade a aplicar as melhores práticas silviculturais e assim tem uma perda de produtividade
B15: Descrição e Explicações:

Sheet Modelo financeiro
C2: MODELO FINANCEIRO | BM2: =TRANSPOSE(K55:BJ55) -> -622.1428571
C4: Dashboard dos principais indicadores | K4: Descrição e Explicações:
C6: Indicador | G6: Valor
C7: Faturamento Bruto (Milhares R$) | G7: =BK33 -> 358,090.8
C8: Deduções (Milhares R$) | G8: =BK35 -> -23,275.9
C9: Gastos (Milhares R$) | G9: =BK41 -> -160,526.7
C10: EBITDA (Milhares R$) | G10: =BK46 -> 174,288.2
C11: Luco Líquido (Milhares R$) | G11: =BK55 -> 145,504.5
C12: Ano positivo | G12: =(COUNTIF(K68:BI68,"<"&0)) -> 38
C13: Ano de equlíbrio | G13: =(COUNTIF(K69:BI69,"<"&0)) -> 8
C14: TIR | G14: =G1240 -> 29.7%
C15: VPL (Mil R$) | G15: =G1239 -> 36,879.0
K22: 0 | L22: =1+K22 -> 1 | M22: =1+L22 -> 2 | N22: 3 | O22: 4 | P22: 5 | Q22: 6 | R22: 7 | S22: 8 | T22: 9 | U22: 10 | V22: 11 | W22: 12 | X22: 13 | Y22: 14 | Z22: 15 | AA22: 16 | AB22: 17 | AC22: 18 | AD22: 19 | AE22: 20 | AF22: 21 | AG22: 22 | AH22: 23 | AI22: 24 | AJ22: 25 | AK22: =1+AJ22 -> 26 | AL22: 27 | AM22: 28 | AN22: 29 | AO22: 30 | AP22: 31 | AQ22: 32 | AR22: 33 | AS22: 34 | AT22: 35 | AU22: 36 | AV22: 37 | AW22: 38 | AX22: 39 | AY22: 40 | AZ22: 41 | BA22: 42 | BB22: 43 | BC22: =1+BB22 -> 44 | BD22: 45 | BE22: 46 | BF22: 47 | BG22: =1+BF22 -> 48 | BH22: 49 | BI22: 50 | BK22: TOTAL
C24: OPERAÇÃO
C26: Período de venda potencial de madeira | K26: =IF(OR(K22<Premissas!$G$60,K22>Premissas!$G$63-1),0,1) -> 0 | L26: =IF(OR(L22<Premissas!$G$60,L22>Premissas!$G$63-1),0,1) -> 0 | M26: =IF(OR(M22<Premissas!$G$60,M22>Premissas!$G$63-1),0,1) -> 0 | N26: =IF(OR(N22<Premissas!$G$60,N22>Premissas!$G$63-1),0,1) -> 0 | O26: =IF(OR(O22<Premissas!$G$60,O22>Premissas!$G$63-1),0,1) -> 0 | P26: =IF(OR(P22<Premissas!$G$60,P22>Premissas!$G$63-1),0,1) -> 0 | Q26: =IF(OR(Q22<Premissas!$G$60,Q22>Premissas!$G$63-1),0,1) -> 0 | R26: =IF(OR(R22<Premissas!$G$60,R22>Premissas!$G$63-1),0,1) -> 1 | S26: =IF(OR(S22<Premissas!$G$60,S22>Premissas!$G$63-1),0,1) -> 1 | T26: =IF(OR(T22<Premissas!$G$60,T22>Premissas!$G$63-1),0,1) -> 1 | U26: =IF(OR(U22<Premissas!$G$60,U22>Premissas!$G$63-1),0,1) -> 1 | V26: =IF(OR(V22<Premissas!$G$60,V22>Premissas!$G$63-1),0,1) -> 1 | W26: =IF(OR(W22<Premissas!$G$60,W22>Premissas!$G$63-1),0,1) -> 1 | X26: =IF(OR(X22<Premissas!$G$60,X22>Premissas!$G$63-1),0,1) -> 1 | Y26: =IF(OR(Y22<Premissas!$G$60,Y22>Premissas!$G$63-1),0,1) -> 1 | Z26: =IF(OR(Z22<Premissas!$G$60,Z22>Premissas!$G$63-1),0,1) -> 1 | AA26: =IF(OR(AA22<Premissas!$G$60,AA22>Premissas!$G$63-1),0,1) -> 1 | AB26: =IF(OR(AB22<Premissas!$G$60,AB22>Premissas!$G$63-1),0,1) -> 1 | AC26: =IF(OR(AC22<Premissas!$G$60,AC22>Premissas!$G$63-1),0,1) -> 1 | AD26: =IF(OR(AD22<Premissas!$G$60,AD22>Premissas!$G$63-1),0,1) -> 1 | AE26: =IF(OR(AE22<Premissas!$G$60,AE22>Premissas!$G$63-1),0,1) -> 0 | AF26: =IF(OR(AF22<Premissas!$G$60,AF22>Premissas!$G$63-1),0,1) -> 0 | AG26: =IF(OR(AG22<Premissas!$G$60,AG22>Premissas!$G$63-1),0,1) -> 0 | AH26: =IF(OR(AH22<Premissas!$G$60,AH22>Premissas!$G$63-1),0,1) -> 0 | AI26: =IF(OR(AI22<Premissas!$G$60,AI22>Premissas!$G$63-1),0,1) -> 0 | AJ26: =IF(OR(AJ22<Premissas!$G$60,AJ22>Premissas!$G$63-1),0,1) -> 0 | AK26: =IF(OR(AK22<Premissas!$G$60,AK22>Premissas!$G$63-1),0,1) -> 0 | AL26: =IF(OR(AL22<Premissas!$G$60,AL22>Premissas!$G$63-1),0,1) -> 0 | AM26: =IF(OR(AM22<Premissas!$G$60,AM22>Premissas!$G$63-1),0,1) -> 0 | AN26: =IF(OR(AN22<Premissas!$G$60,AN22>Premissas!$G$63-1),0,1) -> 0 | AO26: =IF(OR(AO22<Premissas!$G$60,AO22>Premissas!$G$63-1),0,1) -> 0 | AP26: =IF(OR(AP22<Premissas!$G$60,AP22>Premissas!$G$63-1),0,1) -> 0 | AQ26: =IF(OR(AQ22<Premissas!$G$60,AQ22>Premissas!$G$63-1),0,1) -> 0 | AR26: =IF(OR(AR22<Premissas!$G$60,AR22>Premissas!$G$63-1),0,1) -> 0 | AS26: =IF(OR(AS22<Premissas!$G$60,AS22>Premissas!$G$63-1),0,1) -> 0 | AT26: =IF(OR(AT22<Premissas!$G$60,AT22>Premissas!$G$63-1),0,1) -> 0 | AU26: =IF(OR(AU22<Premissas!$G$60,AU22>Premissas!$G$63-1),0,1) -> 0 | AV26: =IF(OR(AV22<Premissas!$G$60,AV22>Premissas!$G$63-1),0,1) -> 0 | AW26: =IF(OR(AW22<Premissas!$G$60,AW22>Premissas!$G$63-1),0,1) -> 0 | AX26: =IF(OR(AX22<Premissas!$G$60,AX22>Premissas!$G$63-1),0,1) -> 0 | AY26: =IF(OR(AY22<Premissas!$G$60,AY22>Premissas!$G$63-1),0,1) -> 0 | AZ26: =IF(OR(AZ22<Premissas!$G$60,AZ22>Premissas!$G$63-1),0,1) -> 0 | BA26: =IF(OR(BA22<Premissas!$G$60,BA22>Premissas!$G$63-1),0,1) -> 0 | BB26: =IF(OR(BB22<Premissas!$G$60,BB22>Premissas!$G$63-1),0,1) -> 0 | BC26: =IF(OR(BC22<Premissas!$G$60,BC22>Premissas!$G$63-1),0,1) -> 0 | BD26: =IF(OR(BD22<Premissas!$G$60,BD22>Premissas!$G$63-1),0,1) -> 0 | BE26: =IF(OR(BE22<Premissas!$G$60,BE22>Premissas!$G$63-1),0,1) -> 0 | BF26: =IF(OR(BF22<Premissas!$G$60,BF22>Premissas!$G$63-1),0,1) -> 0 | BG26: =IF(OR(BG22<Premissas!$G$60,BG22>Premissas!$G$63-1),0,1) -> 0 | BH26: =IF(OR(BH22<Premissas!$G$60,BH22>Premissas!$G$63-1),0,1) -> 0 | BI26: =IF(OR(BI22<Premissas!$G$60,BI22>Premissas!$G$63-1),0,1) -> 0
B29: DECLARAÇÕES FINANCEIRAS
C31: DECLARAÇÃO DE RESULTADOS DO EXERCÍCIO (MILHARES R$) | K31: 0 | L31: =1+K31 -> 1 | M31: =1+L31 -> 2 | N31: =1+M31 -> 3 | O31: =1+N31 -> 4 | P31: =1+O31 -> 5 | Q31: =1+P31 -> 6 | R31: =1+Q31 -> 7 | S31: =1+R31 -> 8 | T31: =1+S31 -> 9 | U31: =1+T31 -> 10 | V31: =1+U31 -> 11 | W31: =1+V31 -> 12 | X31: =1+W31 -> 13 | Y31: =1+X31 -> 14 | Z31: =1+Y31 -> 15 | AA31: =1+Z31 -> 16 | AB31: =1+AA31 -> 17 | AC31: =1+AB31 -> 18 | AD31: =1+AC31 -> 19 | AE31: =1+AD31 -> 20 | AF31: =1+AE31 -> 21 | AG31: =1+AF31 -> 22 | AH31: =1+AG31 -> 23 | AI31: =1+AH31 -> 24 | AJ31: =1+AI31 -> 25 | AK31: =1+AJ31 -> 26 | AL31: =1+AK31 -> 27 | AM31: =1+AL31 -> 28 | AN31: =1+AM31 -> 29 | AO31: =1+AN31 -> 30 | AP31: =1+AO31 -> 31 | AQ31: =1+AP31 -> 32 | AR31: =1+AQ31 -> 33 | AS31: =1+AR31 -> 34 | AT31: =1+AS31 -> 35 | AU31: =1+AT31 -> 36 | AV31: =1+AU31 -> 37 | AW31: =1+AV31 -> 38 | AX31: =1+AW31 -> 39 | AY31: =1+AX31 -> 40 | AZ31: =1+AY31 -> 41 | BA31: =1+AZ31 -> 42 | BB31: =1+BA31 -> 43 | BC31: =1+BB31 -> 44 | BD31: =1+BC31 -> 45 | BE31: =1+BD31 -> 46 | BF31: =1+BE31 -> 47 | BG31: =1+BF31 -> 48 | BH31: =1+BG31 -> 49 | BI31: =1+BH31 -> 50 | BK31: TOTAL
C33: Faturamento bruto | K33: =K792 -> 0 | L33: =L792 -> 0 | M33: 0 | N33: 0 | O33: 0 | P33: 0 | Q33: 0 | R33: 30,347 | S33: 30,347 | T33: 30,347 | U33: 30,347 | V33: 30,347 | W33: 30,347 | X33: 30,347 | Y33: 24,277 | Z33: 24,277 | AA33: 24,277 | AB33: 24,277 | AC33: 24,277 | AD33: 24,277 | AE33: 0 | AF33: 0 | AG33: 0 | AH33: 0 | AI33: 0 | AJ33: 0 | AK33: 0 | AL33: 0 | AM33: 0 | AN33: 0 | AO33: 0 | AP33: 0 | AQ33: 0 | AR33: 0 | AS33: 0 | AT33: 0 | AU33: 0 | AV33: 0 | AW33: 0 | AX33: 0 | AY33: 0 | AZ33: 0 | BA33: 0 | BB33: 0 | BC33: 0 | BD33: 0 | BE33: 0 | BF33: 0 | BG33: 0 | BH33: 0 | BI33: 0 | BK33: =SUM(K33:BI33) -> 358,091
C35: Deduções | K35: =SUM(K36:K37) -> 0 | L35: =SUM(L36:L37) -> 0 | M35: 0 | N35: 0 | O35: 0 | P35: 0 | Q35: 0 | R35: -1,973 | S35: -1,973 | T35: -1,973 | U35: -1,973 | V35: -1,973 | W35: -1,973 | X35: -1,973 | Y35: -1,578 | Z35: -1,578 | AA35: -1,578 | AB35: -1,578 | AC35: -1,578 | AD35: -1,578 | AE35: 0 | AF35: 0 | AG35: 0 | AH35: 0 | AI35: 0 | AJ35: 0 | AK35: 0 | AL35: 0 | AM35: 0 | AN35: 0 | AO35: 0 | AP35: 0 | AQ35: 0 | AR35: 0 | AS35: 0 | AT35: 0 | AU35: 0 | AV35: 0 | AW35: 0 | AX35: 0 | AY35: 0 | AZ35: 0 | BA35: 0 | BB35: 0 | BC35: 0 | BD35: 0 | BE35: 0 | BF35: 0 | BG35: 0 | BH35: 0 | BI35: 0 | BK35: =SUM(K35:BI35) -> -23,276
D36: PIS + COFINS + FUNRURAL | K36: =IF($K$1217=0,SUM(K1150:K1152),K1177+K1182+K1187) -> 0 | L36: 0 | M36: 0 | N36: 0 | O36: 0 | P36: 0 | Q36: 0 | R36: -1,973 | S36: -1,973 | T36: -1,973 | U36: -1,973 | V36: -1,973 | W36: -1,973 | X36: -1,973 | Y36: -1,578 | Z36: -1,578 | AA36: -1,578 | AB36: -1,578 | AC36: -1,578 | AD36: -1,578 | AE36: 0 | AF36: 0 | AG36: 0 | AH36: 0 | AI36: 0 | AJ36: 0 | AK36: 0 | AL36: 0 | AM36: 0 | AN36: 0 | AO36: 0 | AP36: 0 | AQ36: =IF($K$1217=0,SUM(AQ1150:AQ1152),AQ1177+AQ1182+AQ1187) -> 0 | AR36: 0 | AS36: 0 | AT36: 0 | AU36: 0 | AV36: 0 | AW36: 0 | AX36: 0 | AY36: 0 | AZ36: 0 | BA36: 0 | BB36: 0 | BC36: 0 | BD36: 0 | BE36: 0 | BF36: 0 | BG36: 0 | BH36: 0 | BI36: 0 | BK36: =SUM(K36:BI36) -> -23,276
D37: ICMS | K37: =K1138 -> 0 | L37: =L1138 -> 0 | M37: 0 | N37: 0 | O37: 0 | P37: 0 | Q37: 0 | R37: 0 | S37: 0 | T37: 0 | U37: 0 | V37: 0 | W37: 0 | X37: 0 | Y37: 0 | Z37: 0 | AA37: 0 | AB37: 0 | AC37: 0 | AD37: 0 | AE37: 0 | AF37: 0 | AG37: 0 | AH37: 0 | AI37: 0 | AJ37: 0 | AK37: 0 | AL37: 0 | AM37: 0 | AN37: 0 | AO37: 0 | AP37: 0 | AQ37: 0 | AR37: 0 | AS37: 0 | AT37: 0 | AU37: 0 | AV37: 0 | AW37: 0 | AX37: 0 | AY37: 0 | AZ37: 0 | BA37: 0 | BB37: 0 | BC37: 0 | BD37: 0 | BE37: 0 | BF37: 0 | BG37: 0 | BH37: 0 | BI37: 0 | BK37: =SUM(K37:BI37) -> 0
C39: Vendas líquidas | K39: =K33+K35 -> 0 | L39: =L33+L35 -> 0 | M39: 0 | N39: 0 | O39: 0 | P39: 0 | Q39: 0 | R39: =R33+R35 -> 28,374 | S39: 28,374 | T39: 28,374 | U39: 28,374 | V39: 28,374 | W39: 28,374 | X39: 28,374 | Y39: 22,699 | Z39: 22,699 | AA39: 22,699 | AB39: 22,699 | AC39: 22,699 | AD39: 22,699 | AE39: 0 | AF39: 0 | AG39: 0 | AH39: 0 | AI39: 0 | AJ39: 0 | AK39: 0 | AL39: 0 | AM39: 0 | AN39: 0 | AO39: 0 | AP39: 0 | AQ39: 0 | AR39: 0 | AS39: 0 | AT39: 0 | AU39: 0 | AV39: 0 | AW39: 0 | AX39: 0 | AY39: 0 | AZ39: 0 | BA39: 0 | BB39: 0 | BC39: 0 | BD39: 0 | BE39: 0 | BF39: 0 | BG39: 0 | BH39: 0 | BI39: 0 | BK39: =SUM(K39:BI39) -> 334,815
C41: Gastos | K41: =SUM(K42:K44) -> -622 | L41: =SUM(L42:L44) -> -1,666 | M41: -2,711 | N41: -3,755 | O41: -4,799 | P41: -5,844 | Q41: -6,888 | R41: -12,791 | S41: -12,791 | T41: -12,791 | U41: -12,791 | V41: -12,791 | W41: -12,791 | X41: -12,269 | Y41: -10,148 | Z41: -9,104 | AA41: -8,060 | AB41: -7,016 | AC41: -5,971 | AD41: -4,927 | AE41: -0 | AF41: -0 | AG41: -0 | AH41: -0 | AI41: -0 | AJ41: -0 | AK41: -0 | AL41: -0 | AM41: -0 | AN41: -0 | AO41: -0 | AP41: -0 | AQ41: -0 | AR41: -0 | AS41: -0 | AT41: -0 | AU41: -0 | AV41: -0 | AW41: -0 | AX41: -0 | AY41: -0 | AZ41: -0 | BA41: -0 | BB41: -0 | BC41: -0 | BD41: -0 | BE41: -0 | BF41: -0 | BG41: -0 | BH41: -0 | BI41: -0 | BK41: -160,527
D42: Custos indiretos | K42: =-K800 -> -371 | L42: =-L800 -> -914 | M42: -1,457 | N42: -2,000 | O42: -2,543 | P42: -3,086 | Q42: -3,629 | R42: -3,900 | S42: -3,900 | T42: -3,900 | U42: -3,900 | V42: -3,900 | W42: -3,900 | X42: -3,629 | Y42: -3,086 | Z42: -2,543 | AA42: -2,000 | AB42: -1,457 | AC42: -914 | AD42: -371 | AE42: 0 | AF42: 0 | AG42: 0 | AH42: 0 | AI42: 0 | AJ42: 0 | AK42: 0 | AL42: 0 | AM42: 0 | AN42: 0 | AO42: 0 | AP42: 0 | AQ42: 0 | AR42: 0 | AS42: 0 | AT42: 0 | AU42: 0 | AV42: 0 | AW42: 0 | AX42: 0 | AY42: 0 | AZ42: 0 | BA42: 0 | BB42: 0 | BC42: 0 | BD42: 0 | BE42: 0 | BF42: 0 | BG42: 0 | BH42: 0 | BI42: 0 | BK42: =SUM(K42:BI42) -> -51,400
D43: Uso de terra | K43: =-K805 -> -251 | L43: =-L805 -> -752 | M43: -1,254 | N43: -1,755 | O43: -2,256 | P43: -2,758 | Q43: -3,259 | R43: -3,510 | S43: -3,510 | T43: -3,510 | U43: -3,510 | V43: -3,510 | W43: -3,510 | X43: -3,259 | Y43: -2,758 | Z43: -2,256 | AA43: -1,755 | AB43: -1,254 | AC43: -752 | AD43: -251 | AE43: -0 | AF43: -0 | AG43: -0 | AH43: -0 | AI43: -0 | AJ43: -0 | AK43: -0 | AL43: -0 | AM43: -0 | AN43: -0 | AO43: -0 | AP43: -0 | AQ43: -0 | AR43: -0 | AS43: -0 | AT43: -0 | AU43: -0 | AV43: -0 | AW43: -0 | AX43: -0 | AY43: -0 | AZ43: -0 | BA43: -0 | BB43: -0 | BC43: -0 | BD43: -0 | BE43: -0 | BF43: -0 | BG43: -0 | BH43: -0 | BI43: -0 | BK43: =SUM(K43:BI43) -> -45,630
D44: Colheita + transporte | K44: =-K810 -> 0 | L44: =-L810 -> 0 | M44: 0 | N44: 0 | O44: 0 | P44: 0 | Q44: 0 | R44: -5,381 | S44: -5,381 | T44: -5,381 | U44: -5,381 | V44: -5,381 | W44: -5,381 | X44: -5,381 | Y44: -4,305 | Z44: -4,305 | AA44: -4,305 | AB44: -4,305 | AC44: -4,305 | AD44: -4,305 | AE44: 0 | AF44: 0 | AG44: 0 | AH44: 0 | AI44: 0 | AJ44: 0 | AK44: 0 | AL44: 0 | AM44: 0 | AN44: 0 | AO44: 0 | AP44: 0 | AQ44: 0 | AR44: 0 | AS44: 0 | AT44: 0 | AU44: 0 | AV44: 0 | AW44: 0 | AX44: 0 | AY44: 0 | AZ44: 0 | BA44: 0 | BB44: 0 | BC44: 0 | BD44: 0 | BE44: 0 | BF44: 0 | BG44: 0 | BH44: 0 | BI44: 0 | BK44: =SUM(K44:BI44) -> -63,497
C46: EBITDA | K46: =K39+K41 -> -622 | L46: -1,666 | M46: -2,711 | N46: -3,755 | O46: -4,799 | P46: -5,844 | Q46: -6,888 | R46: =R39+R41 -> 15,583 | S46: 15,583 | T46: 15,583 | U46: 15,583 | V46: 15,583 | W46: 15,583 | X46: 16,105 | Y46: 12,551 | Z46: 13,595 | AA46: 14,639 | AB46: 15,684 | AC46: 16,728 | AD46: 17,772 | AE46: -0 | AF46: -0 | AG46: -0 | AH46: -0 | AI46: -0 | AJ46: -0 | AK46: -0 | AL46: -0 | AM46: -0 | AN46: -0 | AO46: -0 | AP46: -0 | AQ46: =AQ39+AQ41 -> -0 | AR46: -0 | AS46: -0 | AT46: -0 | AU46: -0 | AV46: -0 | AW46: -0 | AX46: -0 | AY46: -0 | AZ46: -0 | BA46: -0 | BB46: -0 | BC46: -0 | BD46: -0 | BE46: -0 | BF46: -0 | BG46: -0 | BH46: -0 | BI46: -0 | BK46: =SUM(K46:BI46) -> 174,288
C48: Depreciação / Amortização | K48: =SUM(K49) -> 0 | L48: =SUM(L49) -> 0 | M48: 0 | N48: 0 | O48: 0 | P48: 0 | Q48: 0 | R48: 1,314 | S48: 1,314 | T48: 1,314 | U48: 1,314 | V48: 1,314 | W48: 1,314 | X48: 1,314 | Y48: -4,496 | Z48: -4,496 | AA48: -4,496 | AB48: -4,496 | AC48: -4,496 | AD48: -4,496 | AE48: 0 | AF48: 0 | AG48: 0 | AH48: 0 | AI48: 0 | AJ48: 0 | AK48: 0 | AL48: 0 | AM48: 0 | AN48: 0 | AO48: 0 | AP48: 0 | AQ48: 0 | AR48: 0 | AS48: 0 | AT48: 0 | AU48: 0 | AV48: 0 | AW48: 0 | AX48: 0 | AY48: 0 | AZ48: 0 | BA48: 0 | BB48: 0 | BC48: 0 | BD48: 0 | BE48: 0 | BF48: 0 | BG48: 0 | BH48: 0 | BI48: 0 | BK48: =SUM(K48:BI48) -> -17,779
D49: Amortização das florestas | K49: =-K987 -> 0 | L49: =-L987 -> 0 | M49: 0 | N49: 0 | O49: 0 | P49: 0 | Q49: 0 | R49: 1,314 | S49: 1,314 | T49: 1,314 | U49: 1,314 | V49: 1,314 | W49: 1,314 | X49: 1,314 | Y49: -4,496 | Z49: -4,496 | AA49: -4,496 | AB49: -4,496 | AC49: -4,496 | AD49: -4,496 | AE49: 0 | AF49: 0 | AG49: 0 | AH49: 0 | AI49: 0 | AJ49: 0 | AK49: 0 | AL49: 0 | AM49: 0 | AN49: 0 | AO49: 0 | AP49: 0 | AQ49: 0 | AR49: 0 | AS49: 0 | AT49: 0 | AU49: 0 | AV49: 0 | AW49: 0 | AX49: 0 | AY49: 0 | AZ49: 0 | BA49: 0 | BB49: 0 | BC49: 0 | BD49: 0 | BE49: 0 | BF49: 0 | BG49: 0 | BH49: 0 | BI49: 0 | BK49: =SUM(K49:BI49) -> -17,779
C51: EBIT / EBT | K51: =K46+K48 -> -622 | L51: =L46+L48 -> -1,666 | M51: -2,711 | N51: -3,755 | O51: -4,799 | P51: -5,844 | Q51: -6,888 | R51: =R46+R48 -> 16,897 | S51: 16,897 | T51: 16,897 | U51: 16,897 | V51: 16,897 | W51: 16,897 | X51: 17,419 | Y51: 8,055 | Z51: 9,099 | AA51: 10,143 | AB51: 11,188 | AC51: 12,232 | AD51: 13,276 | AE51: -0 | AF51: -0 | AG51: -0 | AH51: -0 | AI51: -0 | AJ51: -0 | AK51: -0 | AL51: -0 | AM51: -0 | AN51: -0 | AO51: -0 | AP51: -0 | AQ51: -0 | AR51: -0 | AS51: -0 | AT51: -0 | AU51: -0 | AV51: -0 | AW51: -0 | AX51: -0 | AY51: -0 | AZ51: -0 | BA51: -0 | BB51: -0 | BC51: -0 | BD51: -0 | BE51: -0 | BF51: -0 | BG51: -0 | BH51: -0 | BI51: -0 | BK51: =SUM(K51:BI51) -> 156,509
C53: Impostos da renda | K53: =IF($K$1217=0,K1165,K1206) -> 0 | L53: 0 | M53: 0 | N53: 0 | O53: 0 | P53: 0 | Q53: 0 | R53: -933 | S53: -933 | T53: -933 | U53: -933 | V53: -933 | W53: -933 | X53: -933 | Y53: -746 | Z53: -746 | AA53: -746 | AB53: -746 | AC53: -746 | AD53: -746 | AE53: 0 | AF53: 0 | AG53: 0 | AH53: 0 | AI53: 0 | AJ53: 0 | AK53: 0 | AL53: 0 | AM53: 0 | AN53: 0 | AO53: 0 | AP53: 0 | AQ53: =IF($K$1217=0,AQ1165,AQ1206) -> 0 | AR53: 0 | AS53: 0 | AT53: 0 | AU53: 0 | AV53: 0 | AW53: 0 | AX53: 0 | AY53: 0 | AZ53: 0 | BA53: 0 | BB53: 0 | BC53: 0 | BD53: 0 | BE53: 0 | BF53: 0 | BG53: 0 | BH53: 0 | BI53: 0 | BK53: =SUM(K53:BI53) -> -11,004
C55: Lucro líquido | K55: =K51+K53 -> -622 | L55: =L51+L53 -> -1,666 | M55: -2,711 | N55: -3,755 | O55: -4,799 | P55: -5,844 | Q55: -6,888 | R55: =R51+R53 -> 15,964 | S55: 15,964 | T55: 15,964 | U55: 15,964 | V55: 15,964 | W55: 15,964 | X55: 16,486 | Y55: 7,309 | Z55: 8,353 | AA55: 9,397 | AB55: 10,442 | AC55: 11,486 | AD55: 12,530 | AE55: -0 | AF55: -0 | AG55: -0 | AH55: -0 | AI55: -0 | AJ55: -0 | AK55: -0 | AL55: -0 | AM55: -0 | AN55: -0 | AO55: -0 | AP55: -0 | AQ55: -0 | AR55: -0 | AS55: -0 | AT55: -0 | AU55: -0 | AV55: -0 | AW55: -0 | AX55: -0 | AY55: -0 | AZ55: -0 | BA55: -0 | BB55: -0 | BC55: -0 | BD55: -0 | BE55: -0 | BF55: -0 | BG55: -0 | BH55: -0 | BI55: -0 | BK55: =SUM(K55:BI55) -> 145,504
C58: FLUXOS DE CAIXA (MILHARES R$) | K58: 0 | L58: =1+K58 -> 1 | M58: =1+L58 -> 2 | N58: =1+M58 -> 3 | O58: =1+N58 -> 4 | P58: =1+O58 -> 5 | Q58: =1+P58 -> 6 | R58: =1+Q58 -> 7 | S58: =1+R58 -> 8 | T58: =1+S58 -> 9 | U58: =1+T58 -> 10 | V58: =1+U58 -> 11 | W58: =1+V58 -> 12 | X58: =1+W58 -> 13 | Y58: =1+X58 -> 14 | Z58: =1+Y58 -> 15 | AA58: =1+Z58 -> 16 | AB58: =1+AA58 -> 17 | AC58: =1+AB58 -> 18 | AD58: =1+AC58 -> 19 | AE58: =1+AD58 -> 20 | AF58: =1+AE58 -> 21 | AG58: =1+AF58 -> 22 | AH58: =1+AG58 -> 23 | AI58: =1+AH58 -> 24 | AJ58: =1+AI58 -> 25 | AK58: =1+AJ58 -> 26 | AL58: =1+AK58 -> 27 | AM58: =1+AL58 -> 28 | AN58: =1+AM58 -> 29 | AO58: =1+AN58 -> 30 | AP58: =1+AO58 -> 31 | AQ58: =1+AP58 -> 32 | AR58: =1+AQ58 -> 33 | AS58: =1+AR58 -> 34 | AT58: =1+AS58 -> 35 | AU58: =1+AT58 -> 36 | AV58: =1+AU58 -> 37 | AW58: =1+AV58 -> 38 | AX58: =1+AW58 -> 39 | AY58: =1+AX58 -> 40 | AZ58: =1+AY58 -> 41 | BA58: =1+AZ58 -> 42 | BB58: =1+BA58 -> 43 | BC58: =1+BB58 -> 44 | BD58: =1+BC58 -> 45 | BE58: =1+BD58 -> 46 | BF58: =1+BE58 -> 47 | BG58: =1+BF58 -> 48 | BH58: =1+BG58 -> 49 | BI58: =1+BH58 -> 50
C60: Operação | K60: =SUM(K61:K62) -> -622 | L60: =SUM(L61:L62) -> -1,666 | M60: -2,711 | N60: -3,755 | O60: -4,799 | P60: -5,844 | Q60: -6,888 | R60: =SUM(R61:R62) -> 14,650 | S60: 14,650 | T60: 14,650 | U60: 14,650 | V60: 14,650 | W60: 14,650 | X60: 15,172 | Y60: 11,805 | Z60: 12,849 | AA60: 13,894 | AB60: 14,938 | AC60: 15,982 | AD60: 17,026 | AE60: -0 | AF60: -0 | AG60: -0 | AH60: -0 | AI60: -0 | AJ60: -0 | AK60: -0 | AL60: -0 | AM60: -0 | AN60: -0 | AO60: -0 | AP60: -0 | AQ60: -0 | AR60: -0 | AS60: -0 | AT60: -0 | AU60: -0 | AV60: -0 | AW60: -0 | AX60: -0 | AY60: -0 | AZ60: -0 | BA60: -0 | BB60: -0 | BC60: -0 | BD60: -0 | BE60: -0 | BF60: -0 | BG60: -0 | BH60: -0 | BI60: -0 | BK60: =SUM(K60:BI60) -> 163,284
C61: Lucro líquido | K61: =K55 -> -622 | L61: =L55 -> -1,666 | M61: -2,711 | N61: -3,755 | O61: -4,799 | P61: -5,844 | Q61: -6,888 | R61: =R55 -> 15,964 | S61: 15,964 | T61: 15,964 | U61: 15,964 | V61: 15,964 | W61: 15,964 | X61: 16,486 | Y61: 7,309 | Z61: 8,353 | AA61: 9,397 | AB61: 10,442 | AC61: 11,486 | AD61: 12,530 | AE61: -0 | AF61: -0 | AG61: -0 | AH61: -0 | AI61: -0 | AJ61: -0 | AK61: -0 | AL61: -0 | AM61: -0 | AN61: -0 | AO61: -0 | AP61: -0 | AQ61: -0 | AR61: -0 | AS61: -0 | AT61: -0 | AU61: -0 | AV61: -0 | AW61: -0 | AX61: -0 | AY61: -0 | AZ61: -0 | BA61: -0 | BB61: -0 | BC61: -0 | BD61: -0 | BE61: -0 | BF61: -0 | BG61: -0 | BH61: -0 | BI61: -0 | BK61: =SUM(K61:BI61) -> 145,504
C62: - Depreciação / amortização | K62: =-K48 -> 0 | L62: 0 | M62: 0 | N62: 0 | O62: 0 | P62: 0 | Q62: 0 | R62: -1,314 | S62: -1,314 | T62: -1,314 | U62: -1,314 | V62: -1,314 | W62: -1,314 | X62: -1,314 | Y62: 4,496 | Z62: 4,496 | AA62: 4,496 | AB62: 4,496 | AC62: 4,496 | AD62: 4,496 | AE62: 0 | AF62: 0 | AG62: 0 | AH62: 0 | AI62: 0 | AJ62: 0 | AK62: 0 | AL62: 0 | AM62: 0 | AN62: 0 | AO62: 0 | AP62: 0 | AQ62: =-AQ48 -> 0 | AR62: 0 | AS62: 0 | AT62: 0 | AU62: 0 | AV62: 0 | AW62: 0 | AX62: 0 | AY62: 0 | AZ62: 0 | BA62: 0 | BB62: 0 | BC62: 0 | BD62: 0 | BE62: 0 | BF62: 0 | BG62: 0 | BH62: 0 | BI62: 0 | BK62: 17,779
BK63: 0
C64: Investimento | K64: =K65+K66 -> -955 | L64: =L65+L66 -> 765 | M64: 1,184 | N64: 1,207 | O64: 1,251 | P64: 1,296 | Q64: 1,341 | R64: =R65+R66 -> -2,189 | S64: -3,354 | T64: -3,773 | U64: -3,854 | V64: -4,014 | W64: -4,175 | X64: -1,107 | Y64: -522 | Z64: -522 | AA64: -464 | AB64: -348 | AC64: -232 | AD64: -116 | AE64: 0 | AF64: 0 | AG64: 0 | AH64: 0 | AI64: 0 | AJ64: 0 | AK64: 0 | AL64: 0 | AM64: 0 | AN64: 0 | AO64: 0 | AP64: 0 | AQ64: 0 | AR64: 0 | AS64: 0 | AT64: 0 | AU64: 0 | AV64: 0 | AW64: 0 | AX64: 0 | AY64: 0 | AZ64: 0 | BA64: 0 | BB64: 0 | BC64: 0 | BD64: 0 | BE64: 0 | BF64: 0 | BG64: 0 | BH64: 0 | BI64: 0 | BK64: -18,579
C65: Preparação do projeto e do terreno | K65: =-SUM(K994:K996) -> -1,714 | L65: =-SUM(L994:L996) -> -414 | M65: -414 | N65: -414 | O65: -414 | P65: -414 | Q65: -414 | R65: 0 | S65: 0 | T65: 0 | U65: 0 | V65: 0 | W65: 0 | X65: 0 | Y65: 0 | Z65: 0 | AA65: 0 | AB65: 0 | AC65: 0 | AD65: 0 | AE65: 0 | AF65: 0 | AG65: 0 | AH65: 0 | AI65: 0 | AJ65: 0 | AK65: 0 | AL65: 0 | AM65: 0 | AN65: 0 | AO65: 0 | AP65: 0 | AQ65: 0 | AR65: 0 | AS65: 0 | AT65: 0 | AU65: 0 | AV65: 0 | AW65: 0 | AX65: 0 | AY65: 0 | AZ65: 0 | BA65: 0 | BB65: 0 | BC65: 0 | BD65: 0 | BE65: 0 | BF65: 0 | BG65: 0 | BH65: 0 | BI65: 0 | BK65: -4,197
C66: Custos silviculturais | K66: =-(SUM(K1001:K1011)+SUM(K1015:K1025)+SUM(K1029:K1039)+SUM(K1043:K1053)) -> 759 | L66: 1,179 | M66: 1,598 | N66: 1,620 | O66: 1,665 | P66: 1,710 | Q66: 1,755 | R66: -2,189 | S66: -3,354 | T66: -3,773 | U66: -3,854 | V66: -4,014 | W66: -4,175 | X66: -1,107 | Y66: -522 | Z66: -522 | AA66: -464 | AB66: -348 | AC66: -232 | AD66: -116 | AE66: 0 | AF66: 0 | AG66: 0 | AH66: 0 | AI66: 0 | AJ66: 0 | AK66: 0 | AL66: 0 | AM66: 0 | AN66: 0 | AO66: 0 | AP66: 0 | AQ66: =-(SUM(AQ1001:AQ1011)+SUM(AQ1015:AQ1025)+SUM(AQ1029:AQ1039)+SUM(AQ1043:AQ1053)) -> 0 | AR66: 0 | AS66: 0 | AT66: 0 | AU66: 0 | AV66: 0 | AW66: 0 | AX66: 0 | AY66: 0 | AZ66: 0 | BA66: 0 | BB66: 0 | BC66: 0 | BD66: 0 | BE66: 0 | BF66: 0 | BG66: 0 | BH66: 0 | BI66: 0 | BK66: -14,382
BK67: 0
C68: Fluxo de caixa livre | K68: =K60+K64 -> -1,577 | L68: =L60+L64 -> -902 | M68: -1,527 | N68: -2,548 | O68: -3,548 | P68: -4,548 | Q68: -5,547 | R68: =R60+R64 -> 12,462 | S68: =S60+S64 -> 11,297 | T68: 10,877 | U68: 10,797 | V68: 10,636 | W68: 10,475 | X68: 14,066 | Y68: 11,283 | Z68: 12,328 | AA68: 13,430 | AB68: 14,590 | AC68: 15,750 | AD68: 16,911 | AE68: -0 | AF68: -0 | AG68: -0 | AH68: -0 | AI68: -0 | AJ68: -0 | AK68: -0 | AL68: -0 | AM68: -0 | AN68: -0 | AO68: -0 | AP68: -0 | AQ68: -0 | AR68: -0 | AS68: -0 | AT68: -0 | AU68: -0 | AV68: -0 | AW68: -0 | AX68: -0 | AY68: -0 | AZ68: -0 | BA68: -0 | BB68: -0 | BC68: -0 | BD68: -0 | BE68: -0 | BF68: -0 | BG68: -0 | BH68: -0 | BI68: -0 | BK68: 144,704
C69: Fluxo de caixa livre acumulado | K69: =K68 -> -1,577 | L69: =L68+K69 -> -2,479 | M69: =M68+L69 -> -4,005 | N69: =N68+M69 -> -6,554 | O69: -10,102 | P69: -14,649 | Q69: -20,197 | R69: -7,735 | S69: 3,562 | T69: 14,439 | U69: 25,235 | V69: 35,871 | W69: 46,347 | X69: 60,412 | Y69: 71,696 | Z69: 84,023 | AA69: 97,453 | AB69: 112,044 | AC69: 127,794 | AD69: =AD68+AC69 -> 144,704 | AE69: =AE68+AD69 -> 144,704 | AF69: =AF68+AE69 -> 144,704 | AG69: =AG68+AF69 -> 144,704 | AH69: =AH68+AG69 -> 144,704 | AI69: =AI68+AH69 -> 144,704 | AJ69: =AJ68+AI69 -> 144,704 | AK69: =AK68+AJ69 -> 144,704 | AL69: =AL68+AK69 -> 144,704 | AM69: =AM68+AL69 -> 144,704 | AN69: =AN68+AM69 -> 144,704 | AO69: =AO68+AN69 -> 144,704 | AP69: =AP68+AO69 -> 144,704 | AQ69: =AQ68+AP69 -> 144,704 | AR69: =AR68+AQ69 -> 144,704 | AS69: 144,704 | AT69: =AT68+AS69 -> 144,704 | AU69: =AU68+AT69 -> 144,704 | AV69: =AV68+AU69 -> 144,704 | AW69: =AW68+AV69 -> 144,704 | AX69: =AX68+AW69 -> 144,704 | AY69: =AY68+AX69 -> 144,704 | AZ69: =AZ68+AY69 -> 144,704 | BA69: =BA68+AZ69 -> 144,704 | BB69: =BB68+BA69 -> 144,704 | BC69: =BC68+BB69 -> 144,704 | BD69: =BD68+BC69 -> 144,704 | BE69: =BE68+BD69 -> 144,704 | BF69: =BF68+BE69 -> 144,704 | BG69: =BG68+BF69 -> 144,704 | BH69: =BH68+BG69 -> 144,704 | BI69: 144,704
C70: Fluxo de caixa de produção | K70: =K41+K64 -> -1,577 | L70: -902 | M70: -1,527 | N70: -2,548 | O70: -3,548 | P70: -4,548 | Q70: -5,547 | R70: =R41+R64 -> -14,980 | S70: -16,145 | T70: -16,564 | U70: -16,645 | V70: -16,805 | W70: -16,966 | X70: -13,376 | Y70: -10,670 | Z70: -9,626 | AA70: -8,524 | AB70: -7,363 | AC70: -6,203 | AD70: -5,043 | AE70: -0 | AF70: -0 | AG70: -0 | AH70: -0 | AI70: -0 | AJ70: -0 | AK70: -0 | AL70: -0 | AM70: -0 | AN70: -0 | AO70: -0 | AP70: -0 | AQ70: =AQ41+AQ64 -> -0 | AR70: -0 | AS70: -0 | AT70: -0 | AU70: -0 | AV70: -0 | AW70: -0 | AX70: -0 | AY70: -0 | AZ70: -0 | BA70: -0 | BB70: -0 | BC70: -0 | BD70: -0 | BE70: -0 | BF70: -0 | BG70: -0 | BH70: -0 | BI70: -0 | BK70: -179,106
B79: CÁLCULO DETALHADO DOS FLUXOS DE ÁREAS
C81: FLUXOS DE AREAS (HECTARES)
C82: Ano | K82: 0 | L82: =1+K82 -> 1 | M82: =1+L82 -> 2 | N82: =1+M82 -> 3 | O82: =1+N82 -> 4 | P82: =1+O82 -> 5 | Q82: =1+P82 -> 6 | R82: =1+Q82 -> 7 | S82: =1+R82 -> 8 | T82: =1+S82 -> 9 | U82: =1+T82 -> 10 | V82: =1+U82 -> 11 | W82: =1+V82 -> 12 | X82: =1+W82 -> 13 | Y82: =1+X82 -> 14 | Z82: =1+Y82 -> 15 | AA82: =1+Z82 -> 16 | AB82: =1+AA82 -> 17 | AC82: =1+AB82 -> 18 | AD82: =1+AC82 -> 19 | AE82: =1+AD82 -> 20 | AF82: =1+AE82 -> 21 | AG82: =1+AF82 -> 22 | AH82: =1+AG82 -> 23 | AI82: =1+AH82 -> 24 | AJ82: =1+AI82 -> 25 | AK82: =1+AJ82 -> 26 | AL82: =1+AK82 -> 27 | AM82: =1+AL82 -> 28 | AN82: =1+AM82 -> 29 | AO82: =1+AN82 -> 30 | AP82: =1+AO82 -> 31 | AQ82: =1+AP82 -> 32 | AR82: =1+AQ82 -> 33 | AS82: =1+AR82 -> 34 | AT82: =1+AS82 -> 35 | AU82: =1+AT82 -> 36 | AV82: =1+AU82 -> 37 | AW82: =1+AV82 -> 38 | AX82: =1+AW82 -> 39 | AY82: =1+AX82 -> 40 | AZ82: =1+AY82 -> 41 | BA82: =1+AZ82 -> 42 | BB82: =1+BA82 -> 43 | BC82: =1+BB82 -> 44 | BD82: =1+BC82 -> 45 | BE82: =1+BD82 -> 46 | BF82: =1+BE82 -> 47 | BG82: =1+BF82 -> 48 | BH82: =1+BG82 -> 49 | BI82: =1+BH82 -> 50
C83: Preparação do terreno | K83: =IF(K22<Premissas!$G$61,Premissas!$G$19/Premissas!$G$61,0) -> 1,429 | L83: =IF(L22<Premissas!$G$61,Premissas!$G$19/Premissas!$G$61,0) -> 1,429 | M83: =IF(M22<Premissas!$G$61,Premissas!$G$19/Premissas!$G$61,0) -> 1,429 | N83: =IF(N22<Premissas!$G$61,Premissas!$G$19/Premissas!$G$61,0) -> 1,429 | O83: =IF(O22<Premissas!$G$61,Premissas!$G$19/Premissas!$G$61,0) -> 1,429 | P83: =IF(P22<Premissas!$G$61,Premissas!$G$19/Premissas!$G$61,0) -> 1,429 | Q83: =IF(Q22<Premissas!$G$61,Premissas!$G$19/Premissas!$G$61,0) -> 1,429 | R83: =IF(R22<Premissas!$G$61,Premissas!$G$19/Premissas!$G$61,0) -> 0 | S83: =IF(S22<Premissas!$G$61,Premissas!$G$19/Premissas!$G$61,0) -> 0 | T83: =IF(T22<Premissas!$G$61,Premissas!$G$19/Premissas!$G$61,0) -> 0 | U83: =IF(U22<Premissas!$G$61,Premissas!$G$19/Premissas!$G$61,0) -> 0 | V83: =IF(V22<Premissas!$G$61,Premissas!$G$19/Premissas!$G$61,0) -> 0 | W83: =IF(W22<Premissas!$G$61,Premissas!$G$19/Premissas!$G$61,0) -> 0 | X83: =IF(X22<Premissas!$G$61,Premissas!$G$19/Premissas!$G$61,0) -> 0 | Y83: =IF(Y22<Premissas!$G$61,Premissas!$G$19/Premissas!$G$61,0) -> 0 | Z83: =IF(Z22<Premissas!$G$61,Premissas!$G$19/Premissas!$G$61,0) -> 0 | AA83: =IF(AA22<Premissas!$G$61,Premissas!$G$19/Premissas!$G$61,0) -> 0 | AB83: =IF(AB22<Premissas!$G$61,Premissas!$G$19/Premissas!$G$61,0) -> 0 | AC83: =IF(AC22<Premissas!$G$61,Premissas!$G$19/Premissas!$G$61,0) -> 0 | AD83: =IF(AD22<Premissas!$G$61,Premissas!$G$19/Premissas!$G$61,0) -> 0 | AE83: =IF(AE22<Premissas!$G$61,Premissas!$G$19/Premissas!$G$61,0) -> 0 | AF83: =IF(AF22<Premissas!$G$61,Premissas!$G$19/Premissas!$G$61,0) -> 0 | AG83: =IF(AG22<Premissas!$G$61,Premissas!$G$19/Premissas!$G$61,0) -> 0 | AH83: =IF(AH22<Premissas!$G$61,Premissas!$G$19/Premissas!$G$61,0) -> 0 | AI83: =IF(AI22<Premissas!$G$61,Premissas!$G$19/Premissas!$G$61,0) -> 0 | AJ83: =IF(AJ22<Premissas!$G$61,Premissas!$G$19/Premissas!$G$61,0) -> 0 | AK83: =IF(AK22<Premissas!$G$61,Premissas!$G$19/Premissas!$G$61,0) -> 0 | AL83: =IF(AL22<Premissas!$G$61,Premissas!$G$19/Premissas!$G$61,0) -> 0 | AM83: =IF(AM22<Premissas!$G$61,Premissas!$G$19/Premissas!$G$61,0) -> 0 | AN83: =IF(AN22<Premissas!$G$61,Premissas!$G$19/Premissas!$G$61,0) -> 0 | AO83: =IF(AO22<Premissas!$G$61,Premissas!$G$19/Premissas!$G$61,0) -> 0 | AP83: =IF(AP22<Premissas!$G$61,Premissas!$G$19/Premissas!$G$61,0) -> 0 | AQ83: =IF(AQ22<Premissas!$G$61,Premissas!$G$19/Premissas!$G$61,0) -> 0 | AR83: =IF(AR22<Premissas!$G$61,Premissas!$G$19/Premissas!$G$61,0) -> 0 | AS83: =IF(AS22<Premissas!$G$61,Premissas!$G$19/Premissas!$G$61,0) -> 0 | AT83: =IF(AT22<Premissas!$G$61,Premissas!$G$19/Premissas!$G$61,0) -> 0 | AU83: =IF(AU22<Premissas!$G$61,Premissas!$G$19/Premissas!$G$61,0) -> 0 | AV83: =IF(AV22<Premissas!$G$61,Premissas!$G$19/Premissas!$G$61,0) -> 0 | AW83: =IF(AW22<Premissas!$G$61,Premissas!$G$19/Premissas!$G$61,0) -> 0 | AX83: =IF(AX22<Premissas!$G$61,Premissas!$G$19/Premissas!$G$61,0) -> 0 | AY83: =IF(AY22<Premissas!$G$61,Premissas!$G$19/Premissas!$G$61,0) -> 0 | AZ83: =IF(AZ22<Premissas!$G$61,Premissas!$G$19/Premissas!$G$61,0) -> 0 | BA83: =IF(BA22<Premissas!$G$61,Premissas!$G$19/Premissas!$G$61,0) -> 0 | BB83: =IF(BB22<Premissas!$G$61,Premissas!$G$19/Premissas!$G$61,0) -> 0 | BC83: =IF(BC22<Premissas!$G$61,Premissas!$G$19/Premissas!$G$61,0) -> 0 | BD83: =IF(BD22<Premissas!$G$61,Premissas!$G$19/Premissas!$G$61,0) -> 0 | BE83: =IF(BE22<Premissas!$G$61,Premissas!$G$19/Premissas!$G$61,0) -> 0 | BF83: =IF(BF22<Premissas!$G$61,Premissas!$G$19/Premissas!$G$61,0) -> 0 | BG83: =IF(BG22<Premissas!$G$61,Premissas!$G$19/Premissas!$G$61,0) -> 0 | BH83: =IF(BH22<Premissas!$G$61,Premissas!$G$19/Premissas!$G$61,0) -> 0 | BI83: =IF(BI22<Premissas!$G$61,Premissas!$G$19/Premissas!$G$61,0) -> 0
C85: Ciclo 1 - Rotação 1 | K85: =K22 -> 0 | L85: =1+K85 -> 1 | M85: =1+L85 -> 2 | N85: 3 | O85: 4 | P85: 5 | Q85: 6 | R85: 7 | S85: 8 | T85: 9 | U85: 10 | V85: 11 | W85: 12 | X85: 13 | Y85: 14 | Z85: 15 | AA85: 16 | AB85: 17 | AC85: 18 | AD85: 19 | AE85: 20 | AF85: 21 | AG85: 22 | AH85: 23 | AI85: 24 | AJ85: 25 | AK85: 26 | AL85: 27 | AM85: 28 | AN85: 29 | AO85: 30 | AP85: 31 | AQ85: 32 | AR85: 33 | AS85: 34 | AT85: 35 | AU85: 36 | AV85: 37 | AW85: 38 | AX85: 39 | AY85: 40 | AZ85: 41 | BA85: 42 | BB85: 43 | BC85: 44 | BD85: 45 | BE85: 46 | BF85: 47 | BG85: 48 | BH85: 49 | BI85: 50
C86: 0 | D86: Implantação / reforma | K86: =K83 -> 1,429 | L86: =L83 -> 1,429 | M86: 1,429 | N86: 1,429 | O86: 1,429 | P86: 1,429 | Q86: 1,429 | R86: 0 | S86: 0 | T86: 0 | U86: 0 | V86: 0 | W86: 0 | X86: 0 | Y86: 0 | Z86: 0 | AA86: 0 | AB86: 0 | AC86: 0 | AD86: 0 | AE86: 0 | AF86: 0 | AG86: 0 | AH86: 0 | AI86: 0 | AJ86: 0 | AK86: 0 | AL86: 0 | AM86: 0 | AN86: 0 | AO86: 0 | AP86: 0 | AQ86: 0 | AR86: 0 | AS86: 0 | AT86: 0 | AU86: 0 | AV86: 0 | AW86: 0 | AX86: 0 | AY86: 0 | AZ86: 0 | BA86: 0 | BB86: 0 | BC86: 0 | BD86: 0 | BE86: 0 | BF86: 0 | BG86: 0 | BH86: 0 | BI86: 0 | BK86: =SUM(K86:BI86) -> 10,000
C87: 1 | D87: Manutenção - 1 ano | L87: =IF($C87>Premissas!$G$60,0,K86) -> 1,429 | M87: =IF($C87>Premissas!$G$60,0,L86) -> 1,429 | N87: =IF($C87>Premissas!$G$60,0,M86) -> 1,429 | O87: =IF($C87>Premissas!$G$60,0,N86) -> 1,429 | P87: =IF($C87>Premissas!$G$60,0,O86) -> 1,429 | Q87: =IF($C87>Premissas!$G$60,0,P86) -> 1,429 | R87: =IF($C87>Premissas!$G$60,0,Q86) -> 1,429 | S87: =IF($C87>Premissas!$G$60,0,R86) -> 0 | T87: =IF($C87>Premissas!$G$60,0,S86) -> 0 | U87: =IF($C87>Premissas!$G$60,0,T86) -> 0 | V87: =IF($C87>Premissas!$G$60,0,U86) -> 0 | W87: =IF($C87>Premissas!$G$60,0,V86) -> 0 | X87: =IF($C87>Premissas!$G$60,0,W86) -> 0 | Y87: =IF($C87>Premissas!$G$60,0,X86) -> 0 | Z87: =IF($C87>Premissas!$G$60,0,Y86) -> 0 | AA87: =IF($C87>Premissas!$G$60,0,Z86) -> 0 | AB87: =IF($C87>Premissas!$G$60,0,AA86) -> 0 | AC87: =IF($C87>Premissas!$G$60,0,AB86) -> 0 | AD87: =IF($C87>Premissas!$G$60,0,AC86) -> 0 | AE87: =IF($C87>Premissas!$G$60,0,AD86) -> 0 | AF87: =IF($C87>Premissas!$G$60,0,AE86) -> 0 | AG87: =IF($C87>Premissas!$G$60,0,AF86) -> 0 | AH87: =IF($C87>Premissas!$G$60,0,AG86) -> 0 | AI87: =IF($C87>Premissas!$G$60,0,AH86) -> 0 | AJ87: =IF($C87>Premissas!$G$60,0,AI86) -> 0 | AK87: =IF($C87>Premissas!$G$60,0,AJ86) -> 0 | AL87: =IF($C87>Premissas!$G$60,0,AK86) -> 0 | AM87: =IF($C87>Premissas!$G$60,0,AL86) -> 0 | AN87: =IF($C87>Premissas!$G$60,0,AM86) -> 0 | AO87: =IF($C87>Premissas!$G$60,0,AN86) -> 0 | AP87: =IF($C87>Premissas!$G$60,0,AO86) -> 0 | AQ87: =IF($C87>Premissas!$G$60,0,AP86) -> 0 | AR87: =IF($C87>Premissas!$G$60,0,AQ86) -> 0 | AS87: =IF($C87>Premissas!$G$60,0,AR86) -> 0 | AT87: =IF($C87>Premissas!$G$60,0,AS86) -> 0 | AU87: =IF($C87>Premissas!$G$60,0,AT86) -> 0 | AV87: =IF($C87>Premissas!$G$60,0,AU86) -> 0 | AW87: =IF($C87>Premissas!$G$60,0,AV86) -> 0 | AX87: =IF($C87>Premissas!$G$60,0,AW86) -> 0 | AY87: =IF($C87>Premissas!$G$60,0,AX86) -> 0 | AZ87: =IF($C87>Premissas!$G$60,0,AY86) -> 0 | BA87: =IF($C87>Premissas!$G$60,0,AZ86) -> 0 | BB87: =IF($C87>Premissas!$G$60,0,BA86) -> 0 | BC87: =IF($C87>Premissas!$G$60,0,BB86) -> 0 | BD87: =IF($C87>Premissas!$G$60,0,BC86) -> 0 | BE87: =IF($C87>Premissas!$G$60,0,BD86) -> 0 | BF87: =IF($C87>Premissas!$G$60,0,BE86) -> 0 | BG87: =IF($C87>Premissas!$G$60,0,BF86) -> 0 | BH87: =IF($C87>Premissas!$G$60,0,BG86) -> 0 | BI87: =IF($C87>Premissas!$G$60,0,BH86) -> 0 | BK87: 10,000
C88: 2 | D88: Manutenção - 2 anos | M88: =IF($C88>Premissas!$G$60,0,L87) -> 1,429 | N88: =IF($C88>Premissas!$G$60,0,M87) -> 1,429 | O88: =IF($C88>Premissas!$G$60,0,N87) -> 1,429 | P88: =IF($C88>Premissas!$G$60,0,O87) -> 1,429 | Q88: =IF($C88>Premissas!$G$60,0,P87) -> 1,429 | R88: =IF($C88>Premissas!$G$60,0,Q87) -> 1,429 | S88: =IF($C88>Premissas!$G$60,0,R87) -> 1,429 | T88: =IF($C88>Premissas!$G$60,0,S87) -> 0 | U88: =IF($C88>Premissas!$G$60,0,T87) -> 0 | V88: =IF($C88>Premissas!$G$60,0,U87) -> 0 | W88: =IF($C88>Premissas!$G$60,0,V87) -> 0 | X88: =IF($C88>Premissas!$G$60,0,W87) -> 0 | Y88: =IF($C88>Premissas!$G$60,0,X87) -> 0 | Z88: =IF($C88>Premissas!$G$60,0,Y87) -> 0 | AA88: =IF($C88>Premissas!$G$60,0,Z87) -> 0 | AB88: =IF($C88>Premissas!$G$60,0,AA87) -> 0 | AC88: =IF($C88>Premissas!$G$60,0,AB87) -> 0 | AD88: =IF($C88>Premissas!$G$60,0,AC87) -> 0 | AE88: =IF($C88>Premissas!$G$60,0,AD87) -> 0 | AF88: =IF($C88>Premissas!$G$60,0,AE87) -> 0 | AG88: =IF($C88>Premissas!$G$60,0,AF87) -> 0 | AH88: =IF($C88>Premissas!$G$60,0,AG87) -> 0 | AI88: =IF($C88>Premissas!$G$60,0,AH87) -> 0 | AJ88: =IF($C88>Premissas!$G$60,0,AI87) -> 0 | AK88: =IF($C88>Premissas!$G$60,0,AJ87) -> 0 | AL88: =IF($C88>Premissas!$G$60,0,AK87) -> 0 | AM88: =IF($C88>Premissas!$G$60,0,AL87) -> 0 | AN88: =IF($C88>Premissas!$G$60,0,AM87) -> 0 | AO88: =IF($C88>Premissas!$G$60,0,AN87) -> 0 | AP88: =IF($C88>Premissas!$G$60,0,AO87) -> 0 | AQ88: =IF($C88>Premissas!$G$60,0,AP87) -> 0 | AR88: =IF($C88>Premissas!$G$60,0,AQ87) -> 0 | AS88: =IF($C88>Premissas!$G$60,0,AR87) -> 0 | AT88: =IF($C88>Premissas!$G$60,0,AS87) -> 0 | AU88: =IF($C88>Premissas!$G$60,0,AT87) -> 0 | AV88: =IF($C88>Premissas!$G$60,0,AU87) -> 0 | AW88: =IF($C88>Premissas!$G$60,0,AV87) -> 0 | AX88: =IF($C88>Premissas!$G$60,0,AW87) -> 0 | AY88: =IF($C88>Premissas!$G$60,0,AX87) -> 0 | AZ88: =IF($C88>Premissas!$G$60,0,AY87) -> 0 | BA88: =IF($C88>Premissas!$G$60,0,AZ87) -> 0 | BB88: =IF($C88>Premissas!$G$60,0,BA87) -> 0 | BC88: =IF($C88>Premissas!$G$60,0,BB87) -> 0 | BD88: =IF($C88>Premissas!$G$60,0,BC87) -> 0 | BE88: =IF($C88>Premissas!$G$60,0,BD87) -> 0 | BF88: =IF($C88>Premissas!$G$60,0,BE87) -> 0 | BG88: =IF($C88>Premissas!$G$60,0,BF87) -> 0 | BH88: =IF($C88>Premissas!$G$60,0,BG87) -> 0 | BI88: =IF($C88>Premissas!$G$60,0,BH87) -> 0 | BK88: 10,000
C89: 3 | D89: Manutenção - 3 anos | N89: =IF($C89>Premissas!$G$60,0,M88) -> 1,429 | O89: =IF($C89>Premissas!$G$60,0,N88) -> 1,429 | P89: =IF($C89>Premissas!$G$60,0,O88) -> 1,429 | Q89: =IF($C89>Premissas!$G$60,0,P88) -> 1,429 | R89: =IF($C89>Premissas!$G$60,0,Q88) -> 1,429 | S89: =IF($C89>Premissas!$G$60,0,R88) -> 1,429 | T89: =IF($C89>Premissas!$G$60,0,S88) -> 1,429 | U89: =IF($C89>Premissas!$G$60,0,T88) -> 0 | V89: =IF($C89>Premissas!$G$60,0,U88) -> 0 | W89: =IF($C89>Premissas!$G$60,0,V88) -> 0 | X89: =IF($C89>Premissas!$G$60,0,W88) -> 0 | Y89: =IF($C89>Premissas!$G$60,0,X88) -> 0 | Z89: =IF($C89>Premissas!$G$60,0,Y88) -> 0 | AA89: =IF($C89>Premissas!$G$60,0,Z88) -> 0 | AB89: =IF($C89>Premissas!$G$60,0,AA88) -> 0 | AC89: =IF($C89>Premissas!$G$60,0,AB88) -> 0 | AD89: =IF($C89>Premissas!$G$60,0,AC88) -> 0 | AE89: =IF($C89>Premissas!$G$60,0,AD88) -> 0 | AF89: =IF($C89>Premissas!$G$60,0,AE88) -> 0 | AG89: =IF($C89>Premissas!$G$60,0,AF88) -> 0 | AH89: =IF($C89>Premissas!$G$60,0,AG88) -> 0 | AI89: =IF($C89>Premissas!$G$60,0,AH88) -> 0 | AJ89: =IF($C89>Premissas!$G$60,0,AI88) -> 0 | AK89: =IF($C89>Premissas!$G$60,0,AJ88) -> 0 | AL89: =IF($C89>Premissas!$G$60,0,AK88) -> 0 | AM89: =IF($C89>Premissas!$G$60,0,AL88) -> 0 | AN89: =IF($C89>Premissas!$G$60,0,AM88) -> 0 | AO89: =IF($C89>Premissas!$G$60,0,AN88) -> 0 | AP89: =IF($C89>Premissas!$G$60,0,AO88) -> 0 | AQ89: =IF($C89>Premissas!$G$60,0,AP88) -> 0 | AR89: =IF($C89>Premissas!$G$60,0,AQ88) -> 0 | AS89: =IF($C89>Premissas!$G$60,0,AR88) -> 0 | AT89: =IF($C89>Premissas!$G$60,0,AS88) -> 0 | AU89: =IF($C89>Premissas!$G$60,0,AT88) -> 0 | AV89: =IF($C89>Premissas!$G$60,0,AU88) -> 0 | AW89: =IF($C89>Premissas!$G$60,0,AV88) -> 0 | AX89: =IF($C89>Premissas!$G$60,0,AW88) -> 0 | AY89: =IF($C89>Premissas!$G$60,0,AX88) -> 0 | AZ89: =IF($C89>Premissas!$G$60,0,AY88) -> 0 | BA89: =IF($C89>Premissas!$G$60,0,AZ88) -> 0 | BB89: =IF($C89>Premissas!$G$60,0,BA88) -> 0 | BC89: =IF($C89>Premissas!$G$60,0,BB88) -> 0 | BD89: =IF($C89>Premissas!$G$60,0,BC88) -> 0 | BE89: =IF($C89>Premissas!$G$60,0,BD88) -> 0 | BF89: =IF($C89>Premissas!$G$60,0,BE88) -> 0 | BG89: =IF($C89>Premissas!$G$60,0,BF88) -> 0 | BH89: =IF($C89>Premissas!$G$60,0,BG88) -> 0 | BI89: =IF($C89>Premissas!$G$60,0,BH88) -> 0 | BK89: 10,000
C90: 4 | D90: Manutenção - 4 anos | O90: =IF($C90>Premissas!$G$60,0,N89) -> 1,429 | P90: =IF($C90>Premissas!$G$60,0,O89) -> 1,429 | Q90: =IF($C90>Premissas!$G$60,0,P89) -> 1,429 | R90: =IF($C90>Premissas!$G$60,0,Q89) -> 1,429 | S90: =IF($C90>Premissas!$G$60,0,R89) -> 1,429 | T90: =IF($C90>Premissas!$G$60,0,S89) -> 1,429 | U90: =IF($C90>Premissas!$G$60,0,T89) -> 1,429 | V90: =IF($C90>Premissas!$G$60,0,U89) -> 0 | W90: =IF($C90>Premissas!$G$60,0,V89) -> 0 | X90: =IF($C90>Premissas!$G$60,0,W89) -> 0 | Y90: =IF($C90>Premissas!$G$60,0,X89) -> 0 | Z90: =IF($C90>Premissas!$G$60,0,Y89) -> 0 | AA90: =IF($C90>Premissas!$G$60,0,Z89) -> 0 | AB90: =IF($C90>Premissas!$G$60,0,AA89) -> 0 | AC90: =IF($C90>Premissas!$G$60,0,AB89) -> 0 | AD90: =IF($C90>Premissas!$G$60,0,AC89) -> 0 | AE90: =IF($C90>Premissas!$G$60,0,AD89) -> 0 | AF90: =IF($C90>Premissas!$G$60,0,AE89) -> 0 | AG90: =IF($C90>Premissas!$G$60,0,AF89) -> 0 | AH90: =IF($C90>Premissas!$G$60,0,AG89) -> 0 | AI90: =IF($C90>Premissas!$G$60,0,AH89) -> 0 | AJ90: =IF($C90>Premissas!$G$60,0,AI89) -> 0 | AK90: =IF($C90>Premissas!$G$60,0,AJ89) -> 0 | AL90: =IF($C90>Premissas!$G$60,0,AK89) -> 0 | AM90: =IF($C90>Premissas!$G$60,0,AL89) -> 0 | AN90: =IF($C90>Premissas!$G$60,0,AM89) -> 0 | AO90: =IF($C90>Premissas!$G$60,0,AN89) -> 0 | AP90: =IF($C90>Premissas!$G$60,0,AO89) -> 0 | AQ90: =IF($C90>Premissas!$G$60,0,AP89) -> 0 | AR90: =IF($C90>Premissas!$G$60,0,AQ89) -> 0 | AS90: =IF($C90>Premissas!$G$60,0,AR89) -> 0 | AT90: =IF($C90>Premissas!$G$60,0,AS89) -> 0 | AU90: =IF($C90>Premissas!$G$60,0,AT89) -> 0 | AV90: =IF($C90>Premissas!$G$60,0,AU89) -> 0 | AW90: =IF($C90>Premissas!$G$60,0,AV89) -> 0 | AX90: =IF($C90>Premissas!$G$60,0,AW89) -> 0 | AY90: =IF($C90>Premissas!$G$60,0,AX89) -> 0 | AZ90: =IF($C90>Premissas!$G$60,0,AY89) -> 0 | BA90: =IF($C90>Premissas!$G$60,0,AZ89) -> 0 | BB90: =IF($C90>Premissas!$G$60,0,BA89) -> 0 | BC90: =IF($C90>Premissas!$G$60,0,BB89) -> 0 | BD90: =IF($C90>Premissas!$G$60,0,BC89) -> 0 | BE90: =IF($C90>Premissas!$G$60,0,BD89) -> 0 | BF90: =IF($C90>Premissas!$G$60,0,BE89) -> 0 | BG90: =IF($C90>Premissas!$G$60,0,BF89) -> 0 | BH90: =IF($C90>Premissas!$G$60,0,BG89) -> 0 | BI90: =IF($C90>Premissas!$G$60,0,BH89) -> 0 | BK90: 10,000
C91: 5 | D91: Manutenção - 5 anos | P91: =IF($C91>Premissas!$G$60,0,O90) -> 1,429 | Q91: =IF($C91>Premissas!$G$60,0,P90) -> 1,429 | R91: =IF($C91>Premissas!$G$60,0,Q90) -> 1,429 | S91: =IF($C91>Premissas!$G$60,0,R90) -> 1,429 | T91: =IF($C91>Premissas!$G$60,0,S90) -> 1,429 | U91: =IF($C91>Premissas!$G$60,0,T90) -> 1,429 | V91: =IF($C91>Premissas!$G$60,0,U90) -> 1,429 | W91: =IF($C91>Premissas!$G$60,0,V90) -> 0 | X91: =IF($C91>Premissas!$G$60,0,W90) -> 0 | Y91: =IF($C91>Premissas!$G$60,0,X90) -> 0 | Z91: =IF($C91>Premissas!$G$60,0,Y90) -> 0 | AA91: =IF($C91>Premissas!$G$60,0,Z90) -> 0 | AB91: =IF($C91>Premissas!$G$60,0,AA90) -> 0 | AC91: =IF($C91>Premissas!$G$60,0,AB90) -> 0 | AD91: =IF($C91>Premissas!$G$60,0,AC90) -> 0 | AE91: =IF($C91>Premissas!$G$60,0,AD90) -> 0 | AF91: =IF($C91>Premissas!$G$60,0,AE90) -> 0 | AG91: =IF($C91>Premissas!$G$60,0,AF90) -> 0 | AH91: =IF($C91>Premissas!$G$60,0,AG90) -> 0 | AI91: =IF($C91>Premissas!$G$60,0,AH90) -> 0 | AJ91: =IF($C91>Premissas!$G$60,0,AI90) -> 0 | AK91: =IF($C91>Premissas!$G$60,0,AJ90) -> 0 | AL91: =IF($C91>Premissas!$G$60,0,AK90) -> 0 | AM91: =IF($C91>Premissas!$G$60,0,AL90) -> 0 | AN91: =IF($C91>Premissas!$G$60,0,AM90) -> 0 | AO91: =IF($C91>Premissas!$G$60,0,AN90) -> 0 | AP91: =IF($C91>Premissas!$G$60,0,AO90) -> 0 | AQ91: =IF($C91>Premissas!$G$60,0,AP90) -> 0 | AR91: =IF($C91>Premissas!$G$60,0,AQ90) -> 0 | AS91: =IF($C91>Premissas!$G$60,0,AR90) -> 0 | AT91: =IF($C91>Premissas!$G$60,0,AS90) -> 0 | AU91: =IF($C91>Premissas!$G$60,0,AT90) -> 0 | AV91: =IF($C91>Premissas!$G$60,0,AU90) -> 0 | AW91: =IF($C91>Premissas!$G$60,0,AV90) -> 0 | AX91: =IF($C91>Premissas!$G$60,0,AW90) -> 0 | AY91: =IF($C91>Premissas!$G$60,0,AX90) -> 0 | AZ91: =IF($C91>Premissas!$G$60,0,AY90) -> 0 | BA91: =IF($C91>Premissas!$G$60,0,AZ90) -> 0 | BB91: =IF($C91>Premissas!$G$60,0,BA90) -> 0 | BC91: =IF($C91>Premissas!$G$60,0,BB90) -> 0 | BD91: =IF($C91>Premissas!$G$60,0,BC90) -> 0 | BE91: =IF($C91>Premissas!$G$60,0,BD90) -> 0 | BF91: =IF($C91>Premissas!$G$60,0,BE90) -> 0 | BG91: =IF($C91>Premissas!$G$60,0,BF90) -> 0 | BH91: =IF($C91>Premissas!$G$60,0,BG90) -> 0 | BI91: =IF($C91>Premissas!$G$60,0,BH90) -> 0 | BK91: 10,000
C92: 6 | D92: Manutenção - 6 anos | Q92: =IF($C92>Premissas!$G$60,0,P91) -> 1,429 | R92: =IF($C92>Premissas!$G$60,0,Q91) -> 1,429 | S92: =IF($C92>Premissas!$G$60,0,R91) -> 1,429 | T92: =IF($C92>Premissas!$G$60,0,S91) -> 1,429 | U92: =IF($C92>Premissas!$G$60,0,T91) -> 1,429 | V92: =IF($C92>Premissas!$G$60,0,U91) -> 1,429 | W92: =IF($C92>Premissas!$G$60,0,V91) -> 1,429 | X92: =IF($C92>Premissas!$G$60,0,W91) -> 0 | Y92: =IF($C92>Premissas!$G$60,0,X91) -> 0 | Z92: =IF($C92>Premissas!$G$60,0,Y91) -> 0 | AA92: =IF($C92>Premissas!$G$60,0,Z91) -> 0 | AB92: =IF($C92>Premissas!$G$60,0,AA91) -> 0 | AC92: =IF($C92>Premissas!$G$60,0,AB91) -> 0 | AD92: =IF($C92>Premissas!$G$60,0,AC91) -> 0 | AE92: =IF($C92>Premissas!$G$60,0,AD91) -> 0 | AF92: =IF($C92>Premissas!$G$60,0,AE91) -> 0 | AG92: =IF($C92>Premissas!$G$60,0,AF91) -> 0 | AH92: =IF($C92>Premissas!$G$60,0,AG91) -> 0 | AI92: =IF($C92>Premissas!$G$60,0,AH91) -> 0 | AJ92: =IF($C92>Premissas!$G$60,0,AI91) -> 0 | AK92: =IF($C92>Premissas!$G$60,0,AJ91) -> 0 | AL92: =IF($C92>Premissas!$G$60,0,AK91) -> 0 | AM92: =IF($C92>Premissas!$G$60,0,AL91) -> 0 | AN92: =IF($C92>Premissas!$G$60,0,AM91) -> 0 | AO92: =IF($C92>Premissas!$G$60,0,AN91) -> 0 | AP92: =IF($C92>Premissas!$G$60,0,AO91) -> 0 | AQ92: =IF($C92>Premissas!$G$60,0,AP91) -> 0 | AR92: =IF($C92>Premissas!$G$60,0,AQ91) -> 0 | AS92: =IF($C92>Premissas!$G$60,0,AR91) -> 0 | AT92: =IF($C92>Premissas!$G$60,0,AS91) -> 0 | AU92: =IF($C92>Premissas!$G$60,0,AT91) -> 0 | AV92: =IF($C92>Premissas!$G$60,0,AU91) -> 0 | AW92: =IF($C92>Premissas!$G$60,0,AV91) -> 0 | AX92: =IF($C92>Premissas!$G$60,0,AW91) -> 0 | AY92: =IF($C92>Premissas!$G$60,0,AX91) -> 0 | AZ92: =IF($C92>Premissas!$G$60,0,AY91) -> 0 | BA92: =IF($C92>Premissas!$G$60,0,AZ91) -> 0 | BB92: =IF($C92>Premissas!$G$60,0,BA91) -> 0 | BC92: =IF($C92>Premissas!$G$60,0,BB91) -> 0 | BD92: =IF($C92>Premissas!$G$60,0,BC91) -> 0 | BE92: =IF($C92>Premissas!$G$60,0,BD91) -> 0 | BF92: =IF($C92>Premissas!$G$60,0,BE91) -> 0 | BG92: =IF($C92>Premissas!$G$60,0,BF91) -> 0 | BH92: =IF($C92>Premissas!$G$60,0,BG91) -> 0 | BI92: =IF($C92>Premissas!$G$60,0,BH91) -> 0 | BK92: 10,000
C93: 7 | D93: Manutenção - 7 anos | R93: =IF($C93>Premissas!$G$60,0,Q92) -> 1,429 | S93: =IF($C93>Premissas!$G$60,0,R92) -> 1,429 | T93: =IF($C93>Premissas!$G$60,0,S92) -> 1,429 | U93: =IF($C93>Premissas!$G$60,0,T92) -> 1,429 | V93: =IF($C93>Premissas!$G$60,0,U92) -> 1,429 | W93: =IF($C93>Premissas!$G$60,0,V92) -> 1,429 | X93: =IF($C93>Premissas!$G$60,0,W92) -> 1,429 | Y93: =IF($C93>Premissas!$G$60,0,X92) -> 0 | Z93: =IF($C93>Premissas!$G$60,0,Y92) -> 0 | AA93: =IF($C93>Premissas!$G$60,0,Z92) -> 0 | AB93: =IF($C93>Premissas!$G$60,0,AA92) -> 0 | AC93: =IF($C93>Premissas!$G$60,0,AB92) -> 0 | AD93: =IF($C93>Premissas!$G$60,0,AC92) -> 0 | AE93: =IF($C93>Premissas!$G$60,0,AD92) -> 0 | AF93: =IF($C93>Premissas!$G$60,0,AE92) -> 0 | AG93: =IF($C93>Premissas!$G$60,0,AF92) -> 0 | AH93: =IF($C93>Premissas!$G$60,0,AG92) -> 0 | AI93: =IF($C93>Premissas!$G$60,0,AH92) -> 0 | AJ93: =IF($C93>Premissas!$G$60,0,AI92) -> 0 | AK93: =IF($C93>Premissas!$G$60,0,AJ92) -> 0 | AL93: =IF($C93>Premissas!$G$60,0,AK92) -> 0 | AM93: =IF($C93>Premissas!$G$60,0,AL92) -> 0 | AN93: =IF($C93>Premissas!$G$60,0,AM92) -> 0 | AO93: =IF($C93>Premissas!$G$60,0,AN92) -> 0 | AP93: =IF($C93>Premissas!$G$60,0,AO92) -> 0 | AQ93: =IF($C93>Premissas!$G$60,0,AP92) -> 0 | AR93: =IF($C93>Premissas!$G$60,0,AQ92) -> 0 | AS93: =IF($C93>Premissas!$G$60,0,AR92) -> 0 | AT93: =IF($C93>Premissas!$G$60,0,AS92) -> 0 | AU93: =IF($C93>Premissas!$G$60,0,AT92) -> 0 | AV93: =IF($C93>Premissas!$G$60,0,AU92) -> 0 | AW93: =IF($C93>Premissas!$G$60,0,AV92) -> 0 | AX93: =IF($C93>Premissas!$G$60,0,AW92) -> 0 | AY93: =IF($C93>Premissas!$G$60,0,AX92) -> 0 | AZ93: =IF($C93>Premissas!$G$60,0,AY92) -> 0 | BA93: =IF($C93>Premissas!$G$60,0,AZ92) -> 0 | BB93: =IF($C93>Premissas!$G$60,0,BA92) -> 0 | BC93: =IF($C93>Premissas!$G$60,0,BB92) -> 0 | BD93: =IF($C93>Premissas!$G$60,0,BC92) -> 0 | BE93: =IF($C93>Premissas!$G$60,0,BD92) -> 0 | BF93: =IF($C93>Premissas!$G$60,0,BE92) -> 0 | BG93: =IF($C93>Premissas!$G$60,0,BF92) -> 0 | BH93: =IF($C93>Premissas!$G$60,0,BG92) -> 0 | BI93: =IF($C93>Premissas!$G$60,0,BH92) -> 0 | BK93: 10,000
C94: 8 | D94: Manutenção - 8 anos | S94: =IF($C94>Premissas!$G$60,0,R93) -> 0 | T94: =IF($C94>Premissas!$G$60,0,S93) -> 0 | U94: =IF($C94>Premissas!$G$60,0,T93) -> 0 | V94: =IF($C94>Premissas!$G$60,0,U93) -> 0 | W94: =IF($C94>Premissas!$G$60,0,V93) -> 0 | X94: =IF($C94>Premissas!$G$60,0,W93) -> 0 | Y94: =IF($C94>Premissas!$G$60,0,X93) -> 0 | Z94: =IF($C94>Premissas!$G$60,0,Y93) -> 0 | AA94: =IF($C94>Premissas!$G$60,0,Z93) -> 0 | AB94: =IF($C94>Premissas!$G$60,0,AA93) -> 0 | AC94: =IF($C94>Premissas!$G$60,0,AB93) -> 0 | AD94: =IF($C94>Premissas!$G$60,0,AC93) -> 0 | AE94: =IF($C94>Premissas!$G$60,0,AD93) -> 0 | AF94: =IF($C94>Premissas!$G$60,0,AE93) -> 0 | AG94: =IF($C94>Premissas!$G$60,0,AF93) -> 0 | AH94: =IF($C94>Premissas!$G$60,0,AG93) -> 0 | AI94: =IF($C94>Premissas!$G$60,0,AH93) -> 0 | AJ94: =IF($C94>Premissas!$G$60,0,AI93) -> 0 | AK94: =IF($C94>Premissas!$G$60,0,AJ93) -> 0 | AL94: =IF($C94>Premissas!$G$60,0,AK93) -> 0 | AM94: =IF($C94>Premissas!$G$60,0,AL93) -> 0 | AN94: =IF($C94>Premissas!$G$60,0,AM93) -> 0 | AO94: =IF($C94>Premissas!$G$60,0,AN93) -> 0 | AP94: =IF($C94>Premissas!$G$60,0,AO93) -> 0 | AQ94: =IF($C94>Premissas!$G$60,0,AP93) -> 0 | AR94: =IF($C94>Premissas!$G$60,0,AQ93) -> 0 | AS94: =IF($C94>Premissas!$G$60,0,AR93) -> 0 | AT94: =IF($C94>Premissas!$G$60,0,AS93) -> 0 | AU94: =IF($C94>Premissas!$G$60,0,AT93) -> 0 | AV94: =IF($C94>Premissas!$G$60,0,AU93) -> 0 | AW94: =IF($C94>Premissas!$G$60,0,AV93) -> 0 | AX94: =IF($C94>Premissas!$G$60,0,AW93) -> 0 | AY94: =IF($C94>Premissas!$G$60,0,AX93) -> 0 | AZ94: =IF($C94>Premissas!$G$60,0,AY93) -> 0 | BA94: =IF($C94>Premissas!$G$60,0,AZ93) -> 0 | BB94: =IF($C94>Premissas!$G$60,0,BA93) -> 0 | BC94: =IF($C94>Premissas!$G$60,0,BB93) -> 0 | BD94: =IF($C94>Premissas!$G$60,0,BC93) -> 0 | BE94: =IF($C94>Premissas!$G$60,0,BD93) -> 0 | BF94: =IF($C94>Premissas!$G$60,0,BE93) -> 0 | BG94: =IF($C94>Premissas!$G$60,0,BF93) -> 0 | BH94: =IF($C94>Premissas!$G$60,0,BG93) -> 0 | BI94: =IF($C94>Premissas!$G$60,0,BH93) -> 0 | BK94: 0
C95: 9 | D95: Manutenção - 9 anos | T95: =IF($C95>Premissas!$G$60,0,S94) -> 0 | U95: =IF($C95>Premissas!$G$60,0,T94) -> 0 | V95: =IF($C95>Premissas!$G$60,0,U94) -> 0 | W95: =IF($C95>Premissas!$G$60,0,V94) -> 0 | X95: =IF($C95>Premissas!$G$60,0,W94) -> 0 | Y95: =IF($C95>Premissas!$G$60,0,X94) -> 0 | Z95: =IF($C95>Premissas!$G$60,0,Y94) -> 0 | AA95: =IF($C95>Premissas!$G$60,0,Z94) -> 0 | AB95: =IF($C95>Premissas!$G$60,0,AA94) -> 0 | AC95: =IF($C95>Premissas!$G$60,0,AB94) -> 0 | AD95: =IF($C95>Premissas!$G$60,0,AC94) -> 0 | AE95: =IF($C95>Premissas!$G$60,0,AD94) -> 0 | AF95: =IF($C95>Premissas!$G$60,0,AE94) -> 0 | AG95: =IF($C95>Premissas!$G$60,0,AF94) -> 0 | AH95: =IF($C95>Premissas!$G$60,0,AG94) -> 0 | AI95: =IF($C95>Premissas!$G$60,0,AH94) -> 0 | AJ95: =IF($C95>Premissas!$G$60,0,AI94) -> 0 | AK95: =IF($C95>Premissas!$G$60,0,AJ94) -> 0 | AL95: =IF($C95>Premissas!$G$60,0,AK94) -> 0 | AM95: =IF($C95>Premissas!$G$60,0,AL94) -> 0 | AN95: =IF($C95>Premissas!$G$60,0,AM94) -> 0 | AO95: =IF($C95>Premissas!$G$60,0,AN94) -> 0 | AP95: =IF($C95>Premissas!$G$60,0,AO94) -> 0 | AQ95: =IF($C95>Premissas!$G$60,0,AP94) -> 0 | AR95: =IF($C95>Premissas!$G$60,0,AQ94) -> 0 | AS95: =IF($C95>Premissas!$G$60,0,AR94) -> 0 | AT95: =IF($C95>Premissas!$G$60,0,AS94) -> 0 | AU95: =IF($C95>Premissas!$G$60,0,AT94) -> 0 | AV95: =IF($C95>Premissas!$G$60,0,AU94) -> 0 | AW95: =IF($C95>Premissas!$G$60,0,AV94) -> 0 | AX95: =IF($C95>Premissas!$G$60,0,AW94) -> 0 | AY95: =IF($C95>Premissas!$G$60,0,AX94) -> 0 | AZ95: =IF($C95>Premissas!$G$60,0,AY94) -> 0 | BA95: =IF($C95>Premissas!$G$60,0,AZ94) -> 0 | BB95: =IF($C95>Premissas!$G$60,0,BA94) -> 0 | BC95: =IF($C95>Premissas!$G$60,0,BB94) -> 0 | BD95: =IF($C95>Premissas!$G$60,0,BC94) -> 0 | BE95: =IF($C95>Premissas!$G$60,0,BD94) -> 0 | BF95: =IF($C95>Premissas!$G$60,0,BE94) -> 0 | BG95: =IF($C95>Premissas!$G$60,0,BF94) -> 0 | BH95: =IF($C95>Premissas!$G$60,0,BG94) -> 0 | BI95: =IF($C95>Premissas!$G$60,0,BH94) -> 0 | BK95: 0
C96: 10 | D96: Manutenção - 10 anos | U96: =IF($C96>Premissas!$G$60,0,T95) -> 0 | V96: =IF($C96>Premissas!$G$60,0,U95) -> 0 | W96: =IF($C96>Premissas!$G$60,0,V95) -> 0 | X96: =IF($C96>Premissas!$G$60,0,W95) -> 0 | Y96: =IF($C96>Premissas!$G$60,0,X95) -> 0 | Z96: =IF($C96>Premissas!$G$60,0,Y95) -> 0 | AA96: =IF($C96>Premissas!$G$60,0,Z95) -> 0 | AB96: =IF($C96>Premissas!$G$60,0,AA95) -> 0 | AC96: =IF($C96>Premissas!$G$60,0,AB95) -> 0 | AD96: =IF($C96>Premissas!$G$60,0,AC95) -> 0 | AE96: =IF($C96>Premissas!$G$60,0,AD95) -> 0 | AF96: =IF($C96>Premissas!$G$60,0,AE95) -> 0 | AG96: =IF($C96>Premissas!$G$60,0,AF95) -> 0 | AH96: =IF($C96>Premissas!$G$60,0,AG95) -> 0 | AI96: =IF($C96>Premissas!$G$60,0,AH95) -> 0 | AJ96: =IF($C96>Premissas!$G$60,0,AI95) -> 0 | AK96: =IF($C96>Premissas!$G$60,0,AJ95) -> 0 | AL96: =IF($C96>Premissas!$G$60,0,AK95) -> 0 | AM96: =IF($C96>Premissas!$G$60,0,AL95) -> 0 | AN96: =IF($C96>Premissas!$G$60,0,AM95) -> 0 | AO96: =IF($C96>Premissas!$G$60,0,AN95) -> 0 | AP96: =IF($C96>Premissas!$G$60,0,AO95) -> 0 | AQ96: =IF($C96>Premissas!$G$60,0,AP95) -> 0 | AR96: =IF($C96>Premissas!$G$60,0,AQ95) -> 0 | AS96: =IF($C96>Premissas!$G$60,0,AR95) -> 0 | AT96: =IF($C96>Premissas!$G$60,0,AS95) -> 0 | AU96: =IF($C96>Premissas!$G$60,0,AT95) -> 0 | AV96: =IF($C96>Premissas!$G$60,0,AU95) -> 0 | AW96: =IF($C96>Premissas!$G$60,0,AV95) -> 0 | AX96: =IF($C96>Premissas!$G$60,0,AW95) -> 0 | AY96: =IF($C96>Premissas!$G$60,0,AX95) -> 0 | AZ96: =IF($C96>Premissas!$G$60,0,AY95) -> 0 | BA96: =IF($C96>Premissas!$G$60,0,AZ95) -> 0 | BB96: =IF($C96>Premissas!$G$60,0,BA95) -> 0 | BC96: =IF($C96>Premissas!$G$60,0,BB95) -> 0 | BD96: =IF($C96>Premissas!$G$60,0,BC95) -> 0 | BE96: =IF($C96>Premissas!$G$60,0,BD95) -> 0 | BF96: =IF($C96>Premissas!$G$60,0,BE95) -> 0 | BG96: =IF($C96>Premissas!$G$60,0,BF95) -> 0 | BH96: =IF($C96>Premissas!$G$60,0,BG95) -> 0 | BI96: =IF($C96>Premissas!$G$60,0,BH95) -> 0 | BK96: 0
C97: =Premissas!$G$60 -> 7 | D97: Colheita | P97: =IF(Premissas!$G$60=5,K86,IF(Premissas!$G$60=6,J86,IF(Premissas!$G$60=7,I86,IF(Premissas!$G$60=8,H86,IF(Premissas!$G$60=9,G86,IF(Premissas!$G$60=10,F86,"ERRO")))))) -> 0 | Q97: =IF(Premissas!$G$60=5,L86,IF(Premissas!$G$60=6,K86,IF(Premissas!$G$60=7,J86,IF(Premissas!$G$60=8,I86,IF(Premissas!$G$60=9,H86,IF(Premissas!$G$60=10,G86,"ERRO")))))) -> 0 | R97: =IF(Premissas!$G$60=5,M86,IF(Premissas!$G$60=6,L86,IF(Premissas!$G$60=7,K86,IF(Premissas!$G$60=8,J86,IF(Premissas!$G$60=9,I86,IF(Premissas!$G$60=10,H86,"ERRO")))))) -> 1,429 | S97: =IF(Premissas!$G$60=5,N86,IF(Premissas!$G$60=6,M86,IF(Premissas!$G$60=7,L86,IF(Premissas!$G$60=8,K86,IF(Premissas!$G$60=9,J86,IF(Premissas!$G$60=10,I86,"ERRO")))))) -> 1,429 | T97: =IF(Premissas!$G$60=5,O86,IF(Premissas!$G$60=6,N86,IF(Premissas!$G$60=7,M86,IF(Premissas!$G$60=8,L86,IF(Premissas!$G$60=9,K86,IF(Premissas!$G$60=10,J86,"ERRO")))))) -> 1,429 | U97: =IF(Premissas!$G$60=5,P86,IF(Premissas!$G$60=6,O86,IF(Premissas!$G$60=7,N86,IF(Premissas!$G$60=8,M86,IF(Premissas!$G$60=9,L86,IF(Premissas!$G$60=10,K86,"ERRO")))))) -> 1,429 | V97: =IF(Premissas!$G$60=5,Q86,IF(Premissas!$G$60=6,P86,IF(Premissas!$G$60=7,O86,IF(Premissas!$G$60=8,N86,IF(Premissas!$G$60=9,M86,IF(Premissas!$G$60=10,L86,"ERRO")))))) -> 1,429 | W97: =IF(Premissas!$G$60=5,R86,IF(Premissas!$G$60=6,Q86,IF(Premissas!$G$60=7,P86,IF(Premissas!$G$60=8,O86,IF(Premissas!$G$60=9,N86,IF(Premissas!$G$60=10,M86,"ERRO")))))) -> 1,429 | X97: =IF(Premissas!$G$60=5,S86,IF(Premissas!$G$60=6,R86,IF(Premissas!$G$60=7,Q86,IF(Premissas!$G$60=8,P86,IF(Premissas!$G$60=9,O86,IF(Premissas!$G$60=10,N86,"ERRO")))))) -> 1,429 | Y97: =IF(Premissas!$G$60=5,T86,IF(Premissas!$G$60=6,S86,IF(Premissas!$G$60=7,R86,IF(Premissas!$G$60=8,Q86,IF(Premissas!$G$60=9,P86,IF(Premissas!$G$60=10,O86,"ERRO")))))) -> 0 | Z97: =IF(Premissas!$G$60=5,U86,IF(Premissas!$G$60=6,T86,IF(Premissas!$G$60=7,S86,IF(Premissas!$G$60=8,R86,IF(Premissas!$G$60=9,Q86,IF(Premissas!$G$60=10,P86,"ERRO")))))) -> 0 | AA97: =IF(Premissas!$G$60=5,V86,IF(Premissas!$G$60=6,U86,IF(Premissas!$G$60=7,T86,IF(Premissas!$G$60=8,S86,IF(Premissas!$G$60=9,R86,IF(Premissas!$G$60=10,Q86,"ERRO")))))) -> 0 | AB97: =IF(Premissas!$G$60=5,W86,IF(Premissas!$G$60=6,V86,IF(Premissas!$G$60=7,U86,IF(Premissas!$G$60=8,T86,IF(Premissas!$G$60=9,S86,IF(Premissas!$G$60=10,R86,"ERRO")))))) -> 0 | AC97: =IF(Premissas!$G$60=5,X86,IF(Premissas!$G$60=6,W86,IF(Premissas!$G$60=7,V86,IF(Premissas!$G$60=8,U86,IF(Premissas!$G$60=9,T86,IF(Premissas!$G$60=10,S86,"ERRO")))))) -> 0 | AD97: =IF(Premissas!$G$60=5,Y86,IF(Premissas!$G$60=6,X86,IF(Premissas!$G$60=7,W86,IF(Premissas!$G$60=8,V86,IF(Premissas!$G$60=9,U86,IF(Premissas!$G$60=10,T86,"ERRO")))))) -> 0 | AE97: =IF(Premissas!$G$60=5,Z86,IF(Premissas!$G$60=6,Y86,IF(Premissas!$G$60=7,X86,IF(Premissas!$G$60=8,W86,IF(Premissas!$G$60=9,V86,IF(Premissas!$G$60=10,U86,"ERRO")))))) -> 0 | AF97: =IF(Premissas!$G$60=5,AA86,IF(Premissas!$G$60=6,Z86,IF(Premissas!$G$60=7,Y86,IF(Premissas!$G$60=8,X86,IF(Premissas!$G$60=9,W86,IF(Premissas!$G$60=10,V86,"ERRO")))))) -> 0 | AG97: =IF(Premissas!$G$60=5,AB86,IF(Premissas!$G$60=6,AA86,IF(Premissas!$G$60=7,Z86,IF(Premissas!$G$60=8,Y86,IF(Premissas!$G$60=9,X86,IF(Premissas!$G$60=10,W86,"ERRO")))))) -> 0 | AH97: =IF(Premissas!$G$60=5,AC86,IF(Premissas!$G$60=6,AB86,IF(Premissas!$G$60=7,AA86,IF(Premissas!$G$60=8,Z86,IF(Premissas!$G$60=9,Y86,IF(Premissas!$G$60=10,X86,"ERRO")))))) -> 0 | AI97: =IF(Premissas!$G$60=5,AD86,IF(Premissas!$G$60=6,AC86,IF(Premissas!$G$60=7,AB86,IF(Premissas!$G$60=8,AA86,IF(Premissas!$G$60=9,Z86,IF(Premissas!$G$60=10,Y86,"ERRO")))))) -> 0 | AJ97: =IF(Premissas!$G$60=5,AE86,IF(Premissas!$G$60=6,AD86,IF(Premissas!$G$60=7,AC86,IF(Premissas!$G$60=8,AB86,IF(Premissas!$G$60=9,AA86,IF(Premissas!$G$60=10,Z86,"ERRO")))))) -> 0 | AK97: =IF(Premissas!$G$60=5,AF86,IF(Premissas!$G$60=6,AE86,IF(Premissas!$G$60=7,AD86,IF(Premissas!$G$60=8,AC86,IF(Premissas!$G$60=9,AB86,IF(Premissas!$G$60=10,AA86,"ERRO")))))) -> 0 | AL97: =IF(Premissas!$G$60=5,AG86,IF(Premissas!$G$60=6,AF86,IF(Premissas!$G$60=7,AE86,IF(Premissas!$G$60=8,AD86,IF(Premissas!$G$60=9,AC86,IF(Premissas!$G$60=10,AB86,"ERRO")))))) -> 0 | AM97: =IF(Premissas!$G$60=5,AH86,IF(Premissas!$G$60=6,AG86,IF(Premissas!$G$60=7,AF86,IF(Premissas!$G$60=8,AE86,IF(Premissas!$G$60=9,AD86,IF(Premissas!$G$60=10,AC86,"ERRO")))))) -> 0 | AN97: =IF(Premissas!$G$60=5,AI86,IF(Premissas!$G$60=6,AH86,IF(Premissas!$G$60=7,AG86,IF(Premissas!$G$60=8,AF86,IF(Premissas!$G$60=9,AE86,IF(Premissas!$G$60=10,AD86,"ERRO")))))) -> 0 | AO97: =IF(Premissas!$G$60=5,AJ86,IF(Premissas!$G$60=6,AI86,IF(Premissas!$G$60=7,AH86,IF(Premissas!$G$60=8,AG86,IF(Premissas!$G$60=9,AF86,IF(Premissas!$G$60=10,AE86,"ERRO")))))) -> 0 | AP97: =IF(Premissas!$G$60=5,AK86,IF(Premissas!$G$60=6,AJ86,IF(Premissas!$G$60=7,AI86,IF(Premissas!$G$60=8,AH86,IF(Premissas!$G$60=9,AG86,IF(Premissas!$G$60=10,AF86,"ERRO")))))) -> 0 | AQ97: =IF(Premissas!$G$60=5,AL86,IF(Premissas!$G$60=6,AK86,IF(Premissas!$G$60=7,AJ86,IF(Premissas!$G$60=8,AI86,IF(Premissas!$G$60=9,AH86,IF(Premissas!$G$60=10,AG86,"ERRO")))))) -> 0 | AR97: =IF(Premissas!$G$60=5,AM86,IF(Premissas!$G$60=6,AL86,IF(Premissas!$G$60=7,AK86,IF(Premissas!$G$60=8,AJ86,IF(Premissas!$G$60=9,AI86,IF(Premissas!$G$60=10,AH86,"ERRO")))))) -> 0 | AS97: =IF(Premissas!$G$60=5,AN86,IF(Premissas!$G$60=6,AM86,IF(Premissas!$G$60=7,AL86,IF(Premissas!$G$60=8,AK86,IF(Premissas!$G$60=9,AJ86,IF(Premissas!$G$60=10,AI86,"ERRO")))))) -> 0 | AT97: =IF(Premissas!$G$60=5,AO86,IF(Premissas!$G$60=6,AN86,IF(Premissas!$G$60=7,AM86,IF(Premissas!$G$60=8,AL86,IF(Premissas!$G$60=9,AK86,IF(Premissas!$G$60=10,AJ86,"ERRO")))))) -> 0 | AU97: =IF(Premissas!$G$60=5,AP86,IF(Premissas!$G$60=6,AO86,IF(Premissas!$G$60=7,AN86,IF(Premissas!$G$60=8,AM86,IF(Premissas!$G$60=9,AL86,IF(Premissas!$G$60=10,AK86,"ERRO")))))) -> 0 | AV97: =IF(Premissas!$G$60=5,AQ86,IF(Premissas!$G$60=6,AP86,IF(Premissas!$G$60=7,AO86,IF(Premissas!$G$60=8,AN86,IF(Premissas!$G$60=9,AM86,IF(Premissas!$G$60=10,AL86,"ERRO")))))) -> 0 | AW97: =IF(Premissas!$G$60=5,AR86,IF(Premissas!$G$60=6,AQ86,IF(Premissas!$G$60=7,AP86,IF(Premissas!$G$60=8,AO86,IF(Premissas!$G$60=9,AN86,IF(Premissas!$G$60=10,AM86,"ERRO")))))) -> 0 | AX97: =IF(Premissas!$G$60=5,AS86,IF(Premissas!$G$60=6,AR86,IF(Premissas!$G$60=7,AQ86,IF(Premissas!$G$60=8,AP86,IF(Premissas!$G$60=9,AO86,IF(Premissas!$G$60=10,AN86,"ERRO")))))) -> 0 | AY97: =IF(Premissas!$G$60=5,AT86,IF(Premissas!$G$60=6,AS86,IF(Premissas!$G$60=7,AR86,IF(Premissas!$G$60=8,AQ86,IF(Premissas!$G$60=9,AP86,IF(Premissas!$G$60=10,AO86,"ERRO")))))) -> 0 | AZ97: =IF(Premissas!$G$60=5,AU86,IF(Premissas!$G$60=6,AT86,IF(Premissas!$G$60=7,AS86,IF(Premissas!$G$60=8,AR86,IF(Premissas!$G$60=9,AQ86,IF(Premissas!$G$60=10,AP86,"ERRO")))))) -> 0 | BA97: =IF(Premissas!$G$60=5,AV86,IF(Premissas!$G$60=6,AU86,IF(Premissas!$G$60=7,AT86,IF(Premissas!$G$60=8,AS86,IF(Premissas!$G$60=9,AR86,IF(Premissas!$G$60=10,AQ86,"ERRO")))))) -> 0 | BB97: =IF(Premissas!$G$60=5,AW86,IF(Premissas!$G$60=6,AV86,IF(Premissas!$G$60=7,AU86,IF(Premissas!$G$60=8,AT86,IF(Premissas!$G$60=9,AS86,IF(Premissas!$G$60=10,AR86,"ERRO")))))) -> 0 | BC97: =IF(Premissas!$G$60=5,AX86,IF(Premissas!$G$60=6,AW86,IF(Premissas!$G$60=7,AV86,IF(Premissas!$G$60=8,AU86,IF(Premissas!$G$60=9,AT86,IF(Premissas!$G$60=10,AS86,"ERRO")))))) -> 0 | BD97: =IF(Premissas!$G$60=5,AY86,IF(Premissas!$G$60=6,AX86,IF(Premissas!$G$60=7,AW86,IF(Premissas!$G$60=8,AV86,IF(Premissas!$G$60=9,AU86,IF(Premissas!$G$60=10,AT86,"ERRO")))))) -> 0 | BE97: =IF(Premissas!$G$60=5,AZ86,IF(Premissas!$G$60=6,AY86,IF(Premissas!$G$60=7,AX86,IF(Premissas!$G$60=8,AW86,IF(Premissas!$G$60=9,AV86,IF(Premissas!$G$60=10,AU86,"ERRO")))))) -> 0 | BF97: =IF(Premissas!$G$60=5,BA86,IF(Premissas!$G$60=6,AZ86,IF(Premissas!$G$60=7,AY86,IF(Premissas!$G$60=8,AX86,IF(Premissas!$G$60=9,AW86,IF(Premissas!$G$60=10,AV86,"ERRO")))))) -> 0 | BG97: =IF(Premissas!$G$60=5,BB86,IF(Premissas!$G$60=6,BA86,IF(Premissas!$G$60=7,AZ86,IF(Premissas!$G$60=8,AY86,IF(Premissas!$G$60=9,AX86,IF(Premissas!$G$60=10,AW86,"ERRO")))))) -> 0 | BH97: =IF(Premissas!$G$60=5,BC86,IF(Premissas!$G$60=6,BB86,IF(Premissas!$G$60=7,BA86,IF(Premissas!$G$60=8,AZ86,IF(Premissas!$G$60=9,AY86,IF(Premissas!$G$60=10,AX86,"ERRO")))))) -> 0 | BI97: =IF(Premissas!$G$60=5,BD86,IF(Premissas!$G$60=6,BC86,IF(Premissas!$G$60=7,BB86,IF(Premissas!$G$60=8,BA86,IF(Premissas!$G$60=9,AZ86,IF(Premissas!$G$60=10,AY86,"ERRO")))))) -> 0 | BK97: 10,000
C99: Ciclo 1 - Rotação 2 | K99: =K85 -> 0 | L99: =L85 -> 1 | M99: 2 | N99: 3 | O99: 4 | P99: 5 | Q99: 6 | R99: 7 | S99: 8 | T99: 9 | U99: 10 | V99: 11 | W99: 12 | X99: 13 | Y99: 14 | Z99: 15 | AA99: 16 | AB99: 17 | AC99: 18 | AD99: 19 | AE99: 20 | AF99: 21 | AG99: 22 | AH99: 23 | AI99: 24 | AJ99: 25 | AK99: 26 | AL99: 27 | AM99: 28 | AN99: 29 | AO99: 30 | AP99: 31 | AQ99: 32 | AR99: 33 | AS99: 34 | AT99: 35 | AU99: 36 | AV99: 37 | AW99: 38 | AX99: 39 | AY99: 40 | AZ99: 41 | BA99: 42 | BB99: 43 | BC99: 44 | BD99: 45 | BE99: 46 | BF99: 47 | BG99: 48 | BH99: 49 | BI99: 50
C100: 0 | D100: Condução de broto | K100: =IF(AND(Premissas!$G$59>1,K$85<=Premissas!$G$64),K97,0) -> 0 | L100: =IF(AND(Premissas!$G$59>1,L$85<=Premissas!$G$64),L97,0) -> 0 | M100: =IF(AND(Premissas!$G$59>1,M$85<=Premissas!$G$64),M97,0) -> 0 | N100: =IF(AND(Premissas!$G$59>1,N$85<=Premissas!$G$64),N97,0) -> 0 | O100: =IF(AND(Premissas!$G$59>1,O$85<=Premissas!$G$64),O97,0) -> 0 | P100: =IF(AND(Premissas!$G$59>1,P$85<=Premissas!$G$64),P97,0) -> 0 | Q100: =IF(AND(Premissas!$G$59>1,Q$85<=Premissas!$G$64),Q97,0) -> 0 | R100: =IF(AND(Premissas!$G$59>1,R$85<=Premissas!$G$64),R97,0) -> 1,429 | S100: =IF(AND(Premissas!$G$59>1,S$85<=Premissas!$G$64),S97,0) -> 1,429 | T100: =IF(AND(Premissas!$G$59>1,T$85<=Premissas!$G$64),T97,0) -> 1,429 | U100: =IF(AND(Premissas!$G$59>1,U$85<=Premissas!$G$64),U97,0) -> 1,429 | V100: =IF(AND(Premissas!$G$59>1,V$85<=Premissas!$G$64),V97,0) -> 1,429 | W100: =IF(AND(Premissas!$G$59>1,W$85<=Premissas!$G$64),W97,0) -> 1,429 | X100: =IF(AND(Premissas!$G$59>1,X$85<=Premissas!$G$64),X97,0) -> 0 | Y100: =IF(AND(Premissas!$G$59>1,Y$85<=Premissas!$G$64),Y97,0) -> 0 | Z100: =IF(AND(Premissas!$G$59>1,Z$85<=Premissas!$G$64),Z97,0) -> 0 | AA100: =IF(AND(Premissas!$G$59>1,AA$85<=Premissas!$G$64),AA97,0) -> 0 | AB100: =IF(AND(Premissas!$G$59>1,AB$85<=Premissas!$G$64),AB97,0) -> 0 | AC100: =IF(AND(Premissas!$G$59>1,AC$85<=Premissas!$G$64),AC97,0) -> 0 | AD100: =IF(AND(Premissas!$G$59>1,AD$85<=Premissas!$G$64),AD97,0) -> 0 | AE100: =IF(AND(Premissas!$G$59>1,AE$85<=Premissas!$G$64),AE97,0) -> 0 | AF100: =IF(AND(Premissas!$G$59>1,AF$85<=Premissas!$G$64),AF97,0) -> 0 | AG100: =IF(AND(Premissas!$G$59>1,AG$85<=Premissas!$G$64),AG97,0) -> 0 | AH100: =IF(AND(Premissas!$G$59>1,AH$85<=Premissas!$G$64),AH97,0) -> 0 | AI100: =IF(AND(Premissas!$G$59>1,AI$85<=Premissas!$G$64),AI97,0) -> 0 | AJ100: =IF(AND(Premissas!$G$59>1,AJ$85<=Premissas!$G$64),AJ97,0) -> 0 | AK100: =IF(AND(Premissas!$G$59>1,AK$85<=Premissas!$G$64),AK97,0) -> 0 | AL100: =IF(AND(Premissas!$G$59>1,AL$85<=Premissas!$G$64),AL97,0) -> 0 | AM100: =IF(AND(Premissas!$G$59>1,AM$85<=Premissas!$G$64),AM97,0) -> 0 | AN100: =IF(AND(Premissas!$G$59>1,AN$85<=Premissas!$G$64),AN97,0) -> 0 | AO100: =IF(AND(Premissas!$G$59>1,AO$85<=Premissas!$G$64),AO97,0) -> 0 | AP100: =IF(AND(Premissas!$G$59>1,AP$85<=Premissas!$G$64),AP97,0) -> 0 | AQ100: =IF(AND(Premissas!$G$59>1,AQ$85<=Premissas!$G$64),AQ97,0) -> 0 | AR100: =IF(AND(Premissas!$G$59>1,AR$85<=Premissas!$G$64),AR97,0) -> 0 | AS100: =IF(AND(Premissas!$G$59>1,AS$85<=Premissas!$G$64),AS97,0) -> 0 | AT100: =IF(AND(Premissas!$G$59>1,AT$85<=Premissas!$G$64),AT97,0) -> 0 | AU100: =IF(AND(Premissas!$G$59>1,AU$85<=Premissas!$G$64),AU97,0) -> 0 | AV100: =IF(AND(Premissas!$G$59>1,AV$85<=Premissas!$G$64),AV97,0) -> 0 | AW100: =IF(AND(Premissas!$G$59>1,AW$85<=Premissas!$G$64),AW97,0) -> 0 | AX100: =IF(AND(Premissas!$G$59>1,AX$85<=Premissas!$G$64),AX97,0) -> 0 | AY100: =IF(AND(Premissas!$G$59>1,AY$85<=Premissas!$G$64),AY97,0) -> 0 | AZ100: =IF(AND(Premissas!$G$59>1,AZ$85<=Premissas!$G$64),AZ97,0) -> 0 | BA100: =IF(AND(Premissas!$G$59>1,BA$85<=Premissas!$G$64),BA97,0) -> 0 | BB100: =IF(AND(Premissas!$G$59>1,BB$85<=Premissas!$G$64),BB97,0) -> 0 | BC100: =IF(AND(Premissas!$G$59>1,BC$85<=Premissas!$G$64),BC97,0) -> 0 | BD100: =IF(AND(Premissas!$G$59>1,BD$85<=Premissas!$G$64),BD97,0) -> 0 | BE100: =IF(AND(Premissas!$G$59>1,BE$85<=Premissas!$G$64),BE97,0) -> 0 | BF100: =IF(AND(Premissas!$G$59>1,BF$85<=Premissas!$G$64),BF97,0) -> 0 | BG100: =IF(AND(Premissas!$G$59>1,BG$85<=Premissas!$G$64),BG97,0) -> 0 | BH100: =IF(AND(Premissas!$G$59>1,BH$85<=Premissas!$G$64),BH97,0) -> 0 | BI100: =IF(AND(Premissas!$G$59>1,BI$85<=Premissas!$G$64),BI97,0) -> 0 | BK100: =SUM(K100:BI100) -> 8,571
C101: 1 | D101: Manutenção - 1 ano | L101: =IF($C101>Premissas!$G$60,0,K100) -> 0 | M101: =IF($C101>Premissas!$G$60,0,L100) -> 0 | N101: =IF($C101>Premissas!$G$60,0,M100) -> 0 | O101: =IF($C101>Premissas!$G$60,0,N100) -> 0 | P101: =IF($C101>Premissas!$G$60,0,O100) -> 0 | Q101: =IF($C101>Premissas!$G$60,0,P100) -> 0 | R101: =IF($C101>Premissas!$G$60,0,Q100) -> 0 | S101: =IF($C101>Premissas!$G$60,0,R100) -> 1,429 | T101: =IF($C101>Premissas!$G$60,0,S100) -> 1,429 | U101: =IF($C101>Premissas!$G$60,0,T100) -> 1,429 | V101: =IF($C101>Premissas!$G$60,0,U100) -> 1,429 | W101: =IF($C101>Premissas!$G$60,0,V100) -> 1,429 | X101: =IF($C101>Premissas!$G$60,0,W100) -> 1,429 | Y101: =IF($C101>Premissas!$G$60,0,X100) -> 0 | Z101: =IF($C101>Premissas!$G$60,0,Y100) -> 0 | AA101: =IF($C101>Premissas!$G$60,0,Z100) -> 0 | AB101: =IF($C101>Premissas!$G$60,0,AA100) -> 0 | AC101: =IF($C101>Premissas!$G$60,0,AB100) -> 0 | AD101: =IF($C101>Premissas!$G$60,0,AC100) -> 0 | AE101: =IF($C101>Premissas!$G$60,0,AD100) -> 0 | AF101: =IF($C101>Premissas!$G$60,0,AE100) -> 0 | AG101: =IF($C101>Premissas!$G$60,0,AF100) -> 0 | AH101: =IF($C101>Premissas!$G$60,0,AG100) -> 0 | AI101: =IF($C101>Premissas!$G$60,0,AH100) -> 0 | AJ101: =IF($C101>Premissas!$G$60,0,AI100) -> 0 | AK101: =IF($C101>Premissas!$G$60,0,AJ100) -> 0 | AL101: =IF($C101>Premissas!$G$60,0,AK100) -> 0 | AM101: =IF($C101>Premissas!$G$60,0,AL100) -> 0 | AN101: =IF($C101>Premissas!$G$60,0,AM100) -> 0 | AO101: =IF($C101>Premissas!$G$60,0,AN100) -> 0 | AP101: =IF($C101>Premissas!$G$60,0,AO100) -> 0 | AQ101: =IF($C101>Premissas!$G$60,0,AP100) -> 0 | AR101: =IF($C101>Premissas!$G$60,0,AQ100) -> 0 | AS101: =IF($C101>Premissas!$G$60,0,AR100) -> 0 | AT101: =IF($C101>Premissas!$G$60,0,AS100) -> 0 | AU101: =IF($C101>Premissas!$G$60,0,AT100) -> 0 | AV101: =IF($C101>Premissas!$G$60,0,AU100) -> 0 | AW101: =IF($C101>Premissas!$G$60,0,AV100) -> 0 | AX101: =IF($C101>Premissas!$G$60,0,AW100) -> 0 | AY101: =IF($C101>Premissas!$G$60,0,AX100) -> 0 | AZ101: =IF($C101>Premissas!$G$60,0,AY100) -> 0 | BA101: =IF($C101>Premissas!$G$60,0,AZ100) -> 0 | BB101: =IF($C101>Premissas!$G$60,0,BA100) -> 0 | BC101: =IF($C101>Premissas!$G$60,0,BB100) -> 0 | BD101: =IF($C101>Premissas!$G$60,0,BC100) -> 0 | BE101: =IF($C101>Premissas!$G$60,0,BD100) -> 0 | BF101: =IF($C101>Premissas!$G$60,0,BE100) -> 0 | BG101: =IF($C101>Premissas!$G$60,0,BF100) -> 0 | BH101: =IF($C101>Premissas!$G$60,0,BG100) -> 0 | BI101: =IF($C101>Premissas!$G$60,0,BH100) -> 0 | BK101: 8,571
C102: 2 | D102: Manutenção - 2 anos | M102: =IF($C102>Premissas!$G$60,0,L101) -> 0 | N102: =IF($C102>Premissas!$G$60,0,M101) -> 0 | O102: =IF($C102>Premissas!$G$60,0,N101) -> 0 | P102: =IF($C102>Premissas!$G$60,0,O101) -> 0 | Q102: =IF($C102>Premissas!$G$60,0,P101) -> 0 | R102: =IF($C102>Premissas!$G$60,0,Q101) -> 0 | S102: =IF($C102>Premissas!$G$60,0,R101) -> 0 | T102: =IF($C102>Premissas!$G$60,0,S101) -> 1,429 | U102: =IF($C102>Premissas!$G$60,0,T101) -> 1,429 | V102: =IF($C102>Premissas!$G$60,0,U101) -> 1,429 | W102: =IF($C102>Premissas!$G$60,0,V101) -> 1,429 | X102: =IF($C102>Premissas!$G$60,0,W101) -> 1,429 | Y102: =IF($C102>Premissas!$G$60,0,X101) -> 1,429 | Z102: =IF($C102>Premissas!$G$60,0,Y101) -> 0 | AA102: =IF($C102>Premissas!$G$60,0,Z101) -> 0 | AB102: =IF($C102>Premissas!$G$60,0,AA101) -> 0 | AC102: =IF($C102>Premissas!$G$60,0,AB101) -> 0 | AD102: =IF($C102>Premissas!$G$60,0,AC101) -> 0 | AE102: =IF($C102>Premissas!$G$60,0,AD101) -> 0 | AF102: =IF($C102>Premissas!$G$60,0,AE101) -> 0 | AG102: =IF($C102>Premissas!$G$60,0,AF101) -> 0 | AH102: =IF($C102>Premissas!$G$60,0,AG101) -> 0 | AI102: =IF($C102>Premissas!$G$60,0,AH101) -> 0 | AJ102: =IF($C102>Premissas!$G$60,0,AI101) -> 0 | AK102: =IF($C102>Premissas!$G$60,0,AJ101) -> 0 | AL102: =IF($C102>Premissas!$G$60,0,AK101) -> 0 | AM102: =IF($C102>Premissas!$G$60,0,AL101) -> 0 | AN102: =IF($C102>Premissas!$G$60,0,AM101) -> 0 | AO102: =IF($C102>Premissas!$G$60,0,AN101) -> 0 | AP102: =IF($C102>Premissas!$G$60,0,AO101) -> 0 | AQ102: =IF($C102>Premissas!$G$60,0,AP101) -> 0 | AR102: =IF($C102>Premissas!$G$60,0,AQ101) -> 0 | AS102: =IF($C102>Premissas!$G$60,0,AR101) -> 0 | AT102: =IF($C102>Premissas!$G$60,0,AS101) -> 0 | AU102: =IF($C102>Premissas!$G$60,0,AT101) -> 0 | AV102: =IF($C102>Premissas!$G$60,0,AU101) -> 0 | AW102: =IF($C102>Premissas!$G$60,0,AV101) -> 0 | AX102: =IF($C102>Premissas!$G$60,0,AW101) -> 0 | AY102: =IF($C102>Premissas!$G$60,0,AX101) -> 0 | AZ102: =IF($C102>Premissas!$G$60,0,AY101) -> 0 | BA102: =IF($C102>Premissas!$G$60,0,AZ101) -> 0 | BB102: =IF($C102>Premissas!$G$60,0,BA101) -> 0 | BC102: =IF($C102>Premissas!$G$60,0,BB101) -> 0 | BD102: =IF($C102>Premissas!$G$60,0,BC101) -> 0 | BE102: =IF($C102>Premissas!$G$60,0,BD101) -> 0 | BF102: =IF($C102>Premissas!$G$60,0,BE101) -> 0 | BG102: =IF($C102>Premissas!$G$60,0,BF101) -> 0 | BH102: =IF($C102>Premissas!$G$60,0,BG101) -> 0 | BI102: =IF($C102>Premissas!$G$60,0,BH101) -> 0 | BK102: 8,571
C103: 3 | D103: Manutenção - 3 anos | N103: =IF($C103>Premissas!$G$60,0,M102) -> 0 | O103: =IF($C103>Premissas!$G$60,0,N102) -> 0 | P103: =IF($C103>Premissas!$G$60,0,O102) -> 0 | Q103: =IF($C103>Premissas!$G$60,0,P102) -> 0 | R103: =IF($C103>Premissas!$G$60,0,Q102) -> 0 | S103: =IF($C103>Premissas!$G$60,0,R102) -> 0 | T103: =IF($C103>Premissas!$G$60,0,S102) -> 0 | U103: =IF($C103>Premissas!$G$60,0,T102) -> 1,429 | V103: =IF($C103>Premissas!$G$60,0,U102) -> 1,429 | W103: =IF($C103>Premissas!$G$60,0,V102) -> 1,429 | X103: =IF($C103>Premissas!$G$60,0,W102) -> 1,429 | Y103: =IF($C103>Premissas!$G$60,0,X102) -> 1,429 | Z103: =IF($C103>Premissas!$G$60,0,Y102) -> 1,429 | AA103: =IF($C103>Premissas!$G$60,0,Z102) -> 0 | AB103: =IF($C103>Premissas!$G$60,0,AA102) -> 0 | AC103: =IF($C103>Premissas!$G$60,0,AB102) -> 0 | AD103: =IF($C103>Premissas!$G$60,0,AC102) -> 0 | AE103: =IF($C103>Premissas!$G$60,0,AD102) -> 0 | AF103: =IF($C103>Premissas!$G$60,0,AE102) -> 0 | AG103: =IF($C103>Premissas!$G$60,0,AF102) -> 0 | AH103: =IF($C103>Premissas!$G$60,0,AG102) -> 0 | AI103: =IF($C103>Premissas!$G$60,0,AH102) -> 0 | AJ103: =IF($C103>Premissas!$G$60,0,AI102) -> 0 | AK103: =IF($C103>Premissas!$G$60,0,AJ102) -> 0 | AL103: =IF($C103>Premissas!$G$60,0,AK102) -> 0 | AM103: =IF($C103>Premissas!$G$60,0,AL102) -> 0 | AN103: =IF($C103>Premissas!$G$60,0,AM102) -> 0 | AO103: =IF($C103>Premissas!$G$60,0,AN102) -> 0 | AP103: =IF($C103>Premissas!$G$60,0,AO102) -> 0 | AQ103: =IF($C103>Premissas!$G$60,0,AP102) -> 0 | AR103: =IF($C103>Premissas!$G$60,0,AQ102) -> 0 | AS103: =IF($C103>Premissas!$G$60,0,AR102) -> 0 | AT103: =IF($C103>Premissas!$G$60,0,AS102) -> 0 | AU103: =IF($C103>Premissas!$G$60,0,AT102) -> 0 | AV103: =IF($C103>Premissas!$G$60,0,AU102) -> 0 | AW103: =IF($C103>Premissas!$G$60,0,AV102) -> 0 | AX103: =IF($C103>Premissas!$G$60,0,AW102) -> 0 | AY103: =IF($C103>Premissas!$G$60,0,AX102) -> 0 | AZ103: =IF($C103>Premissas!$G$60,0,AY102) -> 0 | BA103: =IF($C103>Premissas!$G$60,0,AZ102) -> 0 | BB103: =IF($C103>Premissas!$G$60,0,BA102) -> 0 | BC103: =IF($C103>Premissas!$G$60,0,BB102) -> 0 | BD103: =IF($C103>Premissas!$G$60,0,BC102) -> 0 | BE103: =IF($C103>Premissas!$G$60,0,BD102) -> 0 | BF103: =IF($C103>Premissas!$G$60,0,BE102) -> 0 | BG103: =IF($C103>Premissas!$G$60,0,BF102) -> 0 | BH103: =IF($C103>Premissas!$G$60,0,BG102) -> 0 | BI103: =IF($C103>Premissas!$G$60,0,BH102) -> 0 | BK103: 8,571
C104: 4 | D104: Manutenção - 4 anos | O104: =IF($C104>Premissas!$G$60,0,N103) -> 0 | P104: =IF($C104>Premissas!$G$60,0,O103) -> 0 | Q104: =IF($C104>Premissas!$G$60,0,P103) -> 0 | R104: =IF($C104>Premissas!$G$60,0,Q103) -> 0 | S104: =IF($C104>Premissas!$G$60,0,R103) -> 0 | T104: =IF($C104>Premissas!$G$60,0,S103) -> 0 | U104: =IF($C104>Premissas!$G$60,0,T103) -> 0 | V104: =IF($C104>Premissas!$G$60,0,U103) -> 1,429 | W104: =IF($C104>Premissas!$G$60,0,V103) -> 1,429 | X104: =IF($C104>Premissas!$G$60,0,W103) -> 1,429 | Y104: =IF($C104>Premissas!$G$60,0,X103) -> 1,429 | Z104: =IF($C104>Premissas!$G$60,0,Y103) -> 1,429 | AA104: =IF($C104>Premissas!$G$60,0,Z103) -> 1,429 | AB104: =IF($C104>Premissas!$G$60,0,AA103) -> 0 | AC104: =IF($C104>Premissas!$G$60,0,AB103) -> 0 | AD104: =IF($C104>Premissas!$G$60,0,AC103) -> 0 | AE104: =IF($C104>Premissas!$G$60,0,AD103) -> 0 | AF104: =IF($C104>Premissas!$G$60,0,AE103) -> 0 | AG104: =IF($C104>Premissas!$G$60,0,AF103) -> 0 | AH104: =IF($C104>Premissas!$G$60,0,AG103) -> 0 | AI104: =IF($C104>Premissas!$G$60,0,AH103) -> 0 | AJ104: =IF($C104>Premissas!$G$60,0,AI103) -> 0 | AK104: =IF($C104>Premissas!$G$60,0,AJ103) -> 0 | AL104: =IF($C104>Premissas!$G$60,0,AK103) -> 0 | AM104: =IF($C104>Premissas!$G$60,0,AL103) -> 0 | AN104: =IF($C104>Premissas!$G$60,0,AM103) -> 0 | AO104: =IF($C104>Premissas!$G$60,0,AN103) -> 0 | AP104: =IF($C104>Premissas!$G$60,0,AO103) -> 0 | AQ104: =IF($C104>Premissas!$G$60,0,AP103) -> 0 | AR104: =IF($C104>Premissas!$G$60,0,AQ103) -> 0 | AS104: =IF($C104>Premissas!$G$60,0,AR103) -> 0 | AT104: =IF($C104>Premissas!$G$60,0,AS103) -> 0 | AU104: =IF($C104>Premissas!$G$60,0,AT103) -> 0 | AV104: =IF($C104>Premissas!$G$60,0,AU103) -> 0 | AW104: =IF($C104>Premissas!$G$60,0,AV103) -> 0 | AX104: =IF($C104>Premissas!$G$60,0,AW103) -> 0 | AY104: =IF($C104>Premissas!$G$60,0,AX103) -> 0 | AZ104: =IF($C104>Premissas!$G$60,0,AY103) -> 0 | BA104: =IF($C104>Premissas!$G$60,0,AZ103) -> 0 | BB104: =IF($C104>Premissas!$G$60,0,BA103) -> 0 | BC104: =IF($C104>Premissas!$G$60,0,BB103) -> 0 | BD104: =IF($C104>Premissas!$G$60,0,BC103) -> 0 | BE104: =IF($C104>Premissas!$G$60,0,BD103) -> 0 | BF104: =IF($C104>Premissas!$G$60,0,BE103) -> 0 | BG104: =IF($C104>Premissas!$G$60,0,BF103) -> 0 | BH104: =IF($C104>Premissas!$G$60,0,BG103) -> 0 | BI104: =IF($C104>Premissas!$G$60,0,BH103) -> 0 | BK104: 8,571
C105: 5 | D105: Manutenção - 5 anos | P105: =IF($C105>Premissas!$G$60,0,O104) -> 0 | Q105: =IF($C105>Premissas!$G$60,0,P104) -> 0 | R105: =IF($C105>Premissas!$G$60,0,Q104) -> 0 | S105: =IF($C105>Premissas!$G$60,0,R104) -> 0 | T105: =IF($C105>Premissas!$G$60,0,S104) -> 0 | U105: =IF($C105>Premissas!$G$60,0,T104) -> 0 | V105: =IF($C105>Premissas!$G$60,0,U104) -> 0 | W105: =IF($C105>Premissas!$G$60,0,V104) -> 1,429 | X105: =IF($C105>Premissas!$G$60,0,W104) -> 1,429 | Y105: =IF($C105>Premissas!$G$60,0,X104) -> 1,429 | Z105: =IF($C105>Premissas!$G$60,0,Y104) -> 1,429 | AA105: =IF($C105>Premissas!$G$60,0,Z104) -> 1,429 | AB105: =IF($C105>Premissas!$G$60,0,AA104) -> 1,429 | AC105: =IF($C105>Premissas!$G$60,0,AB104) -> 0 | AD105: =IF($C105>Premissas!$G$60,0,AC104) -> 0 | AE105: =IF($C105>Premissas!$G$60,0,AD104) -> 0 | AF105: =IF($C105>Premissas!$G$60,0,AE104) -> 0 | AG105: =IF($C105>Premissas!$G$60,0,AF104) -> 0 | AH105: =IF($C105>Premissas!$G$60,0,AG104) -> 0 | AI105: =IF($C105>Premissas!$G$60,0,AH104) -> 0 | AJ105: =IF($C105>Premissas!$G$60,0,AI104) -> 0 | AK105: =IF($C105>Premissas!$G$60,0,AJ104) -> 0 | AL105: =IF($C105>Premissas!$G$60,0,AK104) -> 0 | AM105: =IF($C105>Premissas!$G$60,0,AL104) -> 0 | AN105: =IF($C105>Premissas!$G$60,0,AM104) -> 0 | AO105: =IF($C105>Premissas!$G$60,0,AN104) -> 0 | AP105: =IF($C105>Premissas!$G$60,0,AO104) -> 0 | AQ105: =IF($C105>Premissas!$G$60,0,AP104) -> 0 | AR105: =IF($C105>Premissas!$G$60,0,AQ104) -> 0 | AS105: =IF($C105>Premissas!$G$60,0,AR104) -> 0 | AT105: =IF($C105>Premissas!$G$60,0,AS104) -> 0 | AU105: =IF($C105>Premissas!$G$60,0,AT104) -> 0 | AV105: =IF($C105>Premissas!$G$60,0,AU104) -> 0 | AW105: =IF($C105>Premissas!$G$60,0,AV104) -> 0 | AX105: =IF($C105>Premissas!$G$60,0,AW104) -> 0 | AY105: =IF($C105>Premissas!$G$60,0,AX104) -> 0 | AZ105: =IF($C105>Premissas!$G$60,0,AY104) -> 0 | BA105: =IF($C105>Premissas!$G$60,0,AZ104) -> 0 | BB105: =IF($C105>Premissas!$G$60,0,BA104) -> 0 | BC105: =IF($C105>Premissas!$G$60,0,BB104) -> 0 | BD105: =IF($C105>Premissas!$G$60,0,BC104) -> 0 | BE105: =IF($C105>Premissas!$G$60,0,BD104) -> 0 | BF105: =IF($C105>Premissas!$G$60,0,BE104) -> 0 | BG105: =IF($C105>Premissas!$G$60,0,BF104) -> 0 | BH105: =IF($C105>Premissas!$G$60,0,BG104) -> 0 | BI105: =IF($C105>Premissas!$G$60,0,BH104) -> 0 | BK105: 8,571
C106: 6 | D106: Manutenção - 6 anos | Q106: =IF($C106>Premissas!$G$60,0,P105) -> 0 | R106: =IF($C106>Premissas!$G$60,0,Q105) -> 0 | S106: =IF($C106>Premissas!$G$60,0,R105) -> 0 | T106: =IF($C106>Premissas!$G$60,0,S105) -> 0 | U106: =IF($C106>Premissas!$G$60,0,T105) -> 0 | V106: =IF($C106>Premissas!$G$60,0,U105) -> 0 | W106: =IF($C106>Premissas!$G$60,0,V105) -> 0 | X106: =IF($C106>Premissas!$G$60,0,W105) -> 1,429 | Y106: =IF($C106>Premissas!$G$60,0,X105) -> 1,429 | Z106: =IF($C106>Premissas!$G$60,0,Y105) -> 1,429 | AA106: =IF($C106>Premissas!$G$60,0,Z105) -> 1,429 | AB106: =IF($C106>Premissas!$G$60,0,AA105) -> 1,429 | AC106: =IF($C106>Premissas!$G$60,0,AB105) -> 1,429 | AD106: =IF($C106>Premissas!$G$60,0,AC105) -> 0 | AE106: =IF($C106>Premissas!$G$60,0,AD105) -> 0 | AF106: =IF($C106>Premissas!$G$60,0,AE105) -> 0 | AG106: =IF($C106>Premissas!$G$60,0,AF105) -> 0 | AH106: =IF($C106>Premissas!$G$60,0,AG105) -> 0 | AI106: =IF($C106>Premissas!$G$60,0,AH105) -> 0 | AJ106: =IF($C106>Premissas!$G$60,0,AI105) -> 0 | AK106: =IF($C106>Premissas!$G$60,0,AJ105) -> 0 | AL106: =IF($C106>Premissas!$G$60,0,AK105) -> 0 | AM106: =IF($C106>Premissas!$G$60,0,AL105) -> 0 | AN106: =IF($C106>Premissas!$G$60,0,AM105) -> 0 | AO106: =IF($C106>Premissas!$G$60,0,AN105) -> 0 | AP106: =IF($C106>Premissas!$G$60,0,AO105) -> 0 | AQ106: =IF($C106>Premissas!$G$60,0,AP105) -> 0 | AR106: =IF($C106>Premissas!$G$60,0,AQ105) -> 0 | AS106: =IF($C106>Premissas!$G$60,0,AR105) -> 0 | AT106: =IF($C106>Premissas!$G$60,0,AS105) -> 0 | AU106: =IF($C106>Premissas!$G$60,0,AT105) -> 0 | AV106: =IF($C106>Premissas!$G$60,0,AU105) -> 0 | AW106: =IF($C106>Premissas!$G$60,0,AV105) -> 0 | AX106: =IF($C106>Premissas!$G$60,0,AW105) -> 0 | AY106: =IF($C106>Premissas!$G$60,0,AX105) -> 0 | AZ106: =IF($C106>Premissas!$G$60,0,AY105) -> 0 | BA106: =IF($C106>Premissas!$G$60,0,AZ105) -> 0 | BB106: =IF($C106>Premissas!$G$60,0,BA105) -> 0 | BC106: =IF($C106>Premissas!$G$60,0,BB105) -> 0 | BD106: =IF($C106>Premissas!$G$60,0,BC105) -> 0 | BE106: =IF($C106>Premissas!$G$60,0,BD105) -> 0 | BF106: =IF($C106>Premissas!$G$60,0,BE105) -> 0 | BG106: =IF($C106>Premissas!$G$60,0,BF105) -> 0 | BH106: =IF($C106>Premissas!$G$60,0,BG105) -> 0 | BI106: =IF($C106>Premissas!$G$60,0,BH105) -> 0 | BK106: 8,571
C107: 7 | D107: Manutenção - 7 anos | R107: =IF($C107>Premissas!$G$60,0,Q106) -> 0 | S107: =IF($C107>Premissas!$G$60,0,R106) -> 0 | T107: =IF($C107>Premissas!$G$60,0,S106) -> 0 | U107: =IF($C107>Premissas!$G$60,0,T106) -> 0 | V107: =IF($C107>Premissas!$G$60,0,U106) -> 0 | W107: =IF($C107>Premissas!$G$60,0,V106) -> 0 | X107: =IF($C107>Premissas!$G$60,0,W106) -> 0 | Y107: =IF($C107>Premissas!$G$60,0,X106) -> 1,429 | Z107: =IF($C107>Premissas!$G$60,0,Y106) -> 1,429 | AA107: =IF($C107>Premissas!$G$60,0,Z106) -> 1,429 | AB107: =IF($C107>Premissas!$G$60,0,AA106) -> 1,429 | AC107: =IF($C107>Premissas!$G$60,0,AB106) -> 1,429 | AD107: =IF($C107>Premissas!$G$60,0,AC106) -> 1,429 | AE107: =IF($C107>Premissas!$G$60,0,AD106) -> 0 | AF107: =IF($C107>Premissas!$G$60,0,AE106) -> 0 | AG107: =IF($C107>Premissas!$G$60,0,AF106) -> 0 | AH107: =IF($C107>Premissas!$G$60,0,AG106) -> 0 | AI107: =IF($C107>Premissas!$G$60,0,AH106) -> 0 | AJ107: =IF($C107>Premissas!$G$60,0,AI106) -> 0 | AK107: =IF($C107>Premissas!$G$60,0,AJ106) -> 0 | AL107: =IF($C107>Premissas!$G$60,0,AK106) -> 0 | AM107: =IF($C107>Premissas!$G$60,0,AL106) -> 0 | AN107: =IF($C107>Premissas!$G$60,0,AM106) -> 0 | AO107: =IF($C107>Premissas!$G$60,0,AN106) -> 0 | AP107: =IF($C107>Premissas!$G$60,0,AO106) -> 0 | AQ107: =IF($C107>Premissas!$G$60,0,AP106) -> 0 | AR107: =IF($C107>Premissas!$G$60,0,AQ106) -> 0 | AS107: =IF($C107>Premissas!$G$60,0,AR106) -> 0 | AT107: =IF($C107>Premissas!$G$60,0,AS106) -> 0 | AU107: =IF($C107>Premissas!$G$60,0,AT106) -> 0 | AV107: =IF($C107>Premissas!$G$60,0,AU106) -> 0 | AW107: =IF($C107>Premissas!$G$60,0,AV106) -> 0 | AX107: =IF($C107>Premissas!$G$60,0,AW106) -> 0 | AY107: =IF($C107>Premissas!$G$60,0,AX106) -> 0 | AZ107: =IF($C107>Premissas!$G$60,0,AY106) -> 0 | BA107: =IF($C107>Premissas!$G$60,0,AZ106) -> 0 | BB107: =IF($C107>Premissas!$G$60,0,BA106) -> 0 | BC107: =IF($C107>Premissas!$G$60,0,BB106) -> 0 | BD107: =IF($C107>Premissas!$G$60,0,BC106) -> 0 | BE107: =IF($C107>Premissas!$G$60,0,BD106) -> 0 | BF107: =IF($C107>Premissas!$G$60,0,BE106) -> 0 | BG107: =IF($C107>Premissas!$G$60,0,BF106) -> 0 | BH107: =IF($C107>Premissas!$G$60,0,BG106) -> 0 | BI107: =IF($C107>Premissas!$G$60,0,BH106) -> 0 | BK107: 8,571
C108: 8 | D108: Manutenção - 8 anos | S108: =IF($C108>Premissas!$G$60,0,R107) -> 0 | T108: =IF($C108>Premissas!$G$60,0,S107) -> 0 | U108: =IF($C108>Premissas!$G$60,0,T107) -> 0 | V108: =IF($C108>Premissas!$G$60,0,U107) -> 0 | W108: =IF($C108>Premissas!$G$60,0,V107) -> 0 | X108: =IF($C108>Premissas!$G$60,0,W107) -> 0 | Y108: =IF($C108>Premissas!$G$60,0,X107) -> 0 | Z108: =IF($C108>Premissas!$G$60,0,Y107) -> 0 | AA108: =IF($C108>Premissas!$G$60,0,Z107) -> 0 | AB108: =IF($C108>Premissas!$G$60,0,AA107) -> 0 | AC108: =IF($C108>Premissas!$G$60,0,AB107) -> 0 | AD108: =IF($C108>Premissas!$G$60,0,AC107) -> 0 | AE108: =IF($C108>Premissas!$G$60,0,AD107) -> 0 | AF108: =IF($C108>Premissas!$G$60,0,AE107) -> 0 | AG108: =IF($C108>Premissas!$G$60,0,AF107) -> 0 | AH108: =IF($C108>Premissas!$G$60,0,AG107) -> 0 | AI108: =IF($C108>Premissas!$G$60,0,AH107) -> 0 | AJ108: =IF($C108>Premissas!$G$60,0,AI107) -> 0 | AK108: =IF($C108>Premissas!$G$60,0,AJ107) -> 0 | AL108: =IF($C108>Premissas!$G$60,0,AK107) -> 0 | AM108: =IF($C108>Premissas!$G$60,0,AL107) -> 0 | AN108: =IF($C108>Premissas!$G$60,0,AM107) -> 0 | AO108: =IF($C108>Premissas!$G$60,0,AN107) -> 0 | AP108: =IF($C108>Premissas!$G$60,0,AO107) -> 0 | AQ108: =IF($C108>Premissas!$G$60,0,AP107) -> 0 | AR108: =IF($C108>Premissas!$G$60,0,AQ107) -> 0 | AS108: =IF($C108>Premissas!$G$60,0,AR107) -> 0 | AT108: =IF($C108>Premissas!$G$60,0,AS107) -> 0 | AU108: =IF($C108>Premissas!$G$60,0,AT107) -> 0 | AV108: =IF($C108>Premissas!$G$60,0,AU107) -> 0 | AW108: =IF($C108>Premissas!$G$60,0,AV107) -> 0 | AX108: =IF($C108>Premissas!$G$60,0,AW107) -> 0 | AY108: =IF($C108>Premissas!$G$60,0,AX107) -> 0 | AZ108: =IF($C108>Premissas!$G$60,0,AY107) -> 0 | BA108: =IF($C108>Premissas!$G$60,0,AZ107) -> 0 | BB108: =IF($C108>Premissas!$G$60,0,BA107) -> 0 | BC108: =IF($C108>Premissas!$G$60,0,BB107) -> 0 | BD108: =IF($C108>Premissas!$G$60,0,BC107) -> 0 | BE108: =IF($C108>Premissas!$G$60,0,BD107) -> 0 | BF108: =IF($C108>Premissas!$G$60,0,BE107) -> 0 | BG108: =IF($C108>Premissas!$G$60,0,BF107) -> 0 | BH108: =IF($C108>Premissas!$G$60,0,BG107) -> 0 | BI108: =IF($C108>Premissas!$G$60,0,BH107) -> 0 | BK108: 0
C109: 9 | D109: Manutenção - 9 anos | T109: =IF($C109>Premissas!$G$60,0,S108) -> 0 | U109: =IF($C109>Premissas!$G$60,0,T108) -> 0 | V109: =IF($C109>Premissas!$G$60,0,U108) -> 0 | W109: =IF($C109>Premissas!$G$60,0,V108) -> 0 | X109: =IF($C109>Premissas!$G$60,0,W108) -> 0 | Y109: =IF($C109>Premissas!$G$60,0,X108) -> 0 | Z109: =IF($C109>Premissas!$G$60,0,Y108) -> 0 | AA109: =IF($C109>Premissas!$G$60,0,Z108) -> 0 | AB109: =IF($C109>Premissas!$G$60,0,AA108) -> 0 | AC109: =IF($C109>Premissas!$G$60,0,AB108) -> 0 | AD109: =IF($C109>Premissas!$G$60,0,AC108) -> 0 | AE109: =IF($C109>Premissas!$G$60,0,AD108) -> 0 | AF109: =IF($C109>Premissas!$G$60,0,AE108) -> 0 | AG109: =IF($C109>Premissas!$G$60,0,AF108) -> 0 | AH109: =IF($C109>Premissas!$G$60,0,AG108) -> 0 | AI109: =IF($C109>Premissas!$G$60,0,AH108) -> 0 | AJ109: =IF($C109>Premissas!$G$60,0,AI108) -> 0 | AK109: =IF($C109>Premissas!$G$60,0,AJ108) -> 0 | AL109: =IF($C109>Premissas!$G$60,0,AK108) -> 0 | AM109: =IF($C109>Premissas!$G$60,0,AL108) -> 0 | AN109: =IF($C109>Premissas!$G$60,0,AM108) -> 0 | AO109: =IF($C109>Premissas!$G$60,0,AN108) -> 0 | AP109: =IF($C109>Premissas!$G$60,0,AO108) -> 0 | AQ109: =IF($C109>Premissas!$G$60,0,AP108) -> 0 | AR109: =IF($C109>Premissas!$G$60,0,AQ108) -> 0 | AS109: =IF($C109>Premissas!$G$60,0,AR108) -> 0 | AT109: =IF($C109>Premissas!$G$60,0,AS108) -> 0 | AU109: =IF($C109>Premissas!$G$60,0,AT108) -> 0 | AV109: =IF($C109>Premissas!$G$60,0,AU108) -> 0 | AW109: =IF($C109>Premissas!$G$60,0,AV108) -> 0 | AX109: =IF($C109>Premissas!$G$60,0,AW108) -> 0 | AY109: =IF($C109>Premissas!$G$60,0,AX108) -> 0 | AZ109: =IF($C109>Premissas!$G$60,0,AY108) -> 0 | BA109: =IF($C109>Premissas!$G$60,0,AZ108) -> 0 | BB109: =IF($C109>Premissas!$G$60,0,BA108) -> 0 | BC109: =IF($C109>Premissas!$G$60,0,BB108) -> 0 | BD109: =IF($C109>Premissas!$G$60,0,BC108) -> 0 | BE109: =IF($C109>Premissas!$G$60,0,BD108) -> 0 | BF109: =IF($C109>Premissas!$G$60,0,BE108) -> 0 | BG109: =IF($C109>Premissas!$G$60,0,BF108) -> 0 | BH109: =IF($C109>Premissas!$G$60,0,BG108) -> 0 | BI109: =IF($C109>Premissas!$G$60,0,BH108) -> 0 | BK109: 0
C110: 10 | D110: Manutenção - 10 anos | U110: =IF($C110>Premissas!$G$60,0,T109) -> 0 | V110: =IF($C110>Premissas!$G$60,0,U109) -> 0 | W110: =IF($C110>Premissas!$G$60,0,V109) -> 0 | X110: =IF($C110>Premissas!$G$60,0,W109) -> 0 | Y110: =IF($C110>Premissas!$G$60,0,X109) -> 0 | Z110: =IF($C110>Premissas!$G$60,0,Y109) -> 0 | AA110: =IF($C110>Premissas!$G$60,0,Z109) -> 0 | AB110: =IF($C110>Premissas!$G$60,0,AA109) -> 0 | AC110: =IF($C110>Premissas!$G$60,0,AB109) -> 0 | AD110: =IF($C110>Premissas!$G$60,0,AC109) -> 0 | AE110: =IF($C110>Premissas!$G$60,0,AD109) -> 0 | AF110: =IF($C110>Premissas!$G$60,0,AE109) -> 0 | AG110: =IF($C110>Premissas!$G$60,0,AF109) -> 0 | AH110: =IF($C110>Premissas!$G$60,0,AG109) -> 0 | AI110: =IF($C110>Premissas!$G$60,0,AH109) -> 0 | AJ110: =IF($C110>Premissas!$G$60,0,AI109) -> 0 | AK110: =IF($C110>Premissas!$G$60,0,AJ109) -> 0 | AL110: =IF($C110>Premissas!$G$60,0,AK109) -> 0 | AM110: =IF($C110>Premissas!$G$60,0,AL109) -> 0 | AN110: =IF($C110>Premissas!$G$60,0,AM109) -> 0 | AO110: =IF($C110>Premissas!$G$60,0,AN109) -> 0 | AP110: =IF($C110>Premissas!$G$60,0,AO109) -> 0 | AQ110: =IF($C110>Premissas!$G$60,0,AP109) -> 0 | AR110: =IF($C110>Premissas!$G$60,0,AQ109) -> 0 | AS110: =IF($C110>Premissas!$G$60,0,AR109) -> 0 | AT110: =IF($C110>Premissas!$G$60,0,AS109) -> 0 | AU110: =IF($C110>Premissas!$G$60,0,AT109) -> 0 | AV110: =IF($C110>Premissas!$G$60,0,AU109) -> 0 | AW110: =IF($C110>Premissas!$G$60,0,AV109) -> 0 | AX110: =IF($C110>Premissas!$G$60,0,AW109) -> 0 | AY110: =IF($C110>Premissas!$G$60,0,AX109) -> 0 | AZ110: =IF($C110>Premissas!$G$60,0,AY109) -> 0 | BA110: =IF($C110>Premissas!$G$60,0,AZ109) -> 0 | BB110: =IF($C110>Premissas!$G$60,0,BA109) -> 0 | BC110: =IF($C110>Premissas!$G$60,0,BB109) -> 0 | BD110: =IF($C110>Premissas!$G$60,0,BC109) -> 0 | BE110: =IF($C110>Premissas!$G$60,0,BD109) -> 0 | BF110: =IF($C110>Premissas!$G$60,0,BE109) -> 0 | BG110: =IF($C110>Premissas!$G$60,0,BF109) -> 0 | BH110: =IF($C110>Premissas!$G$60,0,BG109) -> 0 | BI110: =IF($C110>Premissas!$G$60,0,BH109) -> 0 | BK110: 0
C111: =Premissas!$G$60 -> 7 | D111: Colheita | P111: =IF(Premissas!$G$60=5,K100,IF(Premissas!$G$60=6,J100,IF(Premissas!$G$60=7,I100,IF(Premissas!$G$60=8,H100,IF(Premissas!$G$60=9,G100,IF(Premissas!$G$60=10,F100,"ERRO")))))) -> 0 | Q111: =IF(Premissas!$G$60=5,L100,IF(Premissas!$G$60=6,K100,IF(Premissas!$G$60=7,J100,IF(Premissas!$G$60=8,I100,IF(Premissas!$G$60=9,H100,IF(Premissas!$G$60=10,G100,"ERRO")))))) -> 0 | R111: =IF(Premissas!$G$60=5,M100,IF(Premissas!$G$60=6,L100,IF(Premissas!$G$60=7,K100,IF(Premissas!$G$60=8,J100,IF(Premissas!$G$60=9,I100,IF(Premissas!$G$60=10,H100,"ERRO")))))) -> 0 | S111: =IF(Premissas!$G$60=5,N100,IF(Premissas!$G$60=6,M100,IF(Premissas!$G$60=7,L100,IF(Premissas!$G$60=8,K100,IF(Premissas!$G$60=9,J100,IF(Premissas!$G$60=10,I100,"ERRO")))))) -> 0 | T111: =IF(Premissas!$G$60=5,O100,IF(Premissas!$G$60=6,N100,IF(Premissas!$G$60=7,M100,IF(Premissas!$G$60=8,L100,IF(Premissas!$G$60=9,K100,IF(Premissas!$G$60=10,J100,"ERRO")))))) -> 0 | U111: =IF(Premissas!$G$60=5,P100,IF(Premissas!$G$60=6,O100,IF(Premissas!$G$60=7,N100,IF(Premissas!$G$60=8,M100,IF(Premissas!$G$60=9,L100,IF(Premissas!$G$60=10,K100,"ERRO")))))) -> 0 | V111: =IF(Premissas!$G$60=5,Q100,IF(Premissas!$G$60=6,P100,IF(Premissas!$G$60=7,O100,IF(Premissas!$G$60=8,N100,IF(Premissas!$G$60=9,M100,IF(Premissas!$G$60=10,L100,"ERRO")))))) -> 0 | W111: =IF(Premissas!$G$60=5,R100,IF(Premissas!$G$60=6,Q100,IF(Premissas!$G$60=7,P100,IF(Premissas!$G$60=8,O100,IF(Premissas!$G$60=9,N100,IF(Premissas!$G$60=10,M100,"ERRO")))))) -> 0 | X111: =IF(Premissas!$G$60=5,S100,IF(Premissas!$G$60=6,R100,IF(Premissas!$G$60=7,Q100,IF(Premissas!$G$60=8,P100,IF(Premissas!$G$60=9,O100,IF(Premissas!$G$60=10,N100,"ERRO")))))) -> 0 | Y111: =IF(Premissas!$G$60=5,T100,IF(Premissas!$G$60=6,S100,IF(Premissas!$G$60=7,R100,IF(Premissas!$G$60=8,Q100,IF(Premissas!$G$60=9,P100,IF(Premissas!$G$60=10,O100,"ERRO")))))) -> 1,429 | Z111: =IF(Premissas!$G$60=5,U100,IF(Premissas!$G$60=6,T100,IF(Premissas!$G$60=7,S100,IF(Premissas!$G$60=8,R100,IF(Premissas!$G$60=9,Q100,IF(Premissas!$G$60=10,P100,"ERRO")))))) -> 1,429 | AA111: =IF(Premissas!$G$60=5,V100,IF(Premissas!$G$60=6,U100,IF(Premissas!$G$60=7,T100,IF(Premissas!$G$60=8,S100,IF(Premissas!$G$60=9,R100,IF(Premissas!$G$60=10,Q100,"ERRO")))))) -> 1,429 | AB111: =IF(Premissas!$G$60=5,W100,IF(Premissas!$G$60=6,V100,IF(Premissas!$G$60=7,U100,IF(Premissas!$G$60=8,T100,IF(Premissas!$G$60=9,S100,IF(Premissas!$G$60=10,R100,"ERRO")))))) -> 1,429 | AC111: =IF(Premissas!$G$60=5,X100,IF(Premissas!$G$60=6,W100,IF(Premissas!$G$60=7,V100,IF(Premissas!$G$60=8,U100,IF(Premissas!$G$60=9,T100,IF(Premissas!$G$60=10,S100,"ERRO")))))) -> 1,429 | AD111: =IF(Premissas!$G$60=5,Y100,IF(Premissas!$G$60=6,X100,IF(Premissas!$G$60=7,W100,IF(Premissas!$G$60=8,V100,IF(Premissas!$G$60=9,U100,IF(Premissas!$G$60=10,T100,"ERRO")))))) -> 1,429 | AE111: =IF(Premissas!$G$60=5,Z100,IF(Premissas!$G$60=6,Y100,IF(Premissas!$G$60=7,X100,IF(Premissas!$G$60=8,W100,IF(Premissas!$G$60=9,V100,IF(Premissas!$G$60=10,U100,"ERRO")))))) -> 0 | AF111: =IF(Premissas!$G$60=5,AA100,IF(Premissas!$G$60=6,Z100,IF(Premissas!$G$60=7,Y100,IF(Premissas!$G$60=8,X100,IF(Premissas!$G$60=9,W100,IF(Premissas!$G$60=10,V100,"ERRO")))))) -> 0 | AG111: =IF(Premissas!$G$60=5,AB100,IF(Premissas!$G$60=6,AA100,IF(Premissas!$G$60=7,Z100,IF(Premissas!$G$60=8,Y100,IF(Premissas!$G$60=9,X100,IF(Premissas!$G$60=10,W100,"ERRO")))))) -> 0 | AH111: =IF(Premissas!$G$60=5,AC100,IF(Premissas!$G$60=6,AB100,IF(Premissas!$G$60=7,AA100,IF(Premissas!$G$60=8,Z100,IF(Premissas!$G$60=9,Y100,IF(Premissas!$G$60=10,X100,"ERRO")))))) -> 0 | AI111: =IF(Premissas!$G$60=5,AD100,IF(Premissas!$G$60=6,AC100,IF(Premissas!$G$60=7,AB100,IF(Premissas!$G$60=8,AA100,IF(Premissas!$G$60=9,Z100,IF(Premissas!$G$60=10,Y100,"ERRO")))))) -> 0 | AJ111: =IF(Premissas!$G$60=5,AE100,IF(Premissas!$G$60=6,AD100,IF(Premissas!$G$60=7,AC100,IF(Premissas!$G$60=8,AB100,IF(Premissas!$G$60=9,AA100,IF(Premissas!$G$60=10,Z100,"ERRO")))))) -> 0 | AK111: =IF(Premissas!$G$60=5,AF100,IF(Premissas!$G$60=6,AE100,IF(Premissas!$G$60=7,AD100,IF(Premissas!$G$60=8,AC100,IF(Premissas!$G$60=9,AB100,IF(Premissas!$G$60=10,AA100,"ERRO")))))) -> 0 | AL111: =IF(Premissas!$G$60=5,AG100,IF(Premissas!$G$60=6,AF100,IF(Premissas!$G$60=7,AE100,IF(Premissas!$G$60=8,AD100,IF(Premissas!$G$60=9,AC100,IF(Premissas!$G$60=10,AB100,"ERRO")))))) -> 0 | AM111: =IF(Premissas!$G$60=5,AH100,IF(Premissas!$G$60=6,AG100,IF(Premissas!$G$60=7,AF100,IF(Premissas!$G$60=8,AE100,IF(Premissas!$G$60=9,AD100,IF(Premissas!$G$60=10,AC100,"ERRO")))))) -> 0 | AN111: =IF(Premissas!$G$60=5,AI100,IF(Premissas!$G$60=6,AH100,IF(Premissas!$G$60=7,AG100,IF(Premissas!$G$60=8,AF100,IF(Premissas!$G$60=9,AE100,IF(Premissas!$G$60=10,AD100,"ERRO")))))) -> 0 | AO111: =IF(Premissas!$G$60=5,AJ100,IF(Premissas!$G$60=6,AI100,IF(Premissas!$G$60=7,AH100,IF(Premissas!$G$60=8,AG100,IF(Premissas!$G$60=9,AF100,IF(Premissas!$G$60=10,AE100,"ERRO")))))) -> 0 | AP111: =IF(Premissas!$G$60=5,AK100,IF(Premissas!$G$60=6,AJ100,IF(Premissas!$G$60=7,AI100,IF(Premissas!$G$60=8,AH100,IF(Premissas!$G$60=9,AG100,IF(Premissas!$G$60=10,AF100,"ERRO")))))) -> 0 | AQ111: =IF(Premissas!$G$60=5,AL100,IF(Premissas!$G$60=6,AK100,IF(Premissas!$G$60=7,AJ100,IF(Premissas!$G$60=8,AI100,IF(Premissas!$G$60=9,AH100,IF(Premissas!$G$60=10,AG100,"ERRO")))))) -> 0 | AR111: =IF(Premissas!$G$60=5,AM100,IF(Premissas!$G$60=6,AL100,IF(Premissas!$G$60=7,AK100,IF(Premissas!$G$60=8,AJ100,IF(Premissas!$G$60=9,AI100,IF(Premissas!$G$60=10,AH100,"ERRO")))))) -> 0 | AS111: =IF(Premissas!$G$60=5,AN100,IF(Premissas!$G$60=6,AM100,IF(Premissas!$G$60=7,AL100,IF(Premissas!$G$60=8,AK100,IF(Premissas!$G$60=9,AJ100,IF(Premissas!$G$60=10,AI100,"ERRO")))))) -> 0 | AT111: =IF(Premissas!$G$60=5,AO100,IF(Premissas!$G$60=6,AN100,IF(Premissas!$G$60=7,AM100,IF(Premissas!$G$60=8,AL100,IF(Premissas!$G$60=9,AK100,IF(Premissas!$G$60=10,AJ100,"ERRO")))))) -> 0 | AU111: =IF(Premissas!$G$60=5,AP100,IF(Premissas!$G$60=6,AO100,IF(Premissas!$G$60=7,AN100,IF(Premissas!$G$60=8,AM100,IF(Premissas!$G$60=9,AL100,IF(Premissas!$G$60=10,AK100,"ERRO")))))) -> 0 | AV111: =IF(Premissas!$G$60=5,AQ100,IF(Premissas!$G$60=6,AP100,IF(Premissas!$G$60=7,AO100,IF(Premissas!$G$60=8,AN100,IF(Premissas!$G$60=9,AM100,IF(Premissas!$G$60=10,AL100,"ERRO")))))) -> 0 | AW111: =IF(Premissas!$G$60=5,AR100,IF(Premissas!$G$60=6,AQ100,IF(Premissas!$G$60=7,AP100,IF(Premissas!$G$60=8,AO100,IF(Premissas!$G$60=9,AN100,IF(Premissas!$G$60=10,AM100,"ERRO")))))) -> 0 | AX111: =IF(Premissas!$G$60=5,AS100,IF(Premissas!$G$60=6,AR100,IF(Premissas!$G$60=7,AQ100,IF(Premissas!$G$60=8,AP100,IF(Premissas!$G$60=9,AO100,IF(Premissas!$G$60=10,AN100,"ERRO")))))) -> 0 | AY111: =IF(Premissas!$G$60=5,AT100,IF(Premissas!$G$60=6,AS100,IF(Premissas!$G$60=7,AR100,IF(Premissas!$G$60=8,AQ100,IF(Premissas!$G$60=9,AP100,IF(Premissas!$G$60=10,AO100,"ERRO")))))) -> 0 | AZ111: =IF(Premissas!$G$60=5,AU100,IF(Premissas!$G$60=6,AT100,IF(Premissas!$G$60=7,AS100,IF(Premissas!$G$60=8,AR100,IF(Premissas!$G$60=9,AQ100,IF(Premissas!$G$60=10,AP100,"ERRO")))))) -> 0 | BA111: =IF(Premissas!$G$60=5,AV100,IF(Premissas!$G$60=6,AU100,IF(Premissas!$G$60=7,AT100,IF(Premissas!$G$60=8,AS100,IF(Premissas!$G$60=9,AR100,IF(Premissas!$G$60=10,AQ100,"ERRO")))))) -> 0 | BB111: =IF(Premissas!$G$60=5,AW100,IF(Premissas!$G$60=6,AV100,IF(Premissas!$G$60=7,AU100,IF(Premissas!$G$60=8,AT100,IF(Premissas!$G$60=9,AS100,IF(Premissas!$G$60=10,AR100,"ERRO")))))) -> 0 | BC111: =IF(Premissas!$G$60=5,AX100,IF(Premissas!$G$60=6,AW100,IF(Premissas!$G$60=7,AV100,IF(Premissas!$G$60=8,AU100,IF(Premissas!$G$60=9,AT100,IF(Premissas!$G$60=10,AS100,"ERRO")))))) -> 0 | BD111: =IF(Premissas!$G$60=5,AY100,IF(Premissas!$G$60=6,AX100,IF(Premissas!$G$60=7,AW100,IF(Premissas!$G$60=8,AV100,IF(Premissas!$G$60=9,AU100,IF(Premissas!$G$60=10,AT100,"ERRO")))))) -> 0 | BE111: =IF(Premissas!$G$60=5,AZ100,IF(Premissas!$G$60=6,AY100,IF(Premissas!$G$60=7,AX100,IF(Premissas!$G$60=8,AW100,IF(Premissas!$G$60=9,AV100,IF(Premissas!$G$60=10,AU100,"ERRO")))))) -> 0 | BF111: =IF(Premissas!$G$60=5,BA100,IF(Premissas!$G$60=6,AZ100,IF(Premissas!$G$60=7,AY100,IF(Premissas!$G$60=8,AX100,IF(Premissas!$G$60=9,AW100,IF(Premissas!$G$60=10,AV100,"ERRO")))))) -> 0 | BG111: =IF(Premissas!$G$60=5,BB100,IF(Premissas!$G$60=6,BA100,IF(Premissas!$G$60=7,AZ100,IF(Premissas!$G$60=8,AY100,IF(Premissas!$G$60=9,AX100,IF(Premissas!$G$60=10,AW100,"ERRO")))))) -> 0 | BH111: =IF(Premissas!$G$60=5,BC100,IF(Premissas!$G$60=6,BB100,IF(Premissas!$G$60=7,BA100,IF(Premissas!$G$60=8,AZ100,IF(Premissas!$G$60=9,AY100,IF(Premissas!$G$60=10,AX100,"ERRO")))))) -> 0 | BI111: =IF(Premissas!$G$60=5,BD100,IF(Premissas!$G$60=6,BC100,IF(Premissas!$G$60=7,BB100,IF(Premissas!$G$60=8,BA100,IF(Premissas!$G$60=9,AZ100,IF(Premissas!$G$60=10,AY100,"ERRO")))))) -> 0 | BK111: 8,571
C113: Ciclo 1 - Rotação 3 | K113: =K99 -> 0 | L113: =L99 -> 1 | M113: 2 | N113: 3 | O113: 4 | P113: 5 | Q113: 6 | R113: 7 | S113: 8 | T113: 9 | U113: 10 | V113: 11 | W113: 12 | X113: 13 | Y113: 14 | Z113: 15 | AA113: 16 | AB113: 17 | AC113: 18 | AD113: 19 | AE113: 20 | AF113: 21 | AG113: 22 | AH113: 23 | AI113: 24 | AJ113: 25 | AK113: 26 | AL113: 27 | AM113: 28 | AN113: 29 | AO113: 30 | AP113: 31 | AQ113: 32 | AR113: 33 | AS113: 34 | AT113: 35 | AU113: 36 | AV113: 37 | AW113: 38 | AX113: 39 | AY113: 40 | AZ113: 41 | BA113: 42 | BB113: 43 | BC113: 44 | BD113: 45 | BE113: 46 | BF113: 47 | BG113: 48 | BH113: 49 | BI113: 50
C114: 0 | D114: Condução de broto | K114: =IF(AND(Premissas!$G$59>2,K$85<=Premissas!$G$64),K111,0) -> 0 | L114: =IF(AND(Premissas!$G$59>2,L$85<=Premissas!$G$64),L111,0) -> 0 | M114: =IF(AND(Premissas!$G$59>2,M$85<=Premissas!$G$64),M111,0) -> 0 | N114: =IF(AND(Premissas!$G$59>2,N$85<=Premissas!$G$64),N111,0) -> 0 | O114: =IF(AND(Premissas!$G$59>2,O$85<=Premissas!$G$64),O111,0) -> 0 | P114: =IF(AND(Premissas!$G$59>2,P$85<=Premissas!$G$64),P111,0) -> 0 | Q114: =IF(AND(Premissas!$G$59>2,Q$85<=Premissas!$G$64),Q111,0) -> 0 | R114: =IF(AND(Premissas!$G$59>2,R$85<=Premissas!$G$64),R111,0) -> 0 | S114: =IF(AND(Premissas!$G$59>2,S$85<=Premissas!$G$64),S111,0) -> 0 | T114: =IF(AND(Premissas!$G$59>2,T$85<=Premissas!$G$64),T111,0) -> 0 | U114: =IF(AND(Premissas!$G$59>2,U$85<=Premissas!$G$64),U111,0) -> 0 | V114: =IF(AND(Premissas!$G$59>2,V$85<=Premissas!$G$64),V111,0) -> 0 | W114: =IF(AND(Premissas!$G$59>2,W$85<=Premissas!$G$64),W111,0) -> 0 | X114: =IF(AND(Premissas!$G$59>2,X$85<=Premissas!$G$64),X111,0) -> 0 | Y114: =IF(AND(Premissas!$G$59>2,Y$85<=Premissas!$G$64),Y111,0) -> 0 | Z114: =IF(AND(Premissas!$G$59>2,Z$85<=Premissas!$G$64),Z111,0) -> 0 | AA114: =IF(AND(Premissas!$G$59>2,AA$85<=Premissas!$G$64),AA111,0) -> 0 | AB114: =IF(AND(Premissas!$G$59>2,AB$85<=Premissas!$G$64),AB111,0) -> 0 | AC114: =IF(AND(Premissas!$G$59>2,AC$85<=Premissas!$G$64),AC111,0) -> 0 | AD114: =IF(AND(Premissas!$G$59>2,AD$85<=Premissas!$G$64),AD111,0) -> 0 | AE114: =IF(AND(Premissas!$G$59>2,AE$85<=Premissas!$G$64),AE111,0) -> 0 | AF114: =IF(AND(Premissas!$G$59>2,AF$85<=Premissas!$G$64),AF111,0) -> 0 | AG114: =IF(AND(Premissas!$G$59>2,AG$85<=Premissas!$G$64),AG111,0) -> 0 | AH114: =IF(AND(Premissas!$G$59>2,AH$85<=Premissas!$G$64),AH111,0) -> 0 | AI114: =IF(AND(Premissas!$G$59>2,AI$85<=Premissas!$G$64),AI111,0) -> 0 | AJ114: =IF(AND(Premissas!$G$59>2,AJ$85<=Premissas!$G$64),AJ111,0) -> 0 | AK114: =IF(AND(Premissas!$G$59>2,AK$85<=Premissas!$G$64),AK111,0) -> 0 | AL114: =IF(AND(Premissas!$G$59>2,AL$85<=Premissas!$G$64),AL111,0) -> 0 | AM114: =IF(AND(Premissas!$G$59>2,AM$85<=Premissas!$G$64),AM111,0) -> 0 | AN114: =IF(AND(Premissas!$G$59>2,AN$85<=Premissas!$G$64),AN111,0) -> 0 | AO114: =IF(AND(Premissas!$G$59>2,AO$85<=Premissas!$G$64),AO111,0) -> 0 | AP114: =IF(AND(Premissas!$G$59>2,AP$85<=Premissas!$G$64),AP111,0) -> 0 | AQ114: =IF(AND(Premissas!$G$59>2,AQ$85<=Premissas!$G$64),AQ111,0) -> 0 | AR114: =IF(AND(Premissas!$G$59>2,AR$85<=Premissas!$G$64),AR111,0) -> 0 | AS114: =IF(AND(Premissas!$G$59>2,AS$85<=Premissas!$G$64),AS111,0) -> 0 | AT114: =IF(AND(Premissas!$G$59>2,AT$85<=Premissas!$G$64),AT111,0) -> 0 | AU114: =IF(AND(Premissas!$G$59>2,AU$85<=Premissas!$G$64),AU111,0) -> 0 | AV114: =IF(AND(Premissas!$G$59>2,AV$85<=Premissas!$G$64),AV111,0) -> 0 | AW114: =IF(AND(Premissas!$G$59>2,AW$85<=Premissas!$G$64),AW111,0) -> 0 | AX114: =IF(AND(Premissas!$G$59>2,AX$85<=Premissas!$G$64),AX111,0) -> 0 | AY114: =IF(AND(Premissas!$G$59>2,AY$85<=Premissas!$G$64),AY111,0) -> 0 | AZ114: =IF(AND(Premissas!$G$59>2,AZ$85<=Premissas!$G$64),AZ111,0) -> 0 | BA114: =IF(AND(Premissas!$G$59>2,BA$85<=Premissas!$G$64),BA111,0) -> 0 | BB114: =IF(AND(Premissas!$G$59>2,BB$85<=Premissas!$G$64),BB111,0) -> 0 | BC114: =IF(AND(Premissas!$G$59>2,BC$85<=Premissas!$G$64),BC111,0) -> 0 | BD114: =IF(AND(Premissas!$G$59>2,BD$85<=Premissas!$G$64),BD111,0) -> 0 | BE114: =IF(AND(Premissas!$G$59>2,BE$85<=Premissas!$G$64),BE111,0) -> 0 | BF114: =IF(AND(Premissas!$G$59>2,BF$85<=Premissas!$G$64),BF111,0) -> 0 | BG114: =IF(AND(Premissas!$G$59>2,BG$85<=Premissas!$G$64),BG111,0) -> 0 | BH114: =IF(AND(Premissas!$G$59>2,BH$85<=Premissas!$G$64),BH111,0) -> 0 | BI114: =IF(AND(Premissas!$G$59>2,BI$85<=Premissas!$G$64),BI111,0) -> 0 | BK114: =SUM(K114:BI114) -> 0
C115: 1 | D115: Manutenção - 1 ano | L115: =IF($C115>Premissas!$G$60,0,K114) -> 0 | M115: =IF($C115>Premissas!$G$60,0,L114) -> 0 | N115: =IF($C115>Premissas!$G$60,0,M114) -> 0 | O115: =IF($C115>Premissas!$G$60,0,N114) -> 0 | P115: =IF($C115>Premissas!$G$60,0,O114) -> 0 | Q115: =IF($C115>Premissas!$G$60,0,P114) -> 0 | R115: =IF($C115>Premissas!$G$60,0,Q114) -> 0 | S115: =IF($C115>Premissas!$G$60,0,R114) -> 0 | T115: =IF($C115>Premissas!$G$60,0,S114) -> 0 | U115: =IF($C115>Premissas!$G$60,0,T114) -> 0 | V115: =IF($C115>Premissas!$G$60,0,U114) -> 0 | W115: =IF($C115>Premissas!$G$60,0,V114) -> 0 | X115: =IF($C115>Premissas!$G$60,0,W114) -> 0 | Y115: =IF($C115>Premissas!$G$60,0,X114) -> 0 | Z115: =IF($C115>Premissas!$G$60,0,Y114) -> 0 | AA115: =IF($C115>Premissas!$G$60,0,Z114) -> 0 | AB115: =IF($C115>Premissas!$G$60,0,AA114) -> 0 | AC115: =IF($C115>Premissas!$G$60,0,AB114) -> 0 | AD115: =IF($C115>Premissas!$G$60,0,AC114) -> 0 | AE115: =IF($C115>Premissas!$G$60,0,AD114) -> 0 | AF115: =IF($C115>Premissas!$G$60,0,AE114) -> 0 | AG115: =IF($C115>Premissas!$G$60,0,AF114) -> 0 | AH115: =IF($C115>Premissas!$G$60,0,AG114) -> 0 | AI115: =IF($C115>Premissas!$G$60,0,AH114) -> 0 | AJ115: =IF($C115>Premissas!$G$60,0,AI114) -> 0 | AK115: =IF($C115>Premissas!$G$60,0,AJ114) -> 0 | AL115: =IF($C115>Premissas!$G$60,0,AK114) -> 0 | AM115: =IF($C115>Premissas!$G$60,0,AL114) -> 0 | AN115: =IF($C115>Premissas!$G$60,0,AM114) -> 0 | AO115: =IF($C115>Premissas!$G$60,0,AN114) -> 0 | AP115: =IF($C115>Premissas!$G$60,0,AO114) -> 0 | AQ115: =IF($C115>Premissas!$G$60,0,AP114) -> 0 | AR115: =IF($C115>Premissas!$G$60,0,AQ114) -> 0 | AS115: =IF($C115>Premissas!$G$60,0,AR114) -> 0 | AT115: =IF($C115>Premissas!$G$60,0,AS114) -> 0 | AU115: =IF($C115>Premissas!$G$60,0,AT114) -> 0 | AV115: =IF($C115>Premissas!$G$60,0,AU114) -> 0 | AW115: =IF($C115>Premissas!$G$60,0,AV114) -> 0 | AX115: =IF($C115>Premissas!$G$60,0,AW114) -> 0 | AY115: =IF($C115>Premissas!$G$60,0,AX114) -> 0 | AZ115: =IF($C115>Premissas!$G$60,0,AY114) -> 0 | BA115: =IF($C115>Premissas!$G$60,0,AZ114) -> 0 | BB115: =IF($C115>Premissas!$G$60,0,BA114) -> 0 | BC115: =IF($C115>Premissas!$G$60,0,BB114) -> 0 | BD115: =IF($C115>Premissas!$G$60,0,BC114) -> 0 | BE115: =IF($C115>Premissas!$G$60,0,BD114) -> 0 | BF115: =IF($C115>Premissas!$G$60,0,BE114) -> 0 | BG115: =IF($C115>Premissas!$G$60,0,BF114) -> 0 | BH115: =IF($C115>Premissas!$G$60,0,BG114) -> 0 | BI115: =IF($C115>Premissas!$G$60,0,BH114) -> 0 | BK115: 0
C116: 2 | D116: Manutenção - 2 anos | M116: =IF($C116>Premissas!$G$60,0,L115) -> 0 | N116: =IF($C116>Premissas!$G$60,0,M115) -> 0 | O116: =IF($C116>Premissas!$G$60,0,N115) -> 0 | P116: =IF($C116>Premissas!$G$60,0,O115) -> 0 | Q116: =IF($C116>Premissas!$G$60,0,P115) -> 0 | R116: =IF($C116>Premissas!$G$60,0,Q115) -> 0 | S116: =IF($C116>Premissas!$G$60,0,R115) -> 0 | T116: =IF($C116>Premissas!$G$60,0,S115) -> 0 | U116: =IF($C116>Premissas!$G$60,0,T115) -> 0 | V116: =IF($C116>Premissas!$G$60,0,U115) -> 0 | W116: =IF($C116>Premissas!$G$60,0,V115) -> 0 | X116: =IF($C116>Premissas!$G$60,0,W115) -> 0 | Y116: =IF($C116>Premissas!$G$60,0,X115) -> 0 | Z116: =IF($C116>Premissas!$G$60,0,Y115) -> 0 | AA116: =IF($C116>Premissas!$G$60,0,Z115) -> 0 | AB116: =IF($C116>Premissas!$G$60,0,AA115) -> 0 | AC116: =IF($C116>Premissas!$G$60,0,AB115) -> 0 | AD116: =IF($C116>Premissas!$G$60,0,AC115) -> 0 | AE116: =IF($C116>Premissas!$G$60,0,AD115) -> 0 | AF116: =IF($C116>Premissas!$G$60,0,AE115) -> 0 | AG116: =IF($C116>Premissas!$G$60,0,AF115) -> 0 | AH116: =IF($C116>Premissas!$G$60,0,AG115) -> 0 | AI116: =IF($C116>Premissas!$G$60,0,AH115) -> 0 | AJ116: =IF($C116>Premissas!$G$60,0,AI115) -> 0 | AK116: =IF($C116>Premissas!$G$60,0,AJ115) -> 0 | AL116: =IF($C116>Premissas!$G$60,0,AK115) -> 0 | AM116: =IF($C116>Premissas!$G$60,0,AL115) -> 0 | AN116: =IF($C116>Premissas!$G$60,0,AM115) -> 0 | AO116: =IF($C116>Premissas!$G$60,0,AN115) -> 0 | AP116: =IF($C116>Premissas!$G$60,0,AO115) -> 0 | AQ116: =IF($C116>Premissas!$G$60,0,AP115) -> 0 | AR116: =IF($C116>Premissas!$G$60,0,AQ115) -> 0 | AS116: =IF($C116>Premissas!$G$60,0,AR115) -> 0 | AT116: =IF($C116>Premissas!$G$60,0,AS115) -> 0 | AU116: =IF($C116>Premissas!$G$60,0,AT115) -> 0 | AV116: =IF($C116>Premissas!$G$60,0,AU115) -> 0 | AW116: =IF($C116>Premissas!$G$60,0,AV115) -> 0 | AX116: =IF($C116>Premissas!$G$60,0,AW115) -> 0 | AY116: =IF($C116>Premissas!$G$60,0,AX115) -> 0 | AZ116: =IF($C116>Premissas!$G$60,0,AY115) -> 0 | BA116: =IF($C116>Premissas!$G$60,0,AZ115) -> 0 | BB116: =IF($C116>Premissas!$G$60,0,BA115) -> 0 | BC116: =IF($C116>Premissas!$G$60,0,BB115) -> 0 | BD116: =IF($C116>Premissas!$G$60,0,BC115) -> 0 | BE116: =IF($C116>Premissas!$G$60,0,BD115) -> 0 | BF116: =IF($C116>Premissas!$G$60,0,BE115) -> 0 | BG116: =IF($C116>Premissas!$G$60,0,BF115) -> 0 | BH116: =IF($C116>Premissas!$G$60,0,BG115) -> 0 | BI116: =IF($C116>Premissas!$G$60,0,BH115) -> 0 | BK116: 0
C117: 3 | D117: Manutenção - 3 anos | N117: =IF($C117>Premissas!$G$60,0,M116) -> 0 | O117: =IF($C117>Premissas!$G$60,0,N116) -> 0 | P117: =IF($C117>Premissas!$G$60,0,O116) -> 0 | Q117: =IF($C117>Premissas!$G$60,0,P116) -> 0 | R117: =IF($C117>Premissas!$G$60,0,Q116) -> 0 | S117: =IF($C117>Premissas!$G$60,0,R116) -> 0 | T117: =IF($C117>Premissas!$G$60,0,S116) -> 0 | U117: =IF($C117>Premissas!$G$60,0,T116) -> 0 | V117: =IF($C117>Premissas!$G$60,0,U116) -> 0 | W117: =IF($C117>Premissas!$G$60,0,V116) -> 0 | X117: =IF($C117>Premissas!$G$60,0,W116) -> 0 | Y117: =IF($C117>Premissas!$G$60,0,X116) -> 0 | Z117: =IF($C117>Premissas!$G$60,0,Y116) -> 0 | AA117: =IF($C117>Premissas!$G$60,0,Z116) -> 0 | AB117: =IF($C117>Premissas!$G$60,0,AA116) -> 0 | AC117: =IF($C117>Premissas!$G$60,0,AB116) -> 0 | AD117: =IF($C117>Premissas!$G$60,0,AC116) -> 0 | AE117: =IF($C117>Premissas!$G$60,0,AD116) -> 0 | AF117: =IF($C117>Premissas!$G$60,0,AE116) -> 0 | AG117: =IF($C117>Premissas!$G$60,0,AF116) -> 0 | AH117: =IF($C117>Premissas!$G$60,0,AG116) -> 0 | AI117: =IF($C117>Premissas!$G$60,0,AH116) -> 0 | AJ117: =IF($C117>Premissas!$G$60,0,AI116) -> 0 | AK117: =IF($C117>Premissas!$G$60,0,AJ116) -> 0 | AL117: =IF($C117>Premissas!$G$60,0,AK116) -> 0 | AM117: =IF($C117>Premissas!$G$60,0,AL116) -> 0 | AN117: =IF($C117>Premissas!$G$60,0,AM116) -> 0 | AO117: =IF($C117>Premissas!$G$60,0,AN116) -> 0 | AP117: =IF($C117>Premissas!$G$60,0,AO116) -> 0 | AQ117: =IF($C117>Premissas!$G$60,0,AP116) -> 0 | AR117: =IF($C117>Premissas!$G$60,0,AQ116) -> 0 | AS117: =IF($C117>Premissas!$G$60,0,AR116) -> 0 | AT117: =IF($C117>Premissas!$G$60,0,AS116) -> 0 | AU117: =IF($C117>Premissas!$G$60,0,AT116) -> 0 | AV117: =IF($C117>Premissas!$G$60,0,AU116) -> 0 | AW117: =IF($C117>Premissas!$G$60,0,AV116) -> 0 | AX117: =IF($C117>Premissas!$G$60,0,AW116) -> 0 | AY117: =IF($C117>Premissas!$G$60,0,AX116) -> 0 | AZ117: =IF($C117>Premissas!$G$60,0,AY116) -> 0 | BA117: =IF($C117>Premissas!$G$60,0,AZ116) -> 0 | BB117: =IF($C117>Premissas!$G$60,0,BA116) -> 0 | BC117: =IF($C117>Premissas!$G$60,0,BB116) -> 0 | BD117: =IF($C117>Premissas!$G$60,0,BC116) -> 0 | BE117: =IF($C117>Premissas!$G$60,0,BD116) -> 0 | BF117: =IF($C117>Premissas!$G$60,0,BE116) -> 0 | BG117: =IF($C117>Premissas!$G$60,0,BF116) -> 0 | BH117: =IF($C117>Premissas!$G$60,0,BG116) -> 0 | BI117: =IF($C117>Premissas!$G$60,0,BH116) -> 0 | BK117: 0
C118: 4 | D118: Manutenção - 4 anos | O118: =IF($C118>Premissas!$G$60,0,N117) -> 0 | P118: =IF($C118>Premissas!$G$60,0,O117) -> 0 | Q118: =IF($C118>Premissas!$G$60,0,P117) -> 0 | R118: =IF($C118>Premissas!$G$60,0,Q117) -> 0 | S118: =IF($C118>Premissas!$G$60,0,R117) -> 0 | T118: =IF($C118>Premissas!$G$60,0,S117) -> 0 | U118: =IF($C118>Premissas!$G$60,0,T117) -> 0 | V118: =IF($C118>Premissas!$G$60,0,U117) -> 0 | W118: =IF($C118>Premissas!$G$60,0,V117) -> 0 | X118: =IF($C118>Premissas!$G$60,0,W117) -> 0 | Y118: =IF($C118>Premissas!$G$60,0,X117) -> 0 | Z118: =IF($C118>Premissas!$G$60,0,Y117) -> 0 | AA118: =IF($C118>Premissas!$G$60,0,Z117) -> 0 | AB118: =IF($C118>Premissas!$G$60,0,AA117) -> 0 | AC118: =IF($C118>Premissas!$G$60,0,AB117) -> 0 | AD118: =IF($C118>Premissas!$G$60,0,AC117) -> 0 | AE118: =IF($C118>Premissas!$G$60,0,AD117) -> 0 | AF118: =IF($C118>Premissas!$G$60,0,AE117) -> 0 | AG118: =IF($C118>Premissas!$G$60,0,AF117) -> 0 | AH118: =IF($C118>Premissas!$G$60,0,AG117) -> 0 | AI118: =IF($C118>Premissas!$G$60,0,AH117) -> 0 | AJ118: =IF($C118>Premissas!$G$60,0,AI117) -> 0 | AK118: =IF($C118>Premissas!$G$60,0,AJ117) -> 0 | AL118: =IF($C118>Premissas!$G$60,0,AK117) -> 0 | AM118: =IF($C118>Premissas!$G$60,0,AL117) -> 0 | AN118: =IF($C118>Premissas!$G$60,0,AM117) -> 0 | AO118: =IF($C118>Premissas!$G$60,0,AN117) -> 0 | AP118: =IF($C118>Premissas!$G$60,0,AO117) -> 0 | AQ118: =IF($C118>Premissas!$G$60,0,AP117) -> 0 | AR118: =IF($C118>Premissas!$G$60,0,AQ117) -> 0 | AS118: =IF($C118>Premissas!$G$60,0,AR117) -> 0 | AT118: =IF($C118>Premissas!$G$60,0,AS117) -> 0 | AU118: =IF($C118>Premissas!$G$60,0,AT117) -> 0 | AV118: =IF($C118>Premissas!$G$60,0,AU117) -> 0 | AW118: =IF($C118>Premissas!$G$60,0,AV117) -> 0 | AX118: =IF($C118>Premissas!$G$60,0,AW117) -> 0 | AY118: =IF($C118>Premissas!$G$60,0,AX117) -> 0 | AZ118: =IF($C118>Premissas!$G$60,0,AY117) -> 0 | BA118: =IF($C118>Premissas!$G$60,0,AZ117) -> 0 | BB118: =IF($C118>Premissas!$G$60,0,BA117) -> 0 | BC118: =IF($C118>Premissas!$G$60,0,BB117) -> 0 | BD118: =IF($C118>Premissas!$G$60,0,BC117) -> 0 | BE118: =IF($C118>Premissas!$G$60,0,BD117) -> 0 | BF118: =IF($C118>Premissas!$G$60,0,BE117) -> 0 | BG118: =IF($C118>Premissas!$G$60,0,BF117) -> 0 | BH118: =IF($C118>Premissas!$G$60,0,BG117) -> 0 | BI118: =IF($C118>Premissas!$G$60,0,BH117) -> 0 | BK118: 0
C119: 5 | D119: Manutenção - 5 anos | P119: =IF($C119>Premissas!$G$60,0,O118) -> 0 | Q119: =IF($C119>Premissas!$G$60,0,P118) -> 0 | R119: =IF($C119>Premissas!$G$60,0,Q118) -> 0 | S119: =IF($C119>Premissas!$G$60,0,R118) -> 0 | T119: =IF($C119>Premissas!$G$60,0,S118) -> 0 | U119: =IF($C119>Premissas!$G$60,0,T118) -> 0 | V119: =IF($C119>Premissas!$G$60,0,U118) -> 0 | W119: =IF($C119>Premissas!$G$60,0,V118) -> 0 | X119: =IF($C119>Premissas!$G$60,0,W118) -> 0 | Y119: =IF($C119>Premissas!$G$60,0,X118) -> 0 | Z119: =IF($C119>Premissas!$G$60,0,Y118) -> 0 | AA119: =IF($C119>Premissas!$G$60,0,Z118) -> 0 | AB119: =IF($C119>Premissas!$G$60,0,AA118) -> 0 | AC119: =IF($C119>Premissas!$G$60,0,AB118) -> 0 | AD119: =IF($C119>Premissas!$G$60,0,AC118) -> 0 | AE119: =IF($C119>Premissas!$G$60,0,AD118) -> 0 | AF119: =IF($C119>Premissas!$G$60,0,AE118) -> 0 | AG119: =IF($C119>Premissas!$G$60,0,AF118) -> 0 | AH119: =IF($C119>Premissas!$G$60,0,AG118) -> 0 | AI119: =IF($C119>Premissas!$G$60,0,AH118) -> 0 | AJ119: =IF($C119>Premissas!$G$60,0,AI118) -> 0 | AK119: =IF($C119>Premissas!$G$60,0,AJ118) -> 0 | AL119: =IF($C119>Premissas!$G$60,0,AK118) -> 0 | AM119: =IF($C119>Premissas!$G$60,0,AL118) -> 0 | AN119: =IF($C119>Premissas!$G$60,0,AM118) -> 0 | AO119: =IF($C119>Premissas!$G$60,0,AN118) -> 0 | AP119: =IF($C119>Premissas!$G$60,0,AO118) -> 0 | AQ119: =IF($C119>Premissas!$G$60,0,AP118) -> 0 | AR119: =IF($C119>Premissas!$G$60,0,AQ118) -> 0 | AS119: =IF($C119>Premissas!$G$60,0,AR118) -> 0 | AT119: =IF($C119>Premissas!$G$60,0,AS118) -> 0 | AU119: =IF($C119>Premissas!$G$60,0,AT118) -> 0 | AV119: =IF($C119>Premissas!$G$60,0,AU118) -> 0 | AW119: =IF($C119>Premissas!$G$60,0,AV118) -> 0 | AX119: =IF($C119>Premissas!$G$60,0,AW118) -> 0 | AY119: =IF($C119>Premissas!$G$60,0,AX118) -> 0 | AZ119: =IF($C119>Premissas!$G$60,0,AY118) -> 0 | BA119: =IF($C119>Premissas!$G$60,0,AZ118) -> 0 | BB119: =IF($C119>Premissas!$G$60,0,BA118) -> 0 | BC119: =IF($C119>Premissas!$G$60,0,BB118) -> 0 | BD119: =IF($C119>Premissas!$G$60,0,BC118) -> 0 | BE119: =IF($C119>Premissas!$G$60,0,BD118) -> 0 | BF119: =IF($C119>Premissas!$G$60,0,BE118) -> 0 | BG119: =IF($C119>Premissas!$G$60,0,BF118) -> 0 | BH119: =IF($C119>Premissas!$G$60,0,BG118) -> 0 | BI119: =IF($C119>Premissas!$G$60,0,BH118) -> 0 | BK119: 0
C120: 6 | D120: Manutenção - 6 anos | Q120: =IF($C120>Premissas!$G$60,0,P119) -> 0 | R120: =IF($C120>Premissas!$G$60,0,Q119) -> 0 | S120: =IF($C120>Premissas!$G$60,0,R119) -> 0 | T120: =IF($C120>Premissas!$G$60,0,S119) -> 0 | U120: =IF($C120>Premissas!$G$60,0,T119) -> 0 | V120: =IF($C120>Premissas!$G$60,0,U119) -> 0 | W120: =IF($C120>Premissas!$G$60,0,V119) -> 0 | X120: =IF($C120>Premissas!$G$60,0,W119) -> 0 | Y120: =IF($C120>Premissas!$G$60,0,X119) -> 0 | Z120: =IF($C120>Premissas!$G$60,0,Y119) -> 0 | AA120: =IF($C120>Premissas!$G$60,0,Z119) -> 0 | AB120: =IF($C120>Premissas!$G$60,0,AA119) -> 0 | AC120: =IF($C120>Premissas!$G$60,0,AB119) -> 0 | AD120: =IF($C120>Premissas!$G$60,0,AC119) -> 0 | AE120: =IF($C120>Premissas!$G$60,0,AD119) -> 0 | AF120: =IF($C120>Premissas!$G$60,0,AE119) -> 0 | AG120: =IF($C120>Premissas!$G$60,0,AF119) -> 0 | AH120: =IF($C120>Premissas!$G$60,0,AG119) -> 0 | AI120: =IF($C120>Premissas!$G$60,0,AH119) -> 0 | AJ120: =IF($C120>Premissas!$G$60,0,AI119) -> 0 | AK120: =IF($C120>Premissas!$G$60,0,AJ119) -> 0 | AL120: =IF($C120>Premissas!$G$60,0,AK119) -> 0 | AM120: =IF($C120>Premissas!$G$60,0,AL119) -> 0 | AN120: =IF($C120>Premissas!$G$60,0,AM119) -> 0 | AO120: =IF($C120>Premissas!$G$60,0,AN119) -> 0 | AP120: =IF($C120>Premissas!$G$60,0,AO119) -> 0 | AQ120: =IF($C120>Premissas!$G$60,0,AP119) -> 0 | AR120: =IF($C120>Premissas!$G$60,0,AQ119) -> 0 | AS120: =IF($C120>Premissas!$G$60,0,AR119) -> 0 | AT120: =IF($C120>Premissas!$G$60,0,AS119) -> 0 | AU120: =IF($C120>Premissas!$G$60,0,AT119) -> 0 | AV120: =IF($C120>Premissas!$G$60,0,AU119) -> 0 | AW120: =IF($C120>Premissas!$G$60,0,AV119) -> 0 | AX120: =IF($C120>Premissas!$G$60,0,AW119) -> 0 | AY120: =IF($C120>Premissas!$G$60,0,AX119) -> 0 | AZ120: =IF($C120>Premissas!$G$60,0,AY119) -> 0 | BA120: =IF($C120>Premissas!$G$60,0,AZ119) -> 0 | BB120: =IF($C120>Premissas!$G$60,0,BA119) -> 0 | BC120: =IF($C120>Premissas!$G$60,0,BB119) -> 0 | BD120: =IF($C120>Premissas!$G$60,0,BC119) -> 0 | BE120: =IF($C120>Premissas!$G$60,0,BD119) -> 0 | BF120: =IF($C120>Premissas!$G$60,0,BE119) -> 0 | BG120: =IF($C120>Premissas!$G$60,0,BF119) -> 0 | BH120: =IF($C120>Premissas!$G$60,0,BG119) -> 0 | BI120: =IF($C120>Premissas!$G$60,0,BH119) -> 0 | BK120: 0
C121: 7 | D121: Manutenção - 7 anos | R121: =IF($C121>Premissas!$G$60,0,Q120) -> 0 | S121: =IF($C121>Premissas!$G$60,0,R120) -> 0 | T121: =IF($C121>Premissas!$G$60,0,S120) -> 0 | U121: =IF($C121>Premissas!$G$60,0,T120) -> 0 | V121: =IF($C121>Premissas!$G$60,0,U120) -> 0 | W121: =IF($C121>Premissas!$G$60,0,V120) -> 0 | X121: =IF($C121>Premissas!$G$60,0,W120) -> 0 | Y121: =IF($C121>Premissas!$G$60,0,X120) -> 0 | Z121: =IF($C121>Premissas!$G$60,0,Y120) -> 0 | AA121: =IF($C121>Premissas!$G$60,0,Z120) -> 0 | AB121: =IF($C121>Premissas!$G$60,0,AA120) -> 0 | AC121: =IF($C121>Premissas!$G$60,0,AB120) -> 0 | AD121: =IF($C121>Premissas!$G$60,0,AC120) -> 0 | AE121: =IF($C121>Premissas!$G$60,0,AD120) -> 0 | AF121: =IF($C121>Premissas!$G$60,0,AE120) -> 0 | AG121: =IF($C121>Premissas!$G$60,0,AF120) -> 0 | AH121: =IF($C121>Premissas!$G$60,0,AG120) -> 0 | AI121: =IF($C121>Premissas!$G$60,0,AH120) -> 0 | AJ121: =IF($C121>Premissas!$G$60,0,AI120) -> 0 | AK121: =IF($C121>Premissas!$G$60,0,AJ120) -> 0 | AL121: =IF($C121>Premissas!$G$60,0,AK120) -> 0 | AM121: =IF($C121>Premissas!$G$60,0,AL120) -> 0 | AN121: =IF($C121>Premissas!$G$60,0,AM120) -> 0 | AO121: =IF($C121>Premissas!$G$60,0,AN120) -> 0 | AP121: =IF($C121>Premissas!$G$60,0,AO120) -> 0 | AQ121: =IF($C121>Premissas!$G$60,0,AP120) -> 0 | AR121: =IF($C121>Premissas!$G$60,0,AQ120) -> 0 | AS121: =IF($C121>Premissas!$G$60,0,AR120) -> 0 | AT121: =IF($C121>Premissas!$G$60,0,AS120) -> 0 | AU121: =IF($C121>Premissas!$G$60,0,AT120) -> 0 | AV121: =IF($C121>Premissas!$G$60,0,AU120) -> 0 | AW121: =IF($C121>Premissas!$G$60,0,AV120) -> 0 | AX121: =IF($C121>Premissas!$G$60,0,AW120) -> 0 | AY121: =IF($C121>Premissas!$G$60,0,AX120) -> 0 | AZ121: =IF($C121>Premissas!$G$60,0,AY120) -> 0 | BA121: =IF($C121>Premissas!$G$60,0,AZ120) -> 0 | BB121: =IF($C121>Premissas!$G$60,0,BA120) -> 0 | BC121: =IF($C121>Premissas!$G$60,0,BB120) -> 0 | BD121: =IF($C121>Premissas!$G$60,0,BC120) -> 0 | BE121: =IF($C121>Premissas!$G$60,0,BD120) -> 0 | BF121: =IF($C121>Premissas!$G$60,0,BE120) -> 0 | BG121: =IF($C121>Premissas!$G$60,0,BF120) -> 0 | BH121: =IF($C121>Premissas!$G$60,0,BG120) -> 0 | BI121: =IF($C121>Premissas!$G$60,0,BH120) -> 0 | BK121: 0
C122: 8 | D122: Manutenção - 8 anos | S122: =IF($C122>Premissas!$G$60,0,R121) -> 0 | T122: =IF($C122>Premissas!$G$60,0,S121) -> 0 | U122: =IF($C122>Premissas!$G$60,0,T121) -> 0 | V122: =IF($C122>Premissas!$G$60,0,U121) -> 0 | W122: =IF($C122>Premissas!$G$60,0,V121) -> 0 | X122: =IF($C122>Premissas!$G$60,0,W121) -> 0 | Y122: =IF($C122>Premissas!$G$60,0,X121) -> 0 | Z122: =IF($C122>Premissas!$G$60,0,Y121) -> 0 | AA122: =IF($C122>Premissas!$G$60,0,Z121) -> 0 | AB122: =IF($C122>Premissas!$G$60,0,AA121) -> 0 | AC122: =IF($C122>Premissas!$G$60,0,AB121) -> 0 | AD122: =IF($C122>Premissas!$G$60,0,AC121) -> 0 | AE122: =IF($C122>Premissas!$G$60,0,AD121) -> 0 | AF122: =IF($C122>Premissas!$G$60,0,AE121) -> 0 | AG122: =IF($C122>Premissas!$G$60,0,AF121) -> 0 | AH122: =IF($C122>Premissas!$G$60,0,AG121) -> 0 | AI122: =IF($C122>Premissas!$G$60,0,AH121) -> 0 | AJ122: =IF($C122>Premissas!$G$60,0,AI121) -> 0 | AK122: =IF($C122>Premissas!$G$60,0,AJ121) -> 0 | AL122: =IF($C122>Premissas!$G$60,0,AK121) -> 0 | AM122: =IF($C122>Premissas!$G$60,0,AL121) -> 0 | AN122: =IF($C122>Premissas!$G$60,0,AM121) -> 0 | AO122: =IF($C122>Premissas!$G$60,0,AN121) -> 0 | AP122: =IF($C122>Premissas!$G$60,0,AO121) -> 0 | AQ122: =IF($C122>Premissas!$G$60,0,AP121) -> 0 | AR122: =IF($C122>Premissas!$G$60,0,AQ121) -> 0 | AS122: =IF($C122>Premissas!$G$60,0,AR121) -> 0 | AT122: =IF($C122>Premissas!$G$60,0,AS121) -> 0 | AU122: =IF($C122>Premissas!$G$60,0,AT121) -> 0 | AV122: =IF($C122>Premissas!$G$60,0,AU121) -> 0 | AW122: =IF($C122>Premissas!$G$60,0,AV121) -> 0 | AX122: =IF($C122>Premissas!$G$60,0,AW121) -> 0 | AY122: =IF($C122>Premissas!$G$60,0,AX121) -> 0 | AZ122: =IF($C122>Premissas!$G$60,0,AY121) -> 0 | BA122: =IF($C122>Premissas!$G$60,0,AZ121) -> 0 | BB122: =IF($C122>Premissas!$G$60,0,BA121) -> 0 | BC122: =IF($C122>Premissas!$G$60,0,BB121) -> 0 | BD122: =IF($C122>Premissas!$G$60,0,BC121) -> 0 | BE122: =IF($C122>Premissas!$G$60,0,BD121) -> 0 | BF122: =IF($C122>Premissas!$G$60,0,BE121) -> 0 | BG122: =IF($C122>Premissas!$G$60,0,BF121) -> 0 | BH122: =IF($C122>Premissas!$G$60,0,BG121) -> 0 | BI122: =IF($C122>Premissas!$G$60,0,BH121) -> 0 | BK122: 0
C123: 9 | D123: Manutenção - 9 anos | T123: =IF($C123>Premissas!$G$60,0,S122) -> 0 | U123: =IF($C123>Premissas!$G$60,0,T122) -> 0 | V123: =IF($C123>Premissas!$G$60,0,U122) -> 0 | W123: =IF($C123>Premissas!$G$60,0,V122) -> 0 | X123: =IF($C123>Premissas!$G$60,0,W122) -> 0 | Y123: =IF($C123>Premissas!$G$60,0,X122) -> 0 | Z123: =IF($C123>Premissas!$G$60,0,Y122) -> 0 | AA123: =IF($C123>Premissas!$G$60,0,Z122) -> 0 | AB123: =IF($C123>Premissas!$G$60,0,AA122) -> 0 | AC123: =IF($C123>Premissas!$G$60,0,AB122) -> 0 | AD123: =IF($C123>Premissas!$G$60,0,AC122) -> 0 | AE123: =IF($C123>Premissas!$G$60,0,AD122) -> 0 | AF123: =IF($C123>Premissas!$G$60,0,AE122) -> 0 | AG123: =IF($C123>Premissas!$G$60,0,AF122) -> 0 | AH123: =IF($C123>Premissas!$G$60,0,AG122) -> 0 | AI123: =IF($C123>Premissas!$G$60,0,AH122) -> 0 | AJ123: =IF($C123>Premissas!$G$60,0,AI122) -> 0 | AK123: =IF($C123>Premissas!$G$60,0,AJ122) -> 0 | AL123: =IF($C123>Premissas!$G$60,0,AK122) -> 0 | AM123: =IF($C123>Premissas!$G$60,0,AL122) -> 0 | AN123: =IF($C123>Premissas!$G$60,0,AM122) -> 0 | AO123: =IF($C123>Premissas!$G$60,0,AN122) -> 0 | AP123: =IF($C123>Premissas!$G$60,0,AO122) -> 0 | AQ123: =IF($C123>Premissas!$G$60,0,AP122) -> 0 | AR123: =IF($C123>Premissas!$G$60,0,AQ122) -> 0 | AS123: =IF($C123>Premissas!$G$60,0,AR122) -> 0 | AT123: =IF($C123>Premissas!$G$60,0,AS122) -> 0 | AU123: =IF($C123>Premissas!$G$60,0,AT122) -> 0 | AV123: =IF($C123>Premissas!$G$60,0,AU122) -> 0 | AW123: =IF($C123>Premissas!$G$60,0,AV122) -> 0 | AX123: =IF($C123>Premissas!$G$60,0,AW122) -> 0 | AY123: =IF($C123>Premissas!$G$60,0,AX122) -> 0 | AZ123: =IF($C123>Premissas!$G$60,0,AY122) -> 0 | BA123: =IF($C123>Premissas!$G$60,0,AZ122) -> 0 | BB123: =IF($C123>Premissas!$G$60,0,BA122) -> 0 | BC123: =IF($C123>Premissas!$G$60,0,BB122) -> 0 | BD123: =IF($C123>Premissas!$G$60,0,BC122) -> 0 | BE123: =IF($C123>Premissas!$G$60,0,BD122) -> 0 | BF123: =IF($C123>Premissas!$G$60,0,BE122) -> 0 | BG123: =IF($C123>Premissas!$G$60,0,BF122) -> 0 | BH123: =IF($C123>Premissas!$G$60,0,BG122) -> 0 | BI123: =IF($C123>Premissas!$G$60,0,BH122) -> 0 | BK123: 0
C124: 10 | D124: Manutenção - 10 anos | U124: =IF($C124>Premissas!$G$60,0,T123) -> 0 | V124: =IF($C124>Premissas!$G$60,0,U123) -> 0 | W124: =IF($C124>Premissas!$G$60,0,V123) -> 0 | X124: =IF($C124>Premissas!$G$60,0,W123) -> 0 | Y124: =IF($C124>Premissas!$G$60,0,X123) -> 0 | Z124: =IF($C124>Premissas!$G$60,0,Y123) -> 0 | AA124: =IF($C124>Premissas!$G$60,0,Z123) -> 0 | AB124: =IF($C124>Premissas!$G$60,0,AA123) -> 0 | AC124: =IF($C124>Premissas!$G$60,0,AB123) -> 0 | AD124: =IF($C124>Premissas!$G$60,0,AC123) -> 0 | AE124: =IF($C124>Premissas!$G$60,0,AD123) -> 0 | AF124: =IF($C124>Premissas!$G$60,0,AE123) -> 0 | AG124: =IF($C124>Premissas!$G$60,0,AF123) -> 0 | AH124: =IF($C124>Premissas!$G$60,0,AG123) -> 0 | AI124: =IF($C124>Premissas!$G$60,0,AH123) -> 0 | AJ124: =IF($C124>Premissas!$G$60,0,AI123) -> 0 | AK124: =IF($C124>Premissas!$G$60,0,AJ123) -> 0 | AL124: =IF($C124>Premissas!$G$60,0,AK123) -> 0 | AM124: =IF($C124>Premissas!$G$60,0,AL123) -> 0 | AN124: =IF($C124>Premissas!$G$60,0,AM123) -> 0 | AO124: =IF($C124>Premissas!$G$60,0,AN123) -> 0 | AP124: =IF($C124>Premissas!$G$60,0,AO123) -> 0 | AQ124: =IF($C124>Premissas!$G$60,0,AP123) -> 0 | AR124: =IF($C124>Premissas!$G$60,0,AQ123) -> 0 | AS124: =IF($C124>Premissas!$G$60,0,AR123) -> 0 | AT124: =IF($C124>Premissas!$G$60,0,AS123) -> 0 | AU124: =IF($C124>Premissas!$G$60,0,AT123) -> 0 | AV124: =IF($C124>Premissas!$G$60,0,AU123) -> 0 | AW124: =IF($C124>Premissas!$G$60,0,AV123) -> 0 | AX124: =IF($C124>Premissas!$G$60,0,AW123) -> 0 | AY124: =IF($C124>Premissas!$G$60,0,AX123) -> 0 | AZ124: =IF($C124>Premissas!$G$60,0,AY123) -> 0 | BA124: =IF($C124>Premissas!$G$60,0,AZ123) -> 0 | BB124: =IF($C124>Premissas!$G$60,0,BA123) -> 0 | BC124: =IF($C124>Premissas!$G$60,0,BB123) -> 0 | BD124: =IF($C124>Premissas!$G$60,0,BC123) -> 0 | BE124: =IF($C124>Premissas!$G$60,0,BD123) -> 0 | BF124: =IF($C124>Premissas!$G$60,0,BE123) -> 0 | BG124: =IF($C124>Premissas!$G$60,0,BF123) -> 0 | BH124: =IF($C124>Premissas!$G$60,0,BG123) -> 0 | BI124: =IF($C124>Premissas!$G$60,0,BH123) -> 0 | BK124: 0
